Workbook

Sheet PROFORMA
A1: 1 | B1: Proforma | E1: AVISTA UTILITIES | J1: Washington Jurisdiction | T1: Expense Page 1 | U1: AVISTA UTILITIES | AB1: =$J$1 -> Washington Jurisdiction | AI1: Expense Page 1A | AJ1: AVISTA UTILITIES | AQ1: =$J$1 -> Washington Jurisdiction | AZ1: Expense Page 1B | BA1: AVISTA UTILITIES | BF1: =$J$1 -> Washington Jurisdiction | BL1: Expense Page 1B | BO1: =E1 -> AVISTA UTILITIES | BQ1: =J1 -> Washington Jurisdiction
A2: 2 | B2: Pro Forma Results of Operations | E2: Operation and Maintenance Expenses | J2: Electric Utility | T2: 2019-04-30 | U2: =$E2 -> Operation and Maintenance Expenses | AB2: =$J$2 -> Electric Utility | AI2: =$T$2 -> 2019-04-30 | AJ2: =$E2 -> Operation and Maintenance Expenses | AQ2: =$J$2 -> Electric Utility | AZ2: =$T$2 -> 2019-04-30 | BA2: =$E2 -> Operation and Maintenance Expenses | BF2: =$J$2 -> Electric Utility | BL2: =$T$2 -> 2019-04-30 | BO2: COS Proforma Transfer | BQ2: =J2 -> Electric Utility
A3: 3 | B3: Company Settlement Case UE-190334 | E3: For the Twelve Months Ended December 31, 2018 | U3: =$E$3 -> For the Twelve Months Ended December 31, 2018 | AI3: =$T$3 ->  | AJ3: =$E$3 -> For the Twelve Months Ended December 31, 2018 | BA3: =$E$3 -> For the Twelve Months Ended December 31, 2018 | BL3: =$T$3 ->  | BO3: =E3 -> For the Twelve Months Ended December 31, 2018 | BQ3: COS Checker
A4: 4
A5: 5 | B5: =columnheader -> B | C5: =columnheader -> C | D5: D | E5: E | F5: F | G5: G | H5: H | I5: I | J5: J | K5: K | L5: L | M5: M | N5: N | O5: O | P5: P | Q5: Q | R5: R | S5: S | T5: T | U5: U | V5: V | W5: W | X5: X | Y5: Y | Z5: Z | AA5: AA | AB5: AB | AC5: AC | AD5: AD | AE5: AE | AF5: AF | AG5: AG | AH5: AH | AI5: AI | AJ5: AJ | AK5: AK | AL5: AL | AM5: AM | AN5: AN | AO5: AO | AP5: AP | AQ5: AQ | AR5: AR | AS5: AS | AT5: AT | AU5: AU | AV5: AV | AW5: AW | AX5: AX | AY5: AY | AZ5: AZ | BA5: BA | BB5: BB | BC5: BC | BD5: BD | BE5: BE | BF5: BF | BG5: BG | BH5: BH | BI5: BI | BJ5: BJ | BK5: BK | BL5: BL | BM5: =columnheader -> BM | BN5: BN | BO5: BO | BP5: =columnheader -> BP | BQ5: Checker
A6: 6 | E6: Notes | F6: Labor | G6: O&M Expense | H6: Deferred | I6: Deferred | J6: Working | K6: Eliminate | L6: Eliminate | M6: Restate | N6: Uncollectible | O6: Regulatory | P6: Injuries and | Q6: FIT/DFIT/ITC/ | R6: Office Space | S6: Restate | T6: Net Gains | U6: Weather | V6: Eliminate | W6: Misc | X6: Restate | Y6: Restate | Z6: Eliminate WA | AA6: Nez Perce | AB6: Normalize | AC6: Authorized | AD6: Restate 2018 | AE6: Pro Forma | AF6: Pro Forma | AG6: Pro Forma | AH6: Pro Forma | AI6: Pro Forma | AJ6: Pro Forma | AK6: Pro Forma | AL6: Pro Forma | AM6: Pro Forma | AN6: Pro Forma | AO6: Pro Forma | AP6: Pro Forma | AQ6: Pro Forma | AR6: Pro Forma | AS6: BlackBox | AT6: Settlement | AW6: Cost of Service | BK6: Net Total | BL6: Total | BM6: Total | BN6: check | BO6: Transfer | BP6: Transfer | BQ6: Description | BR6: Amounts
A7: 7 | B7: Account | D7: Description | F7: Dollars | G7: Totals per Books | H7: FIT Rate Base | I7: Debits & Credits | J7: Capital | K7: AMI Rate Base | L7: B&O Taxes | M7: Property Tax | N7: Expense | O7: Expense | P7: Damages Exp | Q7: PTC Expense | R7: Chg to Subs | S7: Excise Taxes | T7: & Losses | U7: Normalization | V7: Adder Sch | W7: Restating Exp | X7: Incentives | Y7: Debt Interest | Z7: Power Cost Def | AA7: Settlement | AB7: CS2/Colstrip MM | AC7: Power Supply | AD7: RB to EOP | AE7: Revenue Norm | AF7: Reg Amort DDC | AG7: Labor Non-Exec | AH7: Labor Exec | AI7: Empl Benefits | AJ7: Insurance Exp | AK7: IS/IT Expense | AL7: Property Tax | AM7: Depreciation Exp | AN7: 2019 Thresh Cap | AO7: O&M Offsets | AP7: Fee Free Amort | AQ7: Colstrip Amort | AR7: CS2/Colstrip MM | AS7: Recon to | AT7: Revenue | AW7: Reclassification | BK7: of All | BM7: Rounded | BO7: Proforma | BP7: Labor
A8: 8 | G8: 1.00 E-ROO | H8: 1.01 E-DFIT | I8: 1.02 E-DDC | J8: 1.03 E-WC | K8: 1.04 E-AMI | L8: 2.01 E-EBO | M8: 2.02 E-RPT | N8: 2.03 E-UE | O8: 2.04 E-RE | P8: 2.05 E-ID | Q8: 2.06 E-FIT | R8: 2.07 E-OSC | S8: 2.08 E-RET | T8: 2.09 NGL | U8: 2.10 E-WN | V8: 2.11 E-EAS | W8: 2.12 E-MR | X8: 2.13 E-EWPC | Y8: 2.14 E-NPS | Z8: 2.15 E-RI | AA8: 2.16 E-PMM | AB8: 2.17 E-RDI | AC8: 2.18 E-APS | AD8: 2.19 E-EOP18 | AE8: 3.01 E-PREV | AF8: 3.02 E-PRA | AG8: 3.03 E-PLN | AH8: 3.04 E-PLE | AI8: 3.05 E-PEB | AJ8: 3.06 E-PINS | AK8: 3.07 E-PIT | AL8: 3.08 E PPT | AM8: 3.09 E-PDEP | AN8: 3.10 E-PCAP | AO8: 3.11 E-POFF | AP8: 3.12 E-PFFE | AQ8: 3.13 E-PCOL | AR8: 3.14 E-PMM | AS8: Settlement | AT8: Increase | AU8: Open | AV8: Open | AW8: Intangible/CS2 | AX8: Open | AY8: Open | AZ8: Open | BA8: Open | BB8: Open | BC8: Open | BD8: Open | BE8: Open | BF8: Open | BG8: Open | BH8: Open | BI8: Open | BJ8: Open | BK8: Adjustments | BM8: to $000s | BO8: Totals | BP8: Totals | BQ8: Key Items for Checking
A9: 9 | B9: Operation & Maintenance Expenses
A10: 10 | C10: Production Expenses | BQ10: Rate Base | BR10: =BM473 -> 1684913000
A11: 11 | B11: 500-OP | C11: Steam | D11: Supervision & Engineering | F11: ='Labor Detail'!F11 -> 148589 | G11: 287484 | AG11: ='Labor Detail'!H11 -> 5073 | AI11: ='Labor Detail'!J11 -> 6072.881486 | BK11: =SUM(H11:BJ11) -> 11145.88149 | BL11: =G11+BK11 -> 298629.8815 | BM11: =ROUND(BL11,-3) -> 299000 | BO11: =BM11 -> 299000 | BP11: =F11 -> 148589 | BQ11: Expenses | BR11: =BM277 -> 457612000
A12: 12 | B12: 501-OP | C12: Steam | D12: Fuel | F12: ='Labor Detail'!F12 -> 612255 | G12: 18348639 | W12: -78 | AC12: 1919000 | AG12: ='Labor Detail'!H12 -> 39237 | AI12: ='Labor Detail'!J12 -> 25023.06398 | BK12: =SUM(H12:BJ12) -> 1983182.064 | BL12: 20331821.06 | BM12: =ROUND(BL12,-3) -> 20332000 | BO12: =BM12 -> 20332000 | BP12: 612255 | BQ12: Revenue | BR12: =BM293 -> 579094000
A13: 13 | B13: 502-OP | C13: Steam | D13: Steam Expenses | F13: ='Labor Detail'!F13 -> 355811 | G13: 2753269 | AG13: ='Labor Detail'!H13 -> 22803 | AI13: ='Labor Detail'!J13 -> 14542.11304 | BK13: 37345.11304 | BL13: 2790614.113 | BM13: =ROUND(BL13,-3)-1000 -> 2790000 | BO13: 2790000 | BP13: 355811 | BQ13: Income | BR13: =BM295 -> 121482000
A14: 14 | B14: 503-OP | C14: Steam | D14: From Other Sources | F14: ='Labor Detail'!F14 -> 0 | G14: 0 | AG14: ='Labor Detail'!H14 -> 0 | AI14: ='Labor Detail'!J14 -> 0 | BK14: 0 | BL14: 0 | BM14: 0 | BO14: 0 | BP14: 0 | BQ14: Interest | BR14: =BM477 -> 44650000
A15: 15 | B15: 504-OP | C15: Steam | D15: Steam Transferred-CR | F15: ='Labor Detail'!F15 -> 0 | G15: 0 | AG15: ='Labor Detail'!H15 -> 0 | AI15: ='Labor Detail'!J15 -> 0 | BK15: 0 | BL15: 0 | BM15: 0 | BO15: 0 | BP15: 0 | BQ15: SIT | BR15: =BM271 -> 0
A16: 16 | B16: 505-OP | C16: Steam | D16: Electric Expenses | F16: ='Labor Detail'!F16 -> 371773 | G16: 722395 | AG16: ='Labor Detail'!H16 -> 23825 | AI16: ='Labor Detail'!J16 -> 15194.48525 | BK16: 39019.48525 | BL16: 761414.4853 | BM16: 761000 | BO16: 761000 | BP16: 371773 | BQ16: FIT | BR16: =BM272 -> 14308000
A17: 17 | B17: 506-OP | C17: Steam | D17: Miscellaneous Power Exp. | F17: ='Labor Detail'!F17 -> 131450 | G17: 2205968 | W17: -57 | AG17: ='Labor Detail'!H17 -> 8424 | AI17: ='Labor Detail'!J17 -> 5372.404898 | BK17: 13739.4049 | BL17: 2219707.405 | BM17: 2220000 | BO17: 2220000 | BP17: 131450 | BQ17: ITC | BR17: =BM274 -> -317000
A18: 18 | B18: 507-OP | C18: Steam | D18: Rents | F18: ='Labor Detail'!F18 -> 0 | G18: 22639 | AG18: ='Labor Detail'!H18 -> 0 | AI18: ='Labor Detail'!J18 -> 0 | BK18: 0 | BL18: 22639 | BM18: 23000 | BO18: 23000 | BP18: 0 | BQ18: Deferred Tax | BR18: =BM275 -> 418000
A19: 19 | C19: Total Steam Operation | F19: =SUM(F11:F18) -> 1619878 | G19: 24340394 | H19: 0 | I19: 0 | J19: 0 | K19: =SUM(K11:K18) -> 0 | L19: 0 | M19: 0 | N19: =SUM(N11:N18) -> 0 | O19: 0 | P19: 0 | Q19: 0 | R19: 0 | S19: 0 | T19: 0 | U19: 0 | V19: 0 | W19: -135 | X19: 0 | Y19: 0 | Z19: 0 | AA19: 0 | AB19: 0 | AC19: 1919000 | AD19: 0 | AE19: 0 | AF19: 0 | AG19: 99362 | AH19: 0 | AI19: 66204.94866 | AJ19: 0 | AK19: 0 | AL19: 0 | AM19: 0 | AN19: 0 | AO19: 0 | AP19: 0 | AQ19: 0 | AR19: 0 | AS19: 0 | AT19: 0 | AU19: 0 | AV19: 0 | AW19: 0 | AX19: 0 | AY19: 0 | AZ19: 0 | BA19: 0 | BB19: 0 | BC19: 0 | BD19: 0 | BE19: 0 | BF19: 0 | BG19: 0 | BH19: 0 | BI19: 0 | BJ19: 0 | BK19: 2084431.949 | BL19: 26424825.95 | BM19: 26425000 | BN19: =IF(ROUND(SUM(G19:BI19),0)=ROUND(BL19,0),"ok","error") -> ok | BQ19: Gen Bus Revenue | BR19: =BM280 -> 530519000
A20: 20 | B20: 510-MT | C20: Steam | D20: Supervision & Engineering | F20: ='Labor Detail'!F20 -> 67955 | G20: 341478 | AG20: ='Labor Detail'!H20 -> 2320 | AI20: ='Labor Detail'!J20 -> 2777.343285 | BK20: =SUM(H20:BJ20) -> 5097.343285 | BL20: =G20+BK20 -> 346575.3433 | BM20: =ROUND(BL20,-3) -> 347000 | BO20: =BM20 -> 347000 | BP20: =F20 -> 67955 | BQ20: Allocated Revenue | BR20: =BM281 -> 0
A21: 21 | B21: 511-MT | C21: Steam | D21: Structures | F21: ='Labor Detail'!F21 -> 5524 | G21: 347839 | AG21: ='Labor Detail'!H21 -> 354 | AI21: ='Labor Detail'!J21 -> 225.7677037 | BK21: =SUM(H21:BJ21) -> 579.7677037 | BL21: =G21+BK21 -> 348418.7677 | BM21: =ROUND(BL21,-3) -> 348000 | BO21: 348000 | BP21: =F21 -> 5524 | BQ21: Secondary Sales | BR21: =BM282 -> 35576000
A22: 22 | B22: 512-MT | C22: Steam | D22: Boiler Plant | F22: ='Labor Detail'!F22 -> 474737 | G22: 3637227 | AB22: 1287000 | AG22: ='Labor Detail'!H22 -> 30424 | AI22: ='Labor Detail'!J22 -> 19402.65792 | AR22: -449000 | BK22: =SUM(H22:BJ22) -> 887826.6579 | BL22: =G22+BK22 -> 4525053.658 | BM22: 4525000 | BO22: 4525000 | BP22: =F22 -> 474737 | BQ22: MOPS Revenue | BR22: =BM283 -> 0
A23: 23 | B23: 513-MT | C23: Steam | D23: Electric Plant | F23: ='Labor Detail'!F23 -> 198960 | G23: 1000145 | AG23: ='Labor Detail'!H23 -> 12751 | AI23: ='Labor Detail'!J23 -> 8131.560886 | BK23: =SUM(H23:BJ23) -> 20882.56089 | BL23: =G23+BK23 -> 1021027.561 | BM23: 1021000 | BO23: 1021000 | BP23: =F23 -> 198960 | BQ23: Misc Rev | BR23: =BM286 -> 176000
A24: 24 | B24: 514-MT | C24: Steam | D24: Miscellaneous Plant | F24: ='Labor Detail'!F24 -> 87228 | G24: 338655 | AG24: ='Labor Detail'!H24 -> 5591 | AI24: ='Labor Detail'!J24 -> 3565.037158 | AX24: 0 | BK24: =SUM(H24:BJ24) -> 9156.037158 | BL24: =G24+BK24 -> 347811.0372 | BM24: 348000 | BO24: 348000 | BP24: =F24 -> 87228 | BQ24: Water Sales | BR24: =BM287 -> 331000
A25: 25 | C25: Total Steam Maintenance | F25: =SUM(F20:F24) -> 834404 | G25: 5665344 | H25: 0 | I25: 0 | J25: 0 | K25: 0 | L25: 0 | M25: 0 | N25: 0 | O25: 0 | P25: 0 | Q25: 0 | R25: 0 | S25: 0 | T25: 0 | U25: 0 | V25: 0 | W25: 0 | X25: 0 | Y25: 0 | Z25: 0 | AA25: 0 | AB25: 1287000 | AC25: 0 | AD25: 0 | AE25: 0 | AF25: 0 | AG25: 51440 | AH25: 0 | AI25: 34102.36696 | AJ25: 0 | AK25: 0 | AL25: 0 | AM25: 0 | AN25: 0 | AO25: 0 | AP25: 0 | AQ25: 0 | AR25: -449000 | AS25: 0 | AT25: 0 | AU25: 0 | AV25: 0 | AW25: 0 | AX25: 0 | AY25: 0 | AZ25: 0 | BA25: 0 | BB25: 0 | BC25: 0 | BD25: 0 | BE25: 0 | BF25: 0 | BG25: 0 | BH25: 0 | BI25: 0 | BJ25: 0 | BK25: 923542.367 | BL25: 6588886.367 | BM25: 6589000 | BN25: =IF(ROUND(SUM(G25:BI25),0)=ROUND(BL25,0),"ok","error") -> ok | BQ25: Rent | BR25: =BM288 -> 1846000
A26: 26 | C26: Total Steam | F26: =F19+F25 -> 2454282 | G26: 30005738 | H26: 0 | I26: 0 | J26: 0 | K26: 0 | L26: 0 | M26: 0 | N26: 0 | O26: 0 | P26: 0 | Q26: 0 | R26: 0 | S26: 0 | T26: 0 | U26: 0 | V26: 0 | W26: -135 | X26: 0 | Y26: 0 | Z26: 0 | AA26: 0 | AB26: 1287000 | AC26: 1919000 | AD26: 0 | AE26: 0 | AF26: 0 | AG26: 150802 | AH26: 0 | AI26: 100307.3156 | AJ26: 0 | AK26: 0 | AL26: 0 | AM26: 0 | AN26: 0 | AO26: 0 | AP26: 0 | AQ26: 0 | AR26: -449000 | AS26: 0 | AT26: 0 | AU26: 0 | AV26: 0 | AW26: 0 | AX26: 0 | AY26: 0 | AZ26: 0 | BA26: 0 | BB26: 0 | BC26: 0 | BD26: 0 | BE26: 0 | BF26: 0 | BG26: 0 | BH26: 0 | BI26: 0 | BJ26: 0 | BK26: 3007974.316 | BL26: 33013712.32 | BM26: 33014000 | BN26: =IF(ROUND(SUM(G26:BI26),0)=ROUND(BL26,0),"ok","error") -> ok | BQ26: Wheeling Revenue | BR26: =BM289 -> 10646000
A27: 27 | BQ27: Other Rev | BR27: =BM290 -> 0
A28: 28 | B28: 535-OP | C28: Hydro | D28: Supervision & Engineering | F28: ='Labor Detail'!F28 -> 978614 | G28: 2101803 | W28: -3 | AG28: ='Labor Detail'!H28 -> 33409 | AI28: ='Labor Detail'!J28 -> 39996.27727 | BK28: =SUM(H28:BJ28) -> 73402.27727 | BL28: =G28+BK28 -> 2175205.277 | BM28: =ROUND(BL28,-3) -> 2175000 | BO28: =BM28 -> 2175000 | BP28: =F28 -> 978614
A29: 29 | B29: 536-OP | C29: Hydro | D29: Water For Power | F29: ='Labor Detail'!F29 -> 5926 | G29: 758466 | AG29: ='Labor Detail'!H29 -> 381 | AI29: ='Labor Detail'!J29 -> 242.1975765 | BK29: 623.1975765 | BL29: 759089.1976 | BM29: 759000 | BO29: 759000 | BP29: 5926
A30: 30 | B30: 537-OP | C30: Hydro | D30: Hydraulic Expenses | F30: ='Labor Detail'!F30 -> 360604 | G30: 5664569 | AF30: -15439 | AG30: ='Labor Detail'!H30 -> 23110 | AI30: ='Labor Detail'!J30 -> 14738.00453 | BK30: 22409.00453 | BL30: 5686978.005 | BM30: 5687000 | BO30: 5687000 | BP30: 360604
A31: 31 | B31: 538-OP | C31: Hydro | D31: Electric Expenses | F31: ='Labor Detail'!F31 -> 3478573 | G31: 4901653 | AG31: ='Labor Detail'!H31 -> 222930 | AI31: ='Labor Detail'!J31 -> 142170.427 | BK31: 365100.427 | BL31: 5266753.427 | BM31: =ROUND(BL31,-3) -> 5267000 | BO31: 5267000 | BP31: 3478573
A32: 32 | B32: 539-OP | C32: Hydro | D32: Miscellaneous Power Exp. | F32: ='Labor Detail'!F32 -> 132345 | G32: 780030 | W32: -40 | AG32: ='Labor Detail'!H32 -> 8481 | AI32: ='Labor Detail'!J32 -> 5408.983843 | BK32: 13849.98384 | BL32: 793879.9838 | BM32: 794000 | BO32: 794000 | BP32: 132345
A33: 33 | B33: 540-OP | C33: Hydro | D33: Rents | F33: ='Labor Detail'!F33 -> 0 | G33: =946118+3200843 -> 4146961 | AF33: 194931 | AG33: ='Labor Detail'!H33 -> 0 | AI33: ='Labor Detail'!J33 -> 0 | BK33: 194931 | BL33: 4341892 | BM33: =ROUND(BL33,-3) -> 4342000 | BO33: 4342000 | BP33: 0
A34: 34 | C34: Total Hydraulic Operation | F34: =SUM(F28:F33) -> 4956062 | G34: 18353482 | H34: 0 | I34: 0 | J34: 0 | K34: =SUM(K28:K33) -> 0 | L34: 0 | M34: 0 | N34: =SUM(N28:N33) -> 0 | O34: 0 | P34: 0 | Q34: 0 | R34: 0 | S34: 0 | T34: 0 | U34: 0 | V34: 0 | W34: -43 | X34: 0 | Y34: 0 | Z34: 0 | AA34: 0 | AB34: 0 | AC34: 0 | AD34: 0 | AE34: 0 | AF34: 179492 | AG34: =SUM(AG28:AG33) -> 288311 | AH34: 0 | AI34: 202555.8902 | AJ34: 0 | AK34: 0 | AL34: 0 | AM34: 0 | AN34: 0 | AO34: 0 | AP34: 0 | AQ34: 0 | AR34: 0 | AS34: 0 | AT34: 0 | AU34: 0 | AV34: 0 | AW34: 0 | AX34: 0 | AY34: 0 | AZ34: 0 | BA34: 0 | BB34: 0 | BC34: 0 | BD34: 0 | BE34: 0 | BF34: 0 | BG34: 0 | BH34: 0 | BI34: 0 | BJ34: 0 | BK34: 670315.8902 | BL34: 19023797.89 | BM34: 19024000 | BN34: =IF(ROUND(SUM(G34:BI34),0)=ROUND(BL34,0),"ok","error") -> ok
A35: 35 | B35: 541-MT | C35: Hydro | D35: Supervision & Engineering | F35: ='Labor Detail'!F35 -> 306353 | G35: 879461 | AG35: ='Labor Detail'!H35 -> 10459 | AI35: ='Labor Detail'!J35 -> 12520.74825 | BK35: =SUM(H35:BJ35) -> 22979.74825 | BL35: =G35+BK35 -> 902440.7483 | BM35: =ROUND(BL35,-3) -> 902000 | BO35: =BM35 -> 902000 | BP35: =F35 -> 306353
A36: 36 | B36: 542-MT | C36: Hydro | D36: Structures | F36: ='Labor Detail'!F36 -> 130015 | G36: 315079 | AG36: ='Labor Detail'!H36 -> 8333 | AI36: ='Labor Detail'!J36 -> 5313.755974 | BK36: =SUM(H36:BJ36) -> 13646.75597 | BL36: =G36+BK36 -> 328725.756 | BM36: =ROUND(BL36,-3) -> 329000 | BO36: 329000 | BP36: =F36 -> 130015
A37: 37 | B37: 543-MT | C37: Hydro | D37: Reservoirs, Dams & Waterways | F37: ='Labor Detail'!F37 -> 389265 | G37: 1537526 | AG37: ='Labor Detail'!H37 -> 24947 | AI37: ='Labor Detail'!J37 -> 15909.38906 | BK37: =SUM(H37:BJ37) -> 40856.38906 | BL37: =G37+BK37 -> 1578382.389 | BM37: =ROUND(BL37,-3) -> 1578000 | BO37: 1578000 | BP37: =F37 -> 389265
A38: 38 | B38: 544-MT | C38: Hydro | D38: Electric Plant | F38: ='Labor Detail'!F38 -> 1411003 | G38: 2449621 | AG38: ='Labor Detail'!H38 -> 90426 | AI38: ='Labor Detail'!J38 -> 57668.15845 | BK38: =SUM(H38:BJ38) -> 148094.1584 | BL38: =G38+BK38 -> 2597715.158 | BM38: 2598000 | BO38: 2598000 | BP38: =F38 -> 1411003
A39: 39 | B39: 545-MT | C39: Hydro | D39: Miscellaneous Plant | F39: ='Labor Detail'!F39 -> 461269 | G39: 924367 | W39: -12 | AG39: ='Labor Detail'!H39 -> 29561 | AI39: ='Labor Detail'!J39 -> 18852.21632 | AO39: -33000 | BK39: =SUM(H39:BJ39) -> 15401.21632 | BL39: =G39+BK39 -> 939768.2163 | BM39: 940000 | BO39: 940000 | BP39: =F39 -> 461269
A40: 40 | C40: Total Hydraulic Maintenance | F40: =SUM(F35:F39) -> 2697905 | G40: 6106054 | H40: 0 | I40: 0 | J40: 0 | K40: 0 | L40: 0 | M40: 0 | N40: 0 | O40: 0 | P40: 0 | Q40: 0 | R40: 0 | S40: 0 | T40: 0 | U40: 0 | V40: 0 | W40: -12 | X40: 0 | Y40: 0 | Z40: 0 | AA40: 0 | AB40: 0 | AC40: 0 | AD40: 0 | AE40: 0 | AF40: 0 | AG40: 163726 | AH40: 0 | AI40: 110264.2681 | AJ40: 0 | AK40: 0 | AL40: 0 | AM40: 0 | AN40: 0 | AO40: -33000 | AP40: 0 | AQ40: 0 | AR40: 0 | AS40: 0 | AT40: 0 | AU40: 0 | AV40: 0 | AW40: 0 | AX40: 0 | AY40: 0 | AZ40: 0 | BA40: 0 | BB40: 0 | BC40: 0 | BD40: 0 | BE40: 0 | BF40: 0 | BG40: 0 | BH40: 0 | BI40: 0 | BJ40: 0 | BK40: 240978.2681 | BL40: 6347032.268 | BM40: 6347000 | BN40: =IF(ROUND(SUM(G40:BI40),0)=ROUND(BL40,0),"ok","error") -> ok
A41: 41 | C41: Total Hydraulic | F41: =F34+F40 -> 7653967 | G41: 24459536 | H41: 0 | I41: 0 | J41: 0 | K41: 0 | L41: 0 | M41: 0 | N41: 0 | O41: 0 | P41: 0 | Q41: 0 | R41: 0 | S41: 0 | T41: 0 | U41: 0 | V41: 0 | W41: -55 | X41: 0 | Y41: 0 | Z41: 0 | AA41: 0 | AB41: 0 | AC41: 0 | AD41: 0 | AE41: 0 | AF41: 179492 | AG41: 452037 | AH41: 0 | AI41: 312820.1582 | AJ41: 0 | AK41: 0 | AL41: 0 | AM41: 0 | AN41: 0 | AO41: -33000 | AP41: 0 | AQ41: 0 | AR41: 0 | AS41: 0 | AT41: 0 | AU41: 0 | AV41: 0 | AW41: 0 | AX41: 0 | AY41: 0 | AZ41: 0 | BA41: 0 | BB41: 0 | BC41: 0 | BD41: 0 | BE41: 0 | BF41: 0 | BG41: 0 | BH41: 0 | BI41: 0 | BJ41: 0 | BK41: 911294.1582 | BL41: 25370830.16 | BM41: 25371000 | BN41: =IF(ROUND(SUM(G41:BI41),0)=ROUND(BL41,0),"ok","error") -> ok
A42: 42
A43: 43 | B43: 546-OP | C43: Other | D43: Supervision & Engineering | F43: ='Labor Detail'!F43 -> 76348 | G43: 256527 | W43: -264 | AG43: ='Labor Detail'!H43 -> 2607 | AI43: ='Labor Detail'!J43 -> 3120.367966 | AW43: -104546 | BK43: =SUM(H43:BJ43) -> -99082.63203 | BL43: =G43+BK43 -> 157444.368 | BM43: =ROUND(BL43,-3)+1000 -> 158000 | BO43: =BM43 -> 158000 | BP43: =F43 -> 76348
A44: 44 | B44: 547-OP | C44: Other | D44: Fuel | F44: ='Labor Detail'!F44 -> 0 | G44: 41351167 | AC44: 4703000 | AG44: ='Labor Detail'!H44 -> 0 | AI44: ='Labor Detail'!J44 -> 0 | BK44: =SUM(H44:BJ44) -> 4703000 | BL44: =G44+BK44 -> 46054167 | BM44: =ROUND(BL44,-3) -> 46054000 | BO44: 46054000 | BP44: =F44 -> 0
A45: 45 | B45: 548-OP | C45: Other | D45: Generation Expenses | F45: ='Labor Detail'!F45 -> 205445 | G45: 1569436 | AG45: ='Labor Detail'!H45 -> 13167 | AI45: ='Labor Detail'!J45 -> 8396.604977 | AW45: 2744263 | BK45: =SUM(H45:BJ45) -> 2765826.605 | BL45: =G45+BK45 -> 4335262.605 | BM45: =ROUND(BL45,-3) -> 4335000 | BO45: 4335000 | BP45: =F45 -> 205445
A46: 46 | B46: 549-OP | C46: Other | D46: Miscellaneous Power Exp. | F46: ='Labor Detail'!F46 -> 44762 | G46: 246571 | AG46: ='Labor Detail'!H46 -> 2869 | AI46: ='Labor Detail'!J46 -> 1829.437718 | AW46: -88005 | BK46: =SUM(H46:BJ46) -> -83306.56228 | BL46: =G46+BK46 -> 163264.4377 | BM46: =ROUND(BL46,-3) -> 163000 | BO46: 163000 | BP46: =F46 -> 44762
A47: 47 | B47: 550-OP | C47: Other | D47: Rents | F47: ='Labor Detail'!F47 -> 0 | G47: -22116 | AG47: ='Labor Detail'!H47 -> 0 | AI47: ='Labor Detail'!J47 -> 0 | AW47: 0 | BK47: =SUM(H47:BJ47) -> 0 | BL47: =G47+BK47 -> -22116 | BM47: -22000 | BO47: -22000 | BP47: =F47 -> 0
A48: 48 | C48: Total Other Operation | F48: =SUM(F43:F47) -> 326555 | G48: 43401585 | H48: 0 | I48: 0 | J48: 0 | K48: 0 | L48: 0 | M48: 0 | N48: 0 | O48: 0 | P48: 0 | Q48: 0 | R48: 0 | S48: 0 | T48: 0 | U48: 0 | V48: 0 | W48: -264 | X48: 0 | Y48: 0 | Z48: 0 | AA48: 0 | AB48: 0 | AC48: 4703000 | AD48: 0 | AE48: 0 | AF48: 0 | AG48: 18643 | AH48: 0 | AI48: 13346.41066 | AJ48: 0 | AK48: 0 | AL48: 0 | AM48: 0 | AN48: 0 | AO48: 0 | AP48: 0 | AQ48: 0 | AR48: 0 | AS48: 0 | AT48: 0 | AU48: 0 | AV48: 0 | AW48: 2551712 | AX48: 0 | AY48: 0 | AZ48: 0 | BA48: 0 | BB48: 0 | BC48: 0 | BD48: 0 | BE48: 0 | BF48: 0 | BG48: 0 | BH48: 0 | BI48: 0 | BJ48: 0 | BK48: 7286437.411 | BL48: 50688022.41 | BM48: 50688000 | BN48: =IF(ROUND(SUM(G48:BI48),0)=ROUND(BL48,0),"ok","error") -> ok
A49: 49 | B49: 551-MT | C49: Other | D49: Supervision & Engineering | F49: ='Labor Detail'!F49 -> 214079 | G49: 468593 | AG49: ='Labor Detail'!H49 -> 7308 | AI49: ='Labor Detail'!J49 -> 8749.479408 | AW49: -162262 | BK49: =SUM(H49:BJ49) -> -146204.5206 | BL49: =G49+BK49 -> 322388.4794 | BM49: =ROUND(BL49,-3) -> 322000 | BO49: =BM49 -> 322000 | BP49: =F49 -> 214079
A50: 50 | B50: 552-MT | C50: Other | D50: Structures | F50: ='Labor Detail'!F50 -> 405 | G50: 44756 | AG50: ='Labor Detail'!H50 -> 26 | AI50: ='Labor Detail'!J50 -> 16.55248371 | AW50: -43281 | BK50: =SUM(H50:BJ50) -> -43238.44752 | BL50: =G50+BK50 -> 1517.552484 | BM50: =ROUND(BL50,-3) -> 2000 | BO50: 2000 | BP50: =F50 -> 405
A51: 51 | B51: 553-MT | C51: Other | D51: Generating & Electric Plant | F51: ='Labor Detail'!F51 -> 223570 | G51: 2649734 | AG51: ='Labor Detail'!H51 -> 14328 | AI51: ='Labor Detail'!J51 -> 9137.379711 | AW51: -2213738 | BK51: =SUM(H51:BJ51) -> -2190272.62 | BL51: =G51+BK51 -> 459461.3797 | BM51: =ROUND(BL51,-3) -> 459000 | BO51: 459000 | BP51: =F51 -> 223570
A52: 52 | B52: 554-MT | C52: Other | D52: Miscellaneous Plant | F52: ='Labor Detail'!F52 -> 47516 | G52: 249643 | AG52: ='Labor Detail'!H52 -> 3046 | AI52: ='Labor Detail'!J52 -> 1941.994607 | AW52: -132431 | BK52: =SUM(H52:BJ52) -> -127443.0054 | BL52: =G52+BK52 -> 122199.9946 | BM52: 122000 | BO52: 122000 | BP52: =F52 -> 47516
A53: 53 | C53: Total Other Maintenance | F53: =SUM(F49:F52) -> 485570 | G53: 3412726 | H53: 0 | I53: 0 | J53: 0 | K53: 0 | L53: 0 | M53: 0 | N53: 0 | O53: 0 | P53: 0 | Q53: 0 | R53: 0 | S53: 0 | T53: 0 | U53: 0 | V53: 0 | W53: 0 | X53: 0 | Y53: 0 | Z53: 0 | AA53: 0 | AB53: 0 | AC53: 0 | AD53: 0 | AE53: 0 | AF53: 0 | AG53: 24708 | AH53: 0 | AI53: 19845.40621 | AJ53: 0 | AK53: 0 | AL53: 0 | AM53: 0 | AN53: 0 | AO53: 0 | AP53: 0 | AQ53: 0 | AR53: 0 | AS53: 0 | AT53: 0 | AU53: 0 | AV53: 0 | AW53: -2551712 | AX53: 0 | AY53: 0 | AZ53: 0 | BA53: 0 | BB53: 0 | BC53: 0 | BD53: 0 | BE53: 0 | BF53: 0 | BG53: 0 | BH53: 0 | BI53: 0 | BJ53: 0 | BK53: -2507158.594 | BL53: 905567.4062 | BM53: 905000 | BN53: =IF(ROUND(SUM(G53:BI53),0)=ROUND(BL53,0),"ok","error") -> ok
A54: 54 | C54: Total Other | F54: =F48+F53 -> 812125 | G54: 46814311 | H54: 0 | I54: 0 | J54: 0 | K54: 0 | L54: 0 | M54: 0 | N54: 0 | O54: 0 | P54: 0 | Q54: 0 | R54: 0 | S54: 0 | T54: 0 | U54: 0 | V54: 0 | W54: -264 | X54: 0 | Y54: 0 | Z54: 0 | AA54: 0 | AB54: 0 | AC54: 4703000 | AD54: 0 | AE54: 0 | AF54: 0 | AG54: 43351 | AH54: 0 | AI54: 33191.81687 | AJ54: 0 | AK54: 0 | AL54: 0 | AM54: 0 | AN54: 0 | AO54: 0 | AP54: 0 | AQ54: 0 | AR54: 0 | AS54: 0 | AT54: 0 | AU54: 0 | AV54: 0 | AW54: 0 | AX54: 0 | AY54: 0 | AZ54: 0 | BA54: 0 | BB54: 0 | BC54: 0 | BD54: 0 | BE54: 0 | BF54: 0 | BG54: 0 | BH54: 0 | BI54: 0 | BJ54: 0 | BK54: 4779278.817 | BL54: 51593589.82 | BM54: 51593000 | BN54: =IF(ROUND(SUM(G54:BI54),0)=ROUND(BL54,0),"ok","error") -> ok
A55: 55
A56: 56 | B56: 555-OP | C56: Total Purchased Power | F56: ='Labor Detail'!F56 -> 0 | G56: 89110828 | AC56: -15869000 | AG56: ='Labor Detail'!H56 -> 0 | AI56: ='Labor Detail'!J56 -> 0 | BK56: =SUM(H56:BJ56) -> -15869000 | BL56: =G56+BK56 -> 73241828 | BM56: =ROUND(BL56,-3) -> 73242000 | BO56: =BM56 -> 73242000 | BP56: =F56 -> 0
A57: 57 | B57: 556-OP | C57: Total System Control & Load Dispatching | F57: ='Labor Detail'!F57 -> 174504 | G57: 457952 | AG57: ='Labor Detail'!H57 -> 5958 | AI57: ='Labor Detail'!J57 -> 7132.036092 | BK57: =SUM(H57:BJ57) -> 13090.03609 | BL57: =G57+BK57 -> 471042.0361 | BM57: =ROUND(BL57,-3) -> 471000 | BO57: 471000 | BP57: =F57 -> 174504
A58: 58 | B58: 557-OP | C58: Total Other Expenses | F58: ='Labor Detail'!F58 -> 2570891 | G58: 53464993 | W58: -1168 | Z58: -10119000 | AA58: -7000 | AC58: =-38045000-2363000 -> -40408000 | AG58: ='Labor Detail'!H58 -> 87767 | AI58: ='Labor Detail'!J58 -> 105073.1639 | BK58: =SUM(H58:BJ58) -> -50342327.84 | BL58: =G58+BK58 -> 3122665.164 | BM58: 3123000 | BO58: 3123000 | BP58: =F58 -> 2570891
A59: 59 | D59: Total Production Expenses | F59: =F26+F41+F54+F56+F57+F58 -> 13665769 | G59: 244313358 | H59: 0 | I59: 0 | J59: 0 | K59: 0 | L59: 0 | M59: 0 | N59: 0 | O59: 0 | P59: 0 | Q59: 0 | R59: 0 | S59: 0 | T59: 0 | U59: 0 | V59: 0 | W59: -1622 | X59: 0 | Y59: 0 | Z59: -10119000 | AA59: -7000 | AB59: 1287000 | AC59: -49655000 | AD59: 0 | AE59: 0 | AF59: 179492 | AG59: 739915 | AH59: 0 | AI59: 558524.4908 | AJ59: 0 | AK59: 0 | AL59: 0 | AM59: 0 | AN59: 0 | AO59: -33000 | AP59: 0 | AQ59: 0 | AR59: -449000 | AS59: 0 | AT59: 0 | AU59: 0 | AV59: 0 | AW59: 0 | AX59: 0 | AY59: 0 | AZ59: 0 | BA59: 0 | BB59: 0 | BC59: 0 | BD59: 0 | BE59: 0 | BF59: 0 | BG59: 0 | BH59: 0 | BI59: 0 | BJ59: 0 | BK59: -57499690.51 | BL59: 186813667.5 | BM59: 186814000 | BN59: =IF(ROUND(SUM(G59:BI59),0)=ROUND(BL59,0),"ok","error") -> ok
A60: 60
A61: 61 | B61: Proforma | E61: AVISTA UTILITIES | J61: =$J$1 -> Washington Jurisdiction | K61: =$J$1 -> Washington Jurisdiction | T61: Expense Page 2 | U61: AVISTA UTILITIES | AB61: =$J$1 -> Washington Jurisdiction | AI61: Expense Page 2A | AJ61: AVISTA UTILITIES | AQ61: =$AQ$1 -> Washington Jurisdiction | AZ61: Expense Page 2B | BA61: AVISTA UTILITIES | BF61: =$AQ$1 -> Washington Jurisdiction | BL61: Expense Page 2B | BM61: =BM$6 -> Total
A62: 62 | B62: =$B$2 -> Pro Forma Results of Operations | E62: Operation and Maintenance Expenses | J62: =$J$2 -> Electric Utility | K62: =$J$2 -> Electric Utility | T62: =$T$2 -> 2019-04-30 | U62: =$E62 -> Operation and Maintenance Expenses | AB62: =$J$2 -> Electric Utility | AI62: =$T$2 -> 2019-04-30 | AJ62: =$E62 -> Operation and Maintenance Expenses | AQ62: =$AQ$2 -> Electric Utility | AZ62: =$T$2 -> 2019-04-30 | BA62: =$E62 -> Operation and Maintenance Expenses | BF62: =$AQ$2 -> Electric Utility | BL62: =$T$2 -> 2019-04-30 | BM62: =BM$7 -> Rounded
A63: 63 | B63: =$B$3 -> Company Settlement Case UE-190334 | E63: =$E$3 -> For the Twelve Months Ended December 31, 2018 | T63: =$T$3 ->  | U63: =$E$3 -> For the Twelve Months Ended December 31, 2018 | AI63: =$T$3 ->  | AJ63: =$E$3 -> For the Twelve Months Ended December 31, 2018 | BA63: =$E$3 -> For the Twelve Months Ended December 31, 2018 | BL63: =$T$3 ->  | BM63: =BM$8 -> to $000s
A64: 64
A65: 65 | B65: (a) | C65: (b) | E65: =E$5 -> E | F65: F | G65: G | H65: H | I65: I | J65: J | K65: K | L65: L | M65: M | N65: N | O65: =P$5 -> P | P65: P | Q65: Q | R65: R | S65: S | T65: T | U65: U | V65: V | W65: W | X65: X | Y65: Y | Z65: Z | AA65: AA | AB65: AB | AC65: AC | AD65: =AD$5 -> AD | AE65: =AE$5 -> AE | AF65: =AF$5 -> AF | AG65: =AG$5 -> AG | AH65: =AH$5 -> AH | AI65: AI | AJ65: AJ | AK65: AK | AL65: AL | AM65: AM | AN65: AN | AO65: AO | AP65: AP | AQ65: =AQ$5 -> AQ | AR65: AR | AS65: AS | AT65: AT | AU65: AU | AV65: AV | AW65: AW | AX65: AX | AY65: AY | AZ65: AZ | BA65: BA | BB65: BB | BC65: BC | BD65: BD | BE65: BE | BF65: BF | BG65: BG | BH65: BH | BI65: BI | BJ65: BJ | BK65: BK | BL65: BL | BO65: =BO$5 -> BO | BP65: =BP$5 -> BP
A66: 66 | E66: =E$6 -> Notes | F66: Labor | G66: O&M Expense | H66: Deferred | I66: Deferred | J66: Working | K66: Eliminate | L66: Eliminate | M66: Restate | N66: Uncollectible | O66: Regulatory | P66: Injuries and | Q66: FIT/DFIT/ITC/ | R66: Office Space | S66: Restate | T66: Net Gains | U66: Weather | V66: Eliminate | W66: Misc | X66: Restate | Y66: Restate | Z66: Eliminate WA | AA66: Nez Perce | AB66: Normalize | AC66: Authorized | AD66: Restate 2018 | AE66: Pro Forma | AF66: Pro Forma | AG66: Pro Forma | AH66: Pro Forma | AI66: Pro Forma | AJ66: Pro Forma | AK66: Pro Forma | AL66: Pro Forma | AM66: Pro Forma | AN66: Pro Forma | AO66: Pro Forma | AP66: Pro Forma | AQ66: Pro Forma | AR66: Pro Forma | AS66: BlackBox | AT66: Settlement | AW66: Cost of Service | AX66: 0 | AY66: 0 | AZ66: 0 | BA66: 0 | BB66: 0 | BC66: 0 | BJ66: 0 | BK66: Net Total | BL66: Total | BO66: =BO$6 -> Transfer | BP66: =BP$6 -> Transfer
A67: 67 | B67: Account | C67: Description | E67: =E$7 -> 0 | F67: Dollars | G67: Totals per Books | H67: FIT Rate Base | I67: Debits & Credits | J67: Capital | K67: AMI Rate Base | L67: B&O Taxes | M67: Property Tax | N67: Expense | O67: Expense | P67: Damages Exp | Q67: PTC Expense | R67: Chg to Subs | S67: Excise Taxes | T67: & Losses | U67: Normalization | V67: Adder Sch | W67: Restating Exp | X67: Incentives | Y67: Debt Interest | Z67: Power Cost Def | AA67: Settlement | AB67: CS2/Colstrip MM | AC67: Power Supply | AD67: RB to EOP | AE67: Revenue Norm | AF67: Reg Amort DDC | AG67: Labor Non-Exec | AH67: Labor Exec | AI67: Empl Benefits | AJ67: Insurance Exp | AK67: IS/IT Expense | AL67: Property Tax | AM67: Depreciation Exp | AN67: 2019 Thresh Cap | AO67: O&M Offsets | AP67: Fee Free Amort | AQ67: Colstrip Amort | AR67: CS2/Colstrip MM | AS67: Recon to | AT67: Revenue | AW67: Reclassification | AX67: 0 | AY67: 0 | AZ67: 0 | BA67: 0 | BB67: 0 | BC67: 0 | BJ67: 0 | BK67: of All | BL67: 0 | BN67: 0 | BO67: Proforma | BP67: Labor
A68: 68 | E68: =E$8 -> 0 | F68: 0 | G68: 1.00 E-ROO | H68: 1.01 E-DFIT | I68: 1.02 E-DDC | J68: 1.03 E-WC | K68: 1.04 E-AMI | L68: 2.01 E-EBO | M68: 2.02 E-RPT | N68: 2.03 E-UE | O68: 2.04 E-RE | P68: 2.05 E-ID | Q68: 2.06 E-FIT | R68: 2.07 E-OSC | S68: 2.08 E-RET | T68: 2.09 NGL | U68: 2.10 E-WN | V68: 2.11 E-EAS | W68: 2.12 E-MR | X68: 2.13 E-EWPC | Y68: 2.14 E-NPS | Z68: 2.15 E-RI | AA68: 2.16 E-PMM | AB68: 2.17 E-RDI | AC68: 2.18 E-APS | AD68: 2.19 E-EOP18 | AE68: 3.01 E-PREV | AF68: 3.02 E-PRA | AG68: 3.03 E-PLN | AH68: 3.04 E-PLE | AI68: 3.05 E-PEB | AJ68: 3.06 E-PINS | AK68: 3.07 E-PIT | AL68: 3.08 E PPT | AM68: 3.09 E-PDEP | AN68: 3.10 E-PCAP | AO68: 3.11 E-POFF | AP68: 3.12 E-PFFE | AQ68: 3.13 E-PCOL | AR68: 3.14 E-PMM | AS68: Settlement | AT68: Increase | AU68: Open | AV68: Open | AW68: Intangible/CS2 | AX68: Open | AY68: Open | AZ68: Open | BA68: Open | BB68: Open | BC68: Open | BD68: Open | BE68: Open | BF68: Open | BG68: Open | BH68: Open | BI68: Open | BJ68: Open | BK68: Adjustments | BL68: =BL$11 -> 298629.8815 | BN68: =BN$8 -> 0 | BO68: =BO$8 -> Totals | BP68: =BP$8 -> Totals
A69: 69 | C69: Transmission Expenses | BN69: =BN$9 -> 0
A70: 70 | B70: 560-OP | C70: Supervision & Engineering | F70: ='Labor Detail'!F70 -> 840372 | G70: 1565926 | W70: -1037 | AG70: ='Labor Detail'!H70 -> 28690 | AI70: ='Labor Detail'!J70 -> 36654.35589 | BK70: =SUM(H70:BJ70) -> 64307.35589 | BL70: =G70+BK70 -> 1630233.356 | BM70: =ROUND(BL70,-3) -> 1630000 | BO70: =BM70 -> 1630000 | BP70: =F70 -> 840372
A71: 71 | B71: 561-OP | C71: Load Dispatching | F71: ='Labor Detail'!F71 -> 1297618 | G71: 2173028 | AG71: ='Labor Detail'!H71 -> 44300 | AI71: ='Labor Detail'!J71 -> 56597.97326 | BK71: 100897.9733 | BL71: 2273925.973 | BM71: 2274000 | BO71: 2274000 | BP71: 1297618
A72: 72 | B72: 562-OP | C72: Station Expenses | F72: ='Labor Detail'!F72 -> 95452 | G72: 329958 | AG72: ='Labor Detail'!H72 -> 6117 | AI72: ='Labor Detail'!J72 -> 4163.312889 | BK72: 10280.31289 | BL72: 340238.3129 | BM72: =ROUND(BL72,-3) -> 340000 | BO72: 340000 | BP72: 95452
A73: 73 | B73: 563-OP | C73: Overhead Line Expenses | F73: ='Labor Detail'!F73 -> 48162 | G73: 300800 | AG73: ='Labor Detail'!H73 -> 3087 | AI73: ='Labor Detail'!J73 -> 2100.673379 | BK73: 5187.673379 | BL73: 305987.6734 | BM73: 306000 | BO73: 306000 | BP73: 48162
A74: 74 | B74: 564-OP | C74: Underground Line Expenses | F74: ='Labor Detail'!F74 -> 0 | G74: 0 | AG74: ='Labor Detail'!H74 -> 0 | AI74: ='Labor Detail'!J74 -> 0 | BK74: 0 | BL74: 0 | BM74: 0 | BO74: 0 | BP74: 0
A75: 75 | B75: 565-OP | C75: Transmission of Electricity By Others | F75: ='Labor Detail'!F75 -> 0 | G75: 11462532 | AC75: -22000 | AG75: ='Labor Detail'!H75 -> 0 | AI75: ='Labor Detail'!J75 -> 0 | BK75: -22000 | BL75: 11440532 | BM75: =ROUND(BL75,-3) -> 11441000 | BO75: 11441000 | BP75: 0
A76: 76 | B76: 566-OP | C76: Miscellaneous Expenses | F76: ='Labor Detail'!F76 -> 536612 | G76: 1783073 | W76: -204 | AG76: ='Labor Detail'!H76 -> 34389 | AI76: ='Labor Detail'!J76 -> 23405.31006 | BK76: 57590.31006 | BL76: 1840663.31 | BM76: =ROUND(BL76,-3) -> 1841000 | BO76: 1841000 | BP76: 536612
A77: 77 | B77: 567-OP | C77: Rents | F77: ='Labor Detail'!F77 -> 7753 | G77: 127229 | AG77: ='Labor Detail'!H77 -> 497 | AI77: ='Labor Detail'!J77 -> 338.1612206 | BK77: 835.1612206 | BL77: 128064.1612 | BM77: =ROUND(BL77,-3) -> 128000 | BO77: 128000 | BP77: 7753
A78: 78 | C78: Total Transmission Operation | F78: =SUM(F70:F77) -> 2825969 | G78: 17742546 | H78: 0 | I78: 0 | J78: 0 | K78: =SUM(K70:K77) -> 0 | L78: 0 | M78: 0 | N78: =SUM(N70:N77) -> 0 | O78: 0 | P78: 0 | Q78: 0 | R78: 0 | S78: 0 | T78: 0 | U78: 0 | V78: 0 | W78: -1241 | X78: 0 | Y78: 0 | Z78: 0 | AA78: 0 | AB78: 0 | AC78: -22000 | AD78: 0 | AE78: 0 | AF78: 0 | AG78: 117080 | AH78: 0 | AI78: 123259.7867 | AJ78: 0 | AK78: 0 | AL78: 0 | AM78: 0 | AN78: 0 | AO78: 0 | AP78: 0 | AQ78: 0 | AR78: 0 | AS78: 0 | AT78: 0 | AU78: 0 | AV78: 0 | AW78: 0 | AX78: 0 | AY78: 0 | AZ78: 0 | BA78: 0 | BB78: 0 | BC78: 0 | BD78: 0 | BE78: 0 | BF78: 0 | BG78: 0 | BH78: 0 | BI78: 0 | BJ78: 0 | BK78: 217098.7867 | BL78: 17959644.79 | BM78: 17960000 | BN78: =IF(ROUND(SUM(G78:BI78),0)=ROUND(BL78,0),"ok","error") -> ok
A79: 79 | B79: 568-MT | C79: Supervision & Engineering | F79: ='Labor Detail'!F79 -> 260403 | G79: 457710 | W79: -98 | AG79: ='Labor Detail'!H79 -> 8890 | AI79: ='Labor Detail'!J79 -> 11357.95129 | BK79: =SUM(H79:BJ79) -> 20149.95129 | BL79: =G79+BK79 -> 477859.9513 | BM79: =ROUND(BL79,-3) -> 478000 | BO79: =BM79 -> 478000 | BP79: =F79 -> 260403
A80: 80 | B80: 569-MT | C80: Structures | F80: ='Labor Detail'!F80 -> 258515 | G80: 506164 | AG80: ='Labor Detail'!H80 -> 16568 | AI80: ='Labor Detail'!J80 -> 11275.60273 | BK80: 27843.60273 | BL80: 534007.6027 | BM80: =ROUND(BL80,-3) -> 534000 | BO80: 534000 | BP80: 258515
A81: 81 | B81: 570-MT | C81: Station Equipment | F81: ='Labor Detail'!F81 -> 282842 | G81: 552282 | AG81: ='Labor Detail'!H81 -> 18126 | AI81: ='Labor Detail'!J81 -> 12336.66915 | BK81: 30462.66915 | BL81: 582744.6692 | BM81: 583000 | BO81: 583000 | BP81: 282842
A82: 82 | B82: 571-MT | C82: Overhead Lines | F82: ='Labor Detail'!F82 -> 20563 | G82: 880146 | AG82: ='Labor Detail'!H82 -> 1317 | AI82: ='Labor Detail'!J82 -> 896.8927097 | BK82: 2213.89271 | BL82: 882359.8927 | BM82: 882000 | BO82: 882000 | BP82: 20563
A83: 83 | B83: 572-MT | C83: Underground Lines | F83: ='Labor Detail'!F83 -> 0 | G83: 123 | AG83: ='Labor Detail'!H83 -> 0 | AI83: ='Labor Detail'!J83 -> 0 | BK83: 0 | BL83: 123 | BM83: 0 | BO83: 0 | BP83: 0
A84: 84 | B84: 573-MT | C84: Miscellaneous Plant | F84: ='Labor Detail'!F84 -> 10357 | G84: 62927 | AG84: ='Labor Detail'!H84 -> 664 | AI84: ='Labor Detail'!J84 -> 451.7394249 | BK84: 1115.739425 | BL84: 64042.73942 | BM84: =ROUND(BL84,-3) -> 64000 | BO84: 64000 | BP84: 10357
A85: 85 | C85: Total Transmission Maintenance | F85: =SUM(F79:F84) -> 832680 | G85: 2459352 | H85: 0 | I85: 0 | J85: 0 | K85: =SUM(K79:K84) -> 0 | L85: 0 | M85: 0 | N85: =SUM(N79:N84) -> 0 | O85: 0 | P85: 0 | Q85: 0 | R85: 0 | S85: 0 | T85: 0 | U85: 0 | V85: 0 | W85: -98 | X85: 0 | Y85: 0 | Z85: 0 | AA85: 0 | AB85: 0 | AC85: 0 | AD85: 0 | AE85: 0 | AF85: 0 | AG85: 45565 | AH85: 0 | AI85: 36318.8553 | AJ85: 0 | AK85: 0 | AL85: 0 | AM85: 0 | AN85: 0 | AO85: 0 | AP85: 0 | AQ85: 0 | AR85: 0 | AS85: 0 | AT85: 0 | AU85: 0 | AV85: 0 | AW85: 0 | AX85: 0 | AY85: 0 | AZ85: 0 | BA85: 0 | BB85: 0 | BC85: 0 | BD85: 0 | BE85: 0 | BF85: 0 | BG85: 0 | BH85: 0 | BI85: 0 | BJ85: 0 | BK85: 81785.8553 | BL85: 2541137.855 | BM85: 2541000 | BN85: =IF(ROUND(SUM(G85:BI85),0)=ROUND(BL85,0),"ok","error") -> ok
A86: 86 | C86: Total Transmission Expenses | F86: =F78+F85 -> 3658649 | G86: 20201898 | H86: 0 | I86: 0 | J86: 0 | K86: 0 | L86: 0 | M86: 0 | N86: 0 | O86: 0 | P86: 0 | Q86: 0 | R86: 0 | S86: 0 | T86: 0 | U86: 0 | V86: 0 | W86: -1339 | X86: 0 | Y86: 0 | Z86: 0 | AA86: 0 | AB86: 0 | AC86: -22000 | AD86: 0 | AE86: 0 | AF86: 0 | AG86: 162645 | AH86: 0 | AI86: 159578.642 | AJ86: 0 | AK86: 0 | AL86: 0 | AM86: 0 | AN86: 0 | AO86: 0 | AP86: 0 | AQ86: 0 | AR86: 0 | AS86: 0 | AT86: 0 | AU86: 0 | AV86: 0 | AW86: 0 | AX86: 0 | AY86: 0 | AZ86: 0 | BA86: 0 | BB86: 0 | BC86: 0 | BD86: 0 | BE86: 0 | BF86: 0 | BG86: 0 | BH86: 0 | BI86: 0 | BJ86: 0 | BK86: 298884.642 | BL86: 20500782.64 | BM86: 20501000 | BN86: =IF(ROUND(SUM(G86:BI86),0)=ROUND(BL86,0),"ok","error") -> ok
A87: 87
A88: 88 | C88: Distribution Expenses
A89: 89 | B89: 580-OP | C89: Supervision & Engineering | F89: ='Labor Detail'!F89 -> 1567434 | G89: 2658545 | W89: -491 | AG89: ='Labor Detail'!H89 -> 53510 | AI89: ='Labor Detail'!J89 -> 64080.76869 | BK89: =SUM(H89:BJ89) -> 117099.7687 | BL89: =G89+BK89 -> 2775644.769 | BM89: =ROUND(BL89,-3) -> 2776000 | BO89: =BM89 -> 2776000 | BP89: =F89 -> 1567434
A90: 90 | B90: 581-OP | C90: Load Dispatching | F90: ='Labor Detail'!F90 -> 0 | G90: 0 | AG90: ='Labor Detail'!H90 -> 0 | AI90: ='Labor Detail'!J90 -> 0 | BK90: 0 | BL90: 0 | BM90: 0 | BO90: 0 | BP90: 0
A91: 91 | B91: 582-OP | C91: Station Expenses | F91: ='Labor Detail'!F91 -> 201466 | G91: 471180 | AG91: ='Labor Detail'!H91 -> 12911 | AI91: ='Labor Detail'!J91 -> 8236.452791 | BK91: 21147.45279 | BL91: 492327.4528 | BM91: 492000 | BO91: 492000 | BP91: 201466
A92: 92 | B92: 583-OP | C92: Overhead Line Expenses | F92: ='Labor Detail'!F92 -> 802026 | G92: 1706722 | AG92: ='Labor Detail'!H92 -> 51399 | AI92: ='Labor Detail'!J92 -> 32788.90377 | BK92: 84187.90377 | BL92: 1790909.904 | BM92: =ROUND(BL92,-3) -> 1791000 | BO92: 1791000 | BP92: 802026
A93: 93 | B93: 584-OP | C93: Underground Line Expenses | F93: ='Labor Detail'!F93 -> 279809 | G93: =853805+97104 -> 950909 | AG93: ='Labor Detail'!H93 -> 17932 | AI93: ='Labor Detail'!J93 -> 11439.31789 | BK93: 29371.31789 | BL93: 980280.3179 | BM93: 980000 | BO93: 980000 | BP93: 279809
A94: 94 | B94: 585-OP | C94: Street Lighting & Signal Systems | F94: ='Labor Detail'!F94 -> 3638 | G94: 5584 | AG94: ='Labor Detail'!H94 -> 233 | AI94: ='Labor Detail'!J94 -> 148.7308789 | BK94: 381.7308789 | BL94: 5965.730879 | BM94: =ROUND(BL94,-3) -> 6000 | BO94: 6000 | BP94: 3638
A95: 95 | B95: 586-OP | C95: Meter Expenses | F95: ='Labor Detail'!F95 -> 872999 | G95: 1557786 | W95: -66 | AG95: ='Labor Detail'!H95 -> 55948 | AI95: ='Labor Detail'!J95 -> 35690.46415 | BK95: 91572.46415 | BL95: 1649358.464 | BM95: =ROUND(BL95,-3) -> 1649000 | BO95: 1649000 | BP95: 872999
A96: 96 | B96: 587-OP | C96: Customer Installations Expenses | F96: ='Labor Detail'!F96 -> 301183 | G96: 578690 | AG96: ='Labor Detail'!H96 -> 19302 | AI96: ='Labor Detail'!J96 -> 12313.14247 | BK96: 31615.14247 | BL96: 610305.1425 | BM96: 610000 | BO96: 610000 | BP96: 301183
A97: 97 | B97: 588-OP | C97: Miscellaneous Expenses | F97: ='Labor Detail'!F97 -> 2920644 | G97: 5514597 | W97: -1553 | AG97: ='Labor Detail'!H97 -> 187174 | AI97: ='Labor Detail'!J97 -> 119403.5044 | AO97: -105000 | BK97: 200024.5044 | BL97: 5714621.504 | BM97: =ROUND(BL97,-3) -> 5715000 | BO97: 5715000 | BP97: 2920644
A98: 98 | B98: 589-OP | C98: Rents | F98: ='Labor Detail'!F98 -> 20625 | G98: 254848 | AG98: ='Labor Detail'!H98 -> 1322 | AI98: ='Labor Detail'!J98 -> 843.2035123 | BK98: 2165.203512 | BL98: 257013.2035 | BM98: =ROUND(BL98,-3) -> 257000 | BO98: 257000 | BP98: 20625
A99: 99 | C99: Total Distribution Operation | F99: =SUM(F89:F98) -> 6969824 | G99: 13698861 | H99: 0 | I99: 0 | J99: 0 | K99: =SUM(K89:K98) -> 0 | L99: 0 | M99: 0 | N99: =SUM(N89:N98) -> 0 | O99: 0 | P99: 0 | Q99: 0 | R99: 0 | S99: 0 | T99: 0 | U99: 0 | V99: 0 | W99: -2110 | X99: 0 | Y99: 0 | Z99: 0 | AA99: 0 | AB99: 0 | AC99: 0 | AD99: 0 | AE99: 0 | AF99: 0 | AG99: 399731 | AH99: 0 | AI99: 284944.4886 | AJ99: 0 | AK99: 0 | AL99: 0 | AM99: 0 | AN99: 0 | AO99: -105000 | AP99: 0 | AQ99: 0 | AR99: 0 | AS99: 0 | AT99: 0 | AU99: 0 | AV99: 0 | AW99: 0 | AX99: 0 | AY99: 0 | AZ99: 0 | BA99: 0 | BB99: 0 | BC99: 0 | BD99: 0 | BE99: 0 | BF99: 0 | BG99: 0 | BH99: 0 | BI99: 0 | BJ99: 0 | BK99: 577565.4886 | BL99: 14276426.49 | BM99: 14276000 | BN99: =IF(ROUND(SUM(G99:BI99),0)=ROUND(BL99,0),"ok","error") -> ok
A100: 100 | B100: 590-MT | C100: Supervision & Engineering | F100: ='Labor Detail'!F100 -> 384463 | G100: 862500 | W100: =183+9+302 -> 494 | AG100: ='Labor Detail'!H100 -> 13125 | AI100: ='Labor Detail'!J100 -> 15717.84494 | BK100: =SUM(H100:BJ100) -> 29336.84494 | BL100: =G100+BK100 -> 891836.8449 | BM100: =ROUND(BL100,-3) -> 892000 | BO100: =BM100 -> 892000 | BP100: =F100 -> 384463
A101: 101 | B101: 591-MT | C101: Structures | F101: ='Labor Detail'!F101 -> 145223 | G101: 286003 | AG101: ='Labor Detail'!H101 -> 9307 | AI101: ='Labor Detail'!J101 -> 5937.093026 | BK101: 15244.09303 | BL101: 301247.093 | BM101: 301000 | BO101: 301000 | BP101: 145223
A102: 102 | B102: 592-MT | C102: Station Equipment | F102: ='Labor Detail'!F102 -> 232275 | G102: 534119 | AG102: ='Labor Detail'!H102 -> 14885 | AI102: ='Labor Detail'!J102 -> 9496.004646 | BK102: 24381.00465 | BL102: 558500.0046 | BM102: 559000 | BO102: 559000 | BP102: 232275
A103: 103 | B103: 593-MT | C103: Overhead Lines | F103: ='Labor Detail'!F103 -> 1249473 | G103: 7163345 | W103: -50 | AG103: ='Labor Detail'!H103 -> 80074 | AI103: ='Labor Detail'!J103 -> 51081.69804 | BK103: 131105.698 | BL103: 7294450.698 | BM103: =ROUND(BL103,-3) -> 7294000 | BO103: 7294000 | BP103: 1249473
A104: 104 | B104: 594-MT | C104: Underground Lines | F104: ='Labor Detail'!F104 -> 387475 | G104: 614641 | AG104: ='Labor Detail'!H104 -> 24832 | AI104: ='Labor Detail'!J104 -> 15840.98332 | BK104: 40672.98332 | BL104: 655313.9833 | BM104: 655000 | BO104: 655000 | BP104: 387475
A105: 105 | B105: 595-MT | C105: Line Transformers | F105: ='Labor Detail'!F105 -> 192861 | G105: 286835 | AG105: ='Labor Detail'!H105 -> 12360 | AI105: ='Labor Detail'!J105 -> 7884.658065 | BK105: 20244.65806 | BL105: 307079.6581 | BM105: =ROUND(BL105,-3) -> 307000 | BO105: 307000 | BP105: 192861
A106: 106 | B106: 596-MT | C106: Street Lighting & Signal Systems | F106: ='Labor Detail'!F106 -> 106008 | G106: 195023 | AG106: ='Labor Detail'!H106 -> 6794 | AI106: ='Labor Detail'!J106 -> 4333.882082 | BK106: 11127.88208 | BL106: 206150.8821 | BM106: =ROUND(BL106,-3) -> 206000 | BO106: 206000 | BP106: 106008
A107: 107 | B107: 597-MT | C107: Meters | F107: ='Labor Detail'!F107 -> 13211 | G107: 23087 | AG107: ='Labor Detail'!H107 -> 847 | AI107: ='Labor Detail'!J107 -> 540.0999564 | BK107: 1387.099956 | BL107: 24474.09996 | BM107: =ROUND(BL107,-3)+1000 -> 25000 | BO107: 25000 | BP107: 13211
A108: 108 | B108: 598-MT | C108: Miscellaneous Plant | F108: ='Labor Detail'!F108 -> 77517 | G108: 91074 | AG108: ='Labor Detail'!H108 -> 4968 | AI108: ='Labor Detail'!J108 -> 3169.096081 | BK108: 8137.096081 | BL108: 99211.09608 | BM108: 99000 | BO108: 99000 | BP108: 77517
A109: 109 | C109: Total Distribution Maintenance | F109: =SUM(F100:F108) -> 2788506 | G109: 10056627 | H109: 0 | I109: 0 | J109: 0 | K109: =SUM(K100:K108) -> 0 | L109: 0 | M109: 0 | N109: =SUM(N100:N108) -> 0 | O109: 0 | P109: 0 | Q109: 0 | R109: 0 | S109: 0 | T109: 0 | U109: 0 | V109: 0 | W109: 444 | X109: 0 | Y109: 0 | Z109: 0 | AA109: 0 | AB109: 0 | AC109: 0 | AD109: 0 | AE109: 0 | AF109: 0 | AG109: 167192 | AH109: 0 | AI109: 114001.3602 | AJ109: 0 | AK109: 0 | AL109: 0 | AM109: 0 | AN109: 0 | AO109: 0 | AP109: 0 | AQ109: 0 | AR109: 0 | AS109: 0 | AT109: 0 | AU109: 0 | AV109: 0 | AW109: 0 | AX109: 0 | AY109: 0 | AZ109: 0 | BA109: 0 | BB109: 0 | BC109: 0 | BD109: 0 | BE109: 0 | BF109: 0 | BG109: 0 | BH109: 0 | BI109: 0 | BJ109: 0 | BK109: 281637.3602 | BL109: 10338264.36 | BM109: 10338000 | BN109: =IF(ROUND(SUM(G109:BI109),0)=ROUND(BL109,0),"ok","error") -> ok
A110: 110 | C110: Total Distribution Expenses | F110: =F99+F109 -> 9758330 | G110: 23755488 | H110: 0 | I110: 0 | J110: 0 | K110: 0 | L110: 0 | M110: 0 | N110: 0 | O110: 0 | P110: 0 | Q110: 0 | R110: 0 | S110: 0 | T110: 0 | U110: 0 | V110: 0 | W110: -1666 | X110: 0 | Y110: 0 | Z110: 0 | AA110: 0 | AB110: 0 | AC110: 0 | AD110: 0 | AE110: 0 | AF110: 0 | AG110: 566923 | AH110: 0 | AI110: 398945.8487 | AJ110: 0 | AK110: 0 | AL110: 0 | AM110: 0 | AN110: 0 | AO110: -105000 | AP110: 0 | AQ110: 0 | AR110: 0 | AS110: 0 | AT110: 0 | AU110: 0 | AV110: 0 | AW110: 0 | AX110: 0 | AY110: 0 | AZ110: 0 | BA110: 0 | BB110: 0 | BC110: 0 | BD110: 0 | BE110: 0 | BF110: 0 | BG110: 0 | BH110: 0 | BI110: 0 | BJ110: 0 | BK110: 859202.8487 | BL110: 24614690.85 | BM110: 24614000 | BN110: =IF(ROUND(SUM(G110:BI110),0)=ROUND(BL110,0),"ok","error") -> ok
A111: 111
A112: 112 | C112: Customer Accounting Expenses
A113: 113 | B113: 901-OP | C113: Supervision | F113: ='Labor Detail'!F113 -> 75471 | G113: 119817 | AG113: ='Labor Detail'!H113 -> 2576 | AI113: ='Labor Detail'!J113 -> 2979.618823 | BK113: =SUM(H113:BJ113) -> 5555.618823 | BL113: =G113+BK113 -> 125372.6188 | BM113: =ROUND(BL113,-3)+1000 -> 126000 | BO113: =BM113 -> 126000 | BP113: =F113 -> 75471
A114: 114 | B114: 902-OP | C114: Meter Reading | F114: ='Labor Detail'!F114 -> 1608778 | G114: 2833917 | W114: -51 | AG114: ='Labor Detail'!H114 -> 54923 | AI114: ='Labor Detail'!J114 -> 63515.06156 | BK114: =SUM(H114:BJ114) -> 118387.0616 | BL114: =G114+BK114 -> 2952304.062 | BM114: =ROUND(BL114,-3) -> 2952000 | BO114: 2952000 | BP114: =F114 -> 1608778
A115: 115 | B115: 903-OP | C115: Customer Records & Collections | F115: ='Labor Detail'!F115 -> 3274150 | G115: 6837992 | AG115: ='Labor Detail'!H115 -> 111777 | AI115: ='Labor Detail'!J115 -> 129264.472 | AP115: 49000 | BK115: =SUM(H115:BJ115) -> 290041.472 | BL115: =G115+BK115 -> 7128033.472 | BM115: =ROUND(BL115,-3) -> 7128000 | BO115: 7128000 | BP115: =F115 -> 3274150
A116: 116 | B116: 904-OP | C116: Uncollectible Accounts | F116: ='Labor Detail'!F116 -> 0 | G116: 1341291 | N116: 705000 | U116: 10000 | V116: -113000 | Z116: 16000 | AE116: 15000 | AG116: ='Labor Detail'!H116 -> 0 | AI116: ='Labor Detail'!J116 -> 0 | AT116: 108000 | BK116: =SUM(H116:BJ116) -> 741000 | BL116: =G116+BK116 -> 2082291 | BM116: =ROUND(BL116,-3) -> 2082000 | BO116: 2082000 | BP116: =F116 -> 0
A117: 117 | B117: 905-OP | C117: Misc Customer Accounts Expenses | F117: ='Labor Detail'!F117 -> 94076 | G117: 198046 | I117: 35000 | W117: -660 | AG117: ='Labor Detail'!H117 -> 3212 | AI117: ='Labor Detail'!J117 -> 3714.150076 | BK117: =SUM(H117:BJ117) -> 41266.15008 | BL117: =G117+BK117 -> 239312.1501 | BM117: =ROUND(BL117,-3) -> 239000 | BO117: 239000 | BP117: =F117 -> 94076
A118: 118 | C118: Total Customer Accounting Expenses | F118: =SUM(F113:F117) -> 5052475 | G118: 11331063 | H118: 0 | I118: 35000 | J118: 0 | K118: =SUM(K113:K117) -> 0 | L118: 0 | M118: 0 | N118: =SUM(N113:N117) -> 705000 | O118: 0 | P118: 0 | Q118: 0 | R118: 0 | S118: 0 | T118: 0 | U118: 10000 | V118: -113000 | W118: -711 | X118: 0 | Y118: 0 | Z118: 16000 | AA118: 0 | AB118: 0 | AC118: 0 | AD118: 0 | AE118: 15000 | AF118: 0 | AG118: 172488 | AH118: 0 | AI118: 199473.3025 | AJ118: 0 | AK118: 0 | AL118: 0 | AM118: 0 | AN118: 0 | AO118: 0 | AP118: 49000 | AQ118: 0 | AR118: 0 | AS118: 0 | AT118: 108000 | AU118: 0 | AV118: 0 | AW118: 0 | AX118: 0 | AY118: 0 | AZ118: 0 | BA118: 0 | BB118: 0 | BC118: 0 | BD118: 0 | BE118: 0 | BF118: 0 | BG118: 0 | BH118: 0 | BI118: 0 | BJ118: 0 | BK118: 1196250.303 | BL118: 12527313.3 | BM118: 12527000 | BN118: =IF(ROUND(SUM(G118:BI118),0)=ROUND(BL118,0),"ok","error") -> ok
A119: 119
A120: 120
A121: 121 | B121: Proforma | E121: AVISTA UTILITIES | J121: =$J$1 -> Washington Jurisdiction | K121: =$J$1 -> Washington Jurisdiction | T121: Expense Page 3 | U121: AVISTA UTILITIES | AB121: =$J$1 -> Washington Jurisdiction | AI121: Expense Page 3A | AJ121: AVISTA UTILITIES | AQ121: =$AQ$1 -> Washington Jurisdiction | AZ121: Expense Page 3B | BA121: AVISTA UTILITIES | BF121: =$AQ$1 -> Washington Jurisdiction | BL121: Expense Page 3B | BM121: =BM$6 -> Total
A122: 122 | B122: =$B$2 -> Pro Forma Results of Operations | E122: Operation and Maintenance Expenses and Other Taxes | J122: =$J$2 -> Electric Utility | K122: =$J$2 -> Electric Utility | T122: =$T$2 -> 2019-04-30 | U122: =$E122 -> Operation and Maintenance Expenses and Other Taxes | AB122: =$J$2 -> Electric Utility | AI122: =$T$2 -> 2019-04-30 | AJ122: =$E122 -> Operation and Maintenance Expenses and Other Taxes | AQ122: =$AQ$2 -> Electric Utility | AZ122: =$T$2 -> 2019-04-30 | BA122: =$E122 -> Operation and Maintenance Expenses and Other Taxes | BF122: =$AQ$2 -> Electric Utility | BL122: =$T$2 -> 2019-04-30 | BM122: =BM$7 -> Rounded
A123: 123 | B123: =$B$3 -> Company Settlement Case UE-190334 | E123: =$E$3 -> For the Twelve Months Ended December 31, 2018 | T123: =$T$3 ->  | U123: =$E$3 -> For the Twelve Months Ended December 31, 2018 | AI123: =$T$3 ->  | AJ123: =$E$3 -> For the Twelve Months Ended December 31, 2018 | BA123: =$E$3 -> For the Twelve Months Ended December 31, 2018 | BL123: =$T$3 ->  | BM123: =BM$8 -> to $000s
A124: 124
A125: 125 | B125: (a) | C125: (b) | E125: =E$5 -> E | F125: F | G125: G | H125: H | I125: I | J125: J | K125: K | L125: L | M125: M | N125: N | O125: O | P125: P | Q125: Q | R125: R | S125: S | T125: T | U125: U | V125: V | W125: W | X125: X | Y125: Y | Z125: Z | AA125: AA | AB125: AB | AC125: AC | AD125: AD | AE125: AE | AF125: AF | AG125: AG | AH125: AH | AI125: AI | AJ125: AJ | AK125: AK | AL125: AL | AM125: AM | AN125: AN | AO125: AO | AP125: AP | AQ125: AQ | AR125: AR | AS125: AS | AT125: AT | AU125: AU | AV125: AV | AW125: AW | AX125: AX | AY125: AY | AZ125: AZ | BA125: BA | BB125: BB | BC125: BC | BD125: BD | BE125: BE | BF125: BF | BG125: BG | BH125: BH | BI125: BI | BJ125: BJ | BK125: BK | BL125: BL
A126: 126 | E126: =E$6 -> Notes | F126: Labor | G126: O&M Expense | H126: Deferred | I126: Deferred | J126: Working | K126: Eliminate | L126: Eliminate | M126: Restate | N126: Uncollectible | O126: Regulatory | P126: Injuries and | Q126: FIT/DFIT/ITC/ | R126: Office Space | S126: Restate | T126: Net Gains | U126: Weather | V126: Eliminate | W126: Misc | X126: Restate | Y126: Restate | Z126: Eliminate WA | AA126: Nez Perce | AB126: Normalize | AC126: Authorized | AD126: Restate 2018 | AE126: Pro Forma | AF126: Pro Forma | AG126: Pro Forma | AH126: Pro Forma | AI126: Pro Forma | AJ126: Pro Forma | AK126: Pro Forma | AL126: Pro Forma | AM126: Pro Forma | AN126: Pro Forma | AO126: Pro Forma | AP126: Pro Forma | AQ126: Pro Forma | AR126: Pro Forma | AS126: BlackBox | AT126: Settlement | AW126: Cost of Service | AX126: 0 | AY126: 0 | AZ126: 0 | BA126: 0 | BB126: 0 | BC126: 0 | BJ126: 0 | BK126: Net Total | BL126: Total
A127: 127 | B127: Account | C127: Description | E127: =E$7 -> 0 | F127: Dollars | G127: Totals per Books | H127: FIT Rate Base | I127: Debits & Credits | J127: Capital | K127: AMI Rate Base | L127: B&O Taxes | M127: Property Tax | N127: Expense | O127: Expense | P127: Damages Exp | Q127: PTC Expense | R127: Chg to Subs | S127: Excise Taxes | T127: & Losses | U127: Normalization | V127: Adder Sch | W127: Restating Exp | X127: Incentives | Y127: Debt Interest | Z127: Power Cost Def | AA127: Settlement | AB127: CS2/Colstrip MM | AC127: Power Supply | AD127: RB to EOP | AE127: Revenue Norm | AF127: Reg Amort DDC | AG127: Labor Non-Exec | AH127: Labor Exec | AI127: Empl Benefits | AJ127: Insurance Exp | AK127: IS/IT Expense | AL127: Property Tax | AM127: Depreciation Exp | AN127: 2019 Thresh Cap | AO127: O&M Offsets | AP127: Fee Free Amort | AQ127: Colstrip Amort | AR127: CS2/Colstrip MM | AS127: Recon to | AT127: Revenue | AW127: Reclassification | AX127: 0 | AY127: 0 | AZ127: 0 | BA127: 0 | BB127: 0 | BC127: 0 | BJ127: 0 | BK127: of All | BL127: 0 | BN127: 0 | BO127: Proforma | BP127: Labor
A128: 128 | E128: =E$8 -> 0 | F128: 0 | G128: 1.00 E-ROO | H128: 1.01 E-DFIT | I128: 1.02 E-DDC | J128: 1.03 E-WC | K128: 1.04 E-AMI | L128: 2.01 E-EBO | M128: 2.02 E-RPT | N128: 2.03 E-UE | O128: 2.04 E-RE | P128: 2.05 E-ID | Q128: 2.06 E-FIT | R128: 2.07 E-OSC | S128: 2.08 E-RET | T128: 2.09 NGL | U128: 2.10 E-WN | V128: 2.11 E-EAS | W128: 2.12 E-MR | X128: 2.13 E-EWPC | Y128: 2.14 E-NPS | Z128: 2.15 E-RI | AA128: 2.16 E-PMM | AB128: 2.17 E-RDI | AC128: 2.18 E-APS | AD128: 2.19 E-EOP18 | AE128: 3.01 E-PREV | AF128: 3.02 E-PRA | AG128: 3.03 E-PLN | AH128: 3.04 E-PLE | AI128: 3.05 E-PEB | AJ128: 3.06 E-PINS | AK128: 3.07 E-PIT | AL128: 3.08 E PPT | AM128: 3.09 E-PDEP | AN128: 3.10 E-PCAP | AO128: 3.11 E-POFF | AP128: 3.12 E-PFFE | AQ128: 3.13 E-PCOL | AR128: 3.14 E-PMM | AS128: Settlement | AT128: Increase | AU128: Open | AV128: Open | AW128: Intangible/CS2 | AX128: Open | AY128: Open | AZ128: Open | BA128: Open | BB128: Open | BC128: Open | BD128: Open | BE128: Open | BF128: Open | BG128: Open | BH128: Open | BI128: Open | BJ128: Open | BK128: Adjustments | BL128: =BL$11 -> 298629.8815 | BN128: =BN$8 -> 0 | BO128: =BO$8 -> Totals | BP128: =BP$8 -> Totals
A129: 129 | C129: Customer Information Expenses | BN129: =BN$9 -> 0 | BO129: =BO$9 -> 0 | BP129: =BP$9 -> 0
A130: 130 | B130: 907-OP | C130: Supervision | F130: ='Labor Detail'!F130 -> 0 | G130: 0 | AG130: ='Labor Detail'!H130 -> 0 | AI130: ='Labor Detail'!J130 -> 0 | BK130: =SUM(H130:BJ130) -> 0 | BL130: =G130+BK130 -> 0 | BM130: =ROUND(BL130,-3) -> 0 | BO130: =BM130 -> 0 | BP130: =F130 -> 0
A131: 131 | B131: 908-OP | C131: Customer Assistance Expenses | F131: ='Labor Detail'!F131 -> 273284 | G131: 26329138 | V131: -25693000 | W131: -193 | AG131: ='Labor Detail'!H131 -> 9330 | AI131: ='Labor Detail'!J131 -> 12114.07701 | BK131: =SUM(H131:BJ131) -> -25671748.92 | BL131: =G131+BK131 -> 657389.077 | BM131: 657000 | BO131: 657000 | BP131: =F131 -> 273284
A132: 132 | B132: 909-OP | C132: Advertising | F132: ='Labor Detail'!F132 -> 139018 | G132: 670135 | W132: -1170 | AG132: ='Labor Detail'!H132 -> 4746 | AI132: ='Labor Detail'!J132 -> 6162.361347 | BK132: =SUM(H132:BJ132) -> 9738.361347 | BL132: =G132+BK132 -> 679873.3613 | BM132: =ROUND(BL132,-3) -> 680000 | BO132: 680000 | BP132: =F132 -> 139018
A133: 133 | B133: 910-OP | C133: Misc Customer Service & Info Exp | F133: ='Labor Detail'!F133 -> 37694 | G133: 244483 | W133: -28 | AG133: ='Labor Detail'!H133 -> 1287 | AI133: ='Labor Detail'!J133 -> 1670.891889 | BK133: =SUM(H133:BJ133) -> 2929.891889 | BL133: =G133+BK133 -> 247412.8919 | BM133: =ROUND(BL133,-3)+1000 -> 248000 | BO133: 248000 | BP133: =F133 -> 37694
A134: 134 | C134: Total Customer Information Expenses | F134: =SUM(F130:F133) -> 449996 | G134: 27243756 | H134: 0 | I134: 0 | J134: 0 | K134: =SUM(K130:K133) -> 0 | L134: 0 | M134: 0 | N134: =SUM(N130:N133) -> 0 | O134: 0 | P134: 0 | Q134: 0 | R134: 0 | S134: 0 | T134: 0 | U134: 0 | V134: -25693000 | W134: -1391 | X134: 0 | Y134: 0 | Z134: 0 | AA134: 0 | AB134: 0 | AC134: 0 | AD134: 0 | AE134: 0 | AF134: 0 | AG134: 15363 | AH134: 0 | AI134: 19947.33025 | AJ134: 0 | AK134: 0 | AL134: 0 | AM134: 0 | AN134: 0 | AO134: 0 | AP134: 0 | AQ134: 0 | AR134: 0 | AS134: 0 | AT134: 0 | AU134: 0 | AV134: 0 | AW134: 0 | AX134: 0 | AY134: 0 | AZ134: 0 | BA134: 0 | BB134: 0 | BC134: 0 | BD134: 0 | BE134: 0 | BF134: 0 | BG134: 0 | BH134: 0 | BI134: 0 | BJ134: 0 | BK134: -25659080.67 | BL134: 1584675.33 | BM134: 1585000 | BN134: =IF(ROUND(SUM(G134:BI134),0)=ROUND(BL134,0),"ok","error") -> ok
A135: 135
A136: 136 | C136: Sales Expenses
A137: 137 | B137: 911-OP | C137: Supervision | F137: ='Labor Detail'!F137 -> 0 | G137: 0 | AG137: ='Labor Detail'!H137 -> 0 | AI137: ='Labor Detail'!J137 -> 0 | BK137: =SUM(H137:BJ137) -> 0 | BL137: =G137+BK137 -> 0 | BM137: =ROUND(BL137,-3) -> 0 | BO137: =BM137 -> 0 | BP137: =F137 -> 0
A138: 138 | B138: 912-OP | C138: Demonstrating & Selling Expenses | F138: ='Labor Detail'!F138 -> 0 | G138: 58715 | AG138: ='Labor Detail'!H138 -> 0 | AI138: ='Labor Detail'!J138 -> 0 | BK138: =SUM(H138:BJ138) -> 0 | BL138: =G138+BK138 -> 58715 | BM138: 59000 | BO138: 59000 | BP138: =F138 -> 0
A139: 139 | B139: 913-OP | C139: Advertising Expenses | F139: ='Labor Detail'!F139 -> 0 | G139: 0 | AG139: ='Labor Detail'!H139 -> 0 | AI139: ='Labor Detail'!J139 -> 0 | BK139: =SUM(H139:BJ139) -> 0 | BL139: =G139+BK139 -> 0 | BM139: 0 | BO139: 0 | BP139: =F139 -> 0
A140: 140 | B140: 916-OP | C140: Misc Sales Expenses | F140: ='Labor Detail'!F140 -> 0 | G140: 0 | AG140: ='Labor Detail'!H140 -> 0 | AI140: ='Labor Detail'!J140 -> 0 | BK140: =SUM(H140:BJ140) -> 0 | BL140: =G140+BK140 -> 0 | BM140: 0 | BO140: 0 | BP140: =F140 -> 0
A141: 141 | C141: Total Sales Expenses | F141: =SUM(F137:F140) -> 0 | G141: 58715 | H141: 0 | I141: 0 | J141: 0 | K141: 0 | L141: 0 | M141: 0 | N141: 0 | O141: 0 | P141: 0 | Q141: 0 | R141: 0 | S141: 0 | T141: 0 | U141: 0 | V141: 0 | W141: 0 | X141: 0 | Y141: 0 | Z141: 0 | AA141: 0 | AB141: 0 | AC141: 0 | AD141: 0 | AE141: 0 | AF141: 0 | AG141: 0 | AH141: 0 | AI141: 0 | AJ141: 0 | AK141: 0 | AL141: 0 | AM141: 0 | AN141: 0 | AO141: 0 | AP141: 0 | AQ141: 0 | AR141: 0 | AS141: 0 | AT141: 0 | AU141: 0 | AV141: 0 | AW141: 0 | AX141: 0 | AY141: 0 | AZ141: 0 | BA141: 0 | BB141: 0 | BC141: 0 | BD141: 0 | BE141: 0 | BF141: 0 | BG141: 0 | BH141: 0 | BI141: 0 | BJ141: 0 | BK141: 0 | BL141: 58715 | BM141: 59000 | BN141: =IF(ROUND(SUM(G141:BI141),0)=ROUND(BL141,0),"ok","error") -> ok
A142: 142
A143: 143 | C143: Subtotal Expenses | F143: =F59+F86+F110+F118+F134+F141 -> 32585219 | G143: 326904278 | H143: 0 | I143: 35000 | J143: 0 | K143: 0 | L143: 0 | M143: 0 | N143: =N59+N86+N110+N118+N134+N141 -> 705000 | O143: =O59+O86+O110+O118+O134+O141 -> 0 | P143: =P59+P86+P110+P118+P134+P141 -> 0 | Q143: =Q59+Q86+Q110+Q118+Q134+Q141 -> 0 | R143: 0 | S143: 0 | T143: 0 | U143: 10000 | V143: -25806000 | W143: -6729 | X143: 0 | Y143: 0 | Z143: -10103000 | AA143: -7000 | AB143: 1287000 | AC143: =AC59+AC86+AC110+AC118+AC134+AC141 -> -49677000 | AD143: 0 | AE143: 15000 | AF143: 179492 | AG143: 1657334 | AH143: 0 | AI143: 1336469.614 | AJ143: 0 | AK143: 0 | AL143: 0 | AM143: 0 | AN143: 0 | AO143: -138000 | AP143: 49000 | AQ143: 0 | AR143: -449000 | AS143: 0 | AT143: 108000 | AU143: 0 | AV143: 0 | AW143: 0 | AX143: 0 | AY143: 0 | AZ143: 0 | BA143: 0 | BB143: 0 | BC143: 0 | BD143: 0 | BE143: 0 | BF143: 0 | BG143: 0 | BH143: 0 | BI143: 0 | BJ143: 0 | BK143: -80804433.39 | BL143: 246099844.6 | BM143: 246100000 | BN143: =IF(ROUND(SUM(G143:BI143),0)=ROUND(BL143,0),"ok","error") -> ok
A144: 144
A145: 145 | C145: Administrative & General Expenses
A146: 146 | B146: 920-OP | C146: Admin & General Salaries | F146: ='Labor Detail'!F146 -> 12476088 | G146: 23245231 | W146: -763869 | X146: -248000 | AG146: ='Labor Detail'!H146 -> 672939 | AH146: 330000 | AI146: ='Labor Detail'!J146 -> 524192.6539 | BK146: =SUM(H146:BJ146) -> 515262.6539 | BL146: =G146+BK146 -> 23760493.65 | BM146: =ROUND(BL146,-3) -> 23760000 | BO146: =BM146 -> 23760000 | BP146: =F146 -> 12476088
A147: 147 | B147: 921-OP | C147: Office Supplies & Expenses | F147: ='Labor Detail'!F147 -> 569618 | G147: 3235058 | W147: -2459 | AG147: ='Labor Detail'!H147 -> 19446 | AI147: ='Labor Detail'!J147 -> 24433.82063 | AK147: 1896000 | BK147: 1937420.821 | BL147: 5172478.821 | BM147: =ROUND(BL147,-3) -> 5172000 | BO147: 5172000 | BP147: 569618
A148: 148 | B148: 922-OP | C148: Admin Expenses Transferred - CR | F148: ='Labor Detail'!F148 -> 0 | G148: -82999 | R148: -57000 | AG148: ='Labor Detail'!H148 -> 0 | AI148: ='Labor Detail'!J148 -> 0 | BK148: -57000 | BL148: -139999 | BM148: =ROUND(BL148,-3) -> -140000 | BO148: -140000 | BP148: 0
A149: 149 | B149: 923-OP | C149: Outside Services Employed | F149: ='Labor Detail'!F149 -> 20259 | G149: 6208257 | W149: -71 | AG149: ='Labor Detail'!H149 -> 692 | AI149: ='Labor Detail'!J149 -> 869.0118151 | BK149: 1490.011815 | BL149: 6209747.012 | BM149: =ROUND(BL149,-3) -> 6210000 | BO149: 6210000 | BP149: 20259
A150: 150 | B150: 924-OP | C150: Property Insurance Premium | F150: ='Labor Detail'!F150 -> 0 | G150: 879024 | W150: -9292 | AG150: ='Labor Detail'!H150 -> 0 | AI150: ='Labor Detail'!J150 -> 0 | AJ150: =10000+1000 -> 11000 | BK150: 1708 | BL150: 880732 | BM150: 881000 | BO150: 881000 | BP150: 0
A151: 151 | B151: 925-OP | C151: Injuries & Damages | F151: ='Labor Detail'!F151 -> 0 | G151: 2278789 | P151: 25000 | W151: =-21683-3303 -> -24986 | AG151: ='Labor Detail'!H151 -> 0 | AI151: ='Labor Detail'!J151 -> 0 | AJ151: =24000+2000 -> 26000 | BK151: 26014 | BL151: 2304803 | BM151: =ROUND(BL151,-3) -> 2305000 | BO151: 2305000 | BP151: 0
A152: 152 | B152: 926-OP | C152: Employee Pension & Benefits | F152: ='Labor Detail'!F152 -> 288385 | G152: 1166449 | AG152: ='Labor Detail'!H152 -> 9846 | AI152: ='Labor Detail'!J152 -> 12370.30319 | BK152: 22216.30319 | BL152: 1188665.303 | BM152: =ROUND(BL152,-3) -> 1189000 | BO152: 1189000 | BP152: 288385
A153: 153 | B153: 927-OP | C153: Franchise Requirements | F153: ='Labor Detail'!F153 -> 0 | G153: 0 | AG153: ='Labor Detail'!H153 -> 0 | AI153: ='Labor Detail'!J153 -> 0 | BK153: 0 | BL153: 0 | BM153: 0 | BO153: 0 | BP153: 0
A154: 154 | B154: 928-OP | C154: Regulatory Commission Expenses | F154: ='Labor Detail'!F154 -> 699540 | G154: 4125198 | O154: -18000 | U154: 5000 | V154: -60000 | W154: 2070 | Z154: 5000 | AE154: 8000 | AG154: ='Labor Detail'!H154 -> 23882 | AI154: ='Labor Detail'!J154 -> 30006.83771 | AS154: -1691000 | AT154: 57000 | BK154: -1638041.162 | BL154: 2487156.838 | BM154: =ROUND(BL154,-3) -> 2487000 | BO154: 2487000 | BP154: 699540
A155: 155 | B155: 930-OP | C155: Miscellaneous & General Expense | F155: ='Labor Detail'!F155 -> 187207 | G155: 2859670 | W155: -381125 | AG155: ='Labor Detail'!H155 -> 6391 | AI155: ='Labor Detail'!J155 -> 8030.26284 | BK155: -366703.7372 | BL155: 2492966.263 | BM155: =ROUND(BL155,-3) -> 2493000 | BO155: 2493000 | BP155: 187207
A156: 156 | B156: 931-OP | C156: Rents | F156: ='Labor Detail'!F156 -> 0 | G156: 284034 | W156: -105000 | AG156: ='Labor Detail'!H156 -> 0 | AI156: ='Labor Detail'!J156 -> 0 | BK156: -105000 | BL156: 179034 | BM156: =ROUND(BL156,-3) -> 179000 | BO156: 179000 | BP156: 0
A157: 157 | B157: 935-MT | C157: Maintenance of General Plant | F157: ='Labor Detail'!F157 -> 1360470 | G157: 8444213 | W157: -6202 | AG157: ='Labor Detail'!H157 -> 46445 | AI157: ='Labor Detail'!J157 -> 58357.49564 | AO157: -13000 | BK157: 85600.49564 | BL157: 8529813.496 | BM157: =ROUND(BL157,-3) -> 8530000 | BO157: 8530000 | BP157: 1360470
A158: 158 | C158: Total Administrative & General Expenses | F158: =SUM(F146:F157) -> 15601567 | G158: 52642924 | H158: 0 | I158: 0 | J158: 0 | K158: =SUM(K146:K157) -> 0 | L158: 0 | M158: 0 | N158: =SUM(N146:N157) -> 0 | O158: -18000 | P158: 25000 | Q158: 0 | R158: -57000 | S158: 0 | T158: 0 | U158: 5000 | V158: -60000 | W158: -1290934 | X158: -248000 | Y158: 0 | Z158: 5000 | AA158: 0 | AB158: 0 | AC158: 0 | AD158: 0 | AE158: 8000 | AF158: 0 | AG158: 779641 | AH158: 330000 | AI158: 658260.3857 | AJ158: 37000 | AK158: 1896000 | AL158: 0 | AM158: 0 | AN158: 0 | AO158: -13000 | AP158: 0 | AQ158: 0 | AR158: 0 | AS158: -1691000 | AT158: 57000 | AU158: 0 | AV158: 0 | AW158: 0 | AX158: 0 | AY158: 0 | AZ158: 0 | BA158: 0 | BB158: 0 | BC158: 0 | BD158: 0 | BE158: 0 | BF158: 0 | BG158: 0 | BH158: 0 | BI158: 0 | BJ158: 0 | BK158: 422967.3857 | BL158: 53065891.39 | BM158: 53066000 | BN158: =IF(ROUND(SUM(G158:BI158),0)=ROUND(BL158,0),"ok","error") -> ok
A159: 159
A160: 160 | C160: Total Operating & Maintenance Expenses | F160: =F143+F158 -> 48186786 | G160: 379547202 | H160: 0 | I160: 35000 | J160: 0 | K160: 0 | L160: 0 | M160: 0 | N160: =N143+N158 -> 705000 | O160: =O143+O158 -> -18000 | P160: =P143+P158 -> 25000 | Q160: =Q143+Q158 -> 0 | R160: -57000 | S160: 0 | T160: 0 | U160: 15000 | V160: -25866000 | W160: -1297663 | X160: -248000 | Y160: 0 | Z160: -10098000 | AA160: -7000 | AB160: 1287000 | AC160: =AC143+AC158 -> -49677000 | AD160: 0 | AE160: 23000 | AF160: 179492 | AG160: 2436975 | AH160: 330000 | AI160: 1994730 | AJ160: 37000 | AK160: 1896000 | AL160: 0 | AM160: 0 | AN160: 0 | AO160: -151000 | AP160: 49000 | AQ160: 0 | AR160: -449000 | AS160: -1691000 | AT160: 165000 | AU160: 0 | AV160: 0 | AW160: 0 | AX160: 0 | AY160: 0 | AZ160: 0 | BA160: 0 | BB160: 0 | BC160: 0 | BD160: 0 | BE160: 0 | BF160: 0 | BG160: 0 | BH160: 0 | BI160: 0 | BJ160: 0 | BK160: -80381466 | BL160: 299165736 | BM160: 299166000 | BN160: =IF(ROUND(SUM(G160:BI160),0)=ROUND(BL160,0),"ok","error") -> ok
A161: 161
A162: 162 | B162: Taxes Other Than Income Taxes
A163: 163 | B163: Property | C163: -Production | G163: 11532108 | M163: -88000 | AL163: =1501000-658000 -> 843000 | BK163: =SUM(H163:BJ163) -> 755000 | BL163: =G163+BK163 -> 12287108 | BM163: =ROUND(BL163,-3) -> 12287000 | BO163: =BM163 -> 12287000
A164: 164 | C164: -Transmission | G164: 4235105 | M164: -90000 | AL164: =662000-441000 -> 221000 | BK164: 131000 | BL164: 4366105 | BM164: 4366000 | BO164: 4366000
A165: 165 | C165: -Distribution | G165: 8579274 | M165: -362000 | AL165: =1395000-1406000 -> -11000 | BK165: -373000 | BL165: 8206274 | BM165: =ROUND(BL165,-3) -> 8206000 | BO165: 8206000
A166: 166 | C166: -Administrative & General | G166: 0 | BK166: 0 | BL166: 0 | BM166: 0 | BO166: 0
A167: 167 | B167: Open | G167: 0 | BK167: 0 | BL167: 0 | BM167: 0 | BO167: 0
A168: 168 | B168: Open | G168: 0 | BK168: 0 | BL168: 0 | BM168: 0 | BO168: 0
A169: 169 | B169: Open | G169: 0 | BK169: 0 | BL169: 0 | BM169: 0 | BO169: 0
A170: 170 | B170: Open | G170: 0 | BK170: 0 | BL170: 0 | BM170: 0 | BO170: 0
A171: 171 | B171: State Kwh Generation-Production | G171: 997202 | BK171: 0 | BL171: 997202 | BM171: 997000 | BO171: 997000
A172: 172 | B172: Montana/Oregon SIT-Production | G172: 182203 | BK172: 0 | BL172: 182203 | BM172: =ROUND(BL172,-3) -> 182000 | BO172: 182000
A173: 173 | B173: Misc | C173: -Production | G173: 26402 | BK173: 0 | BL173: 26402 | BM173: =ROUND(BL173,-3)+1000 -> 27000 | BO173: 27000
A174: 174 | C174: -Distribution | G174: 0 | BK174: 0 | BL174: 0 | BM174: 0 | BO174: 0
A175: 175 | B175: B&O | C175: -Distribution | G175: 18624892 | L175: -18625000 | BK175: -18625000 | BL175: -108 | BM175: 0 | BO175: 0
A176: 176 | B176: Excise | C176: -Distribution | G176: 21038629 | L176: 81000 | S176: 26000 | U176: 106000 | V176: -1151000 | Z176: 102000 | AE176: 152000 | AT176: 1100000 | BK176: 416000 | BL176: 21454629 | BM176: =ROUND(BL176,-3) -> 21455000 | BO176: 21455000
A177: 177
A178: 178
A179: 179
A180: 180 | C180: Total Taxes Other Than Income Taxes | G180: =SUM(G163:G176) -> 65215815 | H180: 0 | I180: 0 | J180: 0 | K180: =SUM(K163:K176) -> 0 | L180: -18544000 | M180: -540000 | N180: =SUM(N163:N176) -> 0 | O180: =SUM(O163:O176) -> 0 | P180: =SUM(P163:P176) -> 0 | Q180: =SUM(Q163:Q176) -> 0 | R180: 0 | S180: 26000 | T180: 0 | U180: 106000 | V180: -1151000 | W180: 0 | X180: 0 | Y180: 0 | Z180: 102000 | AA180: 0 | AB180: 0 | AC180: =SUM(AC163:AC176) -> 0 | AD180: 0 | AE180: 152000 | AF180: 0 | AG180: 0 | AH180: 0 | AI180: 0 | AJ180: 0 | AK180: 0 | AL180: 1053000 | AM180: 0 | AN180: 0 | AO180: 0 | AP180: 0 | AQ180: 0 | AR180: 0 | AS180: 0 | AT180: 1100000 | AU180: 0 | AV180: 0 | AW180: 0 | AX180: 0 | AY180: 0 | AZ180: 0 | BA180: 0 | BB180: 0 | BC180: 0 | BD180: 0 | BE180: 0 | BF180: 0 | BG180: 0 | BH180: 0 | BI180: 0 | BJ180: 0 | BK180: -17696000 | BL180: 47519815 | BM180: 47520000 | BN180: =IF(ROUND(SUM(G180:BI180),0)=ROUND(BL180,0),"ok","error") -> ok
A181: 181 | B181: Proforma | E181: AVISTA UTILITIES | J181: =$J$1 -> Washington Jurisdiction | T181: Expense Page 4 | U181: AVISTA UTILITIES | AB181: =$J$1 -> Washington Jurisdiction | AI181: Expense Page 4A | AJ181: AVISTA UTILITIES | AQ181: =$AQ$1 -> Washington Jurisdiction | AZ181: Expense Page 4B | BA181: AVISTA UTILITIES | BF181: =$AQ$1 -> Washington Jurisdiction | BL181: Expense Page 4B | BM181: =BM$6 -> Total
A182: 182 | B182: =$B$2 -> Pro Forma Results of Operations | E182: Depreciation Expense | J182: =$J$2 -> Electric Utility | T182: =$T$2 -> 2019-04-30 | U182: =$E182 -> Depreciation Expense | AB182: =$J$2 -> Electric Utility | AI182: =$T$2 -> 2019-04-30 | AJ182: =$E182 -> Depreciation Expense | AQ182: =$AQ$2 -> Electric Utility | AZ182: =$T$2 -> 2019-04-30 | BA182: =$E182 -> Depreciation Expense | BF182: =$AQ$2 -> Electric Utility | BL182: =$T$2 -> 2019-04-30 | BM182: =BM$7 -> Rounded
A183: 183 | B183: =$B$3 -> Company Settlement Case UE-190334 | E183: =$E$3 -> For the Twelve Months Ended December 31, 2018 | T183: =$T$3 ->  | U183: =$E$3 -> For the Twelve Months Ended December 31, 2018 | AI183: =$T$3 ->  | AJ183: =$E$3 -> For the Twelve Months Ended December 31, 2018 | BA183: =$E$3 -> For the Twelve Months Ended December 31, 2018 | BL183: =$T$3 ->  | BM183: =BM$8 -> to $000s
A184: 184
A185: 185 | B185: (a) | C185: (b) | E185: =E$5 -> E | F185: F | G185: G | H185: H | I185: I | J185: J | K185: K | L185: L | M185: M | N185: N | O185: O | P185: P | Q185: Q | R185: R | S185: S | T185: T | U185: U | V185: V | W185: W | X185: X | Y185: Y | Z185: Z | AA185: AA | AB185: AB | AC185: AC | AD185: AD | AE185: AE | AF185: AF | AG185: AG | AH185: AH | AI185: AI | AJ185: AJ | AK185: AK | AL185: AL | AM185: AM | AN185: AN | AO185: AO | AP185: AP | AQ185: AQ | AR185: AR | AS185: AS | AT185: AT | AU185: AU | AV185: AV | AW185: AW | AX185: AX | AY185: AY | AZ185: AZ | BA185: BA | BB185: BB | BC185: BC | BD185: BD | BE185: BE | BF185: BF | BG185: BG | BH185: BH | BI185: BI | BJ185: BJ | BK185: BK | BL185: BL | BO185: =BO$5 -> BO | BP185: =BP$5 -> BP
A186: 186 | E186: =E$6 -> Notes | G186: Expense | H186: =H$6 -> Deferred | I186: Deferred | J186: Working | K186: Eliminate | L186: Eliminate | M186: Restate | N186: Uncollectible | O186: Regulatory | P186: Injuries and | Q186: FIT/DFIT/ITC/ | R186: Office Space | S186: Restate | T186: Net Gains | U186: Weather | V186: Eliminate | W186: Misc | X186: Restate | Y186: Restate | Z186: Eliminate WA | AA186: Nez Perce | AB186: Normalize | AC186: Authorized | AD186: Restate 2018 | AE186: Pro Forma | AF186: Pro Forma | AG186: Pro Forma | AH186: Pro Forma | AI186: Pro Forma | AJ186: Pro Forma | AK186: Pro Forma | AL186: Pro Forma | AM186: Pro Forma | AN186: Pro Forma | AO186: Pro Forma | AP186: Pro Forma | AQ186: Pro Forma | AR186: Pro Forma | AS186: BlackBox | AT186: Settlement | AW186: Cost of Service | AX186: 0 | AY186: 0 | AZ186: 0 | BA186: 0 | BB186: 0 | BC186: 0 | BJ186: 0 | BK186: Net Total | BL186: Total | BO186: =BO$6 -> Transfer | BP186: =BP$6 -> Transfer
A187: 187 | B187: Account | C187: Description | E187: =E$7 -> 0 | G187: =G$7 -> Totals per Books | H187: FIT Rate Base | I187: Debits & Credits | J187: Capital | K187: AMI Rate Base | L187: B&O Taxes | M187: Property Tax | N187: Expense | O187: Expense | P187: Damages Exp | Q187: PTC Expense | R187: Chg to Subs | S187: Excise Taxes | T187: & Losses | U187: Normalization | V187: Adder Sch | W187: Restating Exp | X187: Incentives | Y187: Debt Interest | Z187: Power Cost Def | AA187: Settlement | AB187: CS2/Colstrip MM | AC187: Power Supply | AD187: RB to EOP | AE187: Revenue Norm | AF187: Reg Amort DDC | AG187: Labor Non-Exec | AH187: Labor Exec | AI187: Empl Benefits | AJ187: Insurance Exp | AK187: IS/IT Expense | AL187: Property Tax | AM187: Depreciation Exp | AN187: 2019 Thresh Cap | AO187: O&M Offsets | AP187: Fee Free Amort | AQ187: Colstrip Amort | AR187: CS2/Colstrip MM | AS187: Recon to | AT187: Revenue | AW187: Reclassification | AX187: 0 | AY187: 0 | AZ187: 0 | BA187: 0 | BB187: 0 | BC187: 0 | BJ187: 0 | BK187: of All | BL187: 0 | BN187: 0 | BO187: Proforma | BP187: Labor
A188: 188 | E188: =E$8 -> 0 | G188: =G$8 -> 1.00 E-ROO | H188: 1.01 E-DFIT | I188: 1.02 E-DDC | J188: 1.03 E-WC | K188: 1.04 E-AMI | L188: 2.01 E-EBO | M188: 2.02 E-RPT | N188: 2.03 E-UE | O188: 2.04 E-RE | P188: 2.05 E-ID | Q188: 2.06 E-FIT | R188: 2.07 E-OSC | S188: 2.08 E-RET | T188: 2.09 NGL | U188: 2.10 E-WN | V188: 2.11 E-EAS | W188: 2.12 E-MR | X188: 2.13 E-EWPC | Y188: 2.14 E-NPS | Z188: 2.15 E-RI | AA188: 2.16 E-PMM | AB188: 2.17 E-RDI | AC188: 2.18 E-APS | AD188: 2.19 E-EOP18 | AE188: 3.01 E-PREV | AF188: 3.02 E-PRA | AG188: 3.03 E-PLN | AH188: 3.04 E-PLE | AI188: 3.05 E-PEB | AJ188: 3.06 E-PINS | AK188: 3.07 E-PIT | AL188: 3.08 E PPT | AM188: 3.09 E-PDEP | AN188: 3.10 E-PCAP | AO188: 3.11 E-POFF | AP188: 3.12 E-PFFE | AQ188: 3.13 E-PCOL | AR188: 3.14 E-PMM | AS188: Settlement | AT188: Increase | AU188: Open | AV188: Open | AW188: Intangible/CS2 | AX188: Open | AY188: Open | AZ188: Open | BA188: Open | BB188: Open | BC188: Open | BD188: Open | BE188: Open | BF188: Open | BG188: Open | BH188: Open | BI188: Open | BJ188: Open | BK188: Adjustments | BL188: =BL$11 -> 298629.8815 | BN188: =BN$8 -> 0 | BO188: =BO$8 -> Totals | BP188: =BP$8 -> Totals
A189: 189 | B189: Depreciation Expense | BN189: =BN$9 -> 0 | BO189: =BO$9 -> 0
A190: 190 | C190: Production Plant Depreciation Expense
A191: 191 | B191: 31X | C191: Steam Production Depr Exp | G191: =5413128-142560 -> 5270568 | AD191: ='Reconcile Other Rate Base'!AC19 -> 32987 | AM191: ='Reconcile Other Rate Base'!AE19 -> 770848 | AN191: ='Reconcile Other Rate Base'!AH19 -> 0 | AQ191: =-149000+2767000 -> 2618000 | AS191: ='Reconcile Other Rate Base'!AK19 -> 0 | BK191: =SUM(H191:BJ191) -> 3421835 | BL191: =G191+BK191 -> 8692403 | BM191: =ROUND(BL191,-3)+1000 -> 8693000 | BO191: =BM191 -> 8693000
A192: 192 | B192: 32X | C192: Nuclear Production Depr Exp | E192: Amort of WNP3 Settlement Exch | G192: 2450031 | AD192: ='Reconcile Other Rate Base'!AC20 -> 0 | AF192: -2450031 | AM192: ='Reconcile Other Rate Base'!AE20 -> 0 | AN192: ='Reconcile Other Rate Base'!AH20 -> 0 | AS192: ='Reconcile Other Rate Base'!AK20 -> 0 | BK192: =SUM(H192:BJ192) -> -2450031 | BL192: =G192+BK192 -> 0 | BM192: =ROUND(BL192,-3) -> 0 | BO192: 0
A193: 193 | B193: 33X | C193: Hydraulic Production Depr Exp | G193: 7877673 | AD193: ='Reconcile Other Rate Base'!AC21 -> 230502 | AM193: ='Reconcile Other Rate Base'!AE21 -> 1230804 | AN193: ='Reconcile Other Rate Base'!AH21 -> 240308 | AS193: ='Reconcile Other Rate Base'!AK21 -> 0 | BK193: =SUM(H193:BJ193) -> 1701614 | BL193: =G193+BK193 -> 9579287 | BM193: 9579000 | BO193: 9579000
A194: 194 | B194: 34X | C194: Other Production Depr Exp | G194: 6401196 | AD194: ='Reconcile Other Rate Base'!AC22 -> 26552 | AM194: ='Reconcile Other Rate Base'!AE22 -> 609256 | AN194: ='Reconcile Other Rate Base'!AH22 -> 0 | AS194: ='Reconcile Other Rate Base'!AK22 -> 0 | BK194: =SUM(H194:BJ194) -> 635808 | BL194: =G194+BK194 -> 7037004 | BM194: =ROUND(BL194,-3) -> 7037000 | BO194: 7037000
A195: 195 | C195: Total Production Plant Depreciation Expense | F195: =19691997-142560+2450031 -> 21999468 | G195: =SUM(G191:G194) -> 21999468 | H195: 0 | I195: 0 | J195: 0 | K195: =SUM(K191:K194) -> 0 | L195: 0 | M195: 0 | N195: =SUM(N191:N194) -> 0 | O195: 0 | P195: 0 | Q195: 0 | R195: 0 | S195: 0 | T195: 0 | U195: 0 | V195: 0 | W195: 0 | X195: 0 | Y195: 0 | Z195: 0 | AA195: 0 | AB195: 0 | AC195: 0 | AD195: 290041 | AE195: 0 | AF195: -2450031 | AG195: 0 | AH195: 0 | AI195: 0 | AJ195: 0 | AK195: 0 | AL195: 0 | AM195: 2610908 | AN195: 240308 | AO195: 0 | AP195: 0 | AQ195: 2618000 | AR195: 0 | AS195: 0 | AT195: 0 | AU195: 0 | AV195: 0 | AW195: 0 | AX195: 0 | AY195: 0 | AZ195: 0 | BA195: 0 | BB195: 0 | BC195: 0 | BD195: 0 | BE195: 0 | BF195: 0 | BG195: 0 | BH195: 0 | BI195: 0 | BJ195: 0 | BK195: 3309226 | BL195: 25308694 | BM195: 25309000 | BN195: =IF(ROUND(SUM(G195:BI195),0)=ROUND(BL195,0),"ok","error") -> ok
A196: 196
A197: 197 | C197: Transmission Plant Depreciation Expense
A198: 198 | B198: 350 | C198: Land & Land Rights Depr Exp | G198: 181678 | AD198: ='Reconcile Other Rate Base'!AC26 -> 2325 | AM198: ='Reconcile Other Rate Base'!AE26 -> 28038.01818 | AN198: ='Reconcile Other Rate Base'!AH26 -> 12739.54159 | AS198: ='Reconcile Other Rate Base'!AK26 -> -112.841829 | BK198: =SUM(H198:BJ198) -> 42989.71794 | BL198: =G198+BK198 -> 224667.7179 | BM198: =ROUND(BL198,-3) -> 225000 | BO198: =BM198 -> 225000
A199: 199 | B199: 352 | C199: Structures & Improvements Depr Exp | G199: 276153 | AD199: ='Reconcile Other Rate Base'!AC27 -> 7155 | AM199: ='Reconcile Other Rate Base'!AE27 -> 43169.68574 | AN199: ='Reconcile Other Rate Base'!AH27 -> 11745.06912 | AS199: ='Reconcile Other Rate Base'!AK27 -> -104.0331846 | BK199: 61965.72167 | BL199: 338118.7217 | BM199: 338000 | BO199: 338000
A200: 200 | B200: 353 | C200: Station Equipment Depr Exp | G200: 3955862 | AD200: ='Reconcile Other Rate Base'!AC28 -> 99876 | AM200: ='Reconcile Other Rate Base'!AE28 -> 617955.4583 | AN200: ='Reconcile Other Rate Base'!AH28 -> 119574.8358 | AS200: ='Reconcile Other Rate Base'!AK28 -> -1059.14668 | BK200: 836347.1474 | BL200: 4792209.147 | BM200: 4792000 | BO200: 4792000
... 280 more rows

Sheet Reconcile Other Rate Base
A1: 301 | B1: Proforma | E1: AVISTA UTILITIES
A2: 302 | B2: Pro Forma Results of Operations | E2: Plant In Service
A3: 303 | B3: =PROFORMA!B3 -> Company Settlement Case UE-190334 | E3: =PROFORMA!E3 -> For the Twelve Months Ended December 31, 2018
A4: 304 | O4: Plant | P4: Acc Depr | Q4: Balance | R4: ADFIT | S4: Rate Base
A5: 305 | I5: G
A6: 306 | E6: Notes | G6: ROO | H6: ROO | I6: Balance | K6: All Plant | L6: Reg Asset AFUDC | Q6: 50670 | R6: -1767 | S6: =Q6+R6 -> 48903 | V6: Adj 1.04 | X6: ROO | Z6: 2018 EOP | AB6: Adj 2.19 | AE6: Adj 3.09 | AG6: Adj 3.10 | AJ6: Adj 3.15
A7: 307 | B7: Account | C7: Description | E7: 0 | F7: Check to ROO | G7: Net Electric Plant | H7: Other Rate Base | I7: Per Books | K7: Steam | L7: Colstrip 3 AFUDC Reallocation | O7: -7273650 | P7: 7049164 | Q7: =O7+P7 -> -224486 | R7: 0 | S7: =Q7+R7 -> -224486 | V7: Elim AMI | X7: 2018 EOP | Z7: Elim AMI | AB7: Restate AMA to EOP | AE7: Depreciation Study | AG7: 2019 Threshhold | AJ7: Black Box Plant Related
A8: 308 | E8: 0 | K8: Steam | L8: Colstrip Common AFUDC | O8: 1110999 | P8: -999899 | Q8: =O8+P8 -> 111100 | R8: 0 | S8: 111100 | V8: Rate Base | X8: Net Electric Plant | Y8: Deprec Exp | Z8: Rate Base | AB8: EOP RB | AC8: Deprec Exp | AE8: Deprec Exp | AG8: Capital Add | AH8: Deprec Exp | AJ8: Capital Add | AK8: Deprec Exp
A9: 309 | B9: Rate Base | K9: Steam | L9: Kettle Falls Disallowed Plant | O9: -5247725 | P9: 5180167 | Q9: -67558 | R9: 23565 | S9: -43993
A10: 310 | B10: Plant In Service | K10: Nuclear | L10: WNP3 | O10: 79626000 | P10: -76768023 | Q10: 2857977 | R10: -513675 | S10: 2344302
A11: 311 | C11: Intangible Plant | K11: Hydro Relicensing | L11: CDA Settlement | O11: 1553548 | P11: -1185929 | Q11: 367619 | R11: -79789 | S11: 287830
A12: 312 | B12: 303 | C12: Miscellaneous | G12: 11739141 | I12: =G12+H12 -> 11739141 | K12: Hydro Relicensing | L12: CDA/CDR Fund | O12: 112735 | P12: -85994 | Q12: 26741 | R12: 0 | S12: 26741 | X12: 12796157 | Y12: 507879 | AB12: =X12+Z12-G12-V12 -> 1057016 | AC12: 41953 | AG12: 0 | AJ12: 0
A13: 313 | B13: 302.XX | C13: Franchises & Consents - Hydro Relicensing Costs | G13: 57416150 | H13: =SUM(O11:O14) -> 2881386 | I13: =G13+H13 -> 60297536 | K13: Hydro Relicensing | L13: Spokane River Relicensing | O13: 743189 | P13: -566918 | Q13: 176271 | R13: -38246 | S13: 138025 | X13: 57051012 | Y13: 624695 | AB13: =X13+Z13-G13-V13 -> -365138 | AC13: -32946 | AG13: 0 | AJ13: 0
A14: 314 | B14: 303.12x | C14: AMI/MDM Software | G14: 18571397 | I14: 18571397 | K14: Hydro Relicensing | L14: Spokane River PM&Es | O14: 471914 | P14: -359983 | Q14: 111931 | R14: -24308 | S14: 87623 | V14: -18571397 | X14: 27525900 | Z14: =-14591255-12934645 -> -27525900 | AB14: 0 | AG14: 0 | AJ14: 0
A15: 315 | B15: 303.1X | C15: Miscellaneous - Computer Software | G15: =120115718-G14 -> 101544321 | I15: 101544321 | K15: MT Lease | L15: Montana Riverbed Lease | Q15: 0 | R15: 0 | S15: 0 | V15: 0 | X15: =132368256-X14 -> 104842356 | Y15: 16341597 | Z15: 0 | AB15: 3298035 | AC15: =734509-25201 -> 709308 | AG15: =10535947-684026 -> 9851921 | AH15: =2107190-136806 -> 1970384 | AJ15: =-ROUND(AG15,-3)+8820000 -> -1032000 | AK15: =-ROUND(AH15,-3)+817000 -> -1153000
A16: 316 | C16: Total Intangible Plant | G16: =SUM(G12:G15) -> 189271009 | H16: 2881386 | I16: 192152395 | K16: Lancaster | L16: Lancaster Generation | Q16: 0 | R16: 0 | S16: 0 | V16: =SUM(V12:V15) -> -18571397 | X16: 202215425 | Y16: 17474171 | Z16: -27525900 | AB16: =SUM(AB12:AB15) -> 3989913 | AC16: 718315 | AE16: =SUM(AE12:AE15) -> 0 | AG16: =SUM(AG12:AG15) -> 9851921 | AH16: 1970384 | AJ16: =SUM(AJ12:AJ15) -> -1032000 | AK16: -1153000
A17: 317 | K17: Cust Adv/Dep | L17: Customer Advances | Q17: -839880 | S17: -839880
A18: 318 | C18: Production Plant | K18: Cust Adv/Dep | L18: Customer Deposits | Q18: -1974437 | S18: -1974437
A19: 319 | B19: 31X | C19: Steam Production | G19: 281417000 | H19: =SUM(O7:O9) -> -11410376 | I19: =G19+H19 -> 270006624 | K19: Working Cap | L19: Working Capital | Q19: 46613640 | S19: 46613640 | X19: 284401875 | Y19: 5446115 | AB19: =X19+Z19-G19-V19 -> 2984875 | AC19: 32987 | AE19: 770848 | AG19: 0 | AH19: 0 | AJ19: 0 | AK19: 0
A20: 320 | B20: 32X | C20: Nuclear Production | G20: 0 | H20: =O10 -> 79626000 | I20: 79626000 | K20: Tax Reform | L20: RB Reg Liab Non-plant Excess | Q20: -2094458 | S20: -2094458 | X20: 0 | AB20: =X20+Z20-G20-V20 -> 0 | AC20: 0 | AE20: 0 | AG20: 0 | AJ20: 0
A21: 321 | B21: 33X | C21: Hydraulic Production | G21: 423861771 | I21: 423861771 | L21: Total | O21: =SUM(O6:O20) -> 71097010 | P21: =SUM(P6:P20) -> -67737415 | Q21: =SUM(Q6:Q20) -> 45115130 | R21: =SUM(R6:R20) -> -634220 | S21: 44480910 | X21: 436245483 | Y21: 8108175 | AB21: 12383712 | AC21: 230502 | AE21: 1230804 | AG21: =9185499+1688150 -> 10873649 | AH21: =203000+37308 -> 240308 | AJ21: 0 | AK21: 0
A22: 322 | B22: 34X | C22: Other Production | G22: 199987460 | I22: 199987460 | X22: 200420121 | Y22: 6427752 | AB22: 432661 | AC22: 26552 | AE22: 609256 | AG22: 0 | AH22: 0 | AJ22: 0 | AK22: 0
A23: 323 | C23: Total Production Plant | G23: =SUM(G19:G22) -> 905266231 | H23: 68215624 | I23: 973481855 | V23: =SUM(V19:V22) -> 0 | X23: 921067479 | Y23: =SUM(Y19:Y22) -> 19982042 | Z23: =SUM(Z19:Z22) -> 0 | AB23: =SUM(AB19:AB22) -> 15801248 | AC23: 290041 | AE23: =SUM(AE19:AE22) -> 2610908 | AG23: =SUM(AG19:AG22) -> 10873649 | AH23: 240308 | AJ23: =SUM(AJ19:AJ22) -> 0 | AK23: 0
A24: 324
A25: 325 | C25: Transmission Plant
A26: 326 | B26: 350 | C26: Land & Land Rights | G26: 18704888 | I26: =G26+H26 -> 18704888 | K26: Pro Forma Deferred Debits and Credits Adjustment Detail | X26: 18623996 | Y26: =171942+12062 -> 184004 | AB26: =X26+Z26-G26-V26 -> -80892 | AC26: 2325 | AE26: =AE$35*Y26/(Y$35) -> 28038.01818 | AG26: =AG$35*$X26/($X$35) -> 618423.7011 | AH26: =AH$35*AG26/(AG$35) -> 12739.54159 | AJ26: =AJ$35*$X26/($X$35) -> -5604.477509 | AK26: =AK$35*AJ26/(AJ$35) -> -112.841829
A27: 327 | B27: 352 | C27: Structures & Improvements | G27: 16736521 | I27: 16736521 | O27: Plant | P27: Acc Depr | Q27: Balance | R27: ADFIT | S27: Rate Base | X27: 17170172 | Y27: 283308 | AB27: =X27+Z27-G27-V27 -> 433651 | AC27: 7155 | AE27: =AE$35*Y27/(Y$35) -> 43169.68574 | AG27: =AG$35*$X27/($X$35) -> 570148.389 | AH27: =AH$35*AG27/(AG$35) -> 11745.06912 | AJ27: =AJ$35*$X27/($X$35) -> -5166.981501 | AK27: =AK$35*AJ27/(AJ$35) -> -104.0331846
A28: 328 | B28: 353 | C28: Station Equipment | G28: 170207086 | I28: 170207086 | X28: 174807017 | Y28: 4055432 | AB28: 4599931 | AC28: 99876 | AE28: 617955.4583 | AG28: 5804597.597 | AH28: 119574.8358 | AJ28: -52604.2851 | AK28: -1059.14668
A29: 329 | B29: 354 | C29: Towers & Fixtures | G29: 11267699 | I29: 11267699 | K29: All Plant | L29: Reg Asset AFUDC | Q29: =50670-Q6 -> 0 | R29: =-1767-R6 -> 0 | S29: =Q29+R29 -> 0 | X29: 11306833 | Y29: 203523 | AB29: 39134 | AC29: 704 | AE29: 31012.26916 | AG29: 375451.8371 | AH29: 7734.315946 | AJ29: -3402.539995 | AK29: -68.50751667
A30: 330 | B30: 355 | C30: Poles & Fixtures | G30: 161880401 | I30: 161880401 | K30: Steam | L30: Colstrip 3 AFUDC Reallocation | O30: =-7273650-O7 -> 0 | P30: =7049164-P7 -> 0 | Q30: =O30+P30 -> 0 | R30: =0-R7 -> 0 | S30: =Q30+R30 -> 0 | X30: 171789787 | Y30: 2370699 | AB30: 9909386 | AC30: 136750 | AE30: 361240.5255 | AG30: 5704408.221 | AH30: 117510.9325 | AJ30: -51696.31682 | AK30: -1040.865439
A31: 331 | B31: 356 | C31: Overhead Conductors & Devices | G31: 93276231 | I31: 93276231 | K31: Steam | L31: Colstrip Common AFUDC | O31: =1110999-O8 -> 0 | P31: =-999899-P8 -> 0 | Q31: =O31+P31 -> 0 | R31: 0 | S31: 0 | X31: 96350731 | Y31: 1531977 | AB31: 3074500 | AC31: 48885 | AE31: 233438.398 | AG31: 3199398.006 | AH31: 65907.66797 | AJ31: -28994.61023 | AK31: -583.7840986
A32: 332 | B32: 357 | C32: Underground Conduit | G32: 2018464 | I32: 2018464 | K32: Steam | L32: Kettle Falls Disallowed Plant | O32: =0-O9 -> 5247725 | P32: =0-P9 -> -5180167 | Q32: 67558 | R32: =0-R9 -> -23565 | S32: 43993 | X32: 2084868 | Y32: 34192 | AB32: 66404 | AC32: 1089 | AE32: 5210.081942 | AG32: 69229.59954 | AH32: 1426.131244 | AJ32: -627.3946696 | AK32: -12.63210744
A33: 333 | B33: 358 | C33: Underground Conductors & Devices | G33: 1589522 | I33: 1589522 | K33: Nuclear | L33: WNP3 | O33: =0-O10 -> -79626000 | P33: =0-P10 -> 76768023 | Q33: -2857977 | R33: =0-R10 -> 513675 | S33: -2344302 | X33: 1658956 | Y33: 33511 | AB33: 69434 | AC33: 1403 | AE33: 5106.313054 | AG33: 55086.87338 | AH33: 1134.79078 | AJ33: -499.2259229 | AK33: -10.05152865
A34: 334 | B34: 359 | C34: Roads & Trails | G34: 1343182 | I34: 1343182 | K34: Hydro Relicensing | L34: CDA Settlement | O34: =1165161-O11 -> -388387 | P34: =-1066625-P11 -> 119304 | Q34: -269083 | R34: =-7875-R11 -> 71914 | S34: -197169 | X34: 1343074 | Y34: 22295 | AB34: -108 | AC34: -2 | AE34: 3397.250143 | AG34: 44597.77558 | AH34: 918.7151393 | AJ34: -404.1682583 | AK34: -8.13761594
A35: 335 | C35: Total Transmission Plant | G35: =SUM(G26:G34) -> 477023994 | H35: 0 | I35: 477023994 | K35: Hydro Relicensing | L35: CDA/CDR Fund | O35: =84551-O12 -> -28184 | P35: =-77395-P12 -> 8599 | Q35: -19585 | R35: =0-R12 -> 0 | S35: -19585 | V35: =SUM(V26:V34) -> 0 | X35: 495135434 | Y35: 8718941 | Z35: 0 | AB35: =SUM(AB26:AB34) -> 18111440 | AC35: 298185 | AE35: 1328568 | AG35: =17934596-1493254 -> 16441342 | AH35: =369453-30761 -> 338692 | AJ35: -149000 | AK35: -3000
A36: 336 | K36: Hydro Relicensing | L36: Spokane River Relicensing | O36: =557391-O13 -> -185798 | P36: =-510216-P13 -> 56702 | Q36: -129096 | R36: =-9907-R13 -> 28339 | S36: -100757
A37: 337 | C37: Distribution Plant | K37: Hydro Relicensing | L37: Spokane River PM&Es | O37: =353935-O14 -> -117979 | P37: =-323980-P14 -> 36003 | Q37: -81976 | R37: =-9043-R14 -> 15265 | S37: -66711
A38: 338 | B38: 360 | C38: Land & Land Rights | G38: =6104831+341484 -> 6446315 | I38: =G38+H38 -> 6446315 | K38: MT Lease | L38: Montana Riverbed Lease | Q38: =0-Q15 -> 0 | R38: =0-R15 -> 0 | S38: 0 | X38: =6104552+354602 -> 6459154 | Y38: 4752 | AB38: =X38+Z38-G38-V38 -> 12839 | AC38: 176 | AE38: =(AE$52)*Y38/Y$52 -> -742.6396021 | AG38: 0
A39: 339 | B39: 361 | C39: Structures & Improvements | G39: 20880783 | I39: 20880783 | K39: Lancaster | L39: Lancaster Generation | Q39: =0-Q16 -> 0 | R39: =0-R16 -> 0 | S39: 0 | X39: 27406930 | Y39: 443992 | AB39: =X39+Z39-G39-V39 -> 6526147 | AC39: 105724 | AE39: =(AE$52)*Y39/Y$52 -> -69386.7934 | AG39: =(AG$52-AG$38)*$X39/($X$52-$X$48-$X$47-$X$38-$X$49) -> 766133.1843 | AH39: =AH$52*AG39/(AG$52-AG$38) -> 18923.48995
A40: 340 | B40: 362 | C40: Station Equipment | G40: 88444806 | I40: 88444806 | K40: Cust Adv/Dep | L40: Customer Advances | Q40: =-839880-Q17 -> 0 | S40: 0 | X40: 92651715 | Y40: 1825239 | AB40: 4206909 | AC40: 82876 | AE40: -285247.2148 | AG40: =(AG$52-AG$38)*$X40/($X$52-$X$48-$X$47-$X$38-$X$49) -> 2589985.578 | AH40: =AH$52*AG40/(AG$52-AG$38) -> 63972.64479
A41: 341 | B41: 363 | C41: Storage Battery Equipment | G41: 2597845 | I41: 2597845 | K41: Cust Adv/Dep | L41: Customer Deposits | Q41: =-1974437-Q18 -> 0 | S41: 0 | X41: 2597845 | Y41: 129892 | AB41: 0 | AC41: 0 | AE41: -20299.44091 | AG41: 72620.14615 | AH41: 1793.717638
A42: 342 | B42: 364 | C42: Poles, Towers & Fixtures | G42: 254870563 | I42: 254870563 | K42: Working Cap | L42: Working Capital | Q42: =46613640-Q19 -> 0 | S42: 0 | X42: 263293555 | Y42: 6077551 | AB42: 8422992 | AC42: 194426 | AE42: -949795.8873 | AG42: 7360106.721 | AH42: 181794.6389 | AJ42: =(AJ$52-SUM(AJ$46:AJ$49))/4 -> -1695271.5 | AK42: =AK$52*AJ42/AJ$52 -> -41949.46259
A43: 343 | B43: 365 | C43: Overhead Conductors & Devices | G43: 164713325 | I43: 164713325 | K43: Tax Reform | L43: RB Reg Liab Non-plant Excess | Q43: =0-Q20+7000 -> 2101458 | S43: 2101458 | X43: 171085433 | Y43: 4824609 | AB43: 6372108 | AC43: 179693 | AE43: -753986.8914 | AG43: 4782521.339 | AH43: 118128.2789 | AJ43: =(AJ$52-SUM(AJ$46:AJ$49))/4 -> -1695271.5 | AK43: =AK$52*AJ43/AJ$52 -> -41949.46259
A44: 344 | B44: 366 | C44: Underground Conduit | G44: 76004031 | I44: 76004031 | L44: Total | O44: =SUM(O29:O43) -> -75098623 | P44: =SUM(P29:P43) -> 71808464 | Q44: =SUM(Q29:Q43) -> -1188701 | R44: =SUM(R29:R43) -> 605628 | S44: =SUM(S29:S43) -> -583073 | X44: 78298358 | Y44: 2121885 | AB44: 2294327 | AC44: 62176 | AE44: -331606.867 | AG44: 2188751.908 | AH44: 54062.17299 | AJ44: -1695271.5 | AK44: -41949.46259
A45: 345 | B45: 367 | C45: Underground Conductors & Devices | G45: 133577909 | I45: 133577909 | X45: 139023710 | Y45: 8105082 | AB45: 5445801 | AC45: 317490 | AE45: -1266657.17 | AG45: 3886268.095 | AH45: 95990.82346 | AJ45: -1695271.5 | AK45: -41949.46259
A46: 346 | B46: 368 | C46: Line Transformers | G46: 180442115 | I46: 180442115 | X46: 186142660 | Y46: 3927610 | AB46: 5700545 | AC46: 120281 | AE46: -613804.4461 | AG46: 5203430.988 | AH46: 128524.7474 | AJ46: =-AB46 -> -5700545 | AK46: -141059.8829
A47: 347 | B47: 369 | C47: Services | G47: 111541308 | I47: 111541308 | X47: 114114280 | Y47: 3082447 | AB47: 2572972 | AC47: 69501 | AE47: -481722.8985 | AH47: 0 | AJ47: =-AB47 -> -2572972 | AK47: -63668.14557
A48: 348 | B48: 370 | C48: Meters | G48: 28007591 | I48: 28007591 | V48: -1023584 | X48: 33472851 | Y48: 1174732 | Z48: -6420364 | AB48: 68480 | AC48: 191804 | AE48: -183586.3857 | AH48: 0 | AJ48: =-AB48 -> -68480 | AK48: -1694.536361
A49: 349 | B49: 371 | C49: Installations on Customer Premises | G49: 1419869 | I49: 1419869 | X49: 1491786 | Y49: 147224 | AB49: 71917 | AC49: 7097 | AE49: -23008.07508 | AH49: 0 | AJ49: =-AB49 -> -71917 | AK49: -1779.584863
A50: 350 | B50: 372 | C50: Leased Property on Customer Premises | G50: 0 | I50: 0 | Y50: 0 | AB50: 0 | AC50: 0 | AE50: 0 | AH50: 0
A51: 351 | B51: 373 | C51: Street Lights & Signal Systems | G51: 40185042 | I51: 40185042 | X51: 41304831 | Y51: 1607610 | AB51: 1119789 | AC51: 43583 | AE51: -251236.2901 | AG51: =(AG$52-AG$38)*$X51/($X$52-$X$48-$X$47-$X$38-$X$49) -> 1154635.039 | AH51: 28519.48592
A52: 352 | C52: Total Distribution Plant | G52: =SUM(G38:G51) -> 1109131502 | H52: 0 | I52: 1109131502 | V52: =SUM(V38:V51) -> -1023584 | X52: =SUM(X38:X51) -> 1157343108 | Y52: =SUM(Y38:Y51) -> 33472625 | Z52: =SUM(Z38:Z51) -> -6420364 | AB52: =SUM(AB38:AB51) -> 42814826 | AC52: =SUM(AC38:AC51) -> 1374827 | AE52: -5231081 | AG52: =28622856-618403 -> 28004453 | AH52: =706985-15275 -> 691710 | AJ52: -15195000 | AK52: -376000
A53: 353
A54: 354 | C54: General Plant
A55: 355 | B55: 389 | C55: Land & Land Rights | G55: 5770910 | I55: =G55+H55 -> 5770910 | X55: 5977046 | Y55: 13591 | AB55: =X55+Z55-G55-V55 -> 206136 | AC55: 469 | AE55: =(898157-1187919)*Y55/SUM($Y$55:$Y$57,$Y$59:$Y$71,$Y$73:$Y$74) -> -272.0567899 | AG55: =(14437778+1695316)*Y55/SUM($Y$55:$Y$57,$Y$59:$Y$71,$Y$73:$Y$74) -> 15147.32009 | AH55: =(1098715+129013)*Y55/SUM($Y$55:$Y$57,$Y$59:$Y$71,$Y$73:$Y$74) -> 1152.710633 | AK55: =-AH55 -> -1152.710633
A56: 356 | B56: 390 | C56: Structures & Improvements | G56: 66356031 | I56: 66356031 | X56: 69328992 | Y56: 1367668 | AB56: 2972961 | AC56: 58648 | AE56: =(898157-1187919)*Y56/SUM($Y$55:$Y$57,$Y$59:$Y$71,$Y$73:$Y$74) -> -27377.18827 | AG56: =(14437778+1695316)*Y56/SUM($Y$55:$Y$57,$Y$59:$Y$71,$Y$73:$Y$74) -> 1524281.14 | AH56: =(1098715+129013)*Y56/SUM($Y$55:$Y$57,$Y$59:$Y$71,$Y$73:$Y$74) -> 115997.7519 | AJ56: -26000 | AK56: =-AH56 -> -115997.7519
A57: 357 | B57: 391 | C57: Office Furniture & Equipment | G57: 39176379 | I57: 39176379 | V57: =-1267616-960795 -> -2228411 | X57: 42365122 | Y57: 9217519 | Z57: =-1268805-3389747 -> -4658552 | AB57: 758602 | AC57: 693785 | AE57: -184510.9727 | AG57: 10273027.06 | AH57: 781777.0705 | AK57: -781777.0705
A58: 358 | B58: 392 | C58: Transportation Equipment | G58: 36774422 | I58: 36774422 | X58: 39632814 | Y58: 12054 | AB58: 2858392 | AC58: 869 | AE58: =-559075/2 -> -279537.5 | AG58: =(4154861-1096827)/2 -> 1529017 | AH58: =(227686-60106)/2 -> 83790 | AK58: -83790
A59: 359 | B59: 393 | C59: Stores Equipment | G59: 2801637 | I59: 2801637 | X59: 2877355 | Y59: 125276 | AB59: 75718 | AC59: 3297 | AE59: -2507.702628 | AG59: 139621.4901 | AH59: =(1098715+129013)*Y59/SUM($Y$55:$Y$57,$Y$59:$Y$71,$Y$73:$Y$74) -> 10625.19147 | AK59: -10625.19147
A60: 360 | B60: 394 | C60: Tools, Shop & Garage Equipment | G60: =10057159+78089 -> 10135248 | I60: 10135248 | X60: =10411893+78089 -> 10489982 | Y60: =502085+7809 -> 509894 | AB60: 354734 | AC60: 17106 | AE60: -10206.76366 | AG60: 568282.5129 | AH60: 43246.28326 | AK60: -43246.28326
A61: 361 | I61: 0 | AB61: 0 | AE61: 0 | AG61: 0 | AH61: 0 | AK61: 0
A62: 362 | I62: 0 | AB62: 0 | AE62: 0 | AG62: 0 | AH62: 0 | AK62: 0
A63: 363 | I63: 0 | AB63: 0 | AE63: 0 | AG63: 0 | AH63: 0 | AK63: 0
A64: 364 | I64: 0 | AB64: 0 | AE64: 0 | AG64: 0 | AH64: 0 | AK64: 0
A65: 365 | I65: 0 | AB65: 0 | AE65: 0 | AG65: 0 | AH65: 0 | AK65: 0
A66: 366 | I66: 0 | AB66: 0 | AE66: 0 | AG66: 0 | AH66: 0 | AK66: 0
A67: 367 | I67: 0 | AB67: 0 | AE67: 0 | AG67: 0 | AH67: 0 | AK67: 0
A68: 368 | I68: 0 | AB68: 0 | AE68: 0 | AG68: 0 | AH68: 0 | AK68: 0
A69: 369 | B69: Plant In Service (continued) | I69: 0 | AB69: 0 | AE69: 0 | AG69: 0 | AH69: 0 | AK69: 0
A70: 370 | C70: General Plant (continued) | I70: 0 | AB70: 0 | AE70: 0 | AG70: 0 | AH70: 0 | AK70: 0
A71: 371 | B71: 395 | C71: Laboratory Equipment | G71: 1600238 | I71: 1600238 | V71: -37169 | X71: 1771102 | Y71: 246984 | Z71: -134412 | AB71: 73621 | AC71: 23827 | AE71: -4943.983092 | AG71: 275266.4047 | AH71: 20947.76566 | AK71: -20947.76566
A72: 372 | B72: 396 | C72: Power Operated Equipment | G72: 20897407 | I72: 20897407 | X72: 20805683 | Y72: 0 | AB72: -91724 | AC72: 0 | AE72: =-559075/2 -> -279537.5 | AG72: =(4154861-1096827)/2 -> 1529017 | AH72: =(227686-60106)/2 -> 83790 | AK72: -83790
A73: 373 | B73: 397 | C73: Communication Equipment | G73: 76713535 | I73: 76713535 | V73: -602969 | X73: 81968384 | Y73: 2926477 | Z73: -2334614 | AB73: 3523204 | AC73: 187611 | AE73: -58580.5267 | AG73: 3261591.043 | AH73: =(1098715+129013)*Y73/SUM($Y$55:$Y$57,$Y$59:$Y$71,$Y$73:$Y$74) -> 248206.9867 | AK73: -248206.9867
A74: 374 | B74: 398 | C74: Miscellaneous Equipment | G74: 322747 | I74: 322747 | X74: 339752 | Y74: 68081 | AB74: 17005 | AC74: 3408 | AE74: -1362.806145 | AG74: 75877.02887 | AH74: 5774.239764 | AK74: -5774.239764
A75: 375 | C75: Total General Plant | G75: =SUM(G55:G60)+SUM(G71:G74) -> 260548554 | H75: 0 | I75: 260548554 | V75: =SUM(V55:V74) -> -2868549 | X75: =SUM(X55:X74) -> 275556232 | Y75: =SUM(Y55:Y74) -> 14487544 | Z75: =SUM(Z55:Z74) -> -7127578 | AB75: =SUM(AB55:AB74) -> 10748649 | AC75: =SUM(AC55:AC74) -> 989020 | AE75: =898157-1187919-559075 -> -848837 | AG75: =SUM(AG55:AG74) -> 19191128 | AH75: =SUM(AH55:AH74) -> 1395308 | AJ75: -26000 | AK75: =SUM(AK55:AK74) -> -1395308
A76: 376
A77: 377 | B77: Total Plant In Service | G77: =G16+G23+G35+G52+G75 -> 2941241290 | H77: 71097010 | I77: 3012338300 | V77: =V16+V23+V35+V52+V75 -> -22463530 | X77: 3051317678 | Y77: =Y16+Y23+Y35+Y52+Y75 -> 94135323 | Z77: =Z16+Z23+Z35+Z52+Z75 -> -41073842 | AB77: =AB16+AB23+AB35+AB52+AB75 -> 91466076 | AC77: 3670388 | AE77: =AE16+AE23+AE35+AE52+AE75 -> -2140442 | AG77: =AG16+AG23+AG35+AG52+AG75 -> 84362493 | AH77: 4636402 | AJ77: =AJ16+AJ23+AJ35+AJ52+AJ75 -> -16402000 | AK77: -2927308
A78: 378
A79: 379
A80: 380
A81: 381
A82: 382
A83: 383
A84: 384
A85: 385 | B85: Accumulated Reserve For Depreciation
A86: 386 | C86: Production Plant Accumulated Depreciation
A87: 387 | B87: 31X | C87: Steam Production Accum Depr | E87: =G87/G91 -> 0.5410105306 | G87: -197559187 | H87: =SUM(P7:P9) -> 11229432 | I87: =G87+H87 -> -186329755 | X87: -199779304 | AB87: =X87+Z87-G87-V87 -> -2220117 | AG87: 0 | AI87: =(AJ87-#REF!)/(AJ$91-#REF!) ->  | AJ87: 0
A88: 388 | B88: 32X | C88: Nuclear Production Accum Depr | G88: 0 | H88: =P10 -> -76768023 | I88: -76768023 | AB88: 0
A89: 389 | B89: 33X | C89: Hydraulic Production Accum Depr | E89: =G89/G91 -> 0.2371760219 | G89: -86608854 | I89: -86608854 | X89: -88575591 | AB89: -1966737 | AG89: =-66000+5000 -> -61000 | AI89: =(AJ89-#REF!)/(AJ$91-#REF!) ->  | AJ89: 0
A90: 390 | B90: 34X | C90: Other Production Accum Depr | E90: =G90/G91 -> 0.2218134476 | G90: -80998949 | I90: -80998949 | X90: -83928818 | AB90: -2929869 | AG90: 0 | AI90: =(AJ90-#REF!)/(AJ$91-#REF!) ->  | AJ90: 0
A91: 391 | C91: Total Production Plant Accum Depr | F91: 286299748 | G91: =SUM(G87:G90) -> -365166990 | H91: -65538591 | I91: -430705581 | V91: =SUM(V87:V90) -> 0 | X91: -372283713 | Z91: 0 | AB91: =SUM(AB87:AB90) -> -7116723 | AG91: =SUM(AG87:AG90) -> -61000 | AJ91: =SUM(AJ87:AJ90) -> 0
A92: 392
A93: 393 | C93: Transmission Plant Accumulated Depreciation
A94: 394 | B94: 350 | C94: Land & Land Rights Accum Depr | G94: -3892574 | I94: =G94+H94 -> -3892574 | X94: -3983629 | AB94: =X94+Z94-G94-V94 -> -91055 | AG94: =AG$103*$X26/$X$35 -> -5341.179908 | AJ94: =AJ$103*$X26/$X$35 -> 1053.190404
A95: 395 | B95: 352 | C95: Structures & Improvements Accum Depr | G95: -4120513 | I95: -4120513 | X95: -4223677 | AB95: -103164 | AG95: =AG$103*$X27/$X$35 -> -4924.237404 | AJ95: =AJ$103*$X27/$X$35 -> 970.9763895
A96: 396 | B96: 353 | C96: Station Equipment Accum Depr | G96: -53074720 | I96: -53074720 | X96: -53860970 | AB96: -786250 | AG96: -50132.94285 | AJ96: 9885.369012
A97: 397 | B97: 354 | C97: Towers & Fixtures Accum Depr | G97: -6117779 | I97: -6117779 | X97: -6214731 | AB97: -96952 | AG97: -3242.689123 | AJ97: 639.4034889
A98: 398 | B98: 355 | C98: Poles & Fixtures Accum Depr | G98: -42049127 | I98: -42049127 | X98: -42974622 | AB98: -925495 | AG98: -49267.63079 | AJ98: 9714.7441
A99: 399 | B99: 356 | C99: Overhead Conductors & Devices Accum Depr | G99: -29300031 | I99: -29300031 | X99: -29856822 | AB99: -556791 | AG99: -27632.44733 | AJ99: 5448.651587
A100: 400 | B100: 357 | C100: Underground Conduit Accum Depr | G100: -484329 | I100: -484329 | X100: -501000 | AB100: -16671 | AG100: -597.9197522 | AJ100: 117.8996694
A101: 401 | B101: 358 | C101: Underground Conductors & Devices Accum Depr | G101: -656241 | I101: -656241 | X101: -672468 | AB101: -16227 | AG101: -475.7723561 | AJ101: 93.81426739
A102: 402 | B102: 359 | C102: Roads & Trails Accum Depr | G102: -575694 | I102: -575694 | X102: -586832 | AB102: -11138 | AG102: -385.1804878 | AJ102: 75.9510821
A103: 403 | C103: Total Transmission Plant Accumulated Depreciation | F103: 111143875 | G103: =SUM(G94:G102) -> -140271008 | H103: 0 | I103: -140271008 | J103: -140271008 | V103: =SUM(V94:V102) -> 0 | X103: -142874751 | Z103: 0 | AB103: =SUM(AB94:AB102) -> -2603743 | AG103: =-92000-50000 -> -142000 | AJ103: 28000
A104: 404
A105: 405 | C105: Distribution Plant Accumulated Depreciation
A106: 406 | B106: 360 | C106: Land & Land Rights Accum Depr | G106: -35737 | I106: =G106+H106 -> -35737 | X106: -38029 | AB106: =X106+Z106-G106-V106 -> -2292 | AG106: =AG$120*$X38/$X$52 -> -1897.546497 | AJ106: =AJ$120*AJ38/AJ$52 -> 0
A107: 407 | B107: 361 | C107: Structures & Improvements Accum Depr | G107: -4645481 | I107: -4645481 | X107: -4783171 | AB107: -137690 | AG107: =AG$120*$X39/$X$52 -> -8051.507056 | AJ107: =AJ$120*AJ39/AJ$52 -> 0
A108: 408 | B108: 362 | C108: Station Equipment Accum Depr | G108: -23564153 | I108: -23564153 | X108: -23798200 | AB108: -234047 | AG108: -27218.87993 | AJ108: 0
A109: 409 | B109: 363 | C109: Storage Battery Equipment Accum Depr | G109: -409435 | I109: -409435 | X109: -474381 | AB109: -64946 | AG109: -763.1853457 | AJ109: 0
A110: 410 | B110: 364 | C110: Poles, Towers & Fixtures Accum Depr | G110: -58714727 | I110: -58714727 | X110: -60268723 | AB110: -1553996 | AG110: -77349.41184 | AJ110: -3347.031589
A111: 411 | B111: 365 | C111: Overhead Conductors & Devices Accum Depr | G111: -47806487 | I111: -47806487 | X111: -49974358 | AB111: -2167871 | AG111: -50260.84902 | AJ111: -3347.031589
A112: 412 | B112: 366 | C112: Underground Conduit Accum Depr | G112: -22106358 | I112: -22106358 | X112: -23144835 | AB112: -1038477 | AG112: -23002.20353 | AJ112: -3347.031589
A113: 413 | B113: 367 | C113: Underground Conductors & Devices Accum Depr | G113: -66759169 | I113: -66759169 | X113: -70571297 | AB113: -3812128 | AG113: -40841.87401 | AJ113: -3347.031589
A114: 414 | B114: 368 | C114: Line Transformers Accum Depr | G114: -50937309 | I114: -50937309 | X114: -52710646 | AB114: -1773337 | AG114: -54684.30577 | AJ114: -11254.77789
A115: 415 | B115: 369 | C115: Services Accum Depr | G115: -44149457 | I115: -44149457 | X115: -45651756 | AB115: -1502299 | AG115: -33524.07331 | AJ115: -5079.905232
A116: 416 | B116: 370 | C116: Meters Accum Depr | G116: -5564540 | I116: -5564540 | V116: 8607 | X116: -5585506 | Z116: 68171 | AB116: 38598 | AG116: -9833.531009 | AJ116: -135.2023692
A117: 417 | B117: 371 | C117: Installations on Customer Premises Accum Depr | G117: -132951 | I117: -132951 | X117: -204901 | AB117: -71950 | AG117: -438.2514023 | AJ117: -141.988154
A118: 418 | B118: 372 | C118: Leased Property on Customer Premises Accum Depr | G118: 0 | I118: 0 | X118: 0 | AB118: 0 | AG118: 0 | AJ118: 0
A119: 419 | B119: 373 | C119: Street Lights & Signal Systems Accum Depr | G119: -11859311 | I119: -11859311 | X119: -12209800 | AB119: -350489 | AG119: -12134.38128 | AJ119: 0
A120: 420 | C120: Total Distribution Plant Accumulated Depreciation | F120: 209101267 | G120: =SUM(G106:G119) -> -336685115 | H120: 0 | I120: -336685115 | J120: -336685115 | V120: =SUM(V106:V119) -> 8607 | X120: =SUM(X106:X119) -> -349415603 | Z120: =SUM(Z106:Z119) -> 68171 | AB120: =SUM(AB106:AB119) -> -12670924 | AG120: =-264000-76000 -> -340000 | AJ120: -30000
A121: 421
A122: 422
A123: 423
A124: 424
A125: 425
A126: 426
A127: 427
A128: 428 | E128: =E$8 -> 0 | F128: =F$307 -> 0 | G128: =G$307 -> 0 | X128: =X$307 -> 0 | AG128: =AG$307 -> 0 | AJ128: =AJ$307 -> 0
A129: 429 | B129: Accumulated Reserve for Depreciation (continued)
A130: 430 | C130: General Plant Accumulated Depreciation
A131: 431 | B131: 389 | C131: Land & Land Rights Accum Depr | G131: -66240 | I131: =G131+H131 -> -66240 | X131: -72801 | AB131: =X131+Z131-G131-V131 -> -6561 | AG131: =AG$141*$X55/$X$75 -> -11799.81668 | AJ131: =AJ$141*$X55/$X$75 -> 130.145037
A132: 432 | B132: 390 | C132: Structures & Improvements Accum Depr | G132: =-3778978-82960 -> -3861938 | I132: -3861938 | X132: =-3603368-99433 -> -3702801 | AB132: 159137 | AG132: =AG$141*$X56/$X$75 -> -136868.5127 | AJ132: =AJ$141*$X56/$X$75 -> 1509.579185
A133: 433 | B133: 391 | C133: Office Furniture & Equipment Accum Depr | G133: -22158295 | I133: -22158295 | V133: =293510+28194 -> 321704 | X133: -23326418 | Z133: =420339+192159 -> 612498 | AB133: -877329 | AG133: -83636.74521 | AJ133: 922.4641016
A134: 434 | B134: 392 | C134: Transportation Equipment Accum Depr | G134: -14609024 | I134: -14609024 | X134: -16296129 | AB134: -1687105 | AG134: -78242.65363 | AJ134: 862.9704444
A135: 435 | B135: 393 | C135: Stores Equipment Accum Depr | G135: -669908 | I135: -669908 | X135: -730354 | AB135: -60446 | AG135: -5680.441733 | AJ135: 62.65193088
A136: 436 | B136: 394 | C136: Tools, Shop & Garage Equipment Accum Depr | G136: =-3094626-12821 -> -3107447 | I136: -3107447 | X136: =-3333007-16726 -> -3349733 | AB136: -242286 | AG136: -20709.20395 | AJ136: 228.4103377
A137: 437 | B137: 395 | C137: Laboratory Equipment Accum Depr | G137: -601894 | I137: -601894 | V137: 761 | X137: -713837 | Z137: 5311 | AB137: -107393 | AG137: =AG$141*$X71/$X$75 -> -3496.489559 | AJ137: =AJ$141*$X71/$X$75 -> 38.56422307
A138: 438 | B138: 396 | C138: Power Operated Equipment Accum Depr | G138: -10594139 | I138: -10594139 | X138: -11162023 | AB138: -567884 | AG138: =AG$141*$X72/$X$75 -> -41074.34432 | AJ138: =AJ$141*$X72/$X$75 -> 453.0258564
A139: 439 | B139: 397 | C139: Communication Equipment Accum Depr | G139: -37207226 | I139: -37207226 | V139: 5452 | X139: -38037613 | Z139: 33630 | AB139: -802209 | AG139: -161821.0576 | AJ139: 1784.791077
A140: 440 | B140: 398 | C140: Miscellaneous Equipment Accum Depr | G140: -263791 | I140: -263791 | X140: -288426 | AB140: -24635 | AG140: -670.7345599 | AJ140: 7.397807646
A141: 441 | C141: Total General Plant Accumulated Depreciation | F141: =47187448+177697 -> 47365145 | G141: =SUM(G131:G140) -> -93139902 | H141: 0 | I141: -93139902 | J141: =-93056942-82960 -> -93139902 | K141: includes leasehold improvement amortization | V141: =SUM(V131:V140) -> 327917 | X141: =SUM(X131:X140) -> -97680135 | Z141: =SUM(Z131:Z140) -> 651439 | AB141: =SUM(AB131:AB140) -> -4216711 | AG141: =-374000-170000 -> -544000 | AJ141: 6000
A142: 442
A143: 443 | C143: Total Accumulated Reserve for Depreciation | F143: =F91+F103+F120+F141 -> 653910035 | G143: -935263015 | H143: -65538591 | I143: -1000801606 | V143: =V91+V103+V120+V141 -> 336524 | X143: -962254202 | Z143: =Z91+Z103+Z120+Z141 -> 719610 | AB143: =AB91+AB103+AB120+AB141 -> -26608101 | AG143: =AG91+AG103+AG120+AG141 -> -1087000 | AJ143: =AJ91+AJ103+AJ120+AJ141 -> 4000
A144: 444
A145: 445 | C145: Amortization
A146: 446 | B146: Accum Amortization of Limited Term Plant 303000 | G146: -2576240 | I146: =G146+H146 -> -2576240 | J146: =-8664572-245358-1404172 -> -10314102 | K146: 302 and 303000 | X146: -2814683 | AB146: =X146+Z146-G146-V146 -> -238443
A147: 447 | B147: Accum Amortization of Intangible Plant-Software | G147: =-33154963-G149 -> -32076818 | I147: -32076818 | J147: -33154963 | X147: =-37706305-X149 -> -35391635 | AB147: -3314817 | AG147: =-780000-247000 -> -1027000 | AJ147: 104000
A148: 448 | B148: Accum Amortization of Hydro Relicensing Costs 302000 | G148: -7737862 | H148: =SUM(P11:P14) -> -2198824 | I148: -9936686 | X148: -8050209 | AB148: -312347
A149: 449 | B149: Accum Amortization of AMI/MDM software | G149: -1078145 | I149: -1078145 | V149: 1078145 | X149: -2314670 | Z149: =1396352+918318 -> 2314670 | AB149: 0
A150: 450 | C150: Total Amortization | F150: =13251896-177697 -> 13074199 | G150: =SUM(G146:G149) -> -43469065 | H150: -2198824 | I150: -45667889 | J150: =SUM(J146:J147) -> -43469065 | V150: =SUM(V146:V149) -> 1078145 | X150: -48571197 | Z150: =SUM(Z146:Z149) -> 2314670 | AB150: =SUM(AB146:AB149) -> -3865607 | AG150: =SUM(AG146:AG149) -> -1027000 | AJ150: =SUM(AJ146:AJ149) -> 104000
A151: 451
A152: 452 | B152: Total Accum Reserve for Depreciation & Amortization | F152: =F143+F150 -> 666984234 | G152: -978732080 | H152: -67737415 | I152: -1046469495 | J152: -978732080 | V152: =V143+V150 -> 1414669 | X152: -1010825399 | Z152: =Z143+Z150 -> 3034280 | AB152: =AB143+AB150 -> -30473708 | AG152: =AG143+AG150 -> -2114000 | AJ152: =AJ143+AJ150 -> 108000
A153: 453
A154: 454 | B154: Total Net Plant | G154: =G77+G152 -> 1962509210 | H154: =H77+H152 -> 3359595 | I154: 1965868805 | J154: 1962509210 | V154: =V77+V152 -> -21048861 | X154: =X77+X152 -> 2040492279 | Z154: =Z77+Z152 -> -38039562 | AB154: =AB77+AB152 -> 60992368 | AG154: =AG77+AG152 -> 82248493 | AJ154: =AJ77+AJ152 -> -16294000
A155: 455
A156: 456 | B156: Total Customer Advances / Deposits | G156: 0 | H156: =Q17+Q18 -> -2814317 | I156: =G156+H156 -> -2814317 | X156: 0 | AB156: =X156+Z156-G156-V156 -> 0 | AG156: 0 | AJ156: 0
A157: 457
A158: 458 | B158: Total Accumulated Deferred Investment Tax Credits | G158: 0 | I158: =G158+H158 -> 0 | X158: 0 | AB158: =X158+Z158-G158-V158 -> 0 | AG158: 0 | AJ158: 0
A159: 459
A160: 460 | B160: Total Accumulated Deferred Income Taxes | G160: =-410936808 -> -410936808 | H160: =R21 -> -634220 | I160: =G160+H160 -> -411571028 | V160: 1883000 | X160: -412919000 | Z160: 2820000 | AB160: =X160+Z160-G160-V160+1946000 -> 900808 | AG160: =-2053000+127000 -> -1926000 | AJ160: -38000
A161: 461
A162: 462 | B162: Other Rate Base Items
A163: 463 | B163: Regulatory Asset AFUDC | G163: 0 | H163: =Q6 -> 50670 | I163: =G163+H163 -> 50670 | X163: 0 | AG163: 0 | AJ163: 0
A164: 464 | B164: Colstrip Deferred Balance | G164: 0 | H164: =Q15 -> 0 | I164: 0 | X164: 0 | AG164: 0 | AJ164: 0
A165: 465 | B165: Open | G165: 0 | H165: =Q16 -> 0 | I165: 0 | X165: 0 | AG165: 0 | AJ165: 0
A166: 466 | B166: Tax Reform Rate Base Adjustment | G166: 0 | H166: =S20 -> -2094458 | I166: -2094458 | X166: 0 | AG166: 0 | AJ166: 0
A167: 467 | B167: Open | G167: 0 | I167: =G167+H167 -> 0 | X167: 0 | AG167: 0 | AJ167: 0
A168: 468
A169: 469 | B169: Total Working Capital | G169: 0 | H169: =Q19 -> 46613640 | I169: =G169+H169 -> 46613640 | X169: 0 | AG169: 0 | AJ169: 0
A170: 470
A171: 471 | B171: Total Miscellaneous Rate Base Items | G171: =SUM(G156:G169) -> -410936808 | H171: 41121315 | I171: -369815493 | V171: =SUM(V156:V169) -> 1883000 | X171: -412919000 | Z171: =SUM(Z156:Z169) -> 2820000 | AB171: =SUM(AB156:AB169) -> 900808 | AG171: =SUM(AG156:AG169) -> -1926000 | AJ171: =SUM(AJ156:AJ169) -> -38000
A172: 472
A173: 473 | B173: Total Rate Base | G173: =G154+G171 -> 1551572402 | H173: 44480910 | I173: 1596053312 | V173: =V154+V171 -> -19165861 | X173: 1627573279 | Z173: =Z154+Z171 -> -35219562 | AB173: =AB154+AB171 -> 61893176 | AG173: =AG154+AG171 -> 80322493 | AJ173: =AJ154+AJ171 -> -16332000

Sheet Labor Detail
A1: 1 | B1: Proforma
A2: 2 | B2: Pro Forma Results of Operations
A3: 3 | B3: Company Base Case UE-19_____
A4: 4 | O4: Copied Values From EMA work papers for Labor Adjustments | V4: 3.03 | W4: Labor $ | Y4: 3.05 | AA4: Copied Values From EMA work papers for Labor Adjustments
A5: 5 | B5: =columnheader -> B | C5: =columnheader -> C | D5: D | O5: (WA 2019) FLB Forecast Labor Non-Executive.xlsx / Washington Electric PF | Y5: Allocate Benefits | AA5: (WA 2019) FLB Forecast Retirement and Medical.xlsx / Summary
A6: 6 | F6: Labor | H6: Pro Forma | J6: Pro Forma | R6: Annualize | T6: Union Only | V6: Summary | W6: Total Labor
A7: 7 | B7: Account | D7: Description | F7: Dollars | H7: Labor Non-Exec | J7: Employee Ben | R7: 2018 Increase | S7: 2019 | T7: 2020 | W7: Electric | Y7: to FERC Acct
A8: 8 | H8: 3.03 E-PLN | J8: 3.05 E-PEB | P8: Adjusted | R8: 0.00519 | S8: 0.03 | T8: 0 | V8: 2018-2020
A9: 9 | B9: Operation & Maintenance Expenses | P9: Total WA | R9: 0.00714 | S9: 0.03 | T9: 0.03 | V9: Adjustment
A10: 10 | C10: Production Expenses | O10: Production | AD10: Alloc1 | AE10: Employee
A11: 11 | B11: 500-OP | C11: Steam | D11: Supervision & Engineering | F11: =W12 -> 148589 | H11: =V12 -> 5073 | J11: =Y12 -> 6072.881486 | O11: Steam | AA11: Washington Electric | AD11: % | AE11: Benefits
A12: 12 | B12: 501-OP | C12: Steam | D12: Fuel | F12: =W13 -> 612255 | H12: =V13 -> 39237 | J12: =Y13 -> 25023.06398 | O12: 500 | P12: 143516 | R12: 745 | S12: 4328 | T12: 0 | V12: =R12+S12+T12 -> 5073 | W12: =P12+V12 -> 148589 | Y12: =$AE$13*W12/$W$53 -> 6072.881486
A13: 13 | B13: 502-OP | C13: Steam | D13: Steam Expenses | F13: 355811 | H13: 22803 | J13: 14542.11304 | O13: 501 | P13: 573018 | R13: 4091 | S13: 17313 | T13: 17833 | V13: 39237 | W13: 612255 | Y13: 25023.06398 | AA13: Total Production | AD13: 0.284 | AE13: =738527+AG13 -> 558524.4908 | AF13: 0.2800000455 | AG13: =AG$26*AF13 -> -180002.5092
A14: 14 | B14: 503-OP | C14: Steam | D14: From Other Sources | O14: 502 | P14: 333008 | R14: 2378 | S14: 10062 | T14: 10363 | V14: 22803 | W14: 355811 | Y14: 14542.11304 | AA14: Total Transmission | AD14: 0.076 | AE14: =211008+AG14 -> 159578.642 | AF14: 0.08000012132 | AG14: =AG$26*AF14 -> -51429.35799
A15: 15 | B15: 504-OP | C15: Steam | D15: Steam Transferred-CR | O15: 505 | P15: 347948 | R15: 2484 | S15: 10513 | T15: 10828 | V15: 23825 | W15: 371773 | Y15: 15194.48525 | AB15: Total Production and Transmission | AE15: =SUM(AE13:AE14) -> 718103.1328
A16: 16 | B16: 505-OP | C16: Steam | D16: Electric Expenses | F16: =W15 -> 371773 | H16: =V15 -> 23825 | J16: =Y15 -> 15194.48525 | O16: 506 | P16: 123026 | R16: 878 | S16: 3717 | T16: 3829 | V16: 8424 | W16: 131450 | Y16: 5372.404898
A17: 17 | B17: 506-OP | C17: Steam | D17: Miscellaneous Power Exp. | F17: =W16 -> 131450 | H17: =V16 -> 8424 | J17: =Y16 -> 5372.404898 | O17: 507 | P17: 0 | R17: 0 | S17: 0 | T17: 0 | V17: 0 | W17: 0 | Y17: 0 | AA17: Total Distribution | AD17: 0.203 | AE17: =527519+AG17 -> 398945.8487 | AF17: 0.1999999242 | AG17: =AG$26*AF17 -> -128573.1513
A18: 18 | B18: 507-OP | C18: Steam | D18: Rents | F18: 0 | H18: 0 | J18: 0 | O18: 510 | P18: 65635 | R18: 341 | S18: 1979 | T18: 0 | V18: 2320 | W18: 67955 | Y18: 2777.343285
A19: 19 | C19: Total Steam Operation | F19: =SUM(F11:F18) -> 1619878 | H19: 99362 | J19: =SUM(J11:J18) -> 66204.94866 | O19: 511 | P19: 5170 | R19: 37 | S19: 156 | T19: 161 | V19: 354 | W19: 5524 | Y19: 225.7677037 | AA19: Customer Accounts | AD19: 0.105 | AE19: =263760+AG19 -> 199473.3025 | AF19: 0.1000001517 | AG19: =AG$26*AF19 -> -64286.69749
A20: 20 | B20: 510-MT | C20: Steam | D20: Supervision & Engineering | F20: =W18 -> 67955 | H20: =V18 -> 2320 | J20: =Y18 -> 2777.343285 | O20: 512 | P20: 444313 | R20: 3172 | S20: 13425 | T20: 13827 | V20: 30424 | W20: 474737 | Y20: 19402.65792 | AA20: Cust Service & Info | AD20: 0.009 | AE20: =26376+AG20 -> 19947.33025 | AF20: 0.01000001517 | AG20: =AG$26*AF20 -> -6428.669749
A21: 21 | B21: 511-MT | C21: Steam | D21: Structures | F21: =W19 -> 5524 | H21: =V19 -> 354 | J21: =Y19 -> 225.7677037 | O21: 513 | P21: 186209 | R21: 1330 | S21: 5626 | T21: 5795 | V21: 12751 | W21: 198960 | Y21: 8131.560886 | AA21: Sales & Marketing | AD21: 0 | AE21: =0+AG21 -> 0 | AF21: 0 | AG21: =AG$26*AF21 -> 0
A22: 22 | B22: 512-MT | C22: Steam | D22: Boiler Plant | F22: 474737 | H22: 30424 | J22: 19402.65792 | O22: 514 | P22: 81637 | R22: 583 | S22: 2467 | T22: 2541 | V22: 5591 | W22: 87228 | Y22: 3565.037158
A23: 23 | B23: 513-MT | C23: Steam | D23: Electric Plant | F23: 198960 | H23: 12751 | J23: 8131.560886 | O23: Total Steam | P23: =SUM(P12:P22) -> 2303480 | R23: 16039 | S23: 69586 | T23: =SUM(T12:T22) -> 65177 | V23: 150802 | W23: =SUM(W12:W22) -> 2454282 | Y23: =SUM(Y12:Y22) -> 100307.3156 | AA23: Admin and General - Proforma | AD23: 0.33 | AE23: =870406+AG23 -> 658260.3857 | AF23: 0.3299997422 | AG23: =AG$26*AF23 -> -212145.6143
A24: 24 | B24: 514-MT | C24: Steam | D24: Miscellaneous Plant | F24: 87228 | H24: 5591 | J24: 3565.037158
A25: 25 | C25: Total Steam Maintenance | F25: =SUM(F20:F24) -> 834404 | H25: 51440 | J25: =SUM(J20:J24) -> 34102.36696 | O25: Hydro | AA25: Total Electric Expense | AD25: =SUM(AD13:AD23) -> 1.007 | AE25: =AE15+AE17+AE19+AE20+AE21+AE23 -> 1994730 | AF25: =SUM(AF13:AF23) -> 1
A26: 26 | C26: Total Steam | F26: =F19+F25 -> 2454282 | H26: 150802 | J26: =J19+J25 -> 100307.3156 | O26: 535 | P26: 945205 | R26: 4906 | S26: 28503 | T26: 0 | V26: =R26+S26+T26 -> 33409 | W26: =P26+V26 -> 978614 | Y26: =$AE$13*W26/$W$53 -> 39996.27727 | AD26: check | AE26: 2637595 | AG26: -642866
A27: 27 | O27: 536 | P27: 5545 | R27: 40 | S27: 168 | T27: 173 | V27: 381 | W27: 5926 | Y27: 242.1975765
A28: 28 | B28: 535-OP | C28: Hydro | D28: Supervision & Engineering | F28: =W26 -> 978614 | H28: =V26 -> 33409 | J28: =Y26 -> 39996.27727 | O28: 537 | P28: 337494 | R28: 2410 | S28: 10197 | T28: 10503 | V28: 23110 | W28: 360604 | Y28: 14738.00453 | AA28: 1 | AB28: Based on Labor and Wage adjustment
A29: 29 | B29: 536-OP | C29: Hydro | D29: Water For Power | F29: =W27 -> 5926 | H29: =V27 -> 381 | J29: =Y27 -> 242.1975765 | O29: 538 | P29: 3255643 | R29: 23245 | S29: 98367 | T29: 101318 | V29: 222930 | W29: 3478573 | Y29: 142170.427
A30: 30 | B30: 537-OP | C30: Hydro | D30: Hydraulic Expenses | F30: 360604 | H30: 23110 | J30: 14738.00453 | O30: 539 | P30: 123864 | R30: 884 | S30: 3742 | T30: 3855 | V30: 8481 | W30: 132345 | Y30: 5408.983843
A31: 31 | B31: 538-OP | C31: Hydro | D31: Electric Expenses | F31: 3478573 | H31: 222930 | J31: 142170.427 | O31: 541 | P31: 295894 | R31: 1536 | S31: 8923 | T31: 0 | V31: 10459 | W31: 306353 | Y31: 12520.74825
A32: 32 | B32: 539-OP | C32: Hydro | D32: Miscellaneous Power Exp. | F32: 132345 | H32: 8481 | J32: 5408.983843 | O32: 542 | P32: 121682 | R32: 869 | S32: 3677 | T32: 3787 | V32: 8333 | W32: 130015 | Y32: 5313.755974
A33: 33 | B33: 540-OP | C33: Hydro | D33: Rents | O33: 543 | P33: 364318 | R33: 2601 | S33: 11008 | T33: 11338 | V33: 24947 | W33: 389265 | Y33: 15909.38906
A34: 34 | C34: Total Hydraulic Operation | F34: =SUM(F28:F33) -> 4956062 | H34: 288311 | J34: =SUM(J28:J33) -> 202555.8902 | O34: 544 | P34: 1320577 | R34: 9429 | S34: 39900 | T34: 41097 | V34: 90426 | W34: 1411003 | Y34: 57668.15845
A35: 35 | B35: 541-MT | C35: Hydro | D35: Supervision & Engineering | F35: =W31 -> 306353 | H35: =V31 -> 10459 | J35: =Y31 -> 12520.74825 | O35: 545 | P35: 431708 | R35: 3082 | S35: 13044 | T35: 13435 | V35: 29561 | W35: 461269 | Y35: 18852.21632
A36: 36 | B36: 542-MT | C36: Hydro | D36: Structures | F36: =W32 -> 130015 | H36: =V32 -> 8333 | J36: =Y32 -> 5313.755974 | O36: Total Hydro | P36: =SUM(P26:P35) -> 7201930 | R36: 49002 | S36: 217529 | T36: =SUM(T26:T35) -> 185506 | V36: 452037 | W36: =SUM(W26:W35) -> 7653967 | Y36: =SUM(Y26:Y35) -> 312820.1582
A37: 37 | B37: 543-MT | C37: Hydro | D37: Reservoirs, Dams & Waterways | F37: 389265 | H37: 24947 | J37: 15909.38906
A38: 38 | B38: 544-MT | C38: Hydro | D38: Electric Plant | F38: 1411003 | H38: 90426 | J38: 57668.15845 | O38: Other Generation
A39: 39 | B39: 545-MT | C39: Hydro | D39: Miscellaneous Plant | F39: 461269 | H39: 29561 | J39: 18852.21632 | O39: 546 | P39: 73741 | R39: 383 | S39: 2224 | T39: 0 | V39: =R39+S39+T39 -> 2607 | W39: =P39+V39 -> 76348 | Y39: =$AE$13*W39/$W$53 -> 3120.367966
A40: 40 | C40: Total Hydraulic Maintenance | F40: =SUM(F35:F39) -> 2697905 | H40: 163726 | J40: =SUM(J35:J39) -> 110264.2681 | O40: 548 | P40: 192278 | R40: 1373 | S40: 5810 | T40: 5984 | V40: 13167 | W40: 205445 | Y40: 8396.604977
A41: 41 | C41: Total Hydraulic | F41: =F34+F40 -> 7653967 | H41: 452037 | J41: =J34+J40 -> 312820.1582 | O41: 549 | P41: 41893 | R41: 299 | S41: 1266 | T41: 1304 | V41: 2869 | W41: 44762 | Y41: 1829.437718
A42: 42 | O42: 551 | P42: 206771 | R42: 1073 | S42: 6235 | T42: 0 | V42: 7308 | W42: 214079 | Y42: 8749.479408
A43: 43 | B43: 546-OP | C43: Other | D43: Supervision & Engineering | F43: =W39 -> 76348 | H43: =V39 -> 2607 | J43: =Y39 -> 3120.367966 | O43: 552 | P43: 379 | R43: 3 | S43: 11 | T43: 12 | V43: 26 | W43: 405 | Y43: 16.55248371
A44: 44 | B44: 547-OP | C44: Other | D44: Fuel | O44: 553 | P44: 209242 | R44: 1494 | S44: 6322 | T44: 6512 | V44: 14328 | W44: 223570 | Y44: 9137.379711
A45: 45 | B45: 548-OP | C45: Other | D45: Generation Expenses | F45: =W40 -> 205445 | H45: =V40 -> 13167 | J45: =Y40 -> 8396.604977 | O45: 554 | P45: 44470 | R45: 318 | S45: 1344 | T45: 1384 | V45: 3046 | W45: 47516 | Y45: 1941.994607
A46: 46 | B46: 549-OP | C46: Other | D46: Miscellaneous Power Exp. | F46: =W41 -> 44762 | H46: =V41 -> 2869 | J46: =Y41 -> 1829.437718 | O46: Total Other Generation | P46: =SUM(P39:P45) -> 768774 | R46: 4943 | S46: 23212 | T46: =SUM(T39:T45) -> 15196 | V46: 43351 | W46: =SUM(W39:W45) -> 812125 | Y46: =SUM(Y39:Y45) -> 33191.81687
A47: 47 | B47: 550-OP | C47: Other | D47: Rents
A48: 48 | C48: Total Other Operation | F48: =SUM(F43:F47) -> 326555 | H48: 18643 | J48: =SUM(J43:J47) -> 13346.41066 | O48: Other Power Supply
A49: 49 | B49: 551-MT | C49: Other | D49: Supervision & Engineering | F49: =W42 -> 214079 | H49: =V42 -> 7308 | J49: =Y42 -> 8749.479408 | O49: 556 | P49: 168546 | R49: 875 | S49: 5083 | T49: 0 | V49: =R49+S49+T49 -> 5958 | W49: =P49+V49 -> 174504 | Y49: =$AE$13*W49/$W$53 -> 7132.036092
A50: 50 | B50: 552-MT | C50: Other | D50: Structures | F50: =W43 -> 405 | H50: =V43 -> 26 | J50: =Y43 -> 16.55248371 | O50: 557/558 | P50: 2483124 | R50: 12887 | S50: 74880 | T50: 0 | V50: =R50+S50+T50 -> 87767 | W50: =P50+V50 -> 2570891 | Y50: =$AE$13*W50/$W$53 -> 105073.1639
A51: 51 | B51: 553-MT | C51: Other | D51: Generating & Electric Plant | F51: 223570 | H51: 14328 | J51: 9137.379711 | O51: Total Other Power Supply | P51: =SUM(P49:P50) -> 2651670 | R51: 13762 | S51: 79963 | T51: =SUM(T49:T50) -> 0 | V51: =R51+S51+T51 -> 93725 | W51: =SUM(W49:W50) -> 2745395 | Y51: =SUM(Y49:Y50) -> 112205.2
A52: 52 | B52: 554-MT | C52: Other | D52: Miscellaneous Plant | F52: 47516 | H52: 3046 | J52: 1941.994607
A53: 53 | C53: Total Other Maintenance | F53: =SUM(F49:F52) -> 485570 | H53: 24708 | J53: =SUM(J49:J52) -> 19845.40621 | O53: Total Production | P53: =P23+P36+P46+P51 -> 12925854 | R53: =R23+R36+R46+R51 -> 83746 | S53: =S23+S36+S46+S51 -> 390290 | T53: =T23+T36+T46+T51 -> 265879 | V53: =R53+S53+T53 -> 739915 | W53: =W23+W36+W46+W51 -> 13665769 | Y53: =Y23+Y36+Y46+Y51 -> 558524.4908
A54: 54 | C54: Total Other | F54: =F48+F53 -> 812125 | H54: 43351 | J54: =J48+J53 -> 33191.81687
A55: 55 | O55: Transmission
A56: 56 | B56: 555-OP | C56: Total Purchased Power | O56: 560 | P56: 811682 | R56: 4213 | S56: 24477 | T56: 0 | V56: =R56+S56+T56 -> 28690 | W56: =P56+V56 -> 840372 | Y56: =$AE$14*W56/$W$69 -> 36654.35589
A57: 57 | B57: 556-OP | C57: Total System Control & Load Dispatching | F57: =W49 -> 174504 | H57: =V49 -> 5958 | J57: =Y49 -> 7132.036092 | O57: 561 | P57: 1253318 | R57: 6505 | S57: 37795 | T57: 0 | V57: 44300 | W57: 1297618 | Y57: 56597.97326
A58: 58 | B58: 557-OP | C58: Total Other Expenses | F58: =W50 -> 2570891 | H58: =V50 -> 87767 | J58: =Y50 -> 105073.1639 | O58: 562 | P58: 89335 | R58: 638 | S58: 2699 | T58: 2780 | V58: 6117 | W58: 95452 | Y58: 4163.312889
A59: 59 | D59: Total Production Expenses | F59: =F26+F41+F54+F56+F57+F58 -> 13665769 | H59: 739915 | J59: =J26+J41+J54+J56+J57+J58 -> 558524.4908 | O59: 563 | P59: 45075 | R59: 322 | S59: 1362 | T59: 1403 | V59: 3087 | W59: 48162 | Y59: 2100.673379
A60: 60 | O60: 564 | P60: 0 | R60: 0 | S60: 0 | T60: 0 | V60: 0 | W60: 0 | Y60: 0
A61: 61 | B61: Proforma | O61: 566 | P61: 502223 | R61: 3586 | S61: 15174 | T61: 15629 | V61: 34389 | W61: 536612 | Y61: 23405.31006
A62: 62 | B62: =$B$2 -> Pro Forma Results of Operations | O62: 567 | P62: 7256 | R62: 52 | S62: 219 | T62: 226 | V62: 497 | W62: 7753 | Y62: 338.1612206
A63: 63 | B63: =$B$3 -> Company Base Case UE-19_____ | O63: 568 | P63: 251513 | R63: 1305 | S63: 7585 | T63: 0 | V63: 8890 | W63: 260403 | Y63: 11357.95129
A64: 64 | O64: 569 | P64: 241947 | R64: 1728 | S64: 7310 | T64: 7530 | V64: 16568 | W64: 258515 | Y64: 11275.60273
A65: 65 | B65: (a) | C65: (b) | O65: 570 | P65: 264716 | R65: 1890 | S65: 7998 | T65: 8238 | V65: 18126 | W65: 282842 | Y65: 12336.66915
A66: 66 | E66: =E$6 -> 0 | F66: Labor | H66: Pro Forma | J66: Pro Forma | O66: 571 | P66: 19246 | R66: 137 | S66: 581 | T66: 599 | V66: 1317 | W66: 20563 | Y66: 896.8927097
A67: 67 | B67: Account | C67: Description | E67: =E$7 -> 0 | F67: Dollars | H67: Labor Non-Exec | J67: Employee Ben | O67: 572 | P67: 0 | R67: 0 | S67: 0 | T67: 0 | V67: 0 | W67: 0 | Y67: 0
A68: 68 | E68: =E$8 -> 0 | F68: 0 | H68: 3.03 E-PLN | J68: 3.05 E-PEB | O68: 573 | P68: 9693 | R68: 69 | S68: 293 | T68: 302 | V68: 664 | W68: 10357 | Y68: 451.7394249
A69: 69 | C69: Transmission Expenses | O69: Total Transmission | P69: =SUM(P56:P68) -> 3496004 | R69: 20445 | S69: 105493 | T69: =SUM(T56:T68) -> 36707 | V69: 162645 | W69: =SUM(W56:W68) -> 3658649 | Y69: =SUM(Y56:Y68) -> 159578.642
A70: 70 | B70: 560-OP | C70: Supervision & Engineering | F70: =W56 -> 840372 | H70: =V56 -> 28690 | J70: =Y56 -> 36654.35589
A71: 71 | B71: 561-OP | C71: Load Dispatching | F71: =W57 -> 1297618 | H71: =V57 -> 44300 | J71: =Y57 -> 56597.97326 | O71: Distribution
A72: 72 | B72: 562-OP | C72: Station Expenses | F72: 95452 | H72: 6117 | J72: 4163.312889 | O72: 580 | P72: 1513924 | R72: 7857 | S72: 45653 | T72: 0 | V72: =R72+S72+T72 -> 53510 | W72: =P72+V72 -> 1567434 | Y72: =$AE$17*W72/$W$91 -> 64080.76869
A73: 73 | B73: 563-OP | C73: Overhead Line Expenses | F73: 48162 | H73: 3087 | J73: 2100.673379 | O73: 581 | P73: 0 | R73: 0 | S73: 0 | T73: 0 | V73: 0 | W73: 0 | Y73: 0
A74: 74 | B74: 564-OP | C74: Underground Line Expenses | F74: 0 | H74: 0 | J74: 0 | O74: 582 | P74: 188555 | R74: 1346 | S74: 5697 | T74: 5868 | V74: 12911 | W74: 201466 | Y74: 8236.452791
A75: 75 | B75: 565-OP | C75: Transmission of Electricity By Others | O75: 583 | P75: 750627 | R75: 5359 | S75: 22680 | T75: 23360 | V75: 51399 | W75: 802026 | Y75: 32788.90377
A76: 76 | B76: 566-OP | C76: Miscellaneous Expenses | F76: =W61 -> 536612 | H76: =V61 -> 34389 | J76: =Y61 -> 23405.31006 | O76: 584 | P76: 261877 | R76: 1870 | S76: 7912 | T76: 8150 | V76: 17932 | W76: 279809 | Y76: 11439.31789
A77: 77 | B77: 567-OP | C77: Rents | F77: =W62 -> 7753 | H77: =V62 -> 497 | J77: =Y62 -> 338.1612206 | O77: 585 | P77: 3405 | R77: 24 | S77: 103 | T77: 106 | V77: 233 | W77: 3638 | Y77: 148.7308789
A78: 78 | C78: Total Transmission Operation | F78: =SUM(F70:F77) -> 2825969 | H78: 117080 | J78: =SUM(J70:J77) -> 123259.7867 | O78: 586 | P78: 817051 | R78: 5834 | S78: 24687 | T78: 25427 | V78: 55948 | W78: 872999 | Y78: 35690.46415
A79: 79 | B79: 568-MT | C79: Supervision & Engineering | F79: =W63 -> 260403 | H79: =V63 -> 8890 | J79: =Y63 -> 11357.95129 | O79: 587 | P79: 281881 | R79: 2013 | S79: 8517 | T79: 8772 | V79: 19302 | W79: 301183 | Y79: 12313.14247
A80: 80 | B80: 569-MT | C80: Structures | F80: =W64 -> 258515 | H80: =V64 -> 16568 | J80: =Y64 -> 11275.60273 | O80: 588 | P80: 2733470 | R80: 19517 | S80: 82590 | T80: 85067 | V80: 187174 | W80: 2920644 | Y80: 119403.5044
A81: 81 | B81: 570-MT | C81: Station Equipment | F81: 282842 | H81: 18126 | J81: 12336.66915 | O81: 589 | P81: 19303 | R81: 138 | S81: 583 | T81: 601 | V81: 1322 | W81: 20625 | Y81: 843.2035123
A82: 82 | B82: 571-MT | C82: Overhead Lines | F82: 20563 | H82: 1317 | J82: 896.8927097 | O82: 590 | P82: 371338 | R82: 1927 | S82: 11198 | T82: 0 | V82: 13125 | W82: 384463 | Y82: 15717.84494
A83: 83 | B83: 572-MT | C83: Underground Lines | F83: 0 | H83: 0 | J83: 0 | O83: 591 | P83: 135916 | R83: 970 | S83: 4107 | T83: 4230 | V83: 9307 | W83: 145223 | Y83: 5937.093026
A84: 84 | B84: 573-MT | C84: Miscellaneous Plant | F84: 10357 | H84: 664 | J84: 451.7394249 | O84: 592 | P84: 217390 | R84: 1552 | S84: 6568 | T84: 6765 | V84: 14885 | W84: 232275 | Y84: 9496.004646
A85: 85 | C85: Total Transmission Maintenance | F85: =SUM(F79:F84) -> 832680 | H85: 45565 | J85: =SUM(J79:J84) -> 36318.8553 | O85: 593 | P85: 1169399 | R85: 8350 | S85: 35332 | T85: 36392 | V85: 80074 | W85: 1249473 | Y85: 51081.69804
A86: 86 | C86: Total Transmission Expenses | F86: =F78+F85 -> 3658649 | H86: 162645 | J86: =J78+J85 -> 159578.642 | O86: 594 | P86: 362643 | R86: 2589 | S86: 10957 | T86: 11286 | V86: 24832 | W86: 387475 | Y86: 15840.98332
A87: 87 | O87: 595 | P87: 180501 | R87: 1289 | S87: 5454 | T87: 5617 | V87: 12360 | W87: 192861 | Y87: 7884.658065
A88: 88 | C88: Distribution Expenses | O88: 596 | P88: 99214 | R88: 708 | S88: 2998 | T88: 3088 | V88: 6794 | W88: 106008 | Y88: 4333.882082
A89: 89 | B89: 580-OP | C89: Supervision & Engineering | F89: =W72 -> 1567434 | H89: =V72 -> 53510 | J89: =Y72 -> 64080.76869 | O89: 597 | P89: 12364 | R89: 88 | S89: 374 | T89: 385 | V89: 847 | W89: 13211 | Y89: 540.0999564
A90: 90 | B90: 581-OP | C90: Load Dispatching | F90: =W73 -> 0 | H90: =V73 -> 0 | J90: =Y73 -> 0 | O90: 598 | P90: 72549 | R90: 518 | S90: 2192 | T90: 2258 | V90: 4968 | W90: 77517 | Y90: 3169.096081
A91: 91 | B91: 582-OP | C91: Station Expenses | F91: 201466 | H91: 12911 | J91: 8236.452791 | O91: Total Distribution | P91: =SUM(P72:P90) -> 9191407 | R91: 61949 | S91: 277602 | T91: =SUM(T72:T90) -> 227372 | V91: 566923 | W91: =SUM(W72:W90) -> 9758330 | Y91: =SUM(Y72:Y90) -> 398945.8487
A92: 92 | B92: 583-OP | C92: Overhead Line Expenses | F92: 802026 | H92: 51399 | J92: 32788.90377
A93: 93 | B93: 584-OP | C93: Underground Line Expenses | F93: 279809 | H93: 17932 | J93: 11439.31789 | O93: Customer Accounts
A94: 94 | B94: 585-OP | C94: Street Lighting & Signal Systems | F94: 3638 | H94: 233 | J94: 148.7308789 | O94: 901 | P94: 72895 | R94: 378 | S94: 2198 | T94: 0 | V94: =R94+S94+T94 -> 2576 | W94: =P94+V94 -> 75471 | Y94: =$AE$19*W94/$W$98 -> 2979.618823
A95: 95 | B95: 586-OP | C95: Meter Expenses | F95: 872999 | H95: 55948 | J95: 35690.46415 | O95: 902 | P95: 1553855 | R95: 8065 | S95: 46858 | T95: 0 | V95: =R95+S95+T95 -> 54923 | W95: =P95+V95 -> 1608778 | Y95: =$AE$19*W95/$W$98 -> 63515.06156
A96: 96 | B96: 587-OP | C96: Customer Installations Expenses | F96: 301183 | H96: 19302 | J96: 12313.14247 | O96: 903 | P96: 3162373 | R96: 16413 | S96: 95364 | T96: 0 | V96: =R96+S96+T96 -> 111777 | W96: =P96+V96 -> 3274150 | Y96: =$AE$19*W96/$W$98 -> 129264.472
A97: 97 | B97: 588-OP | C97: Miscellaneous Expenses | F97: 2920644 | H97: 187174 | J97: 119403.5044 | O97: 905 | P97: 90864 | R97: 472 | S97: 2740 | T97: 0 | V97: =R97+S97+T97 -> 3212 | W97: =P97+V97 -> 94076 | Y97: =$AE$19*W97/$W$98 -> 3714.150076
A98: 98 | B98: 589-OP | C98: Rents | F98: 20625 | H98: 1322 | J98: 843.2035123 | O98: Total Customer Accounts | P98: =SUM(P94:P97) -> 4879987 | R98: 25328 | S98: 147160 | T98: =SUM(T94:T97) -> 0 | V98: =R98+S98+T98 -> 172488 | W98: =SUM(W94:W97) -> 5052475 | Y98: =SUM(Y94:Y97) -> 199473.3025
A99: 99 | C99: Total Distribution Operation | F99: =SUM(F89:F98) -> 6969824 | H99: 399731 | J99: =SUM(J89:J98) -> 284944.4886
A100: 100 | B100: 590-MT | C100: Supervision & Engineering | F100: =W82 -> 384463 | H100: =V82 -> 13125 | J100: =Y82 -> 15717.84494 | O100: Cust Service & Info
A101: 101 | B101: 591-MT | C101: Structures | F101: =W83 -> 145223 | H101: =V83 -> 9307 | J101: =Y83 -> 5937.093026 | O101: 908 | P101: 263954 | R101: 1370 | S101: 7960 | T101: 0 | V101: =R101+S101+T101 -> 9330 | W101: =P101+V101 -> 273284 | Y101: =$AE$20*W101/$W$104 -> 12114.07701
A102: 102 | B102: 592-MT | C102: Station Equipment | F102: 232275 | H102: 14885 | J102: 9496.004646 | O102: 909 | P102: 134272 | R102: 697 | S102: 4049 | T102: 0 | V102: =R102+S102+T102 -> 4746 | W102: =P102+V102 -> 139018 | Y102: =$AE$20*W102/$W$104 -> 6162.361347
A103: 103 | B103: 593-MT | C103: Overhead Lines | F103: 1249473 | H103: 80074 | J103: 51081.69804 | O103: 910 | P103: 36407 | R103: 189 | S103: 1098 | T103: 0 | V103: =R103+S103+T103 -> 1287 | W103: =P103+V103 -> 37694 | Y103: =$AE$20*W103/$W$104 -> 1670.891889
A104: 104 | B104: 594-MT | C104: Underground Lines | F104: 387475 | H104: 24832 | J104: 15840.98332 | O104: Total Cust Svc & Info | P104: =SUM(P101:P103) -> 434633 | R104: =SUM(R101:R103) -> 2256 | S104: =SUM(S101:S103) -> 13107 | T104: =SUM(T101:T103) -> 0 | V104: =R104+S104+T104 -> 15363 | W104: =SUM(W101:W103) -> 449996 | Y104: =SUM(Y101:Y103) -> 19947.33025
A105: 105 | B105: 595-MT | C105: Line Transformers | F105: 192861 | H105: 12360 | J105: 7884.658065
A106: 106 | B106: 596-MT | C106: Street Lighting & Signal Systems | F106: 106008 | H106: 6794 | J106: 4333.882082 | O106: Sales
A107: 107 | B107: 597-MT | C107: Meters | F107: 13211 | H107: 847 | J107: 540.0999564 | O107: 911 | P107: 0 | R107: 0 | S107: 0 | T107: 0 | V107: =R107+S107+T107 -> 0 | W107: =P107+V107 -> 0 | Y107: =$AE$21*W107/($W$11+0.01) -> 0
A108: 108 | B108: 598-MT | C108: Miscellaneous Plant | F108: 77517 | H108: 4968 | J108: 3169.096081 | O108: 912 | P108: 0 | R108: 0 | S108: 0 | T108: 0 | V108: =R108+S108+T108 -> 0 | W108: =P108+V108 -> 0 | Y108: =$AE$21*W108/($W$11+0.01) -> 0
A109: 109 | C109: Total Distribution Maintenance | F109: =SUM(F100:F108) -> 2788506 | H109: 167192 | J109: =SUM(J100:J108) -> 114001.3602 | O109: 913 | P109: 0 | R109: 0 | S109: 0 | T109: 0 | V109: =R109+S109+T109 -> 0 | W109: =P109+V109 -> 0 | Y109: =$AE$21*W109/($W$11+0.01) -> 0
A110: 110 | C110: Total Distribution Expenses | F110: =F99+F109 -> 9758330 | H110: 566923 | J110: =J99+J109 -> 398945.8487 | O110: 916 | P110: 0 | R110: 0 | S110: 0 | T110: 0 | V110: =R110+S110+T110 -> 0 | W110: =P110+V110 -> 0 | Y110: =$AE$21*W110/($W$11+0.01) -> 0
A111: 111 | O111: Total Sales | P111: =SUM(P107:P110) -> 0 | R111: 0 | S111: =SUM(S107:S110) -> 0 | T111: =SUM(T107:T110) -> 0 | V111: =R111+S111+T111 -> 0 | W111: =SUM(W107:W110) -> 0 | Y111: =SUM(Y107:Y110) -> 0
A112: 112 | C112: Customer Accounting Expenses
A113: 113 | B113: 901-OP | C113: Supervision | F113: =W94 -> 75471 | H113: =V94 -> 2576 | J113: =Y94 -> 2979.618823 | O113: Admin & General
A114: 114 | B114: 902-OP | C114: Meter Reading | F114: =W95 -> 1608778 | H114: =V95 -> 54923 | J114: =Y95 -> 63515.06156 | O114: 920 | P114: 11803149 | R114: 61258 | S114: 355932 | T114: 0 | V114: =R114+S114+T114 -> 417190 | W114: =P114+V114 -> 12220339 | Y114: =$AE$23*W114/$W$123 -> 524192.6539
A115: 115 | B115: 903-OP | C115: Customer Records & Collections | F115: 3274150 | H115: 111777 | J115: 129264.472 | O115: 921 | P115: 550172 | R115: 2855 | S115: 16591 | T115: 0 | V115: 19446 | W115: 569618 | Y115: 24433.82063
A116: 116 | B116: 904-OP | C116: Uncollectible Accounts | O116: 923 | P116: 19567 | R116: 102 | S116: 590 | T116: 0 | V116: 692 | W116: 20259 | Y116: 869.0118151
A117: 117 | B117: 905-OP | C117: Misc Customer Accounts Expenses | F117: =W97 -> 94076 | H117: =V97 -> 3212 | J117: =Y97 -> 3714.150076 | O117: 925 | P117: 0 | R117: 0 | S117: 0 | T117: 0 | V117: 0 | W117: 0 | Y117: 0
A118: 118 | C118: Total Customer Accounting Expenses | F118: =SUM(F113:F117) -> 5052475 | H118: 172488 | J118: =SUM(J113:J117) -> 199473.3025 | O118: 926 | P118: 278539 | R118: 1446 | S118: 8400 | T118: 0 | V118: 9846 | W118: 288385 | Y118: 12370.30319
A119: 119 | O119: 927 | P119: 0 | R119: 0 | S119: 0 | T119: 0 | V119: 0 | W119: 0 | Y119: 0
A120: 120 | O120: 928 | P120: 675658 | R120: 3507 | S120: 20375 | T120: 0 | V120: 23882 | W120: 699540 | Y120: 30006.83771
A121: 121 | B121: Proforma | O121: 930 | P121: 180816 | R121: 938 | S121: 5453 | T121: 0 | V121: 6391 | W121: 187207 | Y121: 8030.26284
A122: 122 | B122: =$B$2 -> Pro Forma Results of Operations | O122: 935 | P122: 1314025 | R122: 6820 | S122: 39625 | T122: 0 | V122: 46445 | W122: 1360470 | Y122: 58357.49564
A123: 123 | B123: =$B$3 -> Company Base Case UE-19_____ | O123: Total Admin & General | P123: =SUM(P114:P122) -> 14821926 | R123: =SUM(R114:R122) -> 76926 | S123: =SUM(S114:S122) -> 446966 | T123: =SUM(T114:T122) -> 0 | V123: 523892 | W123: =SUM(W114:W122) -> 15345818 | Y123: =SUM(Y114:Y122) -> 658260.3857
A124: 124 | V124: 0
A125: 125 | B125: (a) | C125: (b) | O125: Subtotal Actual Electric Labor | P125: =P123+P111+P104+P98+P91+P69+P53 -> 45749811 | R125: =R123+R111+R104+R98+R91+R69+R53 -> 270650 | S125: =S123+S111+S104+S98+S91+S69+S53 -> 1380618 | T125: =T123+T111+T104+T98+T91+T69+T53 -> 529958 | V125: 2181226 | W125: =W123+W111+W104+W98+W91+W69+W53 -> 47931037 | Y125: =Y123+Y111+Y104+Y98+Y91+Y69+Y53 -> 1994730
A126: 126 | E126: =E$6 -> 0 | F126: Labor | H126: Pro Forma | J126: Pro Forma
A127: 127 | B127: Account | C127: Description | E127: =E$7 -> 0 | F127: Dollars | H127: Labor Non-Exec | J127: Employee Ben | O127: Hydro One Reclass Labor | P127: 247018 | R127: 1282 | S127: 7449 | T127: 0 | V127: =R127+S127+T127+P127 -> 255749 | W127: =V127 -> 255749
A128: 128 | E128: =E$8 -> 0 | F128: 0 | H128: 3.03 E-PLN | J128: 3.05 E-PEB
A129: 129 | C129: Customer Information Expenses | O129: Total Electric Labor | P129: =P125+P127 -> 45996829 | R129: =R125+R127 -> 271932 | S129: =S125+S127 -> 1388067 | T129: =T125+T127 -> 529958 | V129: =V125+V127 -> 2436975 | W129: =W125+W127 -> 48186786
A130: 130 | B130: 907-OP | C130: Supervision
A131: 131 | B131: 908-OP | C131: Customer Assistance Expenses | F131: =W101 -> 273284 | H131: =V101 -> 9330 | J131: =Y101 -> 12114.07701 | O131: Note: Expenses primarily comprised of regular labor, paid time off loading, and overtime (does not include payroll tax). | V131: =R129+S129+T129+P127 -> 2436975 | W131: =P129+R129+S129+T129 -> 48186786
A132: 132 | B132: 909-OP | C132: Advertising | F132: =W102 -> 139018 | H132: =V102 -> 4746 | J132: =Y102 -> 6162.361347 | V132: check | W132: check
A133: 133 | B133: 910-OP | C133: Misc Customer Service & Info Exp | F133: 37694 | H133: 1287 | J133: 1670.891889
A134: 134 | C134: Total Customer Information Expenses | F134: =SUM(F131:F133) -> 449996 | H134: =SUM(H131:H133) -> 15363 | J134: =SUM(J131:J133) -> 19947.33025 | T134: Admin & General
A135: 135 | T135: Actual | V135: =V123 -> 523892 | W135: =W123 -> 15345818
A136: 136 | C136: Sales Expenses | T136: Hydro One Reclass | V136: =V127 -> 255749 | W136: =W127 -> 255749
A137: 137 | B137: 911-OP | C137: Supervision | F137: =W107 -> 0 | H137: =V107 -> 0 | J137: =Y107 -> 0 | V137: =SUM(V135:V136) -> 779641 | W137: =SUM(W135:W136) -> 15601567
A138: 138 | B138: 912-OP | C138: Demonstrating & Selling Expenses | F138: =W108 -> 0 | H138: =V108 -> 0 | J138: =Y108 -> 0
A139: 139 | B139: 913-OP | C139: Advertising Expenses | F139: 0 | H139: 0 | J139: 0
A140: 140 | B140: 916-OP | C140: Misc Sales Expenses | F140: 0 | H140: 0 | J140: 0
A141: 141 | C141: Total Sales Expenses | F141: =SUM(F137:F140) -> 0 | H141: 0 | J141: =SUM(J137:J140) -> 0
A142: 142
A143: 143 | C143: Subtotal Expenses | F143: =F59+F86+F110+F118+F134+F141 -> 32585219 | H143: 1657334 | J143: =J59+J86+J110+J118+J134+J141 -> 1336469.614
A144: 144
A145: 145 | C145: Administrative & General Expenses
A146: 146 | B146: 920-OP | C146: Admin & General Salaries | F146: =W114+W136 -> 12476088 | H146: =V114+V136 -> 672939 | J146: =Y114 -> 524192.6539
A147: 147 | B147: 921-OP | C147: Office Supplies & Expenses | F147: =W115 -> 569618 | H147: =V115 -> 19446 | J147: =Y115 -> 24433.82063
A148: 148 | B148: 922-OP | C148: Admin Expenses Transferred - CR
A149: 149 | B149: 923-OP | C149: Outside Services Employed | F149: =W116 -> 20259 | H149: =V116 -> 692 | J149: =Y116 -> 869.0118151
A150: 150 | B150: 924-OP | C150: Property Insurance Premium
A151: 151 | B151: 925-OP | C151: Injuries & Damages | F151: =W117 -> 0 | H151: =V117 -> 0 | J151: =Y117 -> 0
A152: 152 | B152: 926-OP | C152: Employee Pension & Benefits | F152: =W118 -> 288385 | H152: =V118 -> 9846 | J152: =Y118 -> 12370.30319
A153: 153 | B153: 927-OP | C153: Franchise Requirements | F153: 0 | H153: 0 | J153: 0
A154: 154 | B154: 928-OP | C154: Regulatory Commission Expenses | F154: 699540 | H154: 23882 | J154: 30006.83771
A155: 155 | B155: 930-OP | C155: Miscellaneous & General Expense | F155: 187207 | H155: 6391 | J155: 8030.26284
A156: 156 | B156: 931-OP | C156: Rents
A157: 157 | B157: 935-MT | C157: Maintenance of General Plant | F157: =W122 -> 1360470 | H157: =V122 -> 46445 | J157: =Y122 -> 58357.49564
A158: 158 | C158: Total Administrative & General Expenses | F158: =SUM(F146:F157) -> 15601567 | H158: 779641 | J158: =SUM(J146:J157) -> 658260.3857
A159: 159
A160: 160 | C160: Total Operating & Maintenance Expenses | F160: =F143+F158 -> 48186786 | H160: 2436975 | J160: =J143+J158 -> 1994730

Sheet ASSIGN
A1: =PROFORMA!A1 -> 1 | B1: =PROFORMA!B1 -> Proforma | F1: =PROFORMA!BO1 -> AVISTA UTILITIES | H1: Washington Jurisdiction | J1: 1 | K1: Assign | N1: =$F$1 -> AVISTA UTILITIES | T1: =H2 -> Electric Utility | W1: =TransferP3 -> Washington Jurisdiction | AH1: 1 | AI1: =$K$1 -> Assign | AM1: =$F$1 -> AVISTA UTILITIES | AR1: =$H$1 -> Washington Jurisdiction | AU1: =$H$2 -> Electric Utility | BB1: 1 | BC1: =$K$1 -> Assign | BF1: =$F$1 -> AVISTA UTILITIES | BJ1: =$H$1 -> Washington Jurisdiction | BM1: =$H$2 -> Electric Utility
A2: =PROFORMA!A2 -> 2 | B2: =PROFORMA!B2 -> Pro Forma Results of Operations | F2: =PROFORMA!BO2 -> COS Proforma Transfer | H2: Electric Utility | J2: 2 | K2: Scenario: | L2: =B3 -> Company Settlement Case UE-190334 | N2: Cost of Service Calculation | AC2: 2019-04-30 | AH2: 2 | AI2: =$K$2 -> Scenario: | AJ2: =$L$2 -> Company Settlement Case UE-190334 | AM2: Functional Allocation Tables | AY2: =$AC$2 -> 2019-04-30 | BB2: 2 | BC2: =$K$2 -> Scenario: | BD2: =$L$2 -> Company Settlement Case UE-190334 | BF2: Class Allocator Worksheet | BR2: =$AC$2 -> 2019-04-30
A3: =PROFORMA!A3 -> 3 | B3: =PROFORMA!B3 -> Company Settlement Case UE-190334 | F3: =PROFORMA!BO3 -> For the Twelve Months Ended December 31, 2018 | H3: COS Checker | J3: 3 | L3: Load Factor Peak Credit Method | N3: =$F$3 -> For the Twelve Months Ended December 31, 2018 | V3: Functionalization and Classification | AH3: 3 | AJ3: =$L$3 -> Load Factor Peak Credit Method | AM3: =$F$3 -> For the Twelve Months Ended December 31, 2018 | AY3: =$AC$3 ->  | BB3: 3 | BD3: =$L$3 -> Load Factor Peak Credit Method | BF3: =$F$3 -> For the Twelve Months Ended December 31, 2018 | BR3: =$AC$3 -> 
A4: =PROFORMA!A4 -> 4 | J4: 4 | L4: AS FILED METHOD | AH4: 4 | AJ4: =$L$4 -> AS FILED METHOD | BB4: 4 | BD4: =$L$4 -> AS FILED METHOD
A5: =PROFORMA!A5 -> 5 | B5: =PROFORMA!B5 -> B | C5: =PROFORMA!C5 -> C | D5: =PROFORMA!D5 -> D | F5: =PROFORMA!BO5 -> BO | G5: =PROFORMA!BP5 -> BP | H5: =PROFORMA!BQ5 -> Checker | I5: =PROFORMA!BR5 -> 0 | J5: 5 | K5: ="(k)" -> (k) | L5: ="(l)" -> (l) | M5: ="(m)" -> (m) | N5: ="(n)" -> (n) | O5: ="(o)" -> (o) | P5: ="(p)" -> (p) | Q5: ="(q)" -> (q) | R5: ="(r)" -> (r) | S5: ="(s)" -> (s) | T5: ="(t)" -> (t) | U5: ="(u)" -> (u) | V5: ="(v)" -> (v) | W5: ="(w)" -> (w) | X5: ="(x)" -> (x) | Y5: ="(y)" -> (y) | Z5: ="(z)" -> (z) | AA5: ="(aa)" -> (aa) | AB5: (ab) | AC5: ="(ac)" -> (ac) | AH5: 5 | AI5: (ai) | AJ5: (aj) | AK5: (ak) | AL5: (al) | AM5: (am) | AN5: (an) | AO5: (ao) | AP5: (ap) | AQ5: (aq) | AR5: (ar) | AS5: (as) | AT5: (at) | AU5: (au) | AV5: (av) | AW5: (aw) | AX5: (ax) | AY5: (ay) | BB5: 5 | BC5: (bc) | BD5: (bd) | BE5: (be) | BF5: (bf) | BG5: (bg) | BH5: (bh) | BI5: (bi) | BJ5: (bj) | BK5: (bk) | BL5: (bl) | BM5: (bm) | BN5: (bn) | BO5: (bo) | BP5: (bp) | BQ5: (bq) | BR5: (br)
A6: =PROFORMA!A6 -> 6 | F6: =PROFORMA!BO6 -> Transfer | G6: =PROFORMA!BP6 -> Transfer | H6: =PROFORMA!BQ6 -> Description | I6: =PROFORMA!BR6 -> Amounts | J6: 6 | N6: Notes | O6: Functional | P6: Class | Q6: Proforma | R6: Functional | S6: =BG6 -> Residential | T6: General | U6: Large Gen | V6: Extra Large | W6: Pumping | X6: Street & | AH6: 6 | BB6: 6 | BC6: Class | BF6: Class | BG6: Residential | BH6: General | BI6: Large Gen | BJ6: Extra Large | BK6: Pumping | BL6: Street & | BR6: Source / Description
A7: =PROFORMA!A7 -> 7 | B7: =PROFORMA!B7 -> Account | C7: =PROFORMA!C7 -> 0 | D7: =PROFORMA!D7 -> Description | F7: =PROFORMA!BO7 -> Proforma | G7: =PROFORMA!BP7 -> Labor | H7: =PROFORMA!BQ7 -> 0 | I7: =PROFORMA!BR7 -> 0 | J7: 7 | K7: Account Description | O7: Allocation | P7: Allocator | Q7: Totals | R7: Totals | S7: Service | T7: Service | U7: Service | V7: Gen Service | W7: Service | X7: Area Lights | AH7: 7 | BB7: 7 | BC7: Allocator | BF7: Allocator | BG7: Service | BH7: Service | BI7: Service | BJ7: Gen Service | BK7: Service | BL7: Area Lights
A8: =PROFORMA!A8 -> 8 | B8: =PROFORMA!B8 -> 0 | C8: =PROFORMA!C8 -> 0 | D8: =PROFORMA!D8 -> 0 | F8: =PROFORMA!BO8 -> Totals | G8: =PROFORMA!BP8 -> Totals | H8: =PROFORMA!BQ8 -> Key Items for Checking | I8: =PROFORMA!BR8 -> 0 | J8: 8 | S8: Sch 1-2 | T8: Sch 11-12 | U8: Sch 21-22 | V8: Sch 25 | W8: Sch 31-32 | X8: Sch 41-48 | Y8: Open 1 | Z8: Open 2 | AA8: Open 3 | AB8: Open 4 | AC8: Open 5 | AH8: 8 | BB8: 8 | BC8: Name | BD8: Description | BF8: Total | BG8: Sch 1-2 | BH8: Sch 11-12 | BI8: Sch 21-22 | BJ8: Sch 25 | BK8: Sch 31-32 | BL8: Sch 41-48 | BM8: Open 1 | BN8: Open 2 | BO8: Open 3 | BP8: Open 4 | BQ8: Open 5
A9: =PROFORMA!A9 -> 9 | B9: =PROFORMA!B9 -> Operation & Maintenance Expenses | C9: =PROFORMA!C9 -> 0 | D9: =PROFORMA!D9 -> 0 | F9: =PROFORMA!BO9 -> 0 | G9: =PROFORMA!BP9 -> 0 | H9: =PROFORMA!BQ9 -> 0 | I9: =PROFORMA!BR9 -> 0 | J9: 9 | K9: =B9 -> Operation & Maintenance Expenses | AH9: 9 | AI9: Production Function Factor Table (pfactor) | BB9: 9
A10: =PROFORMA!A10 -> 10 | B10: =PROFORMA!B10 -> 0 | C10: =PROFORMA!C10 -> Production Expenses | D10: =PROFORMA!D10 -> 0 | F10: =PROFORMA!BO10 -> 0 | G10: =PROFORMA!BP10 -> 0 | H10: =PROFORMA!BQ10 -> Rate Base | I10: =PROFORMA!BR10 -> 1684913000 | J10: 10 | L10: =C10 -> Production Expenses | AH10: 10 | AI10: Class | AJ10: Factor Name | AK10: P01 | AL10: P02 | AM10: P03 | AN10: P04 | AO10: P05 | AP10: P06 | AQ10: P07 | AR10: P08 | AS10: P09 | AT10: P10 | BB10: 10 | BD10: Energy Allocators
A11: =PROFORMA!A11 -> 11 | B11: =PROFORMA!B11 -> 500-OP | C11: =PROFORMA!C11 -> Steam | D11: =PROFORMA!D11 -> Supervision & Engineering | F11: =PROFORMA!BO11 -> 299000 | G11: =PROFORMA!BP11 -> 148589 | H11: =PROFORMA!BQ11 -> Expenses | I11: =PROFORMA!BR11 -> 457612000 | J11: 11 | K11: =B11 -> 500-OP | L11: =C11 -> Steam | M11: =D11 -> Supervision & Engineering | O11: P01 | P11: =IF(MATCH(O11,P_ref,0)>0,"","error matching functional allocator") ->  | Q11: =F11 -> 299000 | AH11: 11 | AJ11: Total Factor | AK11: =AK12+AK13+AK14+AK15 -> 100 | AL11: 100 | AM11: 100 | AN11: 100 | AO11: 200 | AP11: 194007 | AQ11: 69977 | AR11: 6201 | AS11: =AS12+AS13+AS14+AS15 -> 6525 | AT11: 100 | BB11: 11 | BC11: E01 | BD11: Customer Level Consumption | BF11: =SUM(BG11:BQ11) -> 5637842.826 | BG11: 2374703.689 | BH11: 619305.952 | BI11: 1365904.624 | BJ11: 1113564.012 | BK11: 145822.517 | BL11: =18542.032 -> 18542.032 | BM11: 0 | BN11: 0 | BO11: 0 | BP11: 0 | BQ11: 0 | BR11: Energy Sales-MWH
A12: =PROFORMA!A12 -> 12 | B12: =PROFORMA!B12 -> 501-OP | C12: =PROFORMA!C12 -> Steam | D12: =PROFORMA!D12 -> Fuel | F12: =PROFORMA!BO12 -> 20332000 | G12: =PROFORMA!BP12 -> 612255 | H12: =PROFORMA!BQ12 -> Revenue | I12: =PROFORMA!BR12 -> 579094000 | J12: 12 | L12: P | M12: =HLOOKUP("Factor Name",pfactor,3) -> Coincident Peak | N12: =IF(MATCH(P12,ref,0)>0,"","matching error") ->  | O12: =HLOOKUP(O11,pfactor,3) -> 39.52 | P12: =HLOOKUP("Class",pfactor,3) -> D01 | R12: =Q11*O12/SUM(O12:O15) -> 118164.8 | S12: =$R12*(VLOOKUP($P12,class,5)/VLOOKUP($P12,class,4)) -> 57374.99486 | T12: =$R12*(VLOOKUP($P12,class,6)/VLOOKUP($P12,class,4)) -> 12738.81515 | U12: =$R12*(VLOOKUP($P12,class,7)/VLOOKUP($P12,class,4)) -> 26715.34156 | V12: =$R12*(VLOOKUP($P12,class,8)/VLOOKUP($P12,class,4)) -> 18816.84758 | W12: =$R12*(VLOOKUP($P12,class,9)/VLOOKUP($P12,class,4)) -> 2391.263339 | X12: =$R12*(VLOOKUP($P12,class,10)/VLOOKUP($P12,class,4)) -> 127.5375081 | Y12: =$R12*(VLOOKUP($P12,class,11)/VLOOKUP($P12,class,4)) -> 0 | Z12: =$R12*(VLOOKUP($P12,class,12)/VLOOKUP($P12,class,4)) -> 0 | AA12: =$R12*(VLOOKUP($P12,class,13)/VLOOKUP($P12,class,4)) -> 0 | AB12: =$R12*(VLOOKUP($P12,class,14)/VLOOKUP($P12,class,4)) -> 0 | AC12: =$R12*(VLOOKUP($P12,class,15)/VLOOKUP($P12,class,4)) -> 0 | AH12: 12 | AI12: D01 | AJ12: =VLOOKUP(AI12,class,2) -> Coincident Peak | AK12: 39.52 | AL12: 42.25 | AM12: 41.47 | AN12: 100 | AO12: =AT12+AL20 -> 41.86 | AP12: 128905 | AQ12: 54151 | AR12: 4113 | AS12: 2919 | AT12: 0 | BB12: 12 | BE12: =IF(SUM(BG12:BQ12)=BF12,"","error") ->  | BF12: =BF11/$BF11 -> 1 | BG12: 0.421207856 | BH12: 0.1098480343 | BI12: 0.2422743354 | BJ12: 0.1975159731 | BK12: 0.02586494897 | BL12: 0.003288852239 | BM12: 0 | BN12: 0 | BO12: 0 | BP12: 0 | BQ12: 0
A13: =PROFORMA!A13 -> 13 | B13: =PROFORMA!B13 -> 502-OP | C13: =PROFORMA!C13 -> Steam | D13: =PROFORMA!D13 -> Steam Expenses | F13: =PROFORMA!BO13 -> 2790000 | G13: =PROFORMA!BP13 -> 355811 | H13: =PROFORMA!BQ13 -> Income | I13: =PROFORMA!BR13 -> 121482000 | J13: 13 | L13: P | M13: =HLOOKUP("Factor Name",pfactor,4) -> Generation Level Consumption | N13: =IF(MATCH(P13,ref,0)>0,"","matching error") ->  | O13: =HLOOKUP(O11,pfactor,4) -> 60.48 | P13: =HLOOKUP("Class",pfactor,4) -> E02 | R13: =Q11*O13/SUM(O12:O15) -> 180835.2 | S13: =$R13*(VLOOKUP($P13,class,5)/VLOOKUP($P13,class,4)) -> 76501.02705 | T13: =$R13*(VLOOKUP($P13,class,6)/VLOOKUP($P13,class,4)) -> 19950.92761 | U13: =$R13*(VLOOKUP($P13,class,7)/VLOOKUP($P13,class,4)) -> 43941.53069 | V13: =$R13*(VLOOKUP($P13,class,8)/VLOOKUP($P13,class,4)) -> 35146.71433 | W13: =$R13*(VLOOKUP($P13,class,9)/VLOOKUP($P13,class,4)) -> 4697.669174 | X13: =$R13*(VLOOKUP($P13,class,10)/VLOOKUP($P13,class,4)) -> 597.3311526 | Y13: =$R13*(VLOOKUP($P13,class,11)/VLOOKUP($P13,class,4)) -> 0 | Z13: =$R13*(VLOOKUP($P13,class,12)/VLOOKUP($P13,class,4)) -> 0 | AA13: =$R13*(VLOOKUP($P13,class,13)/VLOOKUP($P13,class,4)) -> 0 | AB13: =$R13*(VLOOKUP($P13,class,14)/VLOOKUP($P13,class,4)) -> 0 | AC13: =$R13*(VLOOKUP($P13,class,15)/VLOOKUP($P13,class,4)) -> 0 | AH13: 13 | AI13: E02 | AJ13: =VLOOKUP(AI13,class,2) -> Generation Level Consumption | AK13: 60.48 | AL13: 57.75 | AM13: 58.53 | AN13: 0 | AO13: =AT13+AL21 -> 158.14 | AP13: 65102 | AQ13: 15826 | AR13: 2088 | AS13: 3606 | AT13: 100 | BB13: 13 | BC13: E02 | BD13: Generation Level Consumption | BF13: =SUM(BG13:BQ13) -> 5961419.018 | BG13: =BG11*1.062 -> 2521935.318 | BH13: =BH11*1.062 -> 657702.921 | BI13: =(BI11*0.9079*1.062)+(BI11*0.0921*1.046) -> 1448577.914 | BJ13: =(8207.546+31518.88+30022.423+15956.71)*1.062+(61959.816+407510.856)*1.03+(BJ11-8207.546-31518.88-30022.423-485427.382)*1.046 -> 1158647.715 | BK13: =BK11*1.062 -> 154863.5131 | BL13: =BL11*1.062 -> 19691.63798 | BM13: 0 | BN13: 0 | BO13: 0 | BP13: 0 | BQ13: 0 | BR13: Energy Sales with Losses - MWH
A14: =PROFORMA!A14 -> 14 | B14: =PROFORMA!B14 -> 503-OP | C14: =PROFORMA!C14 -> Steam | D14: =PROFORMA!D14 -> From Other Sources | F14: =PROFORMA!BO14 -> 0 | G14: =PROFORMA!BP14 -> 0 | H14: =PROFORMA!BQ14 -> Interest | I14: =PROFORMA!BR14 -> 44650000 | J14: 14 | L14: P | M14: =HLOOKUP("Factor Name",pfactor,5) -> Open | N14: =IF(MATCH(P14,ref,0)>0,"","matching error") ->  | O14: =HLOOKUP(O11,pfactor,5) -> 0 | P14: =HLOOKUP("Class",pfactor,5) -> xxx | R14: =Q11*O14/SUM(O12:O15) -> 0 | S14: =$R14*(VLOOKUP($P14,class,5)/VLOOKUP($P14,class,4)) -> 0 | T14: =$R14*(VLOOKUP($P14,class,6)/VLOOKUP($P14,class,4)) -> 0 | U14: =$R14*(VLOOKUP($P14,class,7)/VLOOKUP($P14,class,4)) -> 0 | V14: =$R14*(VLOOKUP($P14,class,8)/VLOOKUP($P14,class,4)) -> 0 | W14: =$R14*(VLOOKUP($P14,class,9)/VLOOKUP($P14,class,4)) -> 0 | X14: =$R14*(VLOOKUP($P14,class,10)/VLOOKUP($P14,class,4)) -> 0 | Y14: =$R14*(VLOOKUP($P14,class,11)/VLOOKUP($P14,class,4)) -> 0 | Z14: =$R14*(VLOOKUP($P14,class,12)/VLOOKUP($P14,class,4)) -> 0 | AA14: =$R14*(VLOOKUP($P14,class,13)/VLOOKUP($P14,class,4)) -> 0 | AB14: =$R14*(VLOOKUP($P14,class,14)/VLOOKUP($P14,class,4)) -> 0 | AC14: =$R14*(VLOOKUP($P14,class,15)/VLOOKUP($P14,class,4)) -> 0 | AH14: 14 | AI14: xxx | AJ14: =VLOOKUP(AI14,class,2) -> Open | AK14: 0 | AL14: 0 | AM14: 0 | AN14: 0 | AO14: =AK14+AK22 -> 0 | AP14: 0 | AQ14: 0 | AR14: 0 | AS14: 0 | AT14: 0 | BB14: 14 | BE14: =IF(SUM(BG14:BQ14)=BF14,"","error") ->  | BF14: =BF13/$BF13 -> 1 | BG14: 0.4230427873 | BH14: 0.1103265714 | BI14: 0.2429921314 | BJ14: 0.1943577043 | BK14: 0.02597762589 | BL14: 0.00330317965 | BM14: 0 | BN14: 0 | BO14: 0 | BP14: 0 | BQ14: 0
A15: =PROFORMA!A15 -> 15 | B15: =PROFORMA!B15 -> 504-OP | C15: =PROFORMA!C15 -> Steam | D15: =PROFORMA!D15 -> Steam Transferred-CR | F15: =PROFORMA!BO15 -> 0 | G15: =PROFORMA!BP15 -> 0 | H15: =PROFORMA!BQ15 -> SIT | I15: =PROFORMA!BR15 -> 0 | J15: 15 | L15: P | M15: =HLOOKUP("Factor Name",pfactor,6) -> Open | N15: =IF(MATCH(P15,ref,0)>0,"","matching error") ->  | O15: =HLOOKUP(O11,pfactor,6) -> 0 | P15: =HLOOKUP("Class",pfactor,6) -> xxx | R15: =Q11*O15/SUM(O12:O15) -> 0 | S15: =$R15*(VLOOKUP($P15,class,5)/VLOOKUP($P15,class,4)) -> 0 | T15: =$R15*(VLOOKUP($P15,class,6)/VLOOKUP($P15,class,4)) -> 0 | U15: =$R15*(VLOOKUP($P15,class,7)/VLOOKUP($P15,class,4)) -> 0 | V15: =$R15*(VLOOKUP($P15,class,8)/VLOOKUP($P15,class,4)) -> 0 | W15: =$R15*(VLOOKUP($P15,class,9)/VLOOKUP($P15,class,4)) -> 0 | X15: =$R15*(VLOOKUP($P15,class,10)/VLOOKUP($P15,class,4)) -> 0 | Y15: =$R15*(VLOOKUP($P15,class,11)/VLOOKUP($P15,class,4)) -> 0 | Z15: =$R15*(VLOOKUP($P15,class,12)/VLOOKUP($P15,class,4)) -> 0 | AA15: =$R15*(VLOOKUP($P15,class,13)/VLOOKUP($P15,class,4)) -> 0 | AB15: =$R15*(VLOOKUP($P15,class,14)/VLOOKUP($P15,class,4)) -> 0 | AC15: =$R15*(VLOOKUP($P15,class,15)/VLOOKUP($P15,class,4)) -> 0 | AH15: 15 | AI15: xxx | AJ15: =VLOOKUP(AI15,class,2) -> Open | AK15: 0 | AL15: 0 | AM15: 0 | AN15: 0 | AO15: 0 | AP15: 0 | AQ15: 0 | AR15: 0 | AS15: 0 | AT15: 0 | BB15: 15 | BC15: E03 | BD15: Open | BF15: =SUM(BG15:BQ15) -> 0 | BG15: 0 | BH15: 0 | BI15: 0 | BJ15: 0 | BK15: 0 | BL15: 0 | BM15: 0 | BN15: 0 | BO15: 0 | BP15: 0 | BQ15: 0 | BR15: Open
A16: =PROFORMA!A16 -> 16 | B16: =PROFORMA!B16 -> 505-OP | C16: =PROFORMA!C16 -> Steam | D16: =PROFORMA!D16 -> Electric Expenses | F16: =PROFORMA!BO16 -> 761000 | G16: =PROFORMA!BP16 -> 371773 | H16: =PROFORMA!BQ16 -> FIT | I16: =PROFORMA!BR16 -> 14308000 | J16: 16 | K16: =B12 -> 501-OP | L16: =C12 -> Steam | M16: =D12 -> Fuel | O16: P01 | P16: =IF(MATCH(O16,P_ref,0)>0,"","error matching functional allocator") ->  | Q16: =F12 -> 20332000 | AH16: 16 | AK16: LF PC All Gen | AL16: Thermal PC | AM16: Hydro PC | AN16: Other PC | AO16: P10 + T02 | AP16: CS Plt | AQ16: CS A/D | AR16: CS Depr | AS16: CS O&M | AT16: MWh Gen | BB16: 16
A17: =PROFORMA!A17 -> 17 | B17: =PROFORMA!B17 -> 506-OP | C17: =PROFORMA!C17 -> Steam | D17: =PROFORMA!D17 -> Miscellaneous Power Exp. | F17: =PROFORMA!BO17 -> 2220000 | G17: =PROFORMA!BP17 -> 131450 | H17: =PROFORMA!BQ17 -> ITC | I17: =PROFORMA!BR17 -> -317000 | J17: 17 | L17: P | M17: =HLOOKUP("Factor Name",pfactor,3) -> Coincident Peak | N17: =IF(MATCH(P17,ref,0)>0,"","matching error") ->  | O17: =HLOOKUP(O16,pfactor,3) -> 39.52 | P17: =HLOOKUP("Class",pfactor,3) -> D01 | R17: =Q16*O17/SUM(O17:O20) -> 8035206.4 | S17: =$R17*(VLOOKUP($P17,class,5)/VLOOKUP($P17,class,4)) -> 3901499.65 | T17: =$R17*(VLOOKUP($P17,class,6)/VLOOKUP($P17,class,4)) -> 866239.4305 | U17: =$R17*(VLOOKUP($P17,class,7)/VLOOKUP($P17,class,4)) -> 1816643.226 | V17: =$R17*(VLOOKUP($P17,class,8)/VLOOKUP($P17,class,4)) -> 1279545.635 | W17: =$R17*(VLOOKUP($P17,class,9)/VLOOKUP($P17,class,4)) -> 162605.9071 | X17: =$R17*(VLOOKUP($P17,class,10)/VLOOKUP($P17,class,4)) -> 8672.55055 | Y17: =$R17*(VLOOKUP($P17,class,11)/VLOOKUP($P17,class,4)) -> 0 | Z17: =$R17*(VLOOKUP($P17,class,12)/VLOOKUP($P17,class,4)) -> 0 | AA17: =$R17*(VLOOKUP($P17,class,13)/VLOOKUP($P17,class,4)) -> 0 | AB17: =$R17*(VLOOKUP($P17,class,14)/VLOOKUP($P17,class,4)) -> 0 | AC17: =$R17*(VLOOKUP($P17,class,15)/VLOOKUP($P17,class,4)) -> 0 | AH17: 17 | AI17: Transmission Function Factor Table (tfactor) | BB17: 17 | BD17: Demand Allocators
A18: =PROFORMA!A18 -> 18 | B18: =PROFORMA!B18 -> 507-OP | C18: =PROFORMA!C18 -> Steam | D18: =PROFORMA!D18 -> Rents | F18: =PROFORMA!BO18 -> 23000 | G18: =PROFORMA!BP18 -> 0 | H18: =PROFORMA!BQ18 -> Deferred Tax | I18: =PROFORMA!BR18 -> 418000 | J18: 18 | L18: P | M18: =HLOOKUP("Factor Name",pfactor,4) -> Generation Level Consumption | N18: =IF(MATCH(P18,ref,0)>0,"","matching error") ->  | O18: =HLOOKUP(O16,pfactor,4) -> 60.48 | P18: =HLOOKUP("Class",pfactor,4) -> E02 | R18: =Q16*O18/SUM(O17:O20) -> 12296793.6 | S18: =$R18*(VLOOKUP($P18,class,5)/VLOOKUP($P18,class,4)) -> 5202069.839 | T18: =$R18*(VLOOKUP($P18,class,6)/VLOOKUP($P18,class,4)) -> 1356663.077 | U18: =$R18*(VLOOKUP($P18,class,7)/VLOOKUP($P18,class,4)) -> 2988024.087 | V18: =$R18*(VLOOKUP($P18,class,8)/VLOOKUP($P18,class,4)) -> 2389976.574 | W18: =$R18*(VLOOKUP($P18,class,9)/VLOOKUP($P18,class,4)) -> 319441.5038 | X18: =$R18*(VLOOKUP($P18,class,10)/VLOOKUP($P18,class,4)) -> 40618.51838 | Y18: =$R18*(VLOOKUP($P18,class,11)/VLOOKUP($P18,class,4)) -> 0 | Z18: =$R18*(VLOOKUP($P18,class,12)/VLOOKUP($P18,class,4)) -> 0 | AA18: =$R18*(VLOOKUP($P18,class,13)/VLOOKUP($P18,class,4)) -> 0 | AB18: =$R18*(VLOOKUP($P18,class,14)/VLOOKUP($P18,class,4)) -> 0 | AC18: =$R18*(VLOOKUP($P18,class,15)/VLOOKUP($P18,class,4)) -> 0 | AH18: 18 | AI18: Class | AJ18: Factor Name | AK18: T01 | AL18: T02 | AM18: T03 | AN18: T04 | BB18: 18 | BC18: D01 | BD18: Coincident Peak | BF18: =SUM(BG18:BQ18) -> 909833 | BG18: 441770 | BH18: 98085 | BI18: =190824+14876 -> 205700 | BJ18: =56581+76697+11606 -> 144884 | BK18: 18412 | BL18: =581+401 -> 982 | BM18: 0 | BN18: 0 | BO18: 0 | BP18: 0 | BQ18: 0 | BR18: Coincident Peak 12 Month Average
A19: =PROFORMA!A19 -> 19 | B19: =PROFORMA!B19 -> 0 | C19: =PROFORMA!C19 -> Total Steam Operation | D19: =PROFORMA!D19 -> 0 | F19: =PROFORMA!BO19 -> 0 | G19: =PROFORMA!BP19 -> 0 | H19: =PROFORMA!BQ19 -> Gen Bus Revenue | I19: =PROFORMA!BR19 -> 530519000 | J19: 19 | L19: P | M19: =HLOOKUP("Factor Name",pfactor,5) -> Open | N19: =IF(MATCH(P19,ref,0)>0,"","matching error") ->  | O19: =HLOOKUP(O16,pfactor,5) -> 0 | P19: =HLOOKUP("Class",pfactor,5) -> xxx | R19: =Q16*O19/SUM(O17:O20) -> 0 | S19: =$R19*(VLOOKUP($P19,class,5)/VLOOKUP($P19,class,4)) -> 0 | T19: =$R19*(VLOOKUP($P19,class,6)/VLOOKUP($P19,class,4)) -> 0 | U19: =$R19*(VLOOKUP($P19,class,7)/VLOOKUP($P19,class,4)) -> 0 | V19: =$R19*(VLOOKUP($P19,class,8)/VLOOKUP($P19,class,4)) -> 0 | W19: =$R19*(VLOOKUP($P19,class,9)/VLOOKUP($P19,class,4)) -> 0 | X19: =$R19*(VLOOKUP($P19,class,10)/VLOOKUP($P19,class,4)) -> 0 | Y19: =$R19*(VLOOKUP($P19,class,11)/VLOOKUP($P19,class,4)) -> 0 | Z19: =$R19*(VLOOKUP($P19,class,12)/VLOOKUP($P19,class,4)) -> 0 | AA19: =$R19*(VLOOKUP($P19,class,13)/VLOOKUP($P19,class,4)) -> 0 | AB19: =$R19*(VLOOKUP($P19,class,14)/VLOOKUP($P19,class,4)) -> 0 | AC19: =$R19*(VLOOKUP($P19,class,15)/VLOOKUP($P19,class,4)) -> 0 | AH19: 19 | AJ19: Total Factor | AK19: =AK20+AK21+AK22 -> 100 | AL19: =AL20+AL21+AL22 -> 100 | AM19: =AM20+AM21+AM22 -> 0 | AN19: =AN20+AN21+AN22 -> 0 | BB19: 19 | BE19: =IF(SUM(BG19:BQ19)=BF19,"","error") ->  | BF19: =BF18/$BF18 -> 1 | BG19: 0.485550645 | BH19: 0.1078054984 | BI19: 0.2260854465 | BJ19: 0.1592424104 | BK19: 0.0202366808 | BL19: 0.001079318952 | BM19: 0 | BN19: 0 | BO19: 0 | BP19: 0 | BQ19: 0
A20: =PROFORMA!A20 -> 20 | B20: =PROFORMA!B20 -> 510-MT | C20: =PROFORMA!C20 -> Steam | D20: =PROFORMA!D20 -> Supervision & Engineering | F20: =PROFORMA!BO20 -> 347000 | G20: =PROFORMA!BP20 -> 67955 | H20: =PROFORMA!BQ20 -> Allocated Revenue | I20: =PROFORMA!BR20 -> 0 | J20: 20 | L20: P | M20: =HLOOKUP("Factor Name",pfactor,6) -> Open | N20: =IF(MATCH(P20,ref,0)>0,"","matching error") ->  | O20: =HLOOKUP(O16,pfactor,6) -> 0 | P20: =HLOOKUP("Class",pfactor,6) -> xxx | R20: =Q16*O20/SUM(O17:O20) -> 0 | S20: =$R20*(VLOOKUP($P20,class,5)/VLOOKUP($P20,class,4)) -> 0 | T20: =$R20*(VLOOKUP($P20,class,6)/VLOOKUP($P20,class,4)) -> 0 | U20: =$R20*(VLOOKUP($P20,class,7)/VLOOKUP($P20,class,4)) -> 0 | V20: =$R20*(VLOOKUP($P20,class,8)/VLOOKUP($P20,class,4)) -> 0 | W20: =$R20*(VLOOKUP($P20,class,9)/VLOOKUP($P20,class,4)) -> 0 | X20: =$R20*(VLOOKUP($P20,class,10)/VLOOKUP($P20,class,4)) -> 0 | Y20: =$R20*(VLOOKUP($P20,class,11)/VLOOKUP($P20,class,4)) -> 0 | Z20: =$R20*(VLOOKUP($P20,class,12)/VLOOKUP($P20,class,4)) -> 0 | AA20: =$R20*(VLOOKUP($P20,class,13)/VLOOKUP($P20,class,4)) -> 0 | AB20: =$R20*(VLOOKUP($P20,class,14)/VLOOKUP($P20,class,4)) -> 0 | AC20: =$R20*(VLOOKUP($P20,class,15)/VLOOKUP($P20,class,4)) -> 0 | AH20: 20 | AI20: D01 | AJ20: =VLOOKUP(AI20,class,2) -> Coincident Peak | AK20: =AK12 -> 39.52 | AL20: 41.86 | BB20: 20 | BC20: D02 | BD20: NCP-All | BF20: =SUM(BG20:BQ20) -> 1026881 | BG20: 467271 | BH20: 116821 | BI20: =224395+20163 -> 244558 | BJ20: =62316+88294+12714 -> 163324 | BK20: 30317 | BL20: =2715+1875 -> 4590 | BM20: 0 | BN20: 0 | BO20: 0 | BP20: 0 | BQ20: 0 | BR20: Non-Coincident Peak All Sched.12 Mo Avg
A21: =PROFORMA!A21 -> 21 | B21: =PROFORMA!B21 -> 511-MT | C21: =PROFORMA!C21 -> Steam | D21: =PROFORMA!D21 -> Structures | F21: =PROFORMA!BO21 -> 348000 | G21: =PROFORMA!BP21 -> 5524 | H21: =PROFORMA!BQ21 -> Secondary Sales | I21: =PROFORMA!BR21 -> 35576000 | J21: 21 | K21: =B13 -> 502-OP | L21: =C13 -> Steam | M21: =D13 -> Steam Expenses | O21: P01 | P21: =IF(MATCH(O21,P_ref,0)>0,"","error matching functional allocator") ->  | Q21: =F13 -> 2790000 | AH21: 21 | AI21: E02 | AJ21: =VLOOKUP(AI21,class,2) -> Generation Level Consumption | AK21: =AK13 -> 60.48 | AL21: 58.14 | BB21: 21 | BE21: =IF(SUM(BG21:BQ21)=BF21,"","error") ->  | BF21: =BF20/$BF20 -> 1 | BG21: 0.4550390941 | BH21: 0.1137629385 | BI21: 0.2381561252 | BJ21: 0.1590486142 | BK21: 0.02952338197 | BL21: 0.004469846068 | BM21: 0 | BN21: 0 | BO21: 0 | BP21: 0 | BQ21: 0
A22: =PROFORMA!A22 -> 22 | B22: =PROFORMA!B22 -> 512-MT | C22: =PROFORMA!C22 -> Steam | D22: =PROFORMA!D22 -> Boiler Plant | F22: =PROFORMA!BO22 -> 4525000 | G22: =PROFORMA!BP22 -> 474737 | H22: =PROFORMA!BQ22 -> MOPS Revenue | I22: =PROFORMA!BR22 -> 0 | J22: 22 | L22: P | M22: =HLOOKUP("Factor Name",pfactor,3) -> Coincident Peak | N22: =IF(MATCH(P22,ref,0)>0,"","matching error") ->  | O22: =HLOOKUP(O21,pfactor,3) -> 39.52 | P22: =HLOOKUP("Class",pfactor,3) -> D01 | R22: =Q21*O22/SUM(O22:O25) -> 1102608 | S22: =$R22*(VLOOKUP($P22,class,5)/VLOOKUP($P22,class,4)) -> 535372.0256 | T22: =$R22*(VLOOKUP($P22,class,6)/VLOOKUP($P22,class,4)) -> 118867.2049 | U22: =$R22*(VLOOKUP($P22,class,7)/VLOOKUP($P22,class,4)) -> 249283.6219 | V22: =$R22*(VLOOKUP($P22,class,8)/VLOOKUP($P22,class,4)) -> 175581.9557 | W22: =$R22*(VLOOKUP($P22,class,9)/VLOOKUP($P22,class,4)) -> 22313.12614 | X22: =$R22*(VLOOKUP($P22,class,10)/VLOOKUP($P22,class,4)) -> 1190.065711 | Y22: =$R22*(VLOOKUP($P22,class,11)/VLOOKUP($P22,class,4)) -> 0 | Z22: =$R22*(VLOOKUP($P22,class,12)/VLOOKUP($P22,class,4)) -> 0 | AA22: =$R22*(VLOOKUP($P22,class,13)/VLOOKUP($P22,class,4)) -> 0 | AB22: =$R22*(VLOOKUP($P22,class,14)/VLOOKUP($P22,class,4)) -> 0 | AC22: =$R22*(VLOOKUP($P22,class,15)/VLOOKUP($P22,class,4)) -> 0 | AH22: 22 | AI22: xxx | AJ22: =VLOOKUP(AI22,class,2) -> Open | AK22: 0 | AL22: 0 | BB22: 22 | BC22: D03 | BD22: NCP-w/o DA | BF22: =SUM(BG22:BQ22) -> 863557 | BG22: =BG20 -> 467271 | BH22: =BH20 -> 116821 | BI22: =BI20 -> 244558 | BJ22: 0 | BK22: =BK20 -> 30317 | BL22: 4590 | BM22: 0 | BN22: 0 | BO22: 0 | BP22: 0 | BQ22: 0 | BR22: NCP w/o Sch 25 12 Mo Avg
A23: =PROFORMA!A23 -> 23 | B23: =PROFORMA!B23 -> 513-MT | C23: =PROFORMA!C23 -> Steam | D23: =PROFORMA!D23 -> Electric Plant | F23: =PROFORMA!BO23 -> 1021000 | G23: =PROFORMA!BP23 -> 198960 | H23: =PROFORMA!BQ23 -> Misc Rev | I23: =PROFORMA!BR23 -> 176000 | J23: 23 | L23: P | M23: =HLOOKUP("Factor Name",pfactor,4) -> Generation Level Consumption | N23: =IF(MATCH(P23,ref,0)>0,"","matching error") ->  | O23: =HLOOKUP(O21,pfactor,4) -> 60.48 | P23: =HLOOKUP("Class",pfactor,4) -> E02 | R23: =Q21*O23/SUM(O22:O25) -> 1687392 | S23: =$R23*(VLOOKUP($P23,class,5)/VLOOKUP($P23,class,4)) -> 713839.015 | T23: =$R23*(VLOOKUP($P23,class,6)/VLOOKUP($P23,class,4)) -> 186164.174 | U23: =$R23*(VLOOKUP($P23,class,7)/VLOOKUP($P23,class,4)) -> 410022.9787 | V23: =$R23*(VLOOKUP($P23,class,8)/VLOOKUP($P23,class,4)) -> 327957.6354 | W23: =$R23*(VLOOKUP($P23,class,9)/VLOOKUP($P23,class,4)) -> 43834.43811 | X23: =$R23*(VLOOKUP($P23,class,10)/VLOOKUP($P23,class,4)) -> 5573.758915 | Y23: =$R23*(VLOOKUP($P23,class,11)/VLOOKUP($P23,class,4)) -> 0 | Z23: =$R23*(VLOOKUP($P23,class,12)/VLOOKUP($P23,class,4)) -> 0 | AA23: =$R23*(VLOOKUP($P23,class,13)/VLOOKUP($P23,class,4)) -> 0 | AB23: =$R23*(VLOOKUP($P23,class,14)/VLOOKUP($P23,class,4)) -> 0 | AC23: =$R23*(VLOOKUP($P23,class,15)/VLOOKUP($P23,class,4)) -> 0 | AH23: 23 | AK23: LF PC All Tran | AL23: Avg PC | BB23: 23 | BE23: =IF(SUM(BG23:BQ23)=BF23,"","error") ->  | BF23: =BF22/$BF22 -> 1 | BG23: 0.5411003559 | BH23: 0.1352788525 | BI23: 0.2831984455 | BJ23: 0 | BK23: 0.0351071209 | BL23: 0.005315225283 | BM23: 0 | BN23: 0 | BO23: 0 | BP23: 0 | BQ23: 0
A24: =PROFORMA!A24 -> 24 | B24: =PROFORMA!B24 -> 514-MT | C24: =PROFORMA!C24 -> Steam | D24: =PROFORMA!D24 -> Miscellaneous Plant | F24: =PROFORMA!BO24 -> 348000 | G24: =PROFORMA!BP24 -> 87228 | H24: =PROFORMA!BQ24 -> Water Sales | I24: =PROFORMA!BR24 -> 331000 | J24: 24 | L24: P | M24: =HLOOKUP("Factor Name",pfactor,5) -> Open | N24: =IF(MATCH(P24,ref,0)>0,"","matching error") ->  | O24: =HLOOKUP(O21,pfactor,5) -> 0 | P24: =HLOOKUP("Class",pfactor,5) -> xxx | R24: =Q21*O24/SUM(O22:O25) -> 0 | S24: =$R24*(VLOOKUP($P24,class,5)/VLOOKUP($P24,class,4)) -> 0 | T24: =$R24*(VLOOKUP($P24,class,6)/VLOOKUP($P24,class,4)) -> 0 | U24: =$R24*(VLOOKUP($P24,class,7)/VLOOKUP($P24,class,4)) -> 0 | V24: =$R24*(VLOOKUP($P24,class,8)/VLOOKUP($P24,class,4)) -> 0 | W24: =$R24*(VLOOKUP($P24,class,9)/VLOOKUP($P24,class,4)) -> 0 | X24: =$R24*(VLOOKUP($P24,class,10)/VLOOKUP($P24,class,4)) -> 0 | Y24: =$R24*(VLOOKUP($P24,class,11)/VLOOKUP($P24,class,4)) -> 0 | Z24: =$R24*(VLOOKUP($P24,class,12)/VLOOKUP($P24,class,4)) -> 0 | AA24: =$R24*(VLOOKUP($P24,class,13)/VLOOKUP($P24,class,4)) -> 0 | AB24: =$R24*(VLOOKUP($P24,class,14)/VLOOKUP($P24,class,4)) -> 0 | AC24: =$R24*(VLOOKUP($P24,class,15)/VLOOKUP($P24,class,4)) -> 0 | AH24: 24 | AI24: Distribution Function Factor Table (dfactor) | BB24: 24 | BC24: D04 | BD24: DA Sch 25 | BF24: =SUM(BG24:BQ24) -> 100 | BJ24: 100 | BR24: Direct Assigned to Schedule 25 Customers
A25: =PROFORMA!A25 -> 25 | B25: =PROFORMA!B25 -> 0 | C25: =PROFORMA!C25 -> Total Steam Maintenance | D25: =PROFORMA!D25 -> 0 | F25: =PROFORMA!BO25 -> 0 | G25: =PROFORMA!BP25 -> 0 | H25: =PROFORMA!BQ25 -> Rent | I25: =PROFORMA!BR25 -> 1846000 | J25: 25 | L25: P | M25: =HLOOKUP("Factor Name",pfactor,6) -> Open | N25: =IF(MATCH(P25,ref,0)>0,"","matching error") ->  | O25: =HLOOKUP(O21,pfactor,6) -> 0 | P25: =HLOOKUP("Class",pfactor,6) -> xxx | R25: =Q21*O25/SUM(O22:O25) -> 0 | S25: =$R25*(VLOOKUP($P25,class,5)/VLOOKUP($P25,class,4)) -> 0 | T25: =$R25*(VLOOKUP($P25,class,6)/VLOOKUP($P25,class,4)) -> 0 | U25: =$R25*(VLOOKUP($P25,class,7)/VLOOKUP($P25,class,4)) -> 0 | V25: =$R25*(VLOOKUP($P25,class,8)/VLOOKUP($P25,class,4)) -> 0 | W25: =$R25*(VLOOKUP($P25,class,9)/VLOOKUP($P25,class,4)) -> 0 | X25: =$R25*(VLOOKUP($P25,class,10)/VLOOKUP($P25,class,4)) -> 0 | Y25: =$R25*(VLOOKUP($P25,class,11)/VLOOKUP($P25,class,4)) -> 0 | Z25: =$R25*(VLOOKUP($P25,class,12)/VLOOKUP($P25,class,4)) -> 0 | AA25: =$R25*(VLOOKUP($P25,class,13)/VLOOKUP($P25,class,4)) -> 0 | AB25: =$R25*(VLOOKUP($P25,class,14)/VLOOKUP($P25,class,4)) -> 0 | AC25: =$R25*(VLOOKUP($P25,class,15)/VLOOKUP($P25,class,4)) -> 0 | AH25: 25 | AI25: Class | AJ25: Factor Name | AK25: X01 | AL25: X02 | AM25: X03 | AN25: X04 | AO25: X05 | AP25: X06 | AQ25: X07 | AR25: X08 | AS25: X09 | AT25: X10 | AU25: X11 | AV25: X12 | AW25: X13 | AX25: X14 | AY25: X15 | BB25: 25 | BE25: =IF(SUM(BG25:BQ25)=BF25,"","error") ->  | BF25: =BF24/$BF24 -> 1 | BG25: 0 | BH25: 0 | BI25: 0 | BJ25: 1 | BK25: 0 | BL25: 0 | BM25: 0 | BN25: 0 | BO25: 0 | BP25: 0 | BQ25: 0
A26: =PROFORMA!A26 -> 26 | B26: =PROFORMA!B26 -> 0 | C26: =PROFORMA!C26 -> Total Steam | D26: =PROFORMA!D26 -> 0 | F26: =PROFORMA!BO26 -> 0 | G26: =PROFORMA!BP26 -> 0 | H26: =PROFORMA!BQ26 -> Wheeling Revenue | I26: =PROFORMA!BR26 -> 10646000 | J26: 26 | K26: =B14 -> 503-OP | L26: =C14 -> Steam | M26: =D14 -> From Other Sources | O26: P01 | P26: =IF(MATCH(O26,P_ref,0)>0,"","error matching functional allocator") ->  | Q26: =F14 -> 0 | AH26: 26 | AJ26: Total Factor | AK26: =SUM(AK27:AK36) -> 100 | AL26: 27407 | AM26: 98180 | AN26: 0 | AO26: 100 | AP26: 100 | AQ26: 100 | AR26: 100 | AS26: 100 | AT26: 100 | AU26: 100 | AV26: 100 | AW26: 0 | AX26: 0 | AY26: 0 | BB26: 26 | BC26: D05 | BD26: DA Sch 25I | BF26: =SUM(BG26:BQ26) -> 100 | BM26: 100 | BR26: Direct Assigned to Schedule 25I Customers (not used)
A27: =PROFORMA!A27 -> 27 | B27: =PROFORMA!B27 -> 0 | C27: =PROFORMA!C27 -> 0 | D27: =PROFORMA!D27 -> 0 | F27: =PROFORMA!BO27 -> 0 | G27: =PROFORMA!BP27 -> 0 | H27: =PROFORMA!BQ27 -> Other Rev | I27: =PROFORMA!BR27 -> 0 | J27: 27 | L27: P | M27: =HLOOKUP("Factor Name",pfactor,3) -> Coincident Peak | N27: =IF(MATCH(P27,ref,0)>0,"","matching error") ->  | O27: =HLOOKUP(O26,pfactor,3) -> 39.52 | P27: =HLOOKUP("Class",pfactor,3) -> D01 | R27: =Q26*O27/SUM(O27:O30) -> 0 | S27: =$R27*(VLOOKUP($P27,class,5)/VLOOKUP($P27,class,4)) -> 0 | T27: =$R27*(VLOOKUP($P27,class,6)/VLOOKUP($P27,class,4)) -> 0 | U27: =$R27*(VLOOKUP($P27,class,7)/VLOOKUP($P27,class,4)) -> 0 | V27: =$R27*(VLOOKUP($P27,class,8)/VLOOKUP($P27,class,4)) -> 0 | W27: =$R27*(VLOOKUP($P27,class,9)/VLOOKUP($P27,class,4)) -> 0 | X27: =$R27*(VLOOKUP($P27,class,10)/VLOOKUP($P27,class,4)) -> 0 | Y27: =$R27*(VLOOKUP($P27,class,11)/VLOOKUP($P27,class,4)) -> 0 | Z27: =$R27*(VLOOKUP($P27,class,12)/VLOOKUP($P27,class,4)) -> 0 | AA27: =$R27*(VLOOKUP($P27,class,13)/VLOOKUP($P27,class,4)) -> 0 | AB27: =$R27*(VLOOKUP($P27,class,14)/VLOOKUP($P27,class,4)) -> 0 | AC27: =$R27*(VLOOKUP($P27,class,15)/VLOOKUP($P27,class,4)) -> 0 | AH27: 27 | AI27: D02 | AJ27: =VLOOKUP(AI27,class,2) -> NCP-All | AK27: 0 | AL27: 0 | AM27: 0 | AO27: 0 | AP27: 0 | AQ27: 0 | AR27: 0 | AS27: 0 | BB27: 27 | BE27: =IF(SUM(BG27:BQ27)=BF27,"","error") ->  | BF27: =BF26/$BF26 -> 1 | BG27: 0 | BH27: 0 | BI27: 0 | BJ27: 0 | BK27: 0 | BL27: 0 | BM27: 1 | BN27: 0 | BO27: 0 | BP27: 0 | BQ27: 0
A28: =PROFORMA!A28 -> 28 | B28: =PROFORMA!B28 -> 535-OP | C28: =PROFORMA!C28 -> Hydro | D28: =PROFORMA!D28 -> Supervision & Engineering | F28: =PROFORMA!BO28 -> 2175000 | G28: =PROFORMA!BP28 -> 978614 | J28: 28 | L28: P | M28: =HLOOKUP("Factor Name",pfactor,4) -> Generation Level Consumption | N28: =IF(MATCH(P28,ref,0)>0,"","matching error") ->  | O28: =HLOOKUP(O26,pfactor,4) -> 60.48 | P28: =HLOOKUP("Class",pfactor,4) -> E02 | R28: =Q26*O28/SUM(O27:O30) -> 0 | S28: =$R28*(VLOOKUP($P28,class,5)/VLOOKUP($P28,class,4)) -> 0 | T28: =$R28*(VLOOKUP($P28,class,6)/VLOOKUP($P28,class,4)) -> 0 | U28: =$R28*(VLOOKUP($P28,class,7)/VLOOKUP($P28,class,4)) -> 0 | V28: =$R28*(VLOOKUP($P28,class,8)/VLOOKUP($P28,class,4)) -> 0 | W28: =$R28*(VLOOKUP($P28,class,9)/VLOOKUP($P28,class,4)) -> 0 | X28: =$R28*(VLOOKUP($P28,class,10)/VLOOKUP($P28,class,4)) -> 0 | Y28: =$R28*(VLOOKUP($P28,class,11)/VLOOKUP($P28,class,4)) -> 0 | Z28: =$R28*(VLOOKUP($P28,class,12)/VLOOKUP($P28,class,4)) -> 0 | AA28: =$R28*(VLOOKUP($P28,class,13)/VLOOKUP($P28,class,4)) -> 0 | AB28: =$R28*(VLOOKUP($P28,class,14)/VLOOKUP($P28,class,4)) -> 0 | AC28: =$R28*(VLOOKUP($P28,class,15)/VLOOKUP($P28,class,4)) -> 0 | AH28: 28 | AI28: D03 | AJ28: NCP-w/o DA | AK28: 0 | AL28: 25542 | AM28: 92652 | AO28: 94.21 | AP28: 95.09 | AQ28: 73.05 | AR28: 75.67 | AS28: 0 | BB28: 28 | BC28: D06 | BD28: NCP-Secondary | BF28: =SUM(BG28:BQ28) -> 843394 | BG28: =BG20 -> 467271 | BH28: =BH20 -> 116821 | BI28: 224395 | BJ28: 0 | BK28: =BK20 -> 30317 | BL28: =BL20 -> 4590 | BM28: 0 | BN28: 0 | BO28: 0 | BP28: 0 | BQ28: 0 | BR28: Non-Coincident Peak Secondary12 Mo Avg
A29: =PROFORMA!A29 -> 29 | B29: =PROFORMA!B29 -> 536-OP | C29: =PROFORMA!C29 -> Hydro | D29: =PROFORMA!D29 -> Water For Power | F29: =PROFORMA!BO29 -> 759000 | G29: =PROFORMA!BP29 -> 5926 | J29: 29 | L29: P | M29: =HLOOKUP("Factor Name",pfactor,5) -> Open | N29: =IF(MATCH(P29,ref,0)>0,"","matching error") ->  | O29: =HLOOKUP(O26,pfactor,5) -> 0 | P29: =HLOOKUP("Class",pfactor,5) -> xxx | R29: =Q26*O29/SUM(O27:O30) -> 0 | S29: =$R29*(VLOOKUP($P29,class,5)/VLOOKUP($P29,class,4)) -> 0 | T29: =$R29*(VLOOKUP($P29,class,6)/VLOOKUP($P29,class,4)) -> 0 | U29: =$R29*(VLOOKUP($P29,class,7)/VLOOKUP($P29,class,4)) -> 0 | V29: =$R29*(VLOOKUP($P29,class,8)/VLOOKUP($P29,class,4)) -> 0 | W29: =$R29*(VLOOKUP($P29,class,9)/VLOOKUP($P29,class,4)) -> 0 | X29: =$R29*(VLOOKUP($P29,class,10)/VLOOKUP($P29,class,4)) -> 0 | Y29: =$R29*(VLOOKUP($P29,class,11)/VLOOKUP($P29,class,4)) -> 0 | Z29: =$R29*(VLOOKUP($P29,class,12)/VLOOKUP($P29,class,4)) -> 0 | AA29: =$R29*(VLOOKUP($P29,class,13)/VLOOKUP($P29,class,4)) -> 0 | AB29: =$R29*(VLOOKUP($P29,class,14)/VLOOKUP($P29,class,4)) -> 0 | AC29: =$R29*(VLOOKUP($P29,class,15)/VLOOKUP($P29,class,4)) -> 0 | AH29: 29 | AI29: D04 | AJ29: DA Sch 25 | AK29: 0 | AL29: 1865 | AM29: 5528 | AO29: 4.33 | AP29: 4.43 | AQ29: 4.41 | AR29: 4.83 | AS29: 0 | BB29: 29 | BE29: =IF(SUM(BG29:BQ29)=BF29,"","error") ->  | BF29: =BF28/$BF28 -> 1 | BG29: 0.554036429 | BH29: 0.1385129607 | BI29: 0.266061888 | BJ29: 0 | BK29: 0.03594642599 | BL29: 0.005442296246 | BM29: 0 | BN29: 0 | BO29: 0 | BP29: 0 | BQ29: 0
A30: =PROFORMA!A30 -> 30 | B30: =PROFORMA!B30 -> 537-OP | C30: =PROFORMA!C30 -> Hydro | D30: =PROFORMA!D30 -> Hydraulic Expenses | F30: =PROFORMA!BO30 -> 5687000 | G30: =PROFORMA!BP30 -> 360604 | J30: 30 | L30: P | M30: =HLOOKUP("Factor Name",pfactor,6) -> Open | N30: =IF(MATCH(P30,ref,0)>0,"","matching error") ->  | O30: =HLOOKUP(O26,pfactor,6) -> 0 | P30: =HLOOKUP("Class",pfactor,6) -> xxx | R30: =Q26*O30/SUM(O27:O30) -> 0 | S30: =$R30*(VLOOKUP($P30,class,5)/VLOOKUP($P30,class,4)) -> 0 | T30: =$R30*(VLOOKUP($P30,class,6)/VLOOKUP($P30,class,4)) -> 0 | U30: =$R30*(VLOOKUP($P30,class,7)/VLOOKUP($P30,class,4)) -> 0 | V30: =$R30*(VLOOKUP($P30,class,8)/VLOOKUP($P30,class,4)) -> 0 | W30: =$R30*(VLOOKUP($P30,class,9)/VLOOKUP($P30,class,4)) -> 0 | X30: =$R30*(VLOOKUP($P30,class,10)/VLOOKUP($P30,class,4)) -> 0 | Y30: =$R30*(VLOOKUP($P30,class,11)/VLOOKUP($P30,class,4)) -> 0 | Z30: =$R30*(VLOOKUP($P30,class,12)/VLOOKUP($P30,class,4)) -> 0 | AA30: =$R30*(VLOOKUP($P30,class,13)/VLOOKUP($P30,class,4)) -> 0 | AB30: =$R30*(VLOOKUP($P30,class,14)/VLOOKUP($P30,class,4)) -> 0 | AC30: =$R30*(VLOOKUP($P30,class,15)/VLOOKUP($P30,class,4)) -> 0 | AH30: 30 | AI30: D07 | AJ30: DA Street and Area Lights | AK30: 0 | AL30: 0 | AM30: 0 | AO30: 0.51 | AP30: 0 | AQ30: 0 | AR30: 0 | AS30: 0 | BB30: 30 | BC30: D07 | BD30: DA Street and Area Lights | BF30: =SUM(BG30:BQ30) -> 100 | BL30: 100 | BR30: Direct Assigned to Street & Area Lights
A31: =PROFORMA!A31 -> 31 | B31: =PROFORMA!B31 -> 538-OP | C31: =PROFORMA!C31 -> Hydro | D31: =PROFORMA!D31 -> Electric Expenses | F31: =PROFORMA!BO31 -> 5267000 | G31: =PROFORMA!BP31 -> 3478573 | J31: 31 | K31: =B15 -> 504-OP | L31: =C15 -> Steam | M31: =D15 -> Steam Transferred-CR | O31: P01 | P31: =IF(MATCH(O31,P_ref,0)>0,"","error matching functional allocator") ->  | Q31: =F15 -> 0 | AH31: 31 | AI31: C02 | AJ31: Avg Customers-Secondary | AK31: 0 | AL31: 0 | AM31: 0 | AO31: 0 | AP31: 0 | AQ31: 0 | AR31: 0 | AS31: 0 | AT31: 100 | BB31: 31 | BF31: =BF30/$BF30 -> 1 | BG31: 0 | BH31: 0 | BI31: 0 | BJ31: 0 | BK31: 0 | BL31: 1 | BM31: 0 | BN31: 0 | BO31: 0 | BP31: 0 | BQ31: 0
A32: =PROFORMA!A32 -> 32 | B32: =PROFORMA!B32 -> 539-OP | C32: =PROFORMA!C32 -> Hydro | D32: =PROFORMA!D32 -> Miscellaneous Power Exp. | F32: =PROFORMA!BO32 -> 794000 | G32: =PROFORMA!BP32 -> 132345 | J32: 32 | L32: P | M32: =HLOOKUP("Factor Name",pfactor,3) -> Coincident Peak | N32: =IF(MATCH(P32,ref,0)>0,"","matching error") ->  | O32: =HLOOKUP(O31,pfactor,3) -> 39.52 | P32: =HLOOKUP("Class",pfactor,3) -> D01 | R32: =Q31*O32/SUM(O32:O35) -> 0 | S32: =$R32*(VLOOKUP($P32,class,5)/VLOOKUP($P32,class,4)) -> 0 | T32: =$R32*(VLOOKUP($P32,class,6)/VLOOKUP($P32,class,4)) -> 0 | U32: =$R32*(VLOOKUP($P32,class,7)/VLOOKUP($P32,class,4)) -> 0 | V32: =$R32*(VLOOKUP($P32,class,8)/VLOOKUP($P32,class,4)) -> 0 | W32: =$R32*(VLOOKUP($P32,class,9)/VLOOKUP($P32,class,4)) -> 0 | X32: =$R32*(VLOOKUP($P32,class,10)/VLOOKUP($P32,class,4)) -> 0 | Y32: =$R32*(VLOOKUP($P32,class,11)/VLOOKUP($P32,class,4)) -> 0 | Z32: =$R32*(VLOOKUP($P32,class,12)/VLOOKUP($P32,class,4)) -> 0 | AA32: =$R32*(VLOOKUP($P32,class,13)/VLOOKUP($P32,class,4)) -> 0 | AB32: =$R32*(VLOOKUP($P32,class,14)/VLOOKUP($P32,class,4)) -> 0 | AC32: =$R32*(VLOOKUP($P32,class,15)/VLOOKUP($P32,class,4)) -> 0 | AH32: 32 | AI32: C04 | AJ32: Wt Customers-Meters | AK32: 0 | AL32: 0 | AM32: 0 | AO32: 0 | AP32: 0 | AQ32: 0 | AR32: 0 | AS32: 0 | AU32: 100 | BB32: 32 | BC32: D08 | BD32: NCP-Primary | BF32: =SUM(BG32:BQ32) -> 951851 | BG32: =BG20 -> 467271 | BH32: =BH20 -> 116821 | BI32: =BI20 -> 244558 | BJ32: 88294 | BK32: =BK20 -> 30317 | BL32: 4590 | BM32: 0 | BN32: 0 | BO32: 0 | BP32: 0 | BQ32: 0 | BR32: Non-Coincident Peak Primary 12 Mo Avg
A33: =PROFORMA!A33 -> 33 | B33: =PROFORMA!B33 -> 540-OP | C33: =PROFORMA!C33 -> Hydro | D33: =PROFORMA!D33 -> Rents | F33: =PROFORMA!BO33 -> 4342000 | G33: =PROFORMA!BP33 -> 0 | J33: 33 | L33: P | M33: =HLOOKUP("Factor Name",pfactor,4) -> Generation Level Consumption | N33: =IF(MATCH(P33,ref,0)>0,"","matching error") ->  | O33: =HLOOKUP(O31,pfactor,4) -> 60.48 | P33: =HLOOKUP("Class",pfactor,4) -> E02 | R33: =Q31*O33/SUM(O32:O35) -> 0 | S33: =$R33*(VLOOKUP($P33,class,5)/VLOOKUP($P33,class,4)) -> 0 | T33: =$R33*(VLOOKUP($P33,class,6)/VLOOKUP($P33,class,4)) -> 0 | U33: =$R33*(VLOOKUP($P33,class,7)/VLOOKUP($P33,class,4)) -> 0 | V33: =$R33*(VLOOKUP($P33,class,8)/VLOOKUP($P33,class,4)) -> 0 | W33: =$R33*(VLOOKUP($P33,class,9)/VLOOKUP($P33,class,4)) -> 0 | X33: =$R33*(VLOOKUP($P33,class,10)/VLOOKUP($P33,class,4)) -> 0 | Y33: =$R33*(VLOOKUP($P33,class,11)/VLOOKUP($P33,class,4)) -> 0 | Z33: =$R33*(VLOOKUP($P33,class,12)/VLOOKUP($P33,class,4)) -> 0 | AA33: =$R33*(VLOOKUP($P33,class,13)/VLOOKUP($P33,class,4)) -> 0 | AB33: =$R33*(VLOOKUP($P33,class,14)/VLOOKUP($P33,class,4)) -> 0 | AC33: =$R33*(VLOOKUP($P33,class,15)/VLOOKUP($P33,class,4)) -> 0 | AH33: 33 | AI33: C05 | AJ33: DA Street & Area Lights | AK33: 0 | AL33: 0 | AM33: 0 | AO33: 0 | AP33: 0 | AQ33: 0 | AR33: 0 | AS33: 0 | AV33: 100 | BB33: 33 | BF33: =BF32/$BF32 -> 1 | BG33: 0.4909077156 | BH33: 0.1227303433 | BI33: 0.2569288681 | BJ33: 0.09276031648 | BK33: 0.03185057325 | BL33: 0.004822183304 | BM33: 0 | BN33: 0 | BO33: 0 | BP33: 0 | BQ33: 0
A34: =PROFORMA!A34 -> 34 | B34: =PROFORMA!B34 -> 0 | C34: =PROFORMA!C34 -> Total Hydraulic Operation | D34: =PROFORMA!D34 -> 0 | F34: =PROFORMA!BO34 -> 0 | G34: =PROFORMA!BP34 -> 0 | J34: 34 | L34: P | M34: =HLOOKUP("Factor Name",pfactor,5) -> Open | N34: =IF(MATCH(P34,ref,0)>0,"","matching error") ->  | O34: =HLOOKUP(O31,pfactor,5) -> 0 | P34: =HLOOKUP("Class",pfactor,5) -> xxx | R34: =Q31*O34/SUM(O32:O35) -> 0 | S34: =$R34*(VLOOKUP($P34,class,5)/VLOOKUP($P34,class,4)) -> 0 | T34: =$R34*(VLOOKUP($P34,class,6)/VLOOKUP($P34,class,4)) -> 0 | U34: =$R34*(VLOOKUP($P34,class,7)/VLOOKUP($P34,class,4)) -> 0 | V34: =$R34*(VLOOKUP($P34,class,8)/VLOOKUP($P34,class,4)) -> 0 | W34: =$R34*(VLOOKUP($P34,class,9)/VLOOKUP($P34,class,4)) -> 0 | X34: =$R34*(VLOOKUP($P34,class,10)/VLOOKUP($P34,class,4)) -> 0 | Y34: =$R34*(VLOOKUP($P34,class,11)/VLOOKUP($P34,class,4)) -> 0 | Z34: =$R34*(VLOOKUP($P34,class,12)/VLOOKUP($P34,class,4)) -> 0 | AA34: =$R34*(VLOOKUP($P34,class,13)/VLOOKUP($P34,class,4)) -> 0 | AB34: =$R34*(VLOOKUP($P34,class,14)/VLOOKUP($P34,class,4)) -> 0 | AC34: =$R34*(VLOOKUP($P34,class,15)/VLOOKUP($P34,class,4)) -> 0 | AH34: 34 | AI34: D05 | AJ34: DA Sch 25I | AK34: 0 | AL34: 0 | AM34: 0 | AO34: 0 | AP34: 0 | AQ34: 0 | AR34: 0 | AS34: 0 | BB34: 34
A35: =PROFORMA!A35 -> 35 | B35: =PROFORMA!B35 -> 541-MT | C35: =PROFORMA!C35 -> Hydro | D35: =PROFORMA!D35 -> Supervision & Engineering | F35: =PROFORMA!BO35 -> 902000 | G35: =PROFORMA!BP35 -> 306353 | J35: 35 | L35: P | M35: =HLOOKUP("Factor Name",pfactor,6) -> Open | N35: =IF(MATCH(P35,ref,0)>0,"","matching error") ->  | O35: =HLOOKUP(O31,pfactor,6) -> 0 | P35: =HLOOKUP("Class",pfactor,6) -> xxx | R35: =Q31*O35/SUM(O32:O35) -> 0 | S35: =$R35*(VLOOKUP($P35,class,5)/VLOOKUP($P35,class,4)) -> 0 | T35: =$R35*(VLOOKUP($P35,class,6)/VLOOKUP($P35,class,4)) -> 0 | U35: =$R35*(VLOOKUP($P35,class,7)/VLOOKUP($P35,class,4)) -> 0 | V35: =$R35*(VLOOKUP($P35,class,8)/VLOOKUP($P35,class,4)) -> 0 | W35: =$R35*(VLOOKUP($P35,class,9)/VLOOKUP($P35,class,4)) -> 0 | X35: =$R35*(VLOOKUP($P35,class,10)/VLOOKUP($P35,class,4)) -> 0 | Y35: =$R35*(VLOOKUP($P35,class,11)/VLOOKUP($P35,class,4)) -> 0 | Z35: =$R35*(VLOOKUP($P35,class,12)/VLOOKUP($P35,class,4)) -> 0 | AA35: =$R35*(VLOOKUP($P35,class,13)/VLOOKUP($P35,class,4)) -> 0 | AB35: =$R35*(VLOOKUP($P35,class,14)/VLOOKUP($P35,class,4)) -> 0 | AC35: =$R35*(VLOOKUP($P35,class,15)/VLOOKUP($P35,class,4)) -> 0 | AH35: 35 | AI35: D06 | AJ35: NCP-Secondary | AK35: 0 | AL35: 0 | AM35: 0 | AO35: 0.95 | AP35: 0.48 | AQ35: 22.54 | AR35: 19.5 | AS35: 100 | BB35: 35 | BD35: Customer Allocators
A36: =PROFORMA!A36 -> 36 | B36: =PROFORMA!B36 -> 542-MT | C36: =PROFORMA!C36 -> Hydro | D36: =PROFORMA!D36 -> Structures | F36: =PROFORMA!BO36 -> 329000 | G36: =PROFORMA!BP36 -> 130015 | H36: Error Messages | J36: 36 | K36: =B16 -> 505-OP | L36: =C16 -> Steam | M36: =D16 -> Electric Expenses | O36: P01 | P36: =IF(MATCH(O36,P_ref,0)>0,"","error matching functional allocator") ->  | Q36: =F16 -> 761000 | AH36: 36 | AI36: D08 | AJ36: NCP-Primary | AK36: 100 | AL36: 0 | AM36: 0 | AO36: 0 | AP36: 0 | AQ36: 0 | AR36: 0 | AS36: 0 | BB36: 36 | BC36: C01 | BD36: =BD54 -> Avg Customers-All | BF36: =SUM(BG36:BQ36) -> 252698.4167 | BG36: =BG54*BG$51 -> 215664.5833 | BH36: 32233.33333 | BI36: 1898.916667 | BJ36: 23 | BK36: 2453.833333 | BL36: 424.75 | BM36: 0 | BN36: 0 | BO36: 0 | BP36: 0 | BQ36: 0 | BR36: =BR54 -> Unweighted
A37: =PROFORMA!A37 -> 37 | B37: =PROFORMA!B37 -> 543-MT | C37: =PROFORMA!C37 -> Hydro | D37: =PROFORMA!D37 -> Reservoirs, Dams & Waterways | F37: =PROFORMA!BO37 -> 1578000 | G37: =PROFORMA!BP37 -> 389265 | H37: =IF(I10=ROUND(R1474,0),"Total Rate Base Matches Checker","ERROR! TOTAL RATE BASE DOES NOT MATCH CHECKER") -> Total Rate Base Matches Checker | I37: 1 | J37: 37 | L37: P | M37: =HLOOKUP("Factor Name",pfactor,3) -> Coincident Peak | N37: =IF(MATCH(P37,ref,0)>0,"","matching error") ->  | O37: =HLOOKUP(O36,pfactor,3) -> 39.52 | P37: =HLOOKUP("Class",pfactor,3) -> D01 | R37: =Q36*O37/SUM(O37:O40) -> 300747.2 | S37: =$R37*(VLOOKUP($P37,class,5)/VLOOKUP($P37,class,4)) -> 146027.9969 | T37: =$R37*(VLOOKUP($P37,class,6)/VLOOKUP($P37,class,4)) -> 32422.20178 | U37: =$R37*(VLOOKUP($P37,class,7)/VLOOKUP($P37,class,4)) -> 67994.56498 | V37: =$R37*(VLOOKUP($P37,class,8)/VLOOKUP($P37,class,4)) -> 47891.70906 | W37: =$R37*(VLOOKUP($P37,class,9)/VLOOKUP($P37,class,4)) -> 6086.125087 | X37: =$R37*(VLOOKUP($P37,class,10)/VLOOKUP($P37,class,4)) -> 324.6021527 | Y37: =$R37*(VLOOKUP($P37,class,11)/VLOOKUP($P37,class,4)) -> 0 | Z37: =$R37*(VLOOKUP($P37,class,12)/VLOOKUP($P37,class,4)) -> 0 | AA37: =$R37*(VLOOKUP($P37,class,13)/VLOOKUP($P37,class,4)) -> 0 | AB37: =$R37*(VLOOKUP($P37,class,14)/VLOOKUP($P37,class,4)) -> 0 | AC37: =$R37*(VLOOKUP($P37,class,15)/VLOOKUP($P37,class,4)) -> 0 | AH37: 37 | AK37: #360 | AL37: #361 | AM37: #362 | AO37: #364 | AP37: #365 | AQ37: #366 | AR37: #367 | AS37: #368 | AT37: #369 | AU37: #370 | AV37: #373 | BB37: 37 | BE37: =IF(SUM(BG37:BQ37)=BF37,"","error") ->  | BF37: =BF36/$BF36 -> 1 | BG37: 0.8534465161 | BH37: 0.1275565307 | BI37: 0.007514557043 | BJ37: 9.101758651e-05 | BK37: 0.009710521204 | BL37: 0.001680857386 | BM37: 0 | BN37: 0 | BO37: 0 | BP37: 0 | BQ37: 0
A38: =PROFORMA!A38 -> 38 | B38: =PROFORMA!B38 -> 544-MT | C38: =PROFORMA!C38 -> Hydro | D38: =PROFORMA!D38 -> Electric Plant | F38: =PROFORMA!BO38 -> 2598000 | G38: =PROFORMA!BP38 -> 1411003 | H38: =IF(I11=ROUND(R816,0),"Total Operating Expense Matches Checker","ERROR! TOTAL OPERATING EXP DOES NOT MATCH CHECKER") -> Total Operating Expense Matches Checker | I38: 2 | J38: 38 | L38: P | M38: =HLOOKUP("Factor Name",pfactor,4) -> Generation Level Consumption | N38: =IF(MATCH(P38,ref,0)>0,"","matching error") ->  | O38: =HLOOKUP(O36,pfactor,4) -> 60.48 | P38: =HLOOKUP("Class",pfactor,4) -> E02 | R38: =Q36*O38/SUM(O37:O40) -> 460252.8 | S38: =$R38*(VLOOKUP($P38,class,5)/VLOOKUP($P38,class,4)) -> 194706.6274 | T38: =$R38*(VLOOKUP($P38,class,6)/VLOOKUP($P38,class,4)) -> 50778.11341 | U38: =$R38*(VLOOKUP($P38,class,7)/VLOOKUP($P38,class,4)) -> 111837.8089 | V38: =$R38*(VLOOKUP($P38,class,8)/VLOOKUP($P38,class,4)) -> 89453.67761 | W38: =$R38*(VLOOKUP($P38,class,9)/VLOOKUP($P38,class,4)) -> 11956.27506 | X38: =$R38*(VLOOKUP($P38,class,10)/VLOOKUP($P38,class,4)) -> 1520.297683 | Y38: =$R38*(VLOOKUP($P38,class,11)/VLOOKUP($P38,class,4)) -> 0 | Z38: =$R38*(VLOOKUP($P38,class,12)/VLOOKUP($P38,class,4)) -> 0 | AA38: =$R38*(VLOOKUP($P38,class,13)/VLOOKUP($P38,class,4)) -> 0 | AB38: =$R38*(VLOOKUP($P38,class,14)/VLOOKUP($P38,class,4)) -> 0 | AC38: =$R38*(VLOOKUP($P38,class,15)/VLOOKUP($P38,class,4)) -> 0 | AH38: 38 | AI38: Customer Accounting Function Factor Table (afactor) | BB38: 38 | BC38: C02 | BD38: =BD55 -> Avg Customers-Secondary | BF38: =SUM(BG38:BQ38) -> 252218.6667 | BG38: =BG55*BG$51 -> 215664.5833 | BH38: =BH55*BH$51 -> 32233.33333 | BI38: =BI55*(BI$51-32) -> 1866.916667 | BJ38: =BJ55*BJ$51 -> 0 | BK38: 2453.833333 | BL38: 0 | BM38: 0 | BN38: 0 | BO38: 0 | BP38: 0 | BQ38: 0 | BR38: =BR55 -> Unweighted Secondary w/o Lighting
A39: =PROFORMA!A39 -> 39 | B39: =PROFORMA!B39 -> 545-MT | C39: =PROFORMA!C39 -> Hydro | D39: =PROFORMA!D39 -> Miscellaneous Plant | F39: =PROFORMA!BO39 -> 940000 | G39: =PROFORMA!BP39 -> 461269 | H39: =IF(I12=-ROUND(R844,0),"Total Operating Revenue Matches Checker","ERROR! TOTAL REVENUE DOES NOT MATCH CHECKER") -> Total Operating Revenue Matches Checker | I39: 3 | J39: 39 | L39: P | M39: =HLOOKUP("Factor Name",pfactor,5) -> Open | N39: =IF(MATCH(P39,ref,0)>0,"","matching error") ->  | O39: =HLOOKUP(O36,pfactor,5) -> 0 | P39: =HLOOKUP("Class",pfactor,5) -> xxx | R39: =Q36*O39/SUM(O37:O40) -> 0 | S39: =$R39*(VLOOKUP($P39,class,5)/VLOOKUP($P39,class,4)) -> 0 | T39: =$R39*(VLOOKUP($P39,class,6)/VLOOKUP($P39,class,4)) -> 0 | U39: =$R39*(VLOOKUP($P39,class,7)/VLOOKUP($P39,class,4)) -> 0 | V39: =$R39*(VLOOKUP($P39,class,8)/VLOOKUP($P39,class,4)) -> 0 | W39: =$R39*(VLOOKUP($P39,class,9)/VLOOKUP($P39,class,4)) -> 0 | X39: =$R39*(VLOOKUP($P39,class,10)/VLOOKUP($P39,class,4)) -> 0 | Y39: =$R39*(VLOOKUP($P39,class,11)/VLOOKUP($P39,class,4)) -> 0 | Z39: =$R39*(VLOOKUP($P39,class,12)/VLOOKUP($P39,class,4)) -> 0 | AA39: =$R39*(VLOOKUP($P39,class,13)/VLOOKUP($P39,class,4)) -> 0 | AB39: =$R39*(VLOOKUP($P39,class,14)/VLOOKUP($P39,class,4)) -> 0 | AC39: =$R39*(VLOOKUP($P39,class,15)/VLOOKUP($P39,class,4)) -> 0 | AH39: 39 | AI39: Class | AJ39: Factor Name | AK39: K01 | AL39: K02 | AM39: K03 | AN39: K04 | BB39: 39 | BE39: =IF(SUM(BG39:BQ39)=BF39,"","error") ->  | BF39: =BF38/$BF38 -> 1 | BG39: 0.8550698732 | BH39: 0.1277991584 | BI39: 0.007401976592 | BJ39: 0 | BK39: 0.009728991774 | BL39: 0 | BM39: 0 | BN39: 0 | BO39: 0 | BP39: 0 | BQ39: 0
A40: =PROFORMA!A40 -> 40 | B40: =PROFORMA!B40 -> 0 | C40: =PROFORMA!C40 -> Total Hydraulic Maintenance | D40: =PROFORMA!D40 -> 0 | F40: =PROFORMA!BO40 -> 0 | G40: =PROFORMA!BP40 -> 0 | H40: =IF(I13=-ROUND(R846,0),"Net Income Matches Checker","ERROR! NET INCOME DOES NOT MATCH CHECKER") -> Net Income Matches Checker | I40: 4 | J40: 40 | L40: P | M40: =HLOOKUP("Factor Name",pfactor,6) -> Open | N40: =IF(MATCH(P40,ref,0)>0,"","matching error") ->  | O40: =HLOOKUP(O36,pfactor,6) -> 0 | P40: =HLOOKUP("Class",pfactor,6) -> xxx | R40: =Q36*O40/SUM(O37:O40) -> 0 | S40: =$R40*(VLOOKUP($P40,class,5)/VLOOKUP($P40,class,4)) -> 0 | T40: =$R40*(VLOOKUP($P40,class,6)/VLOOKUP($P40,class,4)) -> 0 | U40: =$R40*(VLOOKUP($P40,class,7)/VLOOKUP($P40,class,4)) -> 0 | V40: =$R40*(VLOOKUP($P40,class,8)/VLOOKUP($P40,class,4)) -> 0 | W40: =$R40*(VLOOKUP($P40,class,9)/VLOOKUP($P40,class,4)) -> 0 | X40: =$R40*(VLOOKUP($P40,class,10)/VLOOKUP($P40,class,4)) -> 0 | Y40: =$R40*(VLOOKUP($P40,class,11)/VLOOKUP($P40,class,4)) -> 0 | Z40: =$R40*(VLOOKUP($P40,class,12)/VLOOKUP($P40,class,4)) -> 0 | AA40: =$R40*(VLOOKUP($P40,class,13)/VLOOKUP($P40,class,4)) -> 0 | AB40: =$R40*(VLOOKUP($P40,class,14)/VLOOKUP($P40,class,4)) -> 0 | AC40: =$R40*(VLOOKUP($P40,class,15)/VLOOKUP($P40,class,4)) -> 0 | AH40: 40 | AJ40: Total Factor | AK40: =AK41+AK42+AK43+AK44 -> 100 | AL40: =AL41+AL42+AL43+AL44 -> 100 | AM40: =AM41+AM42+AM43+AM44 -> 100 | AN40: =AN41+AN42+AN43+AN44 -> 0 | BB40: 40 | BC40: C03 | BD40: =BD56 -> Wt Customers-Meter Reading | BF40: =SUM(BG40:BQ40) -> 252273.6667 | BG40: =BG56*BG$51 -> 215664.5833 | BH40: 32233.33333 | BI40: 1898.916667 | BJ40: 23 | BK40: 2453.833333 | BL40: 0 | BM40: 0 | BN40: 0 | BO40: 0 | BP40: 0 | BQ40: 0 | BR40: =BR56 -> Est. Meter Reading Time
A41: =PROFORMA!A41 -> 41 | B41: =PROFORMA!B41 -> 0 | C41: =PROFORMA!C41 -> Total Hydraulic | D41: =PROFORMA!D41 -> 0 | F41: =PROFORMA!BO41 -> 0 | G41: =PROFORMA!BP41 -> 0 | H41: =IF(I19=-ROUND(R820,0),"Retail Sales Revenue Matches Checker","ERROR! RETAIL SALES REVENUE DOES NOT MATCH CHECKER") -> Retail Sales Revenue Matches Checker | I41: 5 | J41: 41 | K41: =B17 -> 506-OP | L41: =C17 -> Steam | M41: =D17 -> Miscellaneous Power Exp. | O41: P01 | P41: =IF(MATCH(O41,P_ref,0)>0,"","error matching functional allocator") ->  | Q41: =F17 -> 2220000 | AH41: 41 | AI41: C01 | AJ41: =VLOOKUP(AI41,class,2) -> Avg Customers-All | AK41: 100 | AL41: 0 | AM41: 99.96 | BB41: 41 | BE41: =IF(SUM(BG41:BQ41)=BF41,"","error") ->  | BF41: =BF40/$BF40 -> 1 | BG41: 0.8548834533 | BH41: 0.127771296 | BI41: 0.007527209208 | BJ41: 9.117083168e-05 | BK41: 0.009726870687 | BL41: 0 | BM41: 0 | BN41: 0 | BO41: 0 | BP41: 0 | BQ41: 0
A42: =PROFORMA!A42 -> 42 | B42: =PROFORMA!B42 -> 0 | C42: =PROFORMA!C42 -> 0 | D42: =PROFORMA!D42 -> 0 | F42: =PROFORMA!BO42 -> 0 | G42: =PROFORMA!BP42 -> 0 | I42: 6 | J42: 42 | L42: P | M42: =HLOOKUP("Factor Name",pfactor,3) -> Coincident Peak | N42: =IF(MATCH(P42,ref,0)>0,"","matching error") ->  | O42: =HLOOKUP(O41,pfactor,3) -> 39.52 | P42: =HLOOKUP("Class",pfactor,3) -> D01 | R42: =Q41*O42/SUM(O42:O45) -> 877344 | S42: =$R42*(VLOOKUP($P42,class,5)/VLOOKUP($P42,class,4)) -> 425994.9451 | T42: =$R42*(VLOOKUP($P42,class,6)/VLOOKUP($P42,class,4)) -> 94582.50716 | U42: =$R42*(VLOOKUP($P42,class,7)/VLOOKUP($P42,class,4)) -> 198354.7099 | V42: =$R42*(VLOOKUP($P42,class,8)/VLOOKUP($P42,class,4)) -> 139710.3733 | W42: =$R42*(VLOOKUP($P42,class,9)/VLOOKUP($P42,class,4)) -> 17754.53048 | X42: =$R42*(VLOOKUP($P42,class,10)/VLOOKUP($P42,class,4)) -> 946.9340066 | Y42: =$R42*(VLOOKUP($P42,class,11)/VLOOKUP($P42,class,4)) -> 0 | Z42: =$R42*(VLOOKUP($P42,class,12)/VLOOKUP($P42,class,4)) -> 0 | AA42: =$R42*(VLOOKUP($P42,class,13)/VLOOKUP($P42,class,4)) -> 0 | AB42: =$R42*(VLOOKUP($P42,class,14)/VLOOKUP($P42,class,4)) -> 0 | AC42: =$R42*(VLOOKUP($P42,class,15)/VLOOKUP($P42,class,4)) -> 0 | AH42: 42 | AI42: C03 | AJ42: =VLOOKUP(AI42,class,2) -> Wt Customers-Meter Reading | AK42: 0 | AL42: 96.96 | AM42: 0 | BB42: 42 | BC42: C04 | BD42: =BD57 -> Wt Customers-Meters | BF42: =SUM(BG42:BQ42) -> 313281.2808 | BG42: =BG57*BG$51 -> 215664.5833 | BH42: 70591 | BI42: 17109.23917 | BJ42: 469.2 | BK42: 9447.258333 | BL42: 0 | BM42: 0 | BN42: 0 | BO42: 0 | BP42: 0 | BQ42: 0 | BR42: =BR57 -> Proportion Installed Meter Costs
A43: =PROFORMA!A43 -> 43 | B43: =PROFORMA!B43 -> 546-OP | C43: =PROFORMA!C43 -> Other | D43: =PROFORMA!D43 -> Supervision & Engineering | F43: =PROFORMA!BO43 -> 158000 | G43: =PROFORMA!BP43 -> 76348 | I43: 7 | J43: 43 | L43: P | M43: =HLOOKUP("Factor Name",pfactor,4) -> Generation Level Consumption | N43: =IF(MATCH(P43,ref,0)>0,"","matching error") ->  | O43: =HLOOKUP(O41,pfactor,4) -> 60.48 | P43: =HLOOKUP("Class",pfactor,4) -> E02 | R43: =Q41*O43/SUM(O42:O45) -> 1342656 | S43: =$R43*(VLOOKUP($P43,class,5)/VLOOKUP($P43,class,4)) -> 568000.9366 | T43: =$R43*(VLOOKUP($P43,class,6)/VLOOKUP($P43,class,4)) -> 148130.6331 | U43: =$R43*(VLOOKUP($P43,class,7)/VLOOKUP($P43,class,4)) -> 326254.8432 | V43: =$R43*(VLOOKUP($P43,class,8)/VLOOKUP($P43,class,4)) -> 260955.5378 | W43: =$R43*(VLOOKUP($P43,class,9)/VLOOKUP($P43,class,4)) -> 34879.01527 | X43: =$R43*(VLOOKUP($P43,class,10)/VLOOKUP($P43,class,4)) -> 4435.033976 | Y43: =$R43*(VLOOKUP($P43,class,11)/VLOOKUP($P43,class,4)) -> 0 | Z43: =$R43*(VLOOKUP($P43,class,12)/VLOOKUP($P43,class,4)) -> 0 | AA43: =$R43*(VLOOKUP($P43,class,13)/VLOOKUP($P43,class,4)) -> 0 | AB43: =$R43*(VLOOKUP($P43,class,14)/VLOOKUP($P43,class,4)) -> 0 | AC43: =$R43*(VLOOKUP($P43,class,15)/VLOOKUP($P43,class,4)) -> 0 | AH43: 43 | AI43: C06 | AJ43: =VLOOKUP(AI43,class,2) -> DA Handbilled | AK43: 0 | AL43: 3.04 | AM43: 0.04 | BB43: 43 | BE43: =IF(SUM(BG43:BQ43)=BF43,"","error") ->  | BF43: =BF42/$BF42 -> 1 | BG43: 0.6884055848 | BH43: 0.2253278581 | BI43: 0.05461302738 | BJ43: 0.001497695613 | BK43: 0.03015583411 | BL43: 0 | BM43: 0 | BN43: 0 | BO43: 0 | BP43: 0 | BQ43: 0
A44: =PROFORMA!A44 -> 44 | B44: =PROFORMA!B44 -> 547-OP | C44: =PROFORMA!C44 -> Other | D44: =PROFORMA!D44 -> Fuel | F44: =PROFORMA!BO44 -> 46054000 | G44: =PROFORMA!BP44 -> 0 | H44: =IF(I21=-ROUND(R823,0),"Sales For Resale Revenue Matches Checker","ERROR! SALES FOR RESALE REV DOES NOT MATCH CHECKER") -> Sales For Resale Revenue Matches Checker | I44: 8 | J44: 44 | L44: P | M44: =HLOOKUP("Factor Name",pfactor,5) -> Open | N44: =IF(MATCH(P44,ref,0)>0,"","matching error") ->  | O44: =HLOOKUP(O41,pfactor,5) -> 0 | P44: =HLOOKUP("Class",pfactor,5) -> xxx | R44: =Q41*O44/SUM(O42:O45) -> 0 | S44: =$R44*(VLOOKUP($P44,class,5)/VLOOKUP($P44,class,4)) -> 0 | T44: =$R44*(VLOOKUP($P44,class,6)/VLOOKUP($P44,class,4)) -> 0 | U44: =$R44*(VLOOKUP($P44,class,7)/VLOOKUP($P44,class,4)) -> 0 | V44: =$R44*(VLOOKUP($P44,class,8)/VLOOKUP($P44,class,4)) -> 0 | W44: =$R44*(VLOOKUP($P44,class,9)/VLOOKUP($P44,class,4)) -> 0 | X44: =$R44*(VLOOKUP($P44,class,10)/VLOOKUP($P44,class,4)) -> 0 | Y44: =$R44*(VLOOKUP($P44,class,11)/VLOOKUP($P44,class,4)) -> 0 | Z44: =$R44*(VLOOKUP($P44,class,12)/VLOOKUP($P44,class,4)) -> 0 | AA44: =$R44*(VLOOKUP($P44,class,13)/VLOOKUP($P44,class,4)) -> 0 | AB44: =$R44*(VLOOKUP($P44,class,14)/VLOOKUP($P44,class,4)) -> 0 | AC44: =$R44*(VLOOKUP($P44,class,15)/VLOOKUP($P44,class,4)) -> 0 | AH44: 44 | AI44: xxx | AJ44: =VLOOKUP(AI44,class,2) -> Open | AK44: 0 | AL44: 0 | AM44: 0 | BB44: 44 | BC44: C05 | BD44: =BD58 -> DA Street & Area Lights | BF44: =SUM(BG44:BQ44) -> 424.75 | BG44: =BG58*BG$51 -> 0 | BH44: 0 | BI44: 0 | BJ44: 0 | BK44: 0 | BL44: 424.75 | BM44: 0 | BN44: 0 | BO44: 0 | BP44: 0 | BQ44: 0 | BR44: =BR58 -> Direct Assigned to Street & Area Lights
A45: =PROFORMA!A45 -> 45 | B45: =PROFORMA!B45 -> 548-OP | C45: =PROFORMA!C45 -> Other | D45: =PROFORMA!D45 -> Generation Expenses | F45: =PROFORMA!BO45 -> 4335000 | G45: =PROFORMA!BP45 -> 205445 | H45: =IF(I24=-ROUND(R831,0),"Sales of Water Revenue Matches Checker","ERROR! SALES OF WATER REV DOES NOT MATCH CHECKER") -> Sales of Water Revenue Matches Checker | I45: 9 | J45: 45 | L45: P | M45: =HLOOKUP("Factor Name",pfactor,6) -> Open | N45: =IF(MATCH(P45,ref,0)>0,"","matching error") ->  | O45: =HLOOKUP(O41,pfactor,6) -> 0 | P45: =HLOOKUP("Class",pfactor,6) -> xxx | R45: =Q41*O45/SUM(O42:O45) -> 0 | S45: =$R45*(VLOOKUP($P45,class,5)/VLOOKUP($P45,class,4)) -> 0 | T45: =$R45*(VLOOKUP($P45,class,6)/VLOOKUP($P45,class,4)) -> 0 | U45: =$R45*(VLOOKUP($P45,class,7)/VLOOKUP($P45,class,4)) -> 0 | V45: =$R45*(VLOOKUP($P45,class,8)/VLOOKUP($P45,class,4)) -> 0 | W45: =$R45*(VLOOKUP($P45,class,9)/VLOOKUP($P45,class,4)) -> 0 | X45: =$R45*(VLOOKUP($P45,class,10)/VLOOKUP($P45,class,4)) -> 0 | Y45: =$R45*(VLOOKUP($P45,class,11)/VLOOKUP($P45,class,4)) -> 0 | Z45: =$R45*(VLOOKUP($P45,class,12)/VLOOKUP($P45,class,4)) -> 0 | AA45: =$R45*(VLOOKUP($P45,class,13)/VLOOKUP($P45,class,4)) -> 0 | AB45: =$R45*(VLOOKUP($P45,class,14)/VLOOKUP($P45,class,4)) -> 0 | AC45: =$R45*(VLOOKUP($P45,class,15)/VLOOKUP($P45,class,4)) -> 0 | AH45: 45 | AL45: MR | AM45: Billing | BB45: 45 | BE45: =IF(SUM(BG45:BQ45)=BF45,"","error") ->  | BF45: =BF44/$BF44 -> 1 | BG45: 0 | BH45: 0 | BI45: 0 | BJ45: 0 | BK45: 0 | BL45: 1 | BM45: 0 | BN45: 0 | BO45: 0 | BP45: 0 | BQ45: 0
A46: =PROFORMA!A46 -> 46 | B46: =PROFORMA!B46 -> 549-OP | C46: =PROFORMA!C46 -> Other | D46: =PROFORMA!D46 -> Miscellaneous Power Exp. | F46: =PROFORMA!BO46 -> 163000 | G46: =PROFORMA!BP46 -> 44762 | H46: =IF(I23=-ROUND(R829,0),"Misc. Service Revenue Matches Checker","ERROR! MISC SERVICE REV DOES NOT MATCH CHECKER") -> Misc. Service Revenue Matches Checker | I46: 10 | J46: 46 | K46: =B18 -> 507-OP | L46: =C18 -> Steam | M46: =D18 -> Rents | O46: P01 | P46: =IF(MATCH(O46,P_ref,0)>0,"","error matching functional allocator") ->  | Q46: =F18 -> 23000 | AH46: 46 | AI46: Customer Information Function Factor Table (ifactor) | BB46: 46 | BC46: C06 | BD46: =BD59 -> DA Handbilled | BF46: =SUM(BG46:BQ46) -> 23 | BG46: =BG59*BG$51 -> 0 | BH46: 0 | BI46: 0 | BJ46: 23 | BK46: 0 | BL46: 0 | BM46: 0 | BN46: 0 | BO46: 0 | BP46: 0 | BQ46: 0 | BR46: =BR59 -> Direct Assigned to Handbilled Customers
A47: =PROFORMA!A47 -> 47 | B47: =PROFORMA!B47 -> 550-OP | C47: =PROFORMA!C47 -> Other | D47: =PROFORMA!D47 -> Rents | F47: =PROFORMA!BO47 -> -22000 | G47: =PROFORMA!BP47 -> 0 | H47: =IF(I25=-ROUND(R833+R834+R835,0),"Rent Revenue Matches Checker","ERROR! RENT REVENUE DOES NOT MATCH CHECKER") -> Rent Revenue Matches Checker | I47: 11 | J47: 47 | L47: P | M47: =HLOOKUP("Factor Name",pfactor,3) -> Coincident Peak | N47: =IF(MATCH(P47,ref,0)>0,"","matching error") ->  | O47: =HLOOKUP(O46,pfactor,3) -> 39.52 | P47: =HLOOKUP("Class",pfactor,3) -> D01 | R47: =Q46*O47/SUM(O47:O50) -> 9089.6 | S47: =$R47*(VLOOKUP($P47,class,5)/VLOOKUP($P47,class,4)) -> 4413.461143 | T47: =$R47*(VLOOKUP($P47,class,6)/VLOOKUP($P47,class,4)) -> 979.908858 | U47: =$R47*(VLOOKUP($P47,class,7)/VLOOKUP($P47,class,4)) -> 2055.026274 | V47: =$R47*(VLOOKUP($P47,class,8)/VLOOKUP($P47,class,4)) -> 1447.449814 | W47: =$R47*(VLOOKUP($P47,class,9)/VLOOKUP($P47,class,4)) -> 183.9433338 | X47: =$R47*(VLOOKUP($P47,class,10)/VLOOKUP($P47,class,4)) -> 9.810577546 | Y47: =$R47*(VLOOKUP($P47,class,11)/VLOOKUP($P47,class,4)) -> 0 | Z47: =$R47*(VLOOKUP($P47,class,12)/VLOOKUP($P47,class,4)) -> 0 | AA47: =$R47*(VLOOKUP($P47,class,13)/VLOOKUP($P47,class,4)) -> 0 | AB47: =$R47*(VLOOKUP($P47,class,14)/VLOOKUP($P47,class,4)) -> 0 | AC47: =$R47*(VLOOKUP($P47,class,15)/VLOOKUP($P47,class,4)) -> 0 | AH47: 47 | AI47: Class | AJ47: Factor Name | AK47: I01 | AL47: I02 | AM47: I03 | AN47: I04 | BB47: 47 | BE47: =IF(SUM(BG47:BQ47)=BF47,"","error") ->  | BF47: =BF46/$BF46 -> 1 | BG47: 0 | BH47: 0 | BI47: 0 | BJ47: 1 | BK47: 0 | BL47: 0 | BM47: 0 | BN47: 0 | BO47: 0 | BP47: 0 | BQ47: 0
A48: =PROFORMA!A48 -> 48 | B48: =PROFORMA!B48 -> 0 | C48: =PROFORMA!C48 -> Total Other Operation | D48: =PROFORMA!D48 -> 0 | F48: =PROFORMA!BO48 -> 0 | G48: =PROFORMA!BP48 -> 0 | I48: 12 | J48: 48 | L48: P | M48: =HLOOKUP("Factor Name",pfactor,4) -> Generation Level Consumption | N48: =IF(MATCH(P48,ref,0)>0,"","matching error") ->  | O48: =HLOOKUP(O46,pfactor,4) -> 60.48 | P48: =HLOOKUP("Class",pfactor,4) -> E02 | R48: =Q46*O48/SUM(O47:O50) -> 13910.4 | S48: =$R48*(VLOOKUP($P48,class,5)/VLOOKUP($P48,class,4)) -> 5884.694388 | T48: =$R48*(VLOOKUP($P48,class,6)/VLOOKUP($P48,class,4)) -> 1534.686739 | U48: =$R48*(VLOOKUP($P48,class,7)/VLOOKUP($P48,class,4)) -> 3380.117745 | V48: =$R48*(VLOOKUP($P48,class,8)/VLOOKUP($P48,class,4)) -> 2703.59341 | W48: =$R48*(VLOOKUP($P48,class,9)/VLOOKUP($P48,class,4)) -> 361.3591672 | X48: =$R48*(VLOOKUP($P48,class,10)/VLOOKUP($P48,class,4)) -> 45.9485502 | Y48: =$R48*(VLOOKUP($P48,class,11)/VLOOKUP($P48,class,4)) -> 0 | Z48: =$R48*(VLOOKUP($P48,class,12)/VLOOKUP($P48,class,4)) -> 0 | AA48: =$R48*(VLOOKUP($P48,class,13)/VLOOKUP($P48,class,4)) -> 0 | AB48: =$R48*(VLOOKUP($P48,class,14)/VLOOKUP($P48,class,4)) -> 0 | AC48: =$R48*(VLOOKUP($P48,class,15)/VLOOKUP($P48,class,4)) -> 0 | AH48: 48 | AJ48: Total Factor | AK48: =AK49+AK50+AK51 -> 100 | AL48: =AL49+AL50+AL51 -> 100 | AM48: =AM49+AM50+AM51 -> 0 | AN48: =AN49+AN50+AN51 -> 0 | BB48: 48 | BC48: C07 | BD48: =BD60 -> DA Residential | BF48: =SUM(BG48:BQ48) -> 215664.5833 | BG48: =BG60*BG$51 -> 215664.5833 | BH48: 0 | BI48: 0 | BJ48: 0 | BK48: 0 | BL48: 0 | BM48: 0 | BN48: 0 | BO48: 0 | BP48: 0 | BQ48: 0 | BR48: Direct Assigned to Residential Customers
A49: =PROFORMA!A49 -> 49 | B49: =PROFORMA!B49 -> 551-MT | C49: =PROFORMA!C49 -> Other | D49: =PROFORMA!D49 -> Supervision & Engineering | F49: =PROFORMA!BO49 -> 322000 | G49: =PROFORMA!BP49 -> 214079 | J49: 49 | L49: P | M49: =HLOOKUP("Factor Name",pfactor,5) -> Open | N49: =IF(MATCH(P49,ref,0)>0,"","matching error") ->  | O49: =HLOOKUP(O46,pfactor,5) -> 0 | P49: =HLOOKUP("Class",pfactor,5) -> xxx | R49: =Q46*O49/SUM(O47:O50) -> 0 | S49: =$R49*(VLOOKUP($P49,class,5)/VLOOKUP($P49,class,4)) -> 0 | T49: =$R49*(VLOOKUP($P49,class,6)/VLOOKUP($P49,class,4)) -> 0 | U49: =$R49*(VLOOKUP($P49,class,7)/VLOOKUP($P49,class,4)) -> 0 | V49: =$R49*(VLOOKUP($P49,class,8)/VLOOKUP($P49,class,4)) -> 0 | W49: =$R49*(VLOOKUP($P49,class,9)/VLOOKUP($P49,class,4)) -> 0 | X49: =$R49*(VLOOKUP($P49,class,10)/VLOOKUP($P49,class,4)) -> 0 | Y49: =$R49*(VLOOKUP($P49,class,11)/VLOOKUP($P49,class,4)) -> 0 | Z49: =$R49*(VLOOKUP($P49,class,12)/VLOOKUP($P49,class,4)) -> 0 | AA49: =$R49*(VLOOKUP($P49,class,13)/VLOOKUP($P49,class,4)) -> 0 | AB49: =$R49*(VLOOKUP($P49,class,14)/VLOOKUP($P49,class,4)) -> 0 | AC49: =$R49*(VLOOKUP($P49,class,15)/VLOOKUP($P49,class,4)) -> 0 | AH49: 49 | AI49: C01 | AJ49: =VLOOKUP(AI49,class,2) -> Avg Customers-All | AK49: 100 | AL49: 100 | BB49: 49 | BF49: 1 | BG49: 1 | BH49: 0 | BI49: 0 | BJ49: 0 | BK49: 0 | BL49: 0 | BM49: 0 | BN49: 0 | BO49: 0 | BP49: 0 | BQ49: 0
A50: =PROFORMA!A50 -> 50 | B50: =PROFORMA!B50 -> 552-MT | C50: =PROFORMA!C50 -> Other | D50: =PROFORMA!D50 -> Structures | F50: =PROFORMA!BO50 -> 2000 | G50: =PROFORMA!BP50 -> 405 | J50: 50 | L50: P | M50: =HLOOKUP("Factor Name",pfactor,6) -> Open | N50: =IF(MATCH(P50,ref,0)>0,"","matching error") ->  | O50: =HLOOKUP(O46,pfactor,6) -> 0 | P50: =HLOOKUP("Class",pfactor,6) -> xxx | R50: =Q46*O50/SUM(O47:O50) -> 0 | S50: =$R50*(VLOOKUP($P50,class,5)/VLOOKUP($P50,class,4)) -> 0 | T50: =$R50*(VLOOKUP($P50,class,6)/VLOOKUP($P50,class,4)) -> 0 | U50: =$R50*(VLOOKUP($P50,class,7)/VLOOKUP($P50,class,4)) -> 0 | V50: =$R50*(VLOOKUP($P50,class,8)/VLOOKUP($P50,class,4)) -> 0 | W50: =$R50*(VLOOKUP($P50,class,9)/VLOOKUP($P50,class,4)) -> 0 | X50: =$R50*(VLOOKUP($P50,class,10)/VLOOKUP($P50,class,4)) -> 0 | Y50: =$R50*(VLOOKUP($P50,class,11)/VLOOKUP($P50,class,4)) -> 0 | Z50: =$R50*(VLOOKUP($P50,class,12)/VLOOKUP($P50,class,4)) -> 0 | AA50: =$R50*(VLOOKUP($P50,class,13)/VLOOKUP($P50,class,4)) -> 0 | AB50: =$R50*(VLOOKUP($P50,class,14)/VLOOKUP($P50,class,4)) -> 0 | AC50: =$R50*(VLOOKUP($P50,class,15)/VLOOKUP($P50,class,4)) -> 0 | AH50: 50 | AI50: S01 | AJ50: =VLOOKUP(AI50,class,2) -> Production Plant | AK50: 0 | AL50: 0 | BB50: 50 | BD50: No. of Customer Bills | BF50: =SUM(BG50:BQ50) -> 3032381 | BG50: 2587975 | BH50: 386800 | BI50: 22787 | BJ50: 276 | BK50: 29446 | BL50: 5097 | BM50: 0 | BN50: 0 | BO50: 0 | BP50: 0 | BQ50: 0
A51: =PROFORMA!A51 -> 51 | B51: =PROFORMA!B51 -> 553-MT | C51: =PROFORMA!C51 -> Other | D51: =PROFORMA!D51 -> Generating & Electric Plant | F51: =PROFORMA!BO51 -> 459000 | G51: =PROFORMA!BP51 -> 223570 | J51: 51 | L51: =C19 -> Total Steam Operation | N51: =IF(AND(ROUND($Q51,0)=ROUND($R51,0),ROUND(SUM($S51:$AC51),0)=ROUND($R51,0)),"","crossfoot error") ->  | Q51: =SUM(Q11:Q50) -> 26425000 | R51: 26425000 | S51: 11831685.21 | T51: 2889051.68 | U51: 6244507.857 | V51: 4769187.704 | W51: 626505.1561 | X51: 64062.38916 | Y51: 0 | Z51: 0 | AA51: 0 | AB51: 0 | AC51: 0 | AH51: 51 | AI51: xxx | AJ51: =VLOOKUP(AI51,class,2) -> Open | AK51: 0 | AL51: 0 | BB51: 51 | BD51: No. of Customers (Average) | BF51: =SUM(BG51:BQ51) -> 252698.4167 | BG51: =BG50/12 -> 215664.5833 | BH51: 32233.33333 | BI51: 1898.916667 | BJ51: 23 | BK51: 2453.833333 | BL51: 424.75 | BM51: 0 | BN51: 0 | BO51: 0 | BP51: 0 | BQ51: 0
A52: =PROFORMA!A52 -> 52 | B52: =PROFORMA!B52 -> 554-MT | C52: =PROFORMA!C52 -> Other | D52: =PROFORMA!D52 -> Miscellaneous Plant | F52: =PROFORMA!BO52 -> 122000 | G52: =PROFORMA!BP52 -> 47516 | J52: 52 | K52: =B20 -> 510-MT | L52: =C20 -> Steam | M52: =D20 -> Supervision & Engineering | O52: P01 | P52: =IF(MATCH(O52,P_ref,0)>0,"","error matching functional allocator") ->  | Q52: =F20 -> 347000 | AH52: 52 | AL52: DSM | BB52: 52
A53: =PROFORMA!A53 -> 53 | B53: =PROFORMA!B53 -> 0 | C53: =PROFORMA!C53 -> Total Other Maintenance | D53: =PROFORMA!D53 -> 0 | F53: =PROFORMA!BO53 -> 0 | G53: =PROFORMA!BP53 -> 0 | J53: 53 | L53: P | M53: =HLOOKUP("Factor Name",pfactor,3) -> Coincident Peak | N53: =IF(MATCH(P53,ref,0)>0,"","matching error") ->  | O53: =HLOOKUP(O52,pfactor,3) -> 39.52 | P53: =HLOOKUP("Class",pfactor,3) -> D01 | R53: =Q52*O53/SUM(O53:O56) -> 137134.4 | S53: =$R53*(VLOOKUP($P53,class,5)/VLOOKUP($P53,class,4)) -> 66585.69637 | T53: =$R53*(VLOOKUP($P53,class,6)/VLOOKUP($P53,class,4)) -> 14783.84234 | U53: =$R53*(VLOOKUP($P53,class,7)/VLOOKUP($P53,class,4)) -> 31004.09205 | V53: =$R53*(VLOOKUP($P53,class,8)/VLOOKUP($P53,class,4)) -> 21837.61241 | W53: =$R53*(VLOOKUP($P53,class,9)/VLOOKUP($P53,class,4)) -> 2775.145079 | X53: =$R53*(VLOOKUP($P53,class,10)/VLOOKUP($P53,class,4)) -> 148.0117569 | Y53: =$R53*(VLOOKUP($P53,class,11)/VLOOKUP($P53,class,4)) -> 0 | Z53: =$R53*(VLOOKUP($P53,class,12)/VLOOKUP($P53,class,4)) -> 0 | AA53: =$R53*(VLOOKUP($P53,class,13)/VLOOKUP($P53,class,4)) -> 0 | AB53: =$R53*(VLOOKUP($P53,class,14)/VLOOKUP($P53,class,4)) -> 0 | AC53: =$R53*(VLOOKUP($P53,class,15)/VLOOKUP($P53,class,4)) -> 0 | AH53: 53 | AI53: Sales Function Factor Table (sfactor) | BB53: 53 | BD53: Customer Weightings
A54: =PROFORMA!A54 -> 54 | B54: =PROFORMA!B54 -> 0 | C54: =PROFORMA!C54 -> Total Other | D54: =PROFORMA!D54 -> 0 | F54: =PROFORMA!BO54 -> 0 | G54: =PROFORMA!BP54 -> 0 | J54: 54 | L54: P | M54: =HLOOKUP("Factor Name",pfactor,4) -> Generation Level Consumption | N54: =IF(MATCH(P54,ref,0)>0,"","matching error") ->  | O54: =HLOOKUP(O52,pfactor,4) -> 60.48 | P54: =HLOOKUP("Class",pfactor,4) -> E02 | R54: =Q52*O54/SUM(O53:O56) -> 209865.6 | S54: =$R54*(VLOOKUP($P54,class,5)/VLOOKUP($P54,class,4)) -> 88782.12838 | T54: =$R54*(VLOOKUP($P54,class,6)/VLOOKUP($P54,class,4)) -> 23153.75211 | U54: =$R54*(VLOOKUP($P54,class,7)/VLOOKUP($P54,class,4)) -> 50995.68946 | V54: =$R54*(VLOOKUP($P54,class,8)/VLOOKUP($P54,class,4)) -> 40788.99623 | W54: =$R54*(VLOOKUP($P54,class,9)/VLOOKUP($P54,class,4)) -> 5451.810045 | X54: =$R54*(VLOOKUP($P54,class,10)/VLOOKUP($P54,class,4)) -> 693.2237791 | Y54: =$R54*(VLOOKUP($P54,class,11)/VLOOKUP($P54,class,4)) -> 0 | Z54: =$R54*(VLOOKUP($P54,class,12)/VLOOKUP($P54,class,4)) -> 0 | AA54: =$R54*(VLOOKUP($P54,class,13)/VLOOKUP($P54,class,4)) -> 0 | AB54: =$R54*(VLOOKUP($P54,class,14)/VLOOKUP($P54,class,4)) -> 0 | AC54: =$R54*(VLOOKUP($P54,class,15)/VLOOKUP($P54,class,4)) -> 0 | AH54: 54 | AI54: Class | AJ54: Factor Name | AK54: V01 | AL54: V02 | AM54: V03 | AN54: V04 | BB54: 54 | BD54: Avg Customers-All | BG54: 1 | BH54: 1 | BI54: 1 | BJ54: 1 | BK54: 1 | BL54: 1 | BM54: 1 | BN54: 0 | BO54: 0 | BP54: 0 | BQ54: 0 | BR54: Unweighted
A55: =PROFORMA!A55 -> 55 | B55: =PROFORMA!B55 -> 0 | C55: =PROFORMA!C55 -> 0 | D55: =PROFORMA!D55 -> 0 | F55: =PROFORMA!BO55 -> 0 | G55: =PROFORMA!BP55 -> 0 | J55: 55 | L55: P | M55: =HLOOKUP("Factor Name",pfactor,5) -> Open | N55: =IF(MATCH(P55,ref,0)>0,"","matching error") ->  | O55: =HLOOKUP(O52,pfactor,5) -> 0 | P55: =HLOOKUP("Class",pfactor,5) -> xxx | R55: =Q52*O55/SUM(O53:O56) -> 0 | S55: =$R55*(VLOOKUP($P55,class,5)/VLOOKUP($P55,class,4)) -> 0 | T55: =$R55*(VLOOKUP($P55,class,6)/VLOOKUP($P55,class,4)) -> 0 | U55: =$R55*(VLOOKUP($P55,class,7)/VLOOKUP($P55,class,4)) -> 0 | V55: =$R55*(VLOOKUP($P55,class,8)/VLOOKUP($P55,class,4)) -> 0 | W55: =$R55*(VLOOKUP($P55,class,9)/VLOOKUP($P55,class,4)) -> 0 | X55: =$R55*(VLOOKUP($P55,class,10)/VLOOKUP($P55,class,4)) -> 0 | Y55: =$R55*(VLOOKUP($P55,class,11)/VLOOKUP($P55,class,4)) -> 0 | Z55: =$R55*(VLOOKUP($P55,class,12)/VLOOKUP($P55,class,4)) -> 0 | AA55: =$R55*(VLOOKUP($P55,class,13)/VLOOKUP($P55,class,4)) -> 0 | AB55: =$R55*(VLOOKUP($P55,class,14)/VLOOKUP($P55,class,4)) -> 0 | AC55: =$R55*(VLOOKUP($P55,class,15)/VLOOKUP($P55,class,4)) -> 0 | AH55: 55 | AJ55: Total Factor | AK55: =AK56+AK57+AK58 -> 100 | AL55: =AL56+AL57+AL58 -> 100 | AM55: =AM56+AM57+AM58 -> 100 | AN55: =AN56+AN57+AN58 -> 0 | BB55: 55 | BD55: Avg Customers-Secondary | BG55: 1 | BH55: 1 | BI55: 1 | BJ55: 0 | BK55: 1 | BL55: 0 | BM55: 0 | BN55: 0 | BO55: 0 | BP55: 0 | BQ55: 0 | BR55: Unweighted Secondary w/o Lighting
A56: =PROFORMA!A56 -> 56 | B56: =PROFORMA!B56 -> 555-OP | C56: =PROFORMA!C56 -> Total Purchased Power | D56: =PROFORMA!D56 -> 0 | F56: =PROFORMA!BO56 -> 73242000 | G56: =PROFORMA!BP56 -> 0 | J56: 56 | L56: P | M56: =HLOOKUP("Factor Name",pfactor,6) -> Open | N56: =IF(MATCH(P56,ref,0)>0,"","matching error") ->  | O56: =HLOOKUP(O52,pfactor,6) -> 0 | P56: =HLOOKUP("Class",pfactor,6) -> xxx | R56: =Q52*O56/SUM(O53:O56) -> 0 | S56: =$R56*(VLOOKUP($P56,class,5)/VLOOKUP($P56,class,4)) -> 0 | T56: =$R56*(VLOOKUP($P56,class,6)/VLOOKUP($P56,class,4)) -> 0 | U56: =$R56*(VLOOKUP($P56,class,7)/VLOOKUP($P56,class,4)) -> 0 | V56: =$R56*(VLOOKUP($P56,class,8)/VLOOKUP($P56,class,4)) -> 0 | W56: =$R56*(VLOOKUP($P56,class,9)/VLOOKUP($P56,class,4)) -> 0 | X56: =$R56*(VLOOKUP($P56,class,10)/VLOOKUP($P56,class,4)) -> 0 | Y56: =$R56*(VLOOKUP($P56,class,11)/VLOOKUP($P56,class,4)) -> 0 | Z56: =$R56*(VLOOKUP($P56,class,12)/VLOOKUP($P56,class,4)) -> 0 | AA56: =$R56*(VLOOKUP($P56,class,13)/VLOOKUP($P56,class,4)) -> 0 | AB56: =$R56*(VLOOKUP($P56,class,14)/VLOOKUP($P56,class,4)) -> 0 | AC56: =$R56*(VLOOKUP($P56,class,15)/VLOOKUP($P56,class,4)) -> 0 | AH56: 56 | AI56: E02 | AJ56: =VLOOKUP(AI56,class,2) -> Generation Level Consumption | AK56: 100 | AL56: 0 | AM56: 50 | BB56: 56 | BD56: Wt Customers-Meter Reading | BG56: 1 | BH56: 1 | BI56: 1 | BJ56: 1 | BK56: 1 | BL56: 0 | BM56: 0 | BN56: 0 | BO56: 0 | BP56: 0 | BQ56: 0 | BR56: Est. Meter Reading Time
A57: =PROFORMA!A57 -> 57 | B57: =PROFORMA!B57 -> 556-OP | C57: =PROFORMA!C57 -> Total System Control & Load Dispatching | D57: =PROFORMA!D57 -> 0 | F57: =PROFORMA!BO57 -> 471000 | G57: =PROFORMA!BP57 -> 174504 | J57: 57 | K57: =B21 -> 511-MT | L57: =C21 -> Steam | M57: =D21 -> Structures | O57: P01 | P57: =IF(MATCH(O57,P_ref,0)>0,"","error matching functional allocator") ->  | Q57: =F21 -> 348000 | AH57: 57 | AI57: C01 | AJ57: =VLOOKUP(AI57,class,2) -> Avg Customers-All | AK57: 0 | AL57: 100 | AM57: 50 | BB57: 57 | BD57: Wt Customers-Meters | BG57: 1 | BH57: 2.19 | BI57: 9.01 | BJ57: 20.4 | BK57: 3.85 | BL57: 0 | BM57: 0 | BN57: 0 | BO57: 0 | BP57: 0 | BQ57: 0 | BR57: Proportion Installed Meter Costs
A58: =PROFORMA!A58 -> 58 | B58: =PROFORMA!B58 -> 557-OP | C58: =PROFORMA!C58 -> Total Other Expenses | D58: =PROFORMA!D58 -> 0 | F58: =PROFORMA!BO58 -> 3123000 | G58: =PROFORMA!BP58 -> 2570891 | J58: 58 | L58: P | M58: =HLOOKUP("Factor Name",pfactor,3) -> Coincident Peak | N58: =IF(MATCH(P58,ref,0)>0,"","matching error") ->  | O58: =HLOOKUP(O57,pfactor,3) -> 39.52 | P58: =HLOOKUP("Class",pfactor,3) -> D01 | R58: =Q57*O58/SUM(O58:O61) -> 137529.6 | S58: =$R58*(VLOOKUP($P58,class,5)/VLOOKUP($P58,class,4)) -> 66777.58599 | T58: =$R58*(VLOOKUP($P58,class,6)/VLOOKUP($P58,class,4)) -> 14826.44707 | U58: =$R58*(VLOOKUP($P58,class,7)/VLOOKUP($P58,class,4)) -> 31093.44102 | V58: =$R58*(VLOOKUP($P58,class,8)/VLOOKUP($P58,class,4)) -> 21900.54501 | W58: =$R58*(VLOOKUP($P58,class,9)/VLOOKUP($P58,class,4)) -> 2783.142615 | X58: =$R58*(VLOOKUP($P58,class,10)/VLOOKUP($P58,class,4)) -> 148.4383037 | Y58: =$R58*(VLOOKUP($P58,class,11)/VLOOKUP($P58,class,4)) -> 0 | Z58: =$R58*(VLOOKUP($P58,class,12)/VLOOKUP($P58,class,4)) -> 0 | AA58: =$R58*(VLOOKUP($P58,class,13)/VLOOKUP($P58,class,4)) -> 0 | AB58: =$R58*(VLOOKUP($P58,class,14)/VLOOKUP($P58,class,4)) -> 0 | AC58: =$R58*(VLOOKUP($P58,class,15)/VLOOKUP($P58,class,4)) -> 0 | AH58: 58 | AI58: xxx | AJ58: =VLOOKUP(AI58,class,2) -> Open | AK58: 0 | AL58: 0 | BB58: 58 | BD58: DA Street & Area Lights | BG58: 0 | BH58: 0 | BI58: 0 | BJ58: 0 | BK58: 0 | BL58: 1 | BM58: 0 | BN58: 0 | BO58: 0 | BP58: 0 | BQ58: 0 | BR58: Direct Assigned to Street & Area Lights
A59: =PROFORMA!A59 -> 59 | B59: =PROFORMA!B59 -> 0 | C59: =PROFORMA!C59 -> 0 | D59: =PROFORMA!D59 -> Total Production Expenses | F59: =PROFORMA!BO59 -> 0 | G59: =PROFORMA!BP59 -> 0 | J59: 59 | L59: P | M59: =HLOOKUP("Factor Name",pfactor,4) -> Generation Level Consumption | N59: =IF(MATCH(P59,ref,0)>0,"","matching error") ->  | O59: =HLOOKUP(O57,pfactor,4) -> 60.48 | P59: =HLOOKUP("Class",pfactor,4) -> E02 | R59: =Q57*O59/SUM(O58:O61) -> 210470.4 | S59: =$R59*(VLOOKUP($P59,class,5)/VLOOKUP($P59,class,4)) -> 89037.98466 | T59: =$R59*(VLOOKUP($P59,class,6)/VLOOKUP($P59,class,4)) -> 23220.47762 | U59: =$R59*(VLOOKUP($P59,class,7)/VLOOKUP($P59,class,4)) -> 51142.6511 | V59: =$R59*(VLOOKUP($P59,class,8)/VLOOKUP($P59,class,4)) -> 40906.54377 | W59: =$R59*(VLOOKUP($P59,class,9)/VLOOKUP($P59,class,4)) -> 5467.521313 | X59: =$R59*(VLOOKUP($P59,class,10)/VLOOKUP($P59,class,4)) -> 695.2215421 | Y59: =$R59*(VLOOKUP($P59,class,11)/VLOOKUP($P59,class,4)) -> 0 | Z59: =$R59*(VLOOKUP($P59,class,12)/VLOOKUP($P59,class,4)) -> 0 | AA59: =$R59*(VLOOKUP($P59,class,13)/VLOOKUP($P59,class,4)) -> 0 | AB59: =$R59*(VLOOKUP($P59,class,14)/VLOOKUP($P59,class,4)) -> 0 | AC59: =$R59*(VLOOKUP($P59,class,15)/VLOOKUP($P59,class,4)) -> 0 | AH59: 59 | BB59: 59 | BD59: DA Handbilled | BG59: 0 | BH59: 0 | BI59: 0 | BJ59: 1 | BK59: 0 | BL59: 0 | BM59: 1 | BN59: 0 | BO59: 0 | BP59: 0 | BQ59: 0 | BR59: Direct Assigned to Handbilled Customers
A60: =PROFORMA!A60 -> 60 | B60: =PROFORMA!B60 -> 0 | C60: =PROFORMA!C60 -> 0 | F60: =PROFORMA!BO60 -> 0 | G60: =PROFORMA!BP60 -> 0 | J60: 60 | L60: P | M60: =HLOOKUP("Factor Name",pfactor,5) -> Open | N60: =IF(MATCH(P60,ref,0)>0,"","matching error") ->  | O60: =HLOOKUP(O57,pfactor,5) -> 0 | P60: =HLOOKUP("Class",pfactor,5) -> xxx | R60: =Q57*O60/SUM(O58:O61) -> 0 | S60: =$R60*(VLOOKUP($P60,class,5)/VLOOKUP($P60,class,4)) -> 0 | T60: =$R60*(VLOOKUP($P60,class,6)/VLOOKUP($P60,class,4)) -> 0 | U60: =$R60*(VLOOKUP($P60,class,7)/VLOOKUP($P60,class,4)) -> 0 | V60: =$R60*(VLOOKUP($P60,class,8)/VLOOKUP($P60,class,4)) -> 0 | W60: =$R60*(VLOOKUP($P60,class,9)/VLOOKUP($P60,class,4)) -> 0 | X60: =$R60*(VLOOKUP($P60,class,10)/VLOOKUP($P60,class,4)) -> 0 | Y60: =$R60*(VLOOKUP($P60,class,11)/VLOOKUP($P60,class,4)) -> 0 | Z60: =$R60*(VLOOKUP($P60,class,12)/VLOOKUP($P60,class,4)) -> 0 | AA60: =$R60*(VLOOKUP($P60,class,13)/VLOOKUP($P60,class,4)) -> 0 | AB60: =$R60*(VLOOKUP($P60,class,14)/VLOOKUP($P60,class,4)) -> 0 | AC60: =$R60*(VLOOKUP($P60,class,15)/VLOOKUP($P60,class,4)) -> 0 | AH60: 60 | AI60: Miscellaneous Function Factor Table (mfactor) | BB60: 60 | BD60: DA Residential | BG60: 1 | BH60: 0 | BI60: 0 | BJ60: 0 | BK60: 0 | BL60: 0 | BM60: 0 | BN60: 0 | BO60: 0 | BP60: 0 | BQ60: 0 | BR60: Open
A61: =PROFORMA!A61 -> 61 | B61: =PROFORMA!B61 -> Proforma | C61: =PROFORMA!C61 -> 0 | F61: =PROFORMA!BO61 -> 0 | G61: =PROFORMA!BP61 -> 0 | J61: 61 | L61: P | M61: =HLOOKUP("Factor Name",pfactor,6) -> Open | N61: =IF(MATCH(P61,ref,0)>0,"","matching error") ->  | O61: =HLOOKUP(O57,pfactor,6) -> 0 | P61: =HLOOKUP("Class",pfactor,6) -> xxx | R61: =Q57*O61/SUM(O58:O61) -> 0 | S61: =$R61*(VLOOKUP($P61,class,5)/VLOOKUP($P61,class,4)) -> 0 | T61: =$R61*(VLOOKUP($P61,class,6)/VLOOKUP($P61,class,4)) -> 0 | U61: =$R61*(VLOOKUP($P61,class,7)/VLOOKUP($P61,class,4)) -> 0 | V61: =$R61*(VLOOKUP($P61,class,8)/VLOOKUP($P61,class,4)) -> 0 | W61: =$R61*(VLOOKUP($P61,class,9)/VLOOKUP($P61,class,4)) -> 0 | X61: =$R61*(VLOOKUP($P61,class,10)/VLOOKUP($P61,class,4)) -> 0 | Y61: =$R61*(VLOOKUP($P61,class,11)/VLOOKUP($P61,class,4)) -> 0 | Z61: =$R61*(VLOOKUP($P61,class,12)/VLOOKUP($P61,class,4)) -> 0 | AA61: =$R61*(VLOOKUP($P61,class,13)/VLOOKUP($P61,class,4)) -> 0 | AB61: =$R61*(VLOOKUP($P61,class,14)/VLOOKUP($P61,class,4)) -> 0 | AC61: =$R61*(VLOOKUP($P61,class,15)/VLOOKUP($P61,class,4)) -> 0 | AH61: 61 | AI61: Class | AJ61: Factor Name | AK61: M01 | AL61: M02 | AM61: M03 | AN61: M04 | BB61: 61
A62: =PROFORMA!A62 -> 62 | B62: =PROFORMA!B62 -> Pro Forma Results of Operations | C62: =PROFORMA!C62 -> 0 | F62: =PROFORMA!BO62 -> 0 | G62: =PROFORMA!BP62 -> 0 | J62: 62 | K62: =B22 -> 512-MT | L62: =C22 -> Steam | M62: =D22 -> Boiler Plant | O62: P01 | P62: =IF(MATCH(O62,P_ref,0)>0,"","error matching functional allocator") ->  | Q62: =F22 -> 4525000 | AH62: 62 | AJ62: Total Factor | AK62: =AK63+AK64+AK65+AK66 -> 100 | AL62: =AL63+AL64+AL65+AL66 -> 100 | AM62: =AM63+AM64+AM65+AM66 -> 100 | AN62: =AN63+AN64+AN65+AN66 -> 100 | BB62: 62 | BD62: Revenue Allocator Calculations
A63: =PROFORMA!A63 -> 63 | B63: =PROFORMA!B63 -> Company Settlement Case UE-190334 | C63: =PROFORMA!C63 -> 0 | F63: =PROFORMA!BO63 -> 0 | G63: =PROFORMA!BP63 -> 0 | J63: 63 | L63: P | M63: =HLOOKUP("Factor Name",pfactor,3) -> Coincident Peak | N63: =IF(MATCH(P63,ref,0)>0,"","matching error") ->  | O63: =HLOOKUP(O62,pfactor,3) -> 39.52 | P63: =HLOOKUP("Class",pfactor,3) -> D01 | R63: =Q62*O63/SUM(O63:O66) -> 1788280 | S63: =$R63*(VLOOKUP($P63,class,5)/VLOOKUP($P63,class,4)) -> 868300.5075 | T63: =$R63*(VLOOKUP($P63,class,6)/VLOOKUP($P63,class,4)) -> 192786.4166 | U63: =$R63*(VLOOKUP($P63,class,7)/VLOOKUP($P63,class,4)) -> 404304.0822 | V63: =$R63*(VLOOKUP($P63,class,8)/VLOOKUP($P63,class,4)) -> 284770.0177 | W63: =$R63*(VLOOKUP($P63,class,9)/VLOOKUP($P63,class,4)) -> 36188.85154 | X63: =$R63*(VLOOKUP($P63,class,10)/VLOOKUP($P63,class,4)) -> 1930.124495 | Y63: =$R63*(VLOOKUP($P63,class,11)/VLOOKUP($P63,class,4)) -> 0 | Z63: =$R63*(VLOOKUP($P63,class,12)/VLOOKUP($P63,class,4)) -> 0 | AA63: =$R63*(VLOOKUP($P63,class,13)/VLOOKUP($P63,class,4)) -> 0 | AB63: =$R63*(VLOOKUP($P63,class,14)/VLOOKUP($P63,class,4)) -> 0 | AC63: =$R63*(VLOOKUP($P63,class,15)/VLOOKUP($P63,class,4)) -> 0 | AH63: 63 | AI63: S05 | AJ63: =VLOOKUP(AI63,class,2) -> P/T/D Plant | AK63: 100 | AL63: 0 | AM63: 0 | AN63: 0 | BB63: 63 | BC63: R01 | BD63: Retail Sales Revenue | BF63: =SUM(BG63:BQ63) -> 530519000 | BG63: =216074000+14580000 -> 230654000 | BH63: =75061000+2131000 -> 77192000 | BI63: =125677000+7134000 -> 132811000 | BJ63: =66744000+3789000 -> 70533000 | BK63: =12039000+684000 -> 12723000 | BL63: =6424000+182000 -> 6606000 | BM63: 0 | BN63: 0 | BO63: 0 | BP63: 0 | BQ63: 0 | BR63: Input Revenue From Rates
A64: =PROFORMA!A64 -> 64 | B64: =PROFORMA!B64 -> 0 | C64: =PROFORMA!C64 -> 0 | F64: =PROFORMA!BO64 -> 0 | G64: =PROFORMA!BP64 -> 0 | J64: 64 | L64: P | M64: =HLOOKUP("Factor Name",pfactor,4) -> Generation Level Consumption | N64: =IF(MATCH(P64,ref,0)>0,"","matching error") ->  | O64: =HLOOKUP(O62,pfactor,4) -> 60.48 | P64: =HLOOKUP("Class",pfactor,4) -> E02 | R64: =Q62*O64/SUM(O63:O66) -> 2736720 | S64: =$R64*(VLOOKUP($P64,class,5)/VLOOKUP($P64,class,4)) -> 1157749.657 | T64: =$R64*(VLOOKUP($P64,class,6)/VLOOKUP($P64,class,4)) -> 301932.9345 | U64: =$R64*(VLOOKUP($P64,class,7)/VLOOKUP($P64,class,4)) -> 665001.426 | V64: =$R64*(VLOOKUP($P64,class,8)/VLOOKUP($P64,class,4)) -> 531902.6165 | W64: =$R64*(VLOOKUP($P64,class,9)/VLOOKUP($P64,class,4)) -> 71093.48834 | X64: =$R64*(VLOOKUP($P64,class,10)/VLOOKUP($P64,class,4)) -> 9039.877811 | Y64: =$R64*(VLOOKUP($P64,class,11)/VLOOKUP($P64,class,4)) -> 0 | Z64: =$R64*(VLOOKUP($P64,class,12)/VLOOKUP($P64,class,4)) -> 0 | AA64: =$R64*(VLOOKUP($P64,class,13)/VLOOKUP($P64,class,4)) -> 0 | AB64: =$R64*(VLOOKUP($P64,class,14)/VLOOKUP($P64,class,4)) -> 0 | AC64: =$R64*(VLOOKUP($P64,class,15)/VLOOKUP($P64,class,4)) -> 0 | AH64: 64 | AI64: S21 | AJ64: =VLOOKUP(AI64,class,2) -> Labor P/T/D Total | AK64: 0 | AL64: 0 | AM64: 100 | AN64: 0 | BB64: 64 | BE64: =IF(SUM(BG64:BQ64)=BF64,"","error") ->  | BF64: =BF63/$BF63 -> 1 | BG64: 0.4347704795 | BH64: 0.1455028001 | BI64: 0.2503416466 | BJ64: 0.1329509405 | BK64: 0.02398217594 | BL64: 0.01245195742 | BM64: 0 | BN64: 0 | BO64: 0 | BP64: 0 | BQ64: 0
A65: =PROFORMA!A65 -> 65 | B65: =PROFORMA!B65 -> (a) | C65: =PROFORMA!C65 -> (b) | F65: =PROFORMA!BO65 -> BO | G65: =PROFORMA!BP65 -> BP | J65: 65 | L65: P | M65: =HLOOKUP("Factor Name",pfactor,5) -> Open | N65: =IF(MATCH(P65,ref,0)>0,"","matching error") ->  | O65: =HLOOKUP(O62,pfactor,5) -> 0 | P65: =HLOOKUP("Class",pfactor,5) -> xxx | R65: =Q62*O65/SUM(O63:O66) -> 0 | S65: =$R65*(VLOOKUP($P65,class,5)/VLOOKUP($P65,class,4)) -> 0 | T65: =$R65*(VLOOKUP($P65,class,6)/VLOOKUP($P65,class,4)) -> 0 | U65: =$R65*(VLOOKUP($P65,class,7)/VLOOKUP($P65,class,4)) -> 0 | V65: =$R65*(VLOOKUP($P65,class,8)/VLOOKUP($P65,class,4)) -> 0 | W65: =$R65*(VLOOKUP($P65,class,9)/VLOOKUP($P65,class,4)) -> 0 | X65: =$R65*(VLOOKUP($P65,class,10)/VLOOKUP($P65,class,4)) -> 0 | Y65: =$R65*(VLOOKUP($P65,class,11)/VLOOKUP($P65,class,4)) -> 0 | Z65: =$R65*(VLOOKUP($P65,class,12)/VLOOKUP($P65,class,4)) -> 0 | AA65: =$R65*(VLOOKUP($P65,class,13)/VLOOKUP($P65,class,4)) -> 0 | AB65: =$R65*(VLOOKUP($P65,class,14)/VLOOKUP($P65,class,4)) -> 0 | AC65: =$R65*(VLOOKUP($P65,class,15)/VLOOKUP($P65,class,4)) -> 0 | AH65: 65 | AI65: S22 | AJ65: =VLOOKUP(AI65,class,2) -> Labor O&M excl A&G | AK65: 0 | AL65: 100 | AM65: 0 | AN65: 0 | BB65: 65 | BD65: Open | BF65: =SUM(BG65:BQ65) -> 0 | BG65: 0 | BH65: 0 | BI65: 0 | BJ65: 0 | BK65: 0 | BL65: 0 | BM65: 0 | BN65: 0 | BO65: 0 | BP65: 0 | BQ65: 0 | BR65: Open
A66: =PROFORMA!A66 -> 66 | B66: =PROFORMA!B66 -> 0 | C66: =PROFORMA!C66 -> 0 | F66: =PROFORMA!BO66 -> Transfer | G66: =PROFORMA!BP66 -> Transfer | J66: 66 | L66: P | M66: =HLOOKUP("Factor Name",pfactor,6) -> Open | N66: =IF(MATCH(P66,ref,0)>0,"","matching error") ->  | O66: =HLOOKUP(O62,pfactor,6) -> 0 | P66: =HLOOKUP("Class",pfactor,6) -> xxx | R66: =Q62*O66/SUM(O63:O66) -> 0 | S66: =$R66*(VLOOKUP($P66,class,5)/VLOOKUP($P66,class,4)) -> 0 | T66: =$R66*(VLOOKUP($P66,class,6)/VLOOKUP($P66,class,4)) -> 0 | U66: =$R66*(VLOOKUP($P66,class,7)/VLOOKUP($P66,class,4)) -> 0 | V66: =$R66*(VLOOKUP($P66,class,8)/VLOOKUP($P66,class,4)) -> 0 | W66: =$R66*(VLOOKUP($P66,class,9)/VLOOKUP($P66,class,4)) -> 0 | X66: =$R66*(VLOOKUP($P66,class,10)/VLOOKUP($P66,class,4)) -> 0 | Y66: =$R66*(VLOOKUP($P66,class,11)/VLOOKUP($P66,class,4)) -> 0 | Z66: =$R66*(VLOOKUP($P66,class,12)/VLOOKUP($P66,class,4)) -> 0 | AA66: =$R66*(VLOOKUP($P66,class,13)/VLOOKUP($P66,class,4)) -> 0 | AB66: =$R66*(VLOOKUP($P66,class,14)/VLOOKUP($P66,class,4)) -> 0 | AC66: =$R66*(VLOOKUP($P66,class,15)/VLOOKUP($P66,class,4)) -> 0 | AH66: 66 | AI66: S23 | AJ66: =VLOOKUP(AI66,class,2) -> Corporate Cost Allocator | AK66: 0 | AL66: 0 | AM66: 0 | AN66: 100 | BB66: 66 | BC66: R02 | BD66: Open | BF66: =SUM(BG66:BQ66) -> 0 | BG66: 0 | BH66: 0 | BI66: 0 | BJ66: 0 | BK66: 0 | BL66: 0 | BM66: =0 -> 0 | BN66: =0 -> 0 | BO66: 0 | BP66: 0 | BQ66: 0 | BR66: Open
A67: =PROFORMA!A67 -> 67 | B67: =PROFORMA!B67 -> Account | C67: =PROFORMA!C67 -> Description | F67: =PROFORMA!BO67 -> Proforma | G67: =PROFORMA!BP67 -> Labor | J67: 67 | K67: =B23 -> 513-MT | L67: =C23 -> Steam | M67: =D23 -> Electric Plant | O67: P01 | P67: =IF(MATCH(O67,P_ref,0)>0,"","error matching functional allocator") ->  | Q67: =F23 -> 1021000 | AH67: 67 | AK67: Plant Related | AL67: Total Labor | AM67: PTD Labor | BB67: 67
A68: =PROFORMA!A68 -> 68 | B68: =PROFORMA!B68 -> 0 | C68: =PROFORMA!C68 -> 0 | F68: =PROFORMA!BO68 -> Totals | G68: =PROFORMA!BP68 -> Totals | J68: 68 | L68: P | M68: =HLOOKUP("Factor Name",pfactor,3) -> Coincident Peak | N68: =IF(MATCH(P68,ref,0)>0,"","matching error") ->  | O68: =HLOOKUP(O67,pfactor,3) -> 39.52 | P68: =HLOOKUP("Class",pfactor,3) -> D01 | R68: =Q67*O68/SUM(O68:O71) -> 403499.2 | S68: =$R68*(VLOOKUP($P68,class,5)/VLOOKUP($P68,class,4)) -> 195919.2968 | T68: =$R68*(VLOOKUP($P68,class,6)/VLOOKUP($P68,class,4)) -> 43499.43235 | U68: =$R68*(VLOOKUP($P68,class,7)/VLOOKUP($P68,class,4)) -> 91225.29677 | V68: =$R68*(VLOOKUP($P68,class,8)/VLOOKUP($P68,class,4)) -> 64254.18521 | W68: =$R68*(VLOOKUP($P68,class,9)/VLOOKUP($P68,class,4)) -> 8165.484512 | X68: =$R68*(VLOOKUP($P68,class,10)/VLOOKUP($P68,class,4)) -> 435.5043337 | Y68: =$R68*(VLOOKUP($P68,class,11)/VLOOKUP($P68,class,4)) -> 0 | Z68: =$R68*(VLOOKUP($P68,class,12)/VLOOKUP($P68,class,4)) -> 0 | AA68: =$R68*(VLOOKUP($P68,class,13)/VLOOKUP($P68,class,4)) -> 0 | AB68: =$R68*(VLOOKUP($P68,class,14)/VLOOKUP($P68,class,4)) -> 0 | AC68: =$R68*(VLOOKUP($P68,class,15)/VLOOKUP($P68,class,4)) -> 0 | BB68: 68
A69: =PROFORMA!A69 -> 69 | B69: =PROFORMA!B69 -> 0 | C69: =PROFORMA!C69 -> Transmission Expenses | F69: =PROFORMA!BO69 -> 0 | G69: =PROFORMA!BP69 -> 0 | J69: 69 | L69: P | M69: =HLOOKUP("Factor Name",pfactor,4) -> Generation Level Consumption | N69: =IF(MATCH(P69,ref,0)>0,"","matching error") ->  | O69: =HLOOKUP(O67,pfactor,4) -> 60.48 | P69: =HLOOKUP("Class",pfactor,4) -> E02 | R69: =Q67*O69/SUM(O68:O71) -> 617500.8 | S69: =$R69*(VLOOKUP($P69,class,5)/VLOOKUP($P69,class,4)) -> 261229.2596 | T69: =$R69*(VLOOKUP($P69,class,6)/VLOOKUP($P69,class,4)) -> 68126.74611 | U69: =$R69*(VLOOKUP($P69,class,7)/VLOOKUP($P69,class,4)) -> 150047.8356 | V69: =$R69*(VLOOKUP($P69,class,8)/VLOOKUP($P69,class,4)) -> 120016.0379 | W69: =$R69*(VLOOKUP($P69,class,9)/VLOOKUP($P69,class,4)) -> 16041.20477 | X69: =$R69*(VLOOKUP($P69,class,10)/VLOOKUP($P69,class,4)) -> 2039.716076 | Y69: =$R69*(VLOOKUP($P69,class,11)/VLOOKUP($P69,class,4)) -> 0 | Z69: =$R69*(VLOOKUP($P69,class,12)/VLOOKUP($P69,class,4)) -> 0 | AA69: =$R69*(VLOOKUP($P69,class,13)/VLOOKUP($P69,class,4)) -> 0 | AB69: =$R69*(VLOOKUP($P69,class,14)/VLOOKUP($P69,class,4)) -> 0 | AC69: =$R69*(VLOOKUP($P69,class,15)/VLOOKUP($P69,class,4)) -> 0 | BB69: 69 | BD69: Total Revenue | BF69: =SUM(BG69:BQ69) -> 579094000 | BG69: =-S844 -> 252759014.1 | BH69: 82574231.66 | BI69: 144256902 | BJ69: 78727000.87 | BK69: 13899921.17 | BL69: 6876930.198 | BM69: 0 | BN69: 0 | BO69: 0 | BP69: 0 | BQ69: 0 | BR69: - line 844
A70: =PROFORMA!A70 -> 70 | B70: =PROFORMA!B70 -> 560-OP | C70: =PROFORMA!C70 -> Supervision & Engineering | F70: =PROFORMA!BO70 -> 1630000 | G70: =PROFORMA!BP70 -> 840372 | J70: 70 | L70: P | M70: =HLOOKUP("Factor Name",pfactor,5) -> Open | N70: =IF(MATCH(P70,ref,0)>0,"","matching error") ->  | O70: =HLOOKUP(O67,pfactor,5) -> 0 | P70: =HLOOKUP("Class",pfactor,5) -> xxx | R70: =Q67*O70/SUM(O68:O71) -> 0 | S70: =$R70*(VLOOKUP($P70,class,5)/VLOOKUP($P70,class,4)) -> 0 | T70: =$R70*(VLOOKUP($P70,class,6)/VLOOKUP($P70,class,4)) -> 0 | U70: =$R70*(VLOOKUP($P70,class,7)/VLOOKUP($P70,class,4)) -> 0 | V70: =$R70*(VLOOKUP($P70,class,8)/VLOOKUP($P70,class,4)) -> 0 | W70: =$R70*(VLOOKUP($P70,class,9)/VLOOKUP($P70,class,4)) -> 0 | X70: =$R70*(VLOOKUP($P70,class,10)/VLOOKUP($P70,class,4)) -> 0 | Y70: =$R70*(VLOOKUP($P70,class,11)/VLOOKUP($P70,class,4)) -> 0 | Z70: =$R70*(VLOOKUP($P70,class,12)/VLOOKUP($P70,class,4)) -> 0 | AA70: =$R70*(VLOOKUP($P70,class,13)/VLOOKUP($P70,class,4)) -> 0 | AB70: =$R70*(VLOOKUP($P70,class,14)/VLOOKUP($P70,class,4)) -> 0 | AC70: =$R70*(VLOOKUP($P70,class,15)/VLOOKUP($P70,class,4)) -> 0 | BB70: 70 | BD70: Less: Exp Before Income Tax | BF70: =SUM(BG70:BQ70) -> 443203000 | BG70: =S804 -> 215629517.3 | BH70: 51766901.05 | BI70: 98618926.74 | BJ70: 62209998.93 | BK70: 10782445.05 | BL70: 4195210.907 | BM70: 0 | BN70: 0 | BO70: 0 | BP70: 0 | BQ70: 0 | BR70: line 804
A71: =PROFORMA!A71 -> 71 | B71: =PROFORMA!B71 -> 561-OP | C71: =PROFORMA!C71 -> Load Dispatching | F71: =PROFORMA!BO71 -> 2274000 | G71: =PROFORMA!BP71 -> 1297618 | J71: 71 | L71: P | M71: =HLOOKUP("Factor Name",pfactor,6) -> Open | N71: =IF(MATCH(P71,ref,0)>0,"","matching error") ->  | O71: =HLOOKUP(O67,pfactor,6) -> 0 | P71: =HLOOKUP("Class",pfactor,6) -> xxx | R71: =Q67*O71/SUM(O68:O71) -> 0 | S71: =$R71*(VLOOKUP($P71,class,5)/VLOOKUP($P71,class,4)) -> 0 | T71: =$R71*(VLOOKUP($P71,class,6)/VLOOKUP($P71,class,4)) -> 0 | U71: =$R71*(VLOOKUP($P71,class,7)/VLOOKUP($P71,class,4)) -> 0 | V71: =$R71*(VLOOKUP($P71,class,8)/VLOOKUP($P71,class,4)) -> 0 | W71: =$R71*(VLOOKUP($P71,class,9)/VLOOKUP($P71,class,4)) -> 0 | X71: =$R71*(VLOOKUP($P71,class,10)/VLOOKUP($P71,class,4)) -> 0 | Y71: =$R71*(VLOOKUP($P71,class,11)/VLOOKUP($P71,class,4)) -> 0 | Z71: =$R71*(VLOOKUP($P71,class,12)/VLOOKUP($P71,class,4)) -> 0 | AA71: =$R71*(VLOOKUP($P71,class,13)/VLOOKUP($P71,class,4)) -> 0 | AB71: =$R71*(VLOOKUP($P71,class,14)/VLOOKUP($P71,class,4)) -> 0 | AC71: =$R71*(VLOOKUP($P71,class,15)/VLOOKUP($P71,class,4)) -> 0 | BB71: 71 | BD71: Less: Interest Expense | BF71: =SUM(BG71:BQ71) -> 44650000 | BG71: =S1480 -> 21928010.89 | BH71: 5264109.384 | BI71: 10328833.88 | BJ71: 5023981.939 | BK71: 1188455.435 | BL71: 916608.4736 | BM71: 0 | BN71: 0 | BO71: 0 | BP71: 0 | BQ71: 0 | BR71: line 1480
A72: =PROFORMA!A72 -> 72 | B72: =PROFORMA!B72 -> 562-OP | C72: =PROFORMA!C72 -> Station Expenses | F72: =PROFORMA!BO72 -> 340000 | G72: =PROFORMA!BP72 -> 95452 | J72: 72 | K72: =B24 -> 514-MT | L72: =C24 -> Steam | M72: =D24 -> Miscellaneous Plant | O72: P01 | P72: =IF(MATCH(O72,P_ref,0)>0,"","error matching functional allocator") ->  | Q72: =F24 -> 348000 | BB72: 72 | BC72: R03 | BD72: Income Tax Allocator A | BF72: =SUM(BG72:BQ72) -> 91241000 | BG72: =BG69-BG70-BG71 -> 15201485.9 | BH72: 25543221.23 | BI72: 35309141.36 | BJ72: 11493020 | BK72: 1929020.693 | BL72: 1765110.818 | BM72: 0 | BN72: 0 | BO72: 0 | BP72: 0 | BQ72: 0 | BR72: Rev - Exp before Inc Tax - Interest Exp
A73: =PROFORMA!A73 -> 73 | B73: =PROFORMA!B73 -> 563-OP | C73: =PROFORMA!C73 -> Overhead Line Expenses | F73: =PROFORMA!BO73 -> 306000 | G73: =PROFORMA!BP73 -> 48162 | J73: 73 | L73: P | M73: =HLOOKUP("Factor Name",pfactor,3) -> Coincident Peak | N73: =IF(MATCH(P73,ref,0)>0,"","matching error") ->  | O73: =HLOOKUP(O72,pfactor,3) -> 39.52 | P73: =HLOOKUP("Class",pfactor,3) -> D01 | R73: =Q72*O73/SUM(O73:O76) -> 137529.6 | S73: =$R73*(VLOOKUP($P73,class,5)/VLOOKUP($P73,class,4)) -> 66777.58599 | T73: =$R73*(VLOOKUP($P73,class,6)/VLOOKUP($P73,class,4)) -> 14826.44707 | U73: =$R73*(VLOOKUP($P73,class,7)/VLOOKUP($P73,class,4)) -> 31093.44102 | V73: =$R73*(VLOOKUP($P73,class,8)/VLOOKUP($P73,class,4)) -> 21900.54501 | W73: =$R73*(VLOOKUP($P73,class,9)/VLOOKUP($P73,class,4)) -> 2783.142615 | X73: =$R73*(VLOOKUP($P73,class,10)/VLOOKUP($P73,class,4)) -> 148.4383037 | Y73: =$R73*(VLOOKUP($P73,class,11)/VLOOKUP($P73,class,4)) -> 0 | Z73: =$R73*(VLOOKUP($P73,class,12)/VLOOKUP($P73,class,4)) -> 0 | AA73: =$R73*(VLOOKUP($P73,class,13)/VLOOKUP($P73,class,4)) -> 0 | AB73: =$R73*(VLOOKUP($P73,class,14)/VLOOKUP($P73,class,4)) -> 0 | AC73: =$R73*(VLOOKUP($P73,class,15)/VLOOKUP($P73,class,4)) -> 0 | BB73: 73 | BE73: =IF(SUM(BG73:BQ73)=BF73,"","error") ->  | BF73: =BF72/$BF72 -> 1 | BG73: 0.1666080589 | BH73: 0.2799533239 | BI73: 0.3869876631 | BJ73: 0.1259633279 | BK73: 0.02114203804 | BL73: 0.01934558825 | BM73: 0 | BN73: 0 | BO73: 0 | BP73: 0 | BQ73: 0
A74: =PROFORMA!A74 -> 74 | B74: =PROFORMA!B74 -> 564-OP | C74: =PROFORMA!C74 -> Underground Line Expenses | F74: =PROFORMA!BO74 -> 0 | G74: =PROFORMA!BP74 -> 0 | J74: 74 | L74: P | M74: =HLOOKUP("Factor Name",pfactor,4) -> Generation Level Consumption | N74: =IF(MATCH(P74,ref,0)>0,"","matching error") ->  | O74: =HLOOKUP(O72,pfactor,4) -> 60.48 | P74: =HLOOKUP("Class",pfactor,4) -> E02 | R74: =Q72*O74/SUM(O73:O76) -> 210470.4 | S74: =$R74*(VLOOKUP($P74,class,5)/VLOOKUP($P74,class,4)) -> 89037.98466 | T74: =$R74*(VLOOKUP($P74,class,6)/VLOOKUP($P74,class,4)) -> 23220.47762 | U74: =$R74*(VLOOKUP($P74,class,7)/VLOOKUP($P74,class,4)) -> 51142.6511 | V74: =$R74*(VLOOKUP($P74,class,8)/VLOOKUP($P74,class,4)) -> 40906.54377 | W74: =$R74*(VLOOKUP($P74,class,9)/VLOOKUP($P74,class,4)) -> 5467.521313 | X74: =$R74*(VLOOKUP($P74,class,10)/VLOOKUP($P74,class,4)) -> 695.2215421 | Y74: =$R74*(VLOOKUP($P74,class,11)/VLOOKUP($P74,class,4)) -> 0 | Z74: =$R74*(VLOOKUP($P74,class,12)/VLOOKUP($P74,class,4)) -> 0 | AA74: =$R74*(VLOOKUP($P74,class,13)/VLOOKUP($P74,class,4)) -> 0 | AB74: =$R74*(VLOOKUP($P74,class,14)/VLOOKUP($P74,class,4)) -> 0 | AC74: =$R74*(VLOOKUP($P74,class,15)/VLOOKUP($P74,class,4)) -> 0 | BB74: 74
A75: =PROFORMA!A75 -> 75 | B75: =PROFORMA!B75 -> 565-OP | C75: =PROFORMA!C75 -> Transmission of Electricity By Others | F75: =PROFORMA!BO75 -> 11441000 | G75: =PROFORMA!BP75 -> 0 | J75: 75 | L75: P | M75: =HLOOKUP("Factor Name",pfactor,5) -> Open | N75: =IF(MATCH(P75,ref,0)>0,"","matching error") ->  | O75: =HLOOKUP(O72,pfactor,5) -> 0 | P75: =HLOOKUP("Class",pfactor,5) -> xxx | R75: =Q72*O75/SUM(O73:O76) -> 0 | S75: =$R75*(VLOOKUP($P75,class,5)/VLOOKUP($P75,class,4)) -> 0 | T75: =$R75*(VLOOKUP($P75,class,6)/VLOOKUP($P75,class,4)) -> 0 | U75: =$R75*(VLOOKUP($P75,class,7)/VLOOKUP($P75,class,4)) -> 0 | V75: =$R75*(VLOOKUP($P75,class,8)/VLOOKUP($P75,class,4)) -> 0 | W75: =$R75*(VLOOKUP($P75,class,9)/VLOOKUP($P75,class,4)) -> 0 | X75: =$R75*(VLOOKUP($P75,class,10)/VLOOKUP($P75,class,4)) -> 0 | Y75: =$R75*(VLOOKUP($P75,class,11)/VLOOKUP($P75,class,4)) -> 0 | Z75: =$R75*(VLOOKUP($P75,class,12)/VLOOKUP($P75,class,4)) -> 0 | AA75: =$R75*(VLOOKUP($P75,class,13)/VLOOKUP($P75,class,4)) -> 0 | AB75: =$R75*(VLOOKUP($P75,class,14)/VLOOKUP($P75,class,4)) -> 0 | AC75: =$R75*(VLOOKUP($P75,class,15)/VLOOKUP($P75,class,4)) -> 0 | BB75: 75 | BD75: Uniform Return | BE75: =-$Q$846/$Q$1474 -> 0.0720998651 | BF75: =SUM(BG75:BQ75) -> 121482000 | BG75: =S$1474*$BE75 -> 59660887.33 | BH75: 14322386.03 | BI75: 28102293.32 | BJ75: 13669056.53 | BK75: 3233503.766 | BL75: 2493873.025 | BM75: 0 | BN75: 0 | BO75: 0 | BP75: 0 | BQ75: 0 | BR75: Juris Total Return * Class Rate Base line 1474
A76: =PROFORMA!A76 -> 76 | B76: =PROFORMA!B76 -> 566-OP | C76: =PROFORMA!C76 -> Miscellaneous Expenses | F76: =PROFORMA!BO76 -> 1841000 | G76: =PROFORMA!BP76 -> 536612 | J76: 76 | L76: P | M76: =HLOOKUP("Factor Name",pfactor,6) -> Open | N76: =IF(MATCH(P76,ref,0)>0,"","matching error") ->  | O76: =HLOOKUP(O72,pfactor,6) -> 0 | P76: =HLOOKUP("Class",pfactor,6) -> xxx | R76: =Q72*O76/SUM(O73:O76) -> 0 | S76: =$R76*(VLOOKUP($P76,class,5)/VLOOKUP($P76,class,4)) -> 0 | T76: =$R76*(VLOOKUP($P76,class,6)/VLOOKUP($P76,class,4)) -> 0 | U76: =$R76*(VLOOKUP($P76,class,7)/VLOOKUP($P76,class,4)) -> 0 | V76: =$R76*(VLOOKUP($P76,class,8)/VLOOKUP($P76,class,4)) -> 0 | W76: =$R76*(VLOOKUP($P76,class,9)/VLOOKUP($P76,class,4)) -> 0 | X76: =$R76*(VLOOKUP($P76,class,10)/VLOOKUP($P76,class,4)) -> 0 | Y76: =$R76*(VLOOKUP($P76,class,11)/VLOOKUP($P76,class,4)) -> 0 | Z76: =$R76*(VLOOKUP($P76,class,12)/VLOOKUP($P76,class,4)) -> 0 | AA76: =$R76*(VLOOKUP($P76,class,13)/VLOOKUP($P76,class,4)) -> 0 | AB76: =$R76*(VLOOKUP($P76,class,14)/VLOOKUP($P76,class,4)) -> 0 | AC76: =$R76*(VLOOKUP($P76,class,15)/VLOOKUP($P76,class,4)) -> 0 | BB76: 76 | BD76: Plus: Total Operating Expenses | BF76: =SUM(BG76:BQ76) -> 457612000 | BG76: =S816 -> 218030172.8 | BH76: 55800748.5 | BI76: 104195032 | BJ76: 64025004.52 | BK76: 11087080.67 | BL76: 4473961.488 | BM76: 0 | BN76: 0 | BO76: 0 | BP76: 0 | BQ76: 0 | BR76: line 816
A77: =PROFORMA!A77 -> 77 | B77: =PROFORMA!B77 -> 567-OP | C77: =PROFORMA!C77 -> Rents | F77: =PROFORMA!BO77 -> 128000 | G77: =PROFORMA!BP77 -> 7753 | J77: 77 | L77: =C25 -> Total Steam Maintenance | N77: =IF(AND(ROUND($Q77,0)=ROUND($R77,0),ROUND(SUM($S77:$AC77),0)=ROUND($R77,0)),"","crossfoot error") ->  | Q77: =SUM(Q52:Q76) -> 6589000 | R77: 6589000 | S77: 2950197.687 | T77: 720376.9734 | U77: 1557050.606 | V77: 1189183.644 | W77: 156217.3121 | X77: 15973.77794 | Y77: 0 | Z77: 0 | AA77: 0 | AB77: 0 | AC77: 0 | BB77: 77 | BD77: Less: Revenue Offsets | BF77: =SUM(BG77:BQ77) -> -48575000 | BG77: =SUM(S$821:S$824)+S$842 -> -22105014.12 | BH77: -5382231.662 | BI77: -11445901.98 | BJ77: -8194000.868 | BK77: -1176921.174 | BL77: -270930.1978 | BM77: 0 | BN77: 0 | BO77: 0 | BP77: 0 | BQ77: 0 | BR77: sum lines 821 ~ 824 + line 842
A78: =PROFORMA!A78 -> 78 | B78: =PROFORMA!B78 -> 0 | C78: =PROFORMA!C78 -> Total Transmission Operation | F78: =PROFORMA!BO78 -> 0 | G78: =PROFORMA!BP78 -> 0 | J78: 78 | L78: =C26 -> Total Steam | N78: =IF(AND(ROUND($Q78,0)=ROUND($R78,0),ROUND(SUM($S78:$AC78),0)=ROUND($R78,0)),"","crossfoot error") ->  | Q78: =Q51+Q77 -> 33014000 | R78: 33014000 | S78: 14781882.9 | T78: 3609428.654 | U78: 7801558.463 | V78: 5958371.347 | W78: 782722.4682 | X78: 80036.1671 | Y78: 0 | Z78: 0 | AA78: 0 | AB78: 0 | AC78: 0 | BB78: 78 | BD78: Rate Revenue at Uniform Return | BF78: =SUM(BG78:BQ78) -> 530519000 | BG78: =BG75+BG76+BG77 -> 255586046.1 | BH78: 64740902.86 | BI78: 120851423.3 | BJ78: 69500060.18 | BK78: 13143663.26 | BL78: 6696904.315 | BM78: 0 | BN78: 0 | BO78: 0 | BP78: 0 | BQ78: 0 | BR78: Computed Uniform Return Revenue Requirement
A79: =PROFORMA!A79 -> 79 | B79: =PROFORMA!B79 -> 568-MT | C79: =PROFORMA!C79 -> Supervision & Engineering | F79: =PROFORMA!BO79 -> 478000 | G79: =PROFORMA!BP79 -> 260403 | J79: 79 | BB79: 79
A80: =PROFORMA!A80 -> 80 | B80: =PROFORMA!B80 -> 569-MT | C80: =PROFORMA!C80 -> Structures | F80: =PROFORMA!BO80 -> 534000 | G80: =PROFORMA!BP80 -> 258515 | J80: 80 | K80: =B28 -> 535-OP | L80: =C28 -> Hydro | M80: =D28 -> Supervision & Engineering | O80: P01 | P80: =IF(MATCH(O80,P_ref,0)>0,"","error matching functional allocator") ->  | Q80: =F28 -> 2175000 | BB80: 80 | BD80: Uniform Return | BE80: =-$Q$846/$Q$1474 -> 0.0720998651 | BF80: =SUM(BG80:BQ80) -> 121482000 | BG80: =S$1474*$BE80 -> 59660887.33 | BH80: 14322386.03 | BI80: 28102293.32 | BJ80: 13669056.53 | BK80: 3233503.766 | BL80: 2493873.025 | BM80: 0 | BN80: 0 | BO80: 0 | BP80: 0 | BQ80: 0 | BR80: Total Return * Class Rate Base line 1474
A81: =PROFORMA!A81 -> 81 | B81: =PROFORMA!B81 -> 570-MT | C81: =PROFORMA!C81 -> Station Equipment | F81: =PROFORMA!BO81 -> 583000 | G81: =PROFORMA!BP81 -> 282842 | J81: 81 | L81: P | M81: =HLOOKUP("Factor Name",pfactor,3) -> Coincident Peak | N81: =IF(MATCH(P81,ref,0)>0,"","matching error") ->  | O81: =HLOOKUP(O80,pfactor,3) -> 39.52 | P81: =HLOOKUP("Class",pfactor,3) -> D01 | R81: =Q80*O81/SUM(O81:O84) -> 859560 | S81: =$R81*(VLOOKUP($P81,class,5)/VLOOKUP($P81,class,4)) -> 417359.9124 | T81: =$R81*(VLOOKUP($P81,class,6)/VLOOKUP($P81,class,4)) -> 92665.29418 | U81: =$R81*(VLOOKUP($P81,class,7)/VLOOKUP($P81,class,4)) -> 194334.0064 | V81: =$R81*(VLOOKUP($P81,class,8)/VLOOKUP($P81,class,4)) -> 136878.4063 | W81: =$R81*(VLOOKUP($P81,class,9)/VLOOKUP($P81,class,4)) -> 17394.64135 | X81: =$R81*(VLOOKUP($P81,class,10)/VLOOKUP($P81,class,4)) -> 927.7393983 | Y81: =$R81*(VLOOKUP($P81,class,11)/VLOOKUP($P81,class,4)) -> 0 | Z81: =$R81*(VLOOKUP($P81,class,12)/VLOOKUP($P81,class,4)) -> 0 | AA81: =$R81*(VLOOKUP($P81,class,13)/VLOOKUP($P81,class,4)) -> 0 | AB81: =$R81*(VLOOKUP($P81,class,14)/VLOOKUP($P81,class,4)) -> 0 | AC81: =$R81*(VLOOKUP($P81,class,15)/VLOOKUP($P81,class,4)) -> 0 | BB81: 81 | BD81: Plus: Exp Excl Rev Conv Items | BF81: =SUM(BG81:BQ81) -> 432975000 | BG81: =S203+S264+S307+SUM(S310:S321)+SUM(S325:S328)+S348+S367+SUM(S372:S418)+SUM(S420:S439)+SUM(S444:S476)+S783+S803+S814 -> 207318732.5 | BH81: 52215996.01 | BI81: 98027364.83 | BJ81: 60749492.2 | BK81: 10496231.8 | BL81: 4167182.613 | BM81: 0 | BN81: 0 | BO81: 0 | BP81: 0 | BQ81: 0 | BR81: line 816 - lines 323, 419, and 477
A82: =PROFORMA!A82 -> 82 | B82: =PROFORMA!B82 -> 571-MT | C82: =PROFORMA!C82 -> Overhead Lines | F82: =PROFORMA!BO82 -> 882000 | G82: =PROFORMA!BP82 -> 20563 | J82: 82 | L82: P | M82: =HLOOKUP("Factor Name",pfactor,4) -> Generation Level Consumption | N82: =IF(MATCH(P82,ref,0)>0,"","matching error") ->  | O82: =HLOOKUP(O80,pfactor,4) -> 60.48 | P82: =HLOOKUP("Class",pfactor,4) -> E02 | R82: =Q80*O82/SUM(O81:O84) -> 1315440 | S82: =$R82*(VLOOKUP($P82,class,5)/VLOOKUP($P82,class,4)) -> 556487.4041 | T82: =$R82*(VLOOKUP($P82,class,6)/VLOOKUP($P82,class,4)) -> 145127.9851 | U82: =$R82*(VLOOKUP($P82,class,7)/VLOOKUP($P82,class,4)) -> 319641.5694 | V82: =$R82*(VLOOKUP($P82,class,8)/VLOOKUP($P82,class,4)) -> 255665.8985 | W82: =$R82*(VLOOKUP($P82,class,9)/VLOOKUP($P82,class,4)) -> 34172.00821 | X82: =$R82*(VLOOKUP($P82,class,10)/VLOOKUP($P82,class,4)) -> 4345.134638 | Y82: =$R82*(VLOOKUP($P82,class,11)/VLOOKUP($P82,class,4)) -> 0 | Z82: =$R82*(VLOOKUP($P82,class,12)/VLOOKUP($P82,class,4)) -> 0 | AA82: =$R82*(VLOOKUP($P82,class,13)/VLOOKUP($P82,class,4)) -> 0 | AB82: =$R82*(VLOOKUP($P82,class,14)/VLOOKUP($P82,class,4)) -> 0 | AC82: =$R82*(VLOOKUP($P82,class,15)/VLOOKUP($P82,class,4)) -> 0 | BB82: 82 | BD82: Less: Revenue Offsets | BF82: =SUM(BG82:BQ82) -> -48575000 | BG82: =SUM(S$821:S$824)+S$842 -> -22105014.12 | BH82: -5382231.662 | BI82: -11445901.98 | BJ82: -8194000.868 | BK82: -1176921.174 | BL82: -270930.1978 | BM82: 0 | BN82: 0 | BO82: 0 | BP82: 0 | BQ82: 0 | BR82: sum lines 821 ~ 824 + line 842
A83: =PROFORMA!A83 -> 83 | B83: =PROFORMA!B83 -> 572-MT | C83: =PROFORMA!C83 -> Underground Lines | F83: =PROFORMA!BO83 -> 0 | G83: =PROFORMA!BP83 -> 0 | J83: 83 | L83: P | M83: =HLOOKUP("Factor Name",pfactor,5) -> Open | N83: =IF(MATCH(P83,ref,0)>0,"","matching error") ->  | O83: =HLOOKUP(O80,pfactor,5) -> 0 | P83: =HLOOKUP("Class",pfactor,5) -> xxx | R83: =Q80*O83/SUM(O81:O84) -> 0 | S83: =$R83*(VLOOKUP($P83,class,5)/VLOOKUP($P83,class,4)) -> 0 | T83: =$R83*(VLOOKUP($P83,class,6)/VLOOKUP($P83,class,4)) -> 0 | U83: =$R83*(VLOOKUP($P83,class,7)/VLOOKUP($P83,class,4)) -> 0 | V83: =$R83*(VLOOKUP($P83,class,8)/VLOOKUP($P83,class,4)) -> 0 | W83: =$R83*(VLOOKUP($P83,class,9)/VLOOKUP($P83,class,4)) -> 0 | X83: =$R83*(VLOOKUP($P83,class,10)/VLOOKUP($P83,class,4)) -> 0 | Y83: =$R83*(VLOOKUP($P83,class,11)/VLOOKUP($P83,class,4)) -> 0 | Z83: =$R83*(VLOOKUP($P83,class,12)/VLOOKUP($P83,class,4)) -> 0 | AA83: =$R83*(VLOOKUP($P83,class,13)/VLOOKUP($P83,class,4)) -> 0 | AB83: =$R83*(VLOOKUP($P83,class,14)/VLOOKUP($P83,class,4)) -> 0 | AC83: =$R83*(VLOOKUP($P83,class,15)/VLOOKUP($P83,class,4)) -> 0 | BB83: 83 | BC83: R04 | BD83: Revenue Conversion Allocator U | BF83: =SUM(BG83:BQ83) -> 505882000 | BG83: =BG80+BG81+BG82 -> 244874605.8 | BH83: 61156150.38 | BI83: 114683756.2 | BJ83: 66224547.86 | BK83: 12552814.4 | BL83: 6390125.44 | BM83: 0 | BN83: 0 | BO83: 0 | BP83: 0 | BQ83: 0 | BR83: Uniform Return Revenue Excl Rev Conversion Items
A84: =PROFORMA!A84 -> 84 | B84: =PROFORMA!B84 -> 573-MT | C84: =PROFORMA!C84 -> Miscellaneous Plant | F84: =PROFORMA!BO84 -> 64000 | G84: =PROFORMA!BP84 -> 10357 | J84: 84 | L84: P | M84: =HLOOKUP("Factor Name",pfactor,6) -> Open | N84: =IF(MATCH(P84,ref,0)>0,"","matching error") ->  | O84: =HLOOKUP(O80,pfactor,6) -> 0 | P84: =HLOOKUP("Class",pfactor,6) -> xxx | R84: =Q80*O84/SUM(O81:O84) -> 0 | S84: =$R84*(VLOOKUP($P84,class,5)/VLOOKUP($P84,class,4)) -> 0 | T84: =$R84*(VLOOKUP($P84,class,6)/VLOOKUP($P84,class,4)) -> 0 | U84: =$R84*(VLOOKUP($P84,class,7)/VLOOKUP($P84,class,4)) -> 0 | V84: =$R84*(VLOOKUP($P84,class,8)/VLOOKUP($P84,class,4)) -> 0 | W84: =$R84*(VLOOKUP($P84,class,9)/VLOOKUP($P84,class,4)) -> 0 | X84: =$R84*(VLOOKUP($P84,class,10)/VLOOKUP($P84,class,4)) -> 0 | Y84: =$R84*(VLOOKUP($P84,class,11)/VLOOKUP($P84,class,4)) -> 0 | Z84: =$R84*(VLOOKUP($P84,class,12)/VLOOKUP($P84,class,4)) -> 0 | AA84: =$R84*(VLOOKUP($P84,class,13)/VLOOKUP($P84,class,4)) -> 0 | AB84: =$R84*(VLOOKUP($P84,class,14)/VLOOKUP($P84,class,4)) -> 0 | AC84: =$R84*(VLOOKUP($P84,class,15)/VLOOKUP($P84,class,4)) -> 0 | BB84: 84 | BE84: =IF(SUM(BG84:BQ84)=BF84,"","error") ->  | BF84: =BF83/$BF83 -> 1 | BG84: 0.4840547909 | BH84: 0.120890149 | BI84: 0.2267006064 | BJ84: 0.1309090813 | BK84: 0.02481372019 | BL84: 0.01263165213 | BM84: 0 | BN84: 0 | BO84: 0 | BP84: 0 | BQ84: 0
A85: =PROFORMA!A85 -> 85 | B85: =PROFORMA!B85 -> 0 | C85: =PROFORMA!C85 -> Total Transmission Maintenance | F85: =PROFORMA!BO85 -> 0 | G85: =PROFORMA!BP85 -> 0 | J85: 85 | K85: =B29 -> 536-OP | L85: =C29 -> Hydro | M85: =D29 -> Water For Power | O85: P01 | P85: =IF(MATCH(O85,P_ref,0)>0,"","error matching functional allocator") ->  | Q85: =F29 -> 759000 | BB85: 85
A86: =PROFORMA!A86 -> 86 | B86: =PROFORMA!B86 -> 0 | C86: =PROFORMA!C86 -> Total Transmission Expenses | F86: =PROFORMA!BO86 -> 0 | G86: =PROFORMA!BP86 -> 0 | J86: 86 | L86: P | M86: =HLOOKUP("Factor Name",pfactor,3) -> Coincident Peak | N86: =IF(MATCH(P86,ref,0)>0,"","matching error") ->  | O86: =HLOOKUP(O85,pfactor,3) -> 39.52 | P86: =HLOOKUP("Class",pfactor,3) -> D01 | R86: =Q85*O86/SUM(O86:O89) -> 299956.8 | S86: =$R86*(VLOOKUP($P86,class,5)/VLOOKUP($P86,class,4)) -> 145644.2177 | T86: =$R86*(VLOOKUP($P86,class,6)/VLOOKUP($P86,class,4)) -> 32336.99231 | U86: =$R86*(VLOOKUP($P86,class,7)/VLOOKUP($P86,class,4)) -> 67815.86704 | V86: =$R86*(VLOOKUP($P86,class,8)/VLOOKUP($P86,class,4)) -> 47765.84385 | W86: =$R86*(VLOOKUP($P86,class,9)/VLOOKUP($P86,class,4)) -> 6070.130015 | X86: =$R86*(VLOOKUP($P86,class,10)/VLOOKUP($P86,class,4)) -> 323.749059 | Y86: =$R86*(VLOOKUP($P86,class,11)/VLOOKUP($P86,class,4)) -> 0 | Z86: =$R86*(VLOOKUP($P86,class,12)/VLOOKUP($P86,class,4)) -> 0 | AA86: =$R86*(VLOOKUP($P86,class,13)/VLOOKUP($P86,class,4)) -> 0 | AB86: =$R86*(VLOOKUP($P86,class,14)/VLOOKUP($P86,class,4)) -> 0 | AC86: =$R86*(VLOOKUP($P86,class,15)/VLOOKUP($P86,class,4)) -> 0 | BB86: 86 | BD86: Uniform Return | BE86: =-$Q$846/$Q$1474 -> 0.0720998651 | BF86: =SUM(BG86:BQ86) -> 121482000 | BG86: =S$1474*$BE86 -> 59660887.33 | BH86: 14322386.03 | BI86: 28102293.32 | BJ86: 13669056.53 | BK86: 3233503.766 | BL86: 2493873.025 | BM86: 0 | BN86: 0 | BO86: 0 | BP86: 0 | BQ86: 0 | BR86: Total Return * Class Rate Base line 1474
A87: =PROFORMA!A87 -> 87 | B87: =PROFORMA!B87 -> 0 | C87: =PROFORMA!C87 -> 0 | F87: =PROFORMA!BO87 -> 0 | G87: =PROFORMA!BP87 -> 0 | J87: 87 | L87: P | M87: =HLOOKUP("Factor Name",pfactor,4) -> Generation Level Consumption | N87: =IF(MATCH(P87,ref,0)>0,"","matching error") ->  | O87: =HLOOKUP(O85,pfactor,4) -> 60.48 | P87: =HLOOKUP("Class",pfactor,4) -> E02 | R87: =Q85*O87/SUM(O86:O89) -> 459043.2 | S87: =$R87*(VLOOKUP($P87,class,5)/VLOOKUP($P87,class,4)) -> 194194.9148 | T87: =$R87*(VLOOKUP($P87,class,6)/VLOOKUP($P87,class,4)) -> 50644.66239 | U87: =$R87*(VLOOKUP($P87,class,7)/VLOOKUP($P87,class,4)) -> 111543.8856 | V87: =$R87*(VLOOKUP($P87,class,8)/VLOOKUP($P87,class,4)) -> 89218.58253 | W87: =$R87*(VLOOKUP($P87,class,9)/VLOOKUP($P87,class,4)) -> 11924.85252 | X87: =$R87*(VLOOKUP($P87,class,10)/VLOOKUP($P87,class,4)) -> 1516.302157 | Y87: =$R87*(VLOOKUP($P87,class,11)/VLOOKUP($P87,class,4)) -> 0 | Z87: =$R87*(VLOOKUP($P87,class,12)/VLOOKUP($P87,class,4)) -> 0 | AA87: =$R87*(VLOOKUP($P87,class,13)/VLOOKUP($P87,class,4)) -> 0 | AB87: =$R87*(VLOOKUP($P87,class,14)/VLOOKUP($P87,class,4)) -> 0 | AC87: =$R87*(VLOOKUP($P87,class,15)/VLOOKUP($P87,class,4)) -> 0 | BB87: 87 | BD87: Less: Interest Expense | BF87: =SUM(BG87:BQ87) -> 44650000 | BG87: =S$1480 -> 21928010.89 | BH87: 5264109.384 | BI87: 10328833.88 | BJ87: 5023981.939 | BK87: 1188455.435 | BL87: 916608.4736 | BM87: 0 | BN87: 0 | BO87: 0 | BP87: 0 | BQ87: 0 | BR87: line 1480
A88: =PROFORMA!A88 -> 88 | B88: =PROFORMA!B88 -> 0 | C88: =PROFORMA!C88 -> Distribution Expenses | F88: =PROFORMA!BO88 -> 0 | G88: =PROFORMA!BP88 -> 0 | J88: 88 | L88: P | M88: =HLOOKUP("Factor Name",pfactor,5) -> Open | N88: =IF(MATCH(P88,ref,0)>0,"","matching error") ->  | O88: =HLOOKUP(O85,pfactor,5) -> 0 | P88: =HLOOKUP("Class",pfactor,5) -> xxx | R88: =Q85*O88/SUM(O86:O89) -> 0 | S88: =$R88*(VLOOKUP($P88,class,5)/VLOOKUP($P88,class,4)) -> 0 | T88: =$R88*(VLOOKUP($P88,class,6)/VLOOKUP($P88,class,4)) -> 0 | U88: =$R88*(VLOOKUP($P88,class,7)/VLOOKUP($P88,class,4)) -> 0 | V88: =$R88*(VLOOKUP($P88,class,8)/VLOOKUP($P88,class,4)) -> 0 | W88: =$R88*(VLOOKUP($P88,class,9)/VLOOKUP($P88,class,4)) -> 0 | X88: =$R88*(VLOOKUP($P88,class,10)/VLOOKUP($P88,class,4)) -> 0 | Y88: =$R88*(VLOOKUP($P88,class,11)/VLOOKUP($P88,class,4)) -> 0 | Z88: =$R88*(VLOOKUP($P88,class,12)/VLOOKUP($P88,class,4)) -> 0 | AA88: =$R88*(VLOOKUP($P88,class,13)/VLOOKUP($P88,class,4)) -> 0 | AB88: =$R88*(VLOOKUP($P88,class,14)/VLOOKUP($P88,class,4)) -> 0 | AC88: =$R88*(VLOOKUP($P88,class,15)/VLOOKUP($P88,class,4)) -> 0 | BB88: 88 | BC88: R05 | BD88: Income Tax Allocator U | BF88: =SUM(BG88:BQ88) -> 76832000 | BG88: =BG86-BG87 -> 37732876.44 | BH88: 9058276.645 | BI88: 17773459.45 | BJ88: 8645074.588 | BK88: 2045048.331 | BL88: 1577264.552 | BM88: 0 | BN88: 0 | BO88: 0 | BP88: 0 | BQ88: 0 | BR88: Uniform Return less Interest Expense
A89: =PROFORMA!A89 -> 89 | B89: =PROFORMA!B89 -> 580-OP | C89: =PROFORMA!C89 -> Supervision & Engineering | F89: =PROFORMA!BO89 -> 2776000 | G89: =PROFORMA!BP89 -> 1567434 | J89: 89 | L89: P | M89: =HLOOKUP("Factor Name",pfactor,6) -> Open | N89: =IF(MATCH(P89,ref,0)>0,"","matching error") ->  | O89: =HLOOKUP(O85,pfactor,6) -> 0 | P89: =HLOOKUP("Class",pfactor,6) -> xxx | R89: =Q85*O89/SUM(O86:O89) -> 0 | S89: =$R89*(VLOOKUP($P89,class,5)/VLOOKUP($P89,class,4)) -> 0 | T89: =$R89*(VLOOKUP($P89,class,6)/VLOOKUP($P89,class,4)) -> 0 | U89: =$R89*(VLOOKUP($P89,class,7)/VLOOKUP($P89,class,4)) -> 0 | V89: =$R89*(VLOOKUP($P89,class,8)/VLOOKUP($P89,class,4)) -> 0 | W89: =$R89*(VLOOKUP($P89,class,9)/VLOOKUP($P89,class,4)) -> 0 | X89: =$R89*(VLOOKUP($P89,class,10)/VLOOKUP($P89,class,4)) -> 0 | Y89: =$R89*(VLOOKUP($P89,class,11)/VLOOKUP($P89,class,4)) -> 0 | Z89: =$R89*(VLOOKUP($P89,class,12)/VLOOKUP($P89,class,4)) -> 0 | AA89: =$R89*(VLOOKUP($P89,class,13)/VLOOKUP($P89,class,4)) -> 0 | AB89: =$R89*(VLOOKUP($P89,class,14)/VLOOKUP($P89,class,4)) -> 0 | AC89: =$R89*(VLOOKUP($P89,class,15)/VLOOKUP($P89,class,4)) -> 0 | BB89: 89 | BE89: =IF(SUM(BG89:BQ89)=BF89,"","error") ->  | BF89: =BF88/$BF88 -> 1 | BG89: 0.4911088666 | BH89: 0.1178971867 | BI89: 0.2313288662 | BJ89: 0.1125191924 | BK89: 0.026617143 | BL89: 0.02052874521 | BM89: 0 | BN89: 0 | BO89: 0 | BP89: 0 | BQ89: 0
A90: =PROFORMA!A90 -> 90 | B90: =PROFORMA!B90 -> 581-OP | C90: =PROFORMA!C90 -> Load Dispatching | F90: =PROFORMA!BO90 -> 0 | G90: =PROFORMA!BP90 -> 0 | J90: 90 | K90: =B30 -> 537-OP | L90: =C30 -> Hydro | M90: =D30 -> Hydraulic Expenses | O90: P01 | P90: =IF(MATCH(O90,P_ref,0)>0,"","error matching functional allocator") ->  | Q90: =F30 -> 5687000 | BB90: 90
A91: =PROFORMA!A91 -> 91 | B91: =PROFORMA!B91 -> 582-OP | C91: =PROFORMA!C91 -> Station Expenses | F91: =PROFORMA!BO91 -> 492000 | G91: =PROFORMA!BP91 -> 201466 | J91: 91 | L91: P | M91: =HLOOKUP("Factor Name",pfactor,3) -> Coincident Peak | N91: =IF(MATCH(P91,ref,0)>0,"","matching error") ->  | O91: =HLOOKUP(O90,pfactor,3) -> 39.52 | P91: =HLOOKUP("Class",pfactor,3) -> D01 | R91: =Q90*O91/SUM(O91:O94) -> 2247502.4 | S91: =$R91*(VLOOKUP($P91,class,5)/VLOOKUP($P91,class,4)) -> 1091276.24 | T91: =$R91*(VLOOKUP($P91,class,6)/VLOOKUP($P91,class,4)) -> 242293.1163 | U91: =$R91*(VLOOKUP($P91,class,7)/VLOOKUP($P91,class,4)) -> 508127.5835 | V91: =$R91*(VLOOKUP($P91,class,8)/VLOOKUP($P91,class,4)) -> 357897.6996 | W91: =$R91*(VLOOKUP($P91,class,9)/VLOOKUP($P91,class,4)) -> 45481.98866 | X91: =$R91*(VLOOKUP($P91,class,10)/VLOOKUP($P91,class,4)) -> 2425.771935 | Y91: =$R91*(VLOOKUP($P91,class,11)/VLOOKUP($P91,class,4)) -> 0 | Z91: =$R91*(VLOOKUP($P91,class,12)/VLOOKUP($P91,class,4)) -> 0 | AA91: =$R91*(VLOOKUP($P91,class,13)/VLOOKUP($P91,class,4)) -> 0 | AB91: =$R91*(VLOOKUP($P91,class,14)/VLOOKUP($P91,class,4)) -> 0 | AC91: =$R91*(VLOOKUP($P91,class,15)/VLOOKUP($P91,class,4)) -> 0 | BB91: 91 | BC91: R06 | BD91: Income Tax Allocator B | BF91: =SUM(BG91:BQ91) -> 135891000 | BG91: =BG69-BG70 -> 37129496.79 | BH91: 30807330.61 | BI91: 45637975.24 | BJ91: 16517001.94 | BK91: 3117476.128 | BL91: 2681719.291 | BM91: 0 | BN91: 0 | BO91: 0 | BP91: 0 | BQ91: 0 | BR91: Net Income Before Tax
A92: =PROFORMA!A92 -> 92 | B92: =PROFORMA!B92 -> 583-OP | C92: =PROFORMA!C92 -> Overhead Line Expenses | F92: =PROFORMA!BO92 -> 1791000 | G92: =PROFORMA!BP92 -> 802026 | J92: 92 | L92: P | M92: =HLOOKUP("Factor Name",pfactor,4) -> Generation Level Consumption | N92: =IF(MATCH(P92,ref,0)>0,"","matching error") ->  | O92: =HLOOKUP(O90,pfactor,4) -> 60.48 | P92: =HLOOKUP("Class",pfactor,4) -> E02 | R92: =Q90*O92/SUM(O91:O94) -> 3439497.6 | S92: =$R92*(VLOOKUP($P92,class,5)/VLOOKUP($P92,class,4)) -> 1455054.652 | T92: =$R92*(VLOOKUP($P92,class,6)/VLOOKUP($P92,class,4)) -> 379467.9776 | U92: =$R92*(VLOOKUP($P92,class,7)/VLOOKUP($P92,class,4)) -> 835770.8529 | V92: =$R92*(VLOOKUP($P92,class,8)/VLOOKUP($P92,class,4)) -> 668492.8575 | W92: =$R92*(VLOOKUP($P92,class,9)/VLOOKUP($P92,class,4)) -> 89349.98192 | X92: =$R92*(VLOOKUP($P92,class,10)/VLOOKUP($P92,class,4)) -> 11361.27848 | Y92: =$R92*(VLOOKUP($P92,class,11)/VLOOKUP($P92,class,4)) -> 0 | Z92: =$R92*(VLOOKUP($P92,class,12)/VLOOKUP($P92,class,4)) -> 0 | AA92: =$R92*(VLOOKUP($P92,class,13)/VLOOKUP($P92,class,4)) -> 0 | AB92: =$R92*(VLOOKUP($P92,class,14)/VLOOKUP($P92,class,4)) -> 0 | AC92: =$R92*(VLOOKUP($P92,class,15)/VLOOKUP($P92,class,4)) -> 0 | BB92: 92 | BF92: =BF91/$BF91 -> 1 | BG92: 0.2732299916 | BH92: 0.2267061881 | BI92: 0.3358425153 | BJ92: 0.1215459592 | BK92: 0.02294100513 | BL92: 0.01973434069 | BM92: 0 | BN92: 0 | BO92: 0 | BP92: 0 | BQ92: 0
A93: =PROFORMA!A93 -> 93 | B93: =PROFORMA!B93 -> 584-OP | C93: =PROFORMA!C93 -> Underground Line Expenses | F93: =PROFORMA!BO93 -> 980000 | G93: =PROFORMA!BP93 -> 279809 | J93: 93 | L93: P | M93: =HLOOKUP("Factor Name",pfactor,5) -> Open | N93: =IF(MATCH(P93,ref,0)>0,"","matching error") ->  | O93: =HLOOKUP(O90,pfactor,5) -> 0 | P93: =HLOOKUP("Class",pfactor,5) -> xxx | R93: =Q90*O93/SUM(O91:O94) -> 0 | S93: =$R93*(VLOOKUP($P93,class,5)/VLOOKUP($P93,class,4)) -> 0 | T93: =$R93*(VLOOKUP($P93,class,6)/VLOOKUP($P93,class,4)) -> 0 | U93: =$R93*(VLOOKUP($P93,class,7)/VLOOKUP($P93,class,4)) -> 0 | V93: =$R93*(VLOOKUP($P93,class,8)/VLOOKUP($P93,class,4)) -> 0 | W93: =$R93*(VLOOKUP($P93,class,9)/VLOOKUP($P93,class,4)) -> 0 | X93: =$R93*(VLOOKUP($P93,class,10)/VLOOKUP($P93,class,4)) -> 0 | Y93: =$R93*(VLOOKUP($P93,class,11)/VLOOKUP($P93,class,4)) -> 0 | Z93: =$R93*(VLOOKUP($P93,class,12)/VLOOKUP($P93,class,4)) -> 0 | AA93: =$R93*(VLOOKUP($P93,class,13)/VLOOKUP($P93,class,4)) -> 0 | AB93: =$R93*(VLOOKUP($P93,class,14)/VLOOKUP($P93,class,4)) -> 0 | AC93: =$R93*(VLOOKUP($P93,class,15)/VLOOKUP($P93,class,4)) -> 0 | BB93: 93
A94: =PROFORMA!A94 -> 94 | B94: =PROFORMA!B94 -> 585-OP | C94: =PROFORMA!C94 -> Street Lighting & Signal Systems | F94: =PROFORMA!BO94 -> 6000 | G94: =PROFORMA!BP94 -> 3638 | J94: 94 | L94: P | M94: =HLOOKUP("Factor Name",pfactor,6) -> Open | N94: =IF(MATCH(P94,ref,0)>0,"","matching error") ->  | O94: =HLOOKUP(O90,pfactor,6) -> 0 | P94: =HLOOKUP("Class",pfactor,6) -> xxx | R94: =Q90*O94/SUM(O91:O94) -> 0 | S94: =$R94*(VLOOKUP($P94,class,5)/VLOOKUP($P94,class,4)) -> 0 | T94: =$R94*(VLOOKUP($P94,class,6)/VLOOKUP($P94,class,4)) -> 0 | U94: =$R94*(VLOOKUP($P94,class,7)/VLOOKUP($P94,class,4)) -> 0 | V94: =$R94*(VLOOKUP($P94,class,8)/VLOOKUP($P94,class,4)) -> 0 | W94: =$R94*(VLOOKUP($P94,class,9)/VLOOKUP($P94,class,4)) -> 0 | X94: =$R94*(VLOOKUP($P94,class,10)/VLOOKUP($P94,class,4)) -> 0 | Y94: =$R94*(VLOOKUP($P94,class,11)/VLOOKUP($P94,class,4)) -> 0 | Z94: =$R94*(VLOOKUP($P94,class,12)/VLOOKUP($P94,class,4)) -> 0 | AA94: =$R94*(VLOOKUP($P94,class,13)/VLOOKUP($P94,class,4)) -> 0 | AB94: =$R94*(VLOOKUP($P94,class,14)/VLOOKUP($P94,class,4)) -> 0 | AC94: =$R94*(VLOOKUP($P94,class,15)/VLOOKUP($P94,class,4)) -> 0 | BB94: 94 | BD94: Summed Allocators
A95: =PROFORMA!A95 -> 95 | B95: =PROFORMA!B95 -> 586-OP | C95: =PROFORMA!C95 -> Meter Expenses | F95: =PROFORMA!BO95 -> 1649000 | G95: =PROFORMA!BP95 -> 872999 | J95: 95 | K95: =B31 -> 538-OP | L95: =C31 -> Hydro | M95: =D31 -> Electric Expenses | O95: P01 | P95: =IF(MATCH(O95,P_ref,0)>0,"","error matching functional allocator") ->  | Q95: =F31 -> 5267000 | BB95: 95 | BC95: S01 | BD95: Production Plant | BF95: =SUM(BG95:BQ95) -> 925778000 | BG95: =S893 -> 414513297 | BH95: 101215534 | BI95: 218771163.5 | BJ95: 167084543.2 | BK95: 21949089.51 | BL95: 2244372.772 | BM95: 0 | BN95: 0 | BO95: 0 | BP95: 0 | BQ95: 0 | BR95: line 893
A96: =PROFORMA!A96 -> 96 | B96: =PROFORMA!B96 -> 587-OP | C96: =PROFORMA!C96 -> Customer Installations Expenses | F96: =PROFORMA!BO96 -> 610000 | G96: =PROFORMA!BP96 -> 301183 | J96: 96 | L96: P | M96: =HLOOKUP("Factor Name",pfactor,3) -> Coincident Peak | N96: =IF(MATCH(P96,ref,0)>0,"","matching error") ->  | O96: =HLOOKUP(O95,pfactor,3) -> 39.52 | P96: =HLOOKUP("Class",pfactor,3) -> D01 | R96: =Q95*O96/SUM(O96:O99) -> 2081518.4 | S96: =$R96*(VLOOKUP($P96,class,5)/VLOOKUP($P96,class,4)) -> 1010682.602 | T96: =$R96*(VLOOKUP($P96,class,6)/VLOOKUP($P96,class,4)) -> 224399.1285 | U96: =$R96*(VLOOKUP($P96,class,7)/VLOOKUP($P96,class,4)) -> 470601.0168 | V96: =$R96*(VLOOKUP($P96,class,8)/VLOOKUP($P96,class,4)) -> 331466.0074 | W96: =$R96*(VLOOKUP($P96,class,9)/VLOOKUP($P96,class,4)) -> 42123.02343 | X96: =$R96*(VLOOKUP($P96,class,10)/VLOOKUP($P96,class,4)) -> 2246.622258 | Y96: =$R96*(VLOOKUP($P96,class,11)/VLOOKUP($P96,class,4)) -> 0 | Z96: =$R96*(VLOOKUP($P96,class,12)/VLOOKUP($P96,class,4)) -> 0 | AA96: =$R96*(VLOOKUP($P96,class,13)/VLOOKUP($P96,class,4)) -> 0 | AB96: =$R96*(VLOOKUP($P96,class,14)/VLOOKUP($P96,class,4)) -> 0 | AC96: =$R96*(VLOOKUP($P96,class,15)/VLOOKUP($P96,class,4)) -> 0 | BB96: 96 | BE96: =IF(SUM(BG96:BQ96)=BF96,"","error") ->  | BF96: =BF95/$BF95 -> 1 | BG96: 0.4477458927 | BH96: 0.1093302433 | BI96: 0.2363106095 | BJ96: 0.1804801402 | BK96: 0.02370880439 | BL96: 0.002424309902 | BM96: 0 | BN96: 0 | BO96: 0 | BP96: 0 | BQ96: 0
A97: =PROFORMA!A97 -> 97 | B97: =PROFORMA!B97 -> 588-OP | C97: =PROFORMA!C97 -> Miscellaneous Expenses | F97: =PROFORMA!BO97 -> 5715000 | G97: =PROFORMA!BP97 -> 2920644 | J97: 97 | L97: P | M97: =HLOOKUP("Factor Name",pfactor,4) -> Generation Level Consumption | N97: =IF(MATCH(P97,ref,0)>0,"","matching error") ->  | O97: =HLOOKUP(O95,pfactor,4) -> 60.48 | P97: =HLOOKUP("Class",pfactor,4) -> E02 | R97: =Q95*O97/SUM(O96:O99) -> 3185481.6 | S97: =$R97*(VLOOKUP($P97,class,5)/VLOOKUP($P97,class,4)) -> 1347595.015 | T97: =$R97*(VLOOKUP($P97,class,6)/VLOOKUP($P97,class,4)) -> 351443.2632 | U97: =$R97*(VLOOKUP($P97,class,7)/VLOOKUP($P97,class,4)) -> 774046.9636 | V97: =$R97*(VLOOKUP($P97,class,8)/VLOOKUP($P97,class,4)) -> 619122.8909 | W97: =$R97*(VLOOKUP($P97,class,9)/VLOOKUP($P97,class,4)) -> 82751.2493 | X97: =$R97*(VLOOKUP($P97,class,10)/VLOOKUP($P97,class,4)) -> 10522.218 | Y97: =$R97*(VLOOKUP($P97,class,11)/VLOOKUP($P97,class,4)) -> 0 | Z97: =$R97*(VLOOKUP($P97,class,12)/VLOOKUP($P97,class,4)) -> 0 | AA97: =$R97*(VLOOKUP($P97,class,13)/VLOOKUP($P97,class,4)) -> 0 | AB97: =$R97*(VLOOKUP($P97,class,14)/VLOOKUP($P97,class,4)) -> 0 | AC97: =$R97*(VLOOKUP($P97,class,15)/VLOOKUP($P97,class,4)) -> 0 | BB97: 97 | BC97: S02 | BD97: Transmission Plant | BF97: =SUM(BG97:BQ97) -> 511427000 | BG97: =S932 -> 228989338.6 | BH97: 55914438.36 | BI97: 120855626.1 | BJ97: 92302416.64 | BK97: 12125322.7 | BL97: 1239857.54 | BM97: 0 | BN97: 0 | BO97: 0 | BP97: 0 | BQ97: 0 | BR97: line 932
A98: =PROFORMA!A98 -> 98 | B98: =PROFORMA!B98 -> 589-OP | C98: =PROFORMA!C98 -> Rents | F98: =PROFORMA!BO98 -> 257000 | G98: =PROFORMA!BP98 -> 20625 | J98: 98 | L98: P | M98: =HLOOKUP("Factor Name",pfactor,5) -> Open | N98: =IF(MATCH(P98,ref,0)>0,"","matching error") ->  | O98: =HLOOKUP(O95,pfactor,5) -> 0 | P98: =HLOOKUP("Class",pfactor,5) -> xxx | R98: =Q95*O98/SUM(O96:O99) -> 0 | S98: =$R98*(VLOOKUP($P98,class,5)/VLOOKUP($P98,class,4)) -> 0 | T98: =$R98*(VLOOKUP($P98,class,6)/VLOOKUP($P98,class,4)) -> 0 | U98: =$R98*(VLOOKUP($P98,class,7)/VLOOKUP($P98,class,4)) -> 0 | V98: =$R98*(VLOOKUP($P98,class,8)/VLOOKUP($P98,class,4)) -> 0 | W98: =$R98*(VLOOKUP($P98,class,9)/VLOOKUP($P98,class,4)) -> 0 | X98: =$R98*(VLOOKUP($P98,class,10)/VLOOKUP($P98,class,4)) -> 0 | Y98: =$R98*(VLOOKUP($P98,class,11)/VLOOKUP($P98,class,4)) -> 0 | Z98: =$R98*(VLOOKUP($P98,class,12)/VLOOKUP($P98,class,4)) -> 0 | AA98: =$R98*(VLOOKUP($P98,class,13)/VLOOKUP($P98,class,4)) -> 0 | AB98: =$R98*(VLOOKUP($P98,class,14)/VLOOKUP($P98,class,4)) -> 0 | AC98: =$R98*(VLOOKUP($P98,class,15)/VLOOKUP($P98,class,4)) -> 0 | BB98: 98 | BE98: =IF(SUM(BG98:BQ98)=BF98,"","error") ->  | BF98: =BF97/$BF97 -> 1 | BG98: 0.4477458927 | BH98: 0.1093302433 | BI98: 0.2363106095 | BJ98: 0.1804801402 | BK98: 0.02370880439 | BL98: 0.002424309902 | BM98: 0 | BN98: 0 | BO98: 0 | BP98: 0 | BQ98: 0
A99: =PROFORMA!A99 -> 99 | B99: =PROFORMA!B99 -> 0 | C99: =PROFORMA!C99 -> Total Distribution Operation | F99: =PROFORMA!BO99 -> 0 | G99: =PROFORMA!BP99 -> 0 | J99: 99 | L99: P | M99: =HLOOKUP("Factor Name",pfactor,6) -> Open | N99: =IF(MATCH(P99,ref,0)>0,"","matching error") ->  | O99: =HLOOKUP(O95,pfactor,6) -> 0 | P99: =HLOOKUP("Class",pfactor,6) -> xxx | R99: =Q95*O99/SUM(O96:O99) -> 0 | S99: =$R99*(VLOOKUP($P99,class,5)/VLOOKUP($P99,class,4)) -> 0 | T99: =$R99*(VLOOKUP($P99,class,6)/VLOOKUP($P99,class,4)) -> 0 | U99: =$R99*(VLOOKUP($P99,class,7)/VLOOKUP($P99,class,4)) -> 0 | V99: =$R99*(VLOOKUP($P99,class,8)/VLOOKUP($P99,class,4)) -> 0 | W99: =$R99*(VLOOKUP($P99,class,9)/VLOOKUP($P99,class,4)) -> 0 | X99: =$R99*(VLOOKUP($P99,class,10)/VLOOKUP($P99,class,4)) -> 0 | Y99: =$R99*(VLOOKUP($P99,class,11)/VLOOKUP($P99,class,4)) -> 0 | Z99: =$R99*(VLOOKUP($P99,class,12)/VLOOKUP($P99,class,4)) -> 0 | AA99: =$R99*(VLOOKUP($P99,class,13)/VLOOKUP($P99,class,4)) -> 0 | AB99: =$R99*(VLOOKUP($P99,class,14)/VLOOKUP($P99,class,4)) -> 0 | AC99: =$R99*(VLOOKUP($P99,class,15)/VLOOKUP($P99,class,4)) -> 0 | BB99: 99 | BC99: S03 | BD99: Distribution Plant | BF99: =SUM(BG99:BQ99) -> 1163733000 | BG99: =S1089 -> 628007485.8 | BH99: 148730688.2 | BI99: 265116022 | BJ99: 37824082.9 | BK99: 35186398.36 | BL99: 48868322.69 | BM99: 0 | BN99: 0 | BO99: 0 | BP99: 0 | BQ99: 0 | BR99: line 1089
A100: =PROFORMA!A100 -> 100 | B100: =PROFORMA!B100 -> 590-MT | C100: =PROFORMA!C100 -> Supervision & Engineering | F100: =PROFORMA!BO100 -> 892000 | G100: =PROFORMA!BP100 -> 384463 | J100: 100 | K100: =B32 -> 539-OP | L100: =C32 -> Hydro | M100: =D32 -> Miscellaneous Power Exp. | O100: P01 | P100: =IF(MATCH(O100,P_ref,0)>0,"","error matching functional allocator") ->  | Q100: =F32 -> 794000 | BB100: 100 | BE100: =IF(SUM(BG100:BQ100)=BF100,"","error") ->  | BF100: =BF99/$BF99 -> 1 | BG100: 0.539649117 | BH100: 0.1278048214 | BI100: 0.227815162 | BJ100: 0.03250237203 | BK100: 0.0302358001 | BL100: 0.04199272745 | BM100: 0 | BN100: 0 | BO100: 0 | BP100: 0 | BQ100: 0
A101: =PROFORMA!A101 -> 101 | B101: =PROFORMA!B101 -> 591-MT | C101: =PROFORMA!C101 -> Structures | F101: =PROFORMA!BO101 -> 301000 | G101: =PROFORMA!BP101 -> 145223 | J101: 101 | L101: P | M101: =HLOOKUP("Factor Name",pfactor,3) -> Coincident Peak | N101: =IF(MATCH(P101,ref,0)>0,"","matching error") ->  | O101: =HLOOKUP(O100,pfactor,3) -> 39.52 | P101: =HLOOKUP("Class",pfactor,3) -> D01 | R101: =Q100*O101/SUM(O101:O104) -> 313788.8 | S101: =$R101*(VLOOKUP($P101,class,5)/VLOOKUP($P101,class,4)) -> 152360.3542 | T101: =$R101*(VLOOKUP($P101,class,6)/VLOOKUP($P101,class,4)) -> 33828.15797 | U101: =$R101*(VLOOKUP($P101,class,7)/VLOOKUP($P101,class,4)) -> 70943.08094 | V101: =$R101*(VLOOKUP($P101,class,8)/VLOOKUP($P101,class,4)) -> 49968.48487 | W101: =$R101*(VLOOKUP($P101,class,9)/VLOOKUP($P101,class,4)) -> 6350.043783 | X101: =$R101*(VLOOKUP($P101,class,10)/VLOOKUP($P101,class,4)) -> 338.6781987 | Y101: =$R101*(VLOOKUP($P101,class,11)/VLOOKUP($P101,class,4)) -> 0 | Z101: =$R101*(VLOOKUP($P101,class,12)/VLOOKUP($P101,class,4)) -> 0 | AA101: =$R101*(VLOOKUP($P101,class,13)/VLOOKUP($P101,class,4)) -> 0 | AB101: =$R101*(VLOOKUP($P101,class,14)/VLOOKUP($P101,class,4)) -> 0 | AC101: =$R101*(VLOOKUP($P101,class,15)/VLOOKUP($P101,class,4)) -> 0 | BB101: 101 | BC101: S04 | BD101: General Plant | BF101: =SUM(BG101:BQ101) -> 287593000 | BG101: =S1142 -> 153718864 | BH101: 33806946.06 | BI101: 57574360.14 | BJ101: 31529854.6 | BK101: 6805139.466 | BL101: 4157835.694 | BM101: 0 | BN101: 0 | BO101: 0 | BP101: 0 | BQ101: 0 | BR101: line 1142
A102: =PROFORMA!A102 -> 102 | B102: =PROFORMA!B102 -> 592-MT | C102: =PROFORMA!C102 -> Station Equipment | F102: =PROFORMA!BO102 -> 559000 | G102: =PROFORMA!BP102 -> 232275 | J102: 102 | L102: P | M102: =HLOOKUP("Factor Name",pfactor,4) -> Generation Level Consumption | N102: =IF(MATCH(P102,ref,0)>0,"","matching error") ->  | O102: =HLOOKUP(O100,pfactor,4) -> 60.48 | P102: =HLOOKUP("Class",pfactor,4) -> E02 | R102: =Q100*O102/SUM(O101:O104) -> 480211.2 | S102: =$R102*(VLOOKUP($P102,class,5)/VLOOKUP($P102,class,4)) -> 203149.8845 | T102: =$R102*(VLOOKUP($P102,class,6)/VLOOKUP($P102,class,4)) -> 52980.05525 | U102: =$R102*(VLOOKUP($P102,class,7)/VLOOKUP($P102,class,4)) -> 116687.543 | V102: =$R102*(VLOOKUP($P102,class,8)/VLOOKUP($P102,class,4)) -> 93332.74641 | W102: =$R102*(VLOOKUP($P102,class,9)/VLOOKUP($P102,class,4)) -> 12474.7469 | X102: =$R102*(VLOOKUP($P102,class,10)/VLOOKUP($P102,class,4)) -> 1586.223863 | Y102: =$R102*(VLOOKUP($P102,class,11)/VLOOKUP($P102,class,4)) -> 0 | Z102: =$R102*(VLOOKUP($P102,class,12)/VLOOKUP($P102,class,4)) -> 0 | AA102: =$R102*(VLOOKUP($P102,class,13)/VLOOKUP($P102,class,4)) -> 0 | AB102: =$R102*(VLOOKUP($P102,class,14)/VLOOKUP($P102,class,4)) -> 0 | AC102: =$R102*(VLOOKUP($P102,class,15)/VLOOKUP($P102,class,4)) -> 0 | BB102: 102 | BE102: =IF(SUM(BG102:BQ102)=BF102,"","error") ->  | BF102: =BF101/$BF101 -> 1 | BG102: 0.5345014101 | BH102: 0.1175513523 | BI102: 0.2001938856 | BJ102: 0.1096335954 | BK102: 0.02366239605 | BL102: 0.01445736055 | BM102: 0 | BN102: 0 | BO102: 0 | BP102: 0 | BQ102: 0
A103: =PROFORMA!A103 -> 103 | B103: =PROFORMA!B103 -> 593-MT | C103: =PROFORMA!C103 -> Overhead Lines | F103: =PROFORMA!BO103 -> 7294000 | G103: =PROFORMA!BP103 -> 1249473 | J103: 103 | L103: P | M103: =HLOOKUP("Factor Name",pfactor,5) -> Open | N103: =IF(MATCH(P103,ref,0)>0,"","matching error") ->  | O103: =HLOOKUP(O100,pfactor,5) -> 0 | P103: =HLOOKUP("Class",pfactor,5) -> xxx | R103: =Q100*O103/SUM(O101:O104) -> 0 | S103: =$R103*(VLOOKUP($P103,class,5)/VLOOKUP($P103,class,4)) -> 0 | T103: =$R103*(VLOOKUP($P103,class,6)/VLOOKUP($P103,class,4)) -> 0 | U103: =$R103*(VLOOKUP($P103,class,7)/VLOOKUP($P103,class,4)) -> 0 | V103: =$R103*(VLOOKUP($P103,class,8)/VLOOKUP($P103,class,4)) -> 0 | W103: =$R103*(VLOOKUP($P103,class,9)/VLOOKUP($P103,class,4)) -> 0 | X103: =$R103*(VLOOKUP($P103,class,10)/VLOOKUP($P103,class,4)) -> 0 | Y103: =$R103*(VLOOKUP($P103,class,11)/VLOOKUP($P103,class,4)) -> 0 | Z103: =$R103*(VLOOKUP($P103,class,12)/VLOOKUP($P103,class,4)) -> 0 | AA103: =$R103*(VLOOKUP($P103,class,13)/VLOOKUP($P103,class,4)) -> 0 | AB103: =$R103*(VLOOKUP($P103,class,14)/VLOOKUP($P103,class,4)) -> 0 | AC103: =$R103*(VLOOKUP($P103,class,15)/VLOOKUP($P103,class,4)) -> 0 | BB103: 103 | BC103: S05 | BD103: P/T/D Plant | BF103: =SUM(BG103:BQ103) -> 2600938000 | BG103: =S893+S932+S1089 -> 1271510122 | BH103: 305860660.6 | BI103: 604742811.5 | BJ103: 297211042.7 | BK103: 69260810.58 | BL103: 52352553 | BM103: 0 | BN103: 0 | BO103: 0 | BP103: 0 | BQ103: 0 | BR103: Sum lines 893+932+1089
A104: =PROFORMA!A104 -> 104 | B104: =PROFORMA!B104 -> 594-MT | C104: =PROFORMA!C104 -> Underground Lines | F104: =PROFORMA!BO104 -> 655000 | G104: =PROFORMA!BP104 -> 387475 | J104: 104 | L104: P | M104: =HLOOKUP("Factor Name",pfactor,6) -> Open | N104: =IF(MATCH(P104,ref,0)>0,"","matching error") ->  | O104: =HLOOKUP(O100,pfactor,6) -> 0 | P104: =HLOOKUP("Class",pfactor,6) -> xxx | R104: =Q100*O104/SUM(O101:O104) -> 0 | S104: =$R104*(VLOOKUP($P104,class,5)/VLOOKUP($P104,class,4)) -> 0 | T104: =$R104*(VLOOKUP($P104,class,6)/VLOOKUP($P104,class,4)) -> 0 | U104: =$R104*(VLOOKUP($P104,class,7)/VLOOKUP($P104,class,4)) -> 0 | V104: =$R104*(VLOOKUP($P104,class,8)/VLOOKUP($P104,class,4)) -> 0 | W104: =$R104*(VLOOKUP($P104,class,9)/VLOOKUP($P104,class,4)) -> 0 | X104: =$R104*(VLOOKUP($P104,class,10)/VLOOKUP($P104,class,4)) -> 0 | Y104: =$R104*(VLOOKUP($P104,class,11)/VLOOKUP($P104,class,4)) -> 0 | Z104: =$R104*(VLOOKUP($P104,class,12)/VLOOKUP($P104,class,4)) -> 0 | AA104: =$R104*(VLOOKUP($P104,class,13)/VLOOKUP($P104,class,4)) -> 0 | AB104: =$R104*(VLOOKUP($P104,class,14)/VLOOKUP($P104,class,4)) -> 0 | AC104: =$R104*(VLOOKUP($P104,class,15)/VLOOKUP($P104,class,4)) -> 0 | BB104: 104 | BE104: =IF(SUM(BG104:BQ104)=BF104,"","error") ->  | BF104: =BF103/$BF103 -> 1 | BG104: 0.4888659866 | BH104: 0.1175962905 | BI104: 0.2325095068 | BJ104: 0.1142707142 | BK104: 0.02662916632 | BL104: 0.02012833562 | BM104: 0 | BN104: 0 | BO104: 0 | BP104: 0 | BQ104: 0
A105: =PROFORMA!A105 -> 105 | B105: =PROFORMA!B105 -> 595-MT | C105: =PROFORMA!C105 -> Line Transformers | F105: =PROFORMA!BO105 -> 307000 | G105: =PROFORMA!BP105 -> 192861 | J105: 105 | K105: =B33 -> 540-OP | L105: =C33 -> Hydro | M105: =D33 -> Rents | O105: P01 | P105: =IF(MATCH(O105,P_ref,0)>0,"","error matching functional allocator") ->  | Q105: =F33 -> 4342000 | BB105: 105 | BC105: S06 | BD105: P/T/D/G Plant | BF105: =SUM(BG105:BQ105) -> 2888531000 | BG105: =S893+S932+S1089+S1142 -> 1425228986 | BH105: 339667606.7 | BI105: 662317171.7 | BJ105: 328740897.3 | BK105: 76065950.04 | BL105: 56510388.7 | BM105: 0 | BN105: 0 | BO105: 0 | BP105: 0 | BQ105: 0 | BR105: Sum lines 893+932+1089+1142
A106: =PROFORMA!A106 -> 106 | B106: =PROFORMA!B106 -> 596-MT | C106: =PROFORMA!C106 -> Street Lighting & Signal Systems | F106: =PROFORMA!BO106 -> 206000 | G106: =PROFORMA!BP106 -> 106008 | J106: 106 | L106: P | M106: =HLOOKUP("Factor Name",pfactor,3) -> Coincident Peak | N106: =IF(MATCH(P106,ref,0)>0,"","matching error") ->  | O106: =HLOOKUP(O105,pfactor,3) -> 39.52 | P106: =HLOOKUP("Class",pfactor,3) -> D01 | R106: =Q105*O106/SUM(O106:O109) -> 1715958.4 | S106: =$R106*(VLOOKUP($P106,class,5)/VLOOKUP($P106,class,4)) -> 833184.7079 | T106: =$R106*(VLOOKUP($P106,class,6)/VLOOKUP($P106,class,4)) -> 184989.7505 | U106: =$R106*(VLOOKUP($P106,class,7)/VLOOKUP($P106,class,4)) -> 387953.221 | V106: =$R106*(VLOOKUP($P106,class,8)/VLOOKUP($P106,class,4)) -> 273253.3518 | W106: =$R106*(VLOOKUP($P106,class,9)/VLOOKUP($P106,class,4)) -> 34725.3024 | X106: =$R106*(VLOOKUP($P106,class,10)/VLOOKUP($P106,class,4)) -> 1852.066422 | Y106: =$R106*(VLOOKUP($P106,class,11)/VLOOKUP($P106,class,4)) -> 0 | Z106: =$R106*(VLOOKUP($P106,class,12)/VLOOKUP($P106,class,4)) -> 0 | AA106: =$R106*(VLOOKUP($P106,class,13)/VLOOKUP($P106,class,4)) -> 0 | AB106: =$R106*(VLOOKUP($P106,class,14)/VLOOKUP($P106,class,4)) -> 0 | AC106: =$R106*(VLOOKUP($P106,class,15)/VLOOKUP($P106,class,4)) -> 0 | BB106: 106 | BE106: =IF(SUM(BG106:BQ106)=BF106,"","error") ->  | BF106: =BF105/$BF105 -> 1 | BG106: 0.4934096209 | BH106: 0.1175918163 | BI106: 0.2292920421 | BJ106: 0.1138090252 | BK106: 0.02633378352 | BL106: 0.01956371204 | BM106: 0 | BN106: 0 | BO106: 0 | BP106: 0 | BQ106: 0
A107: =PROFORMA!A107 -> 107 | B107: =PROFORMA!B107 -> 597-MT | C107: =PROFORMA!C107 -> Meters | F107: =PROFORMA!BO107 -> 25000 | G107: =PROFORMA!BP107 -> 13211 | J107: 107 | L107: P | M107: =HLOOKUP("Factor Name",pfactor,4) -> Generation Level Consumption | N107: =IF(MATCH(P107,ref,0)>0,"","matching error") ->  | O107: =HLOOKUP(O105,pfactor,4) -> 60.48 | P107: =HLOOKUP("Class",pfactor,4) -> E02 | R107: =Q105*O107/SUM(O106:O109) -> 2626041.6 | S107: =$R107*(VLOOKUP($P107,class,5)/VLOOKUP($P107,class,4)) -> 1110927.958 | T107: =$R107*(VLOOKUP($P107,class,6)/VLOOKUP($P107,class,4)) -> 289722.1661 | U107: =$R107*(VLOOKUP($P107,class,7)/VLOOKUP($P107,class,4)) -> 638107.4456 | V107: =$R107*(VLOOKUP($P107,class,8)/VLOOKUP($P107,class,4)) -> 510391.4168 | W107: =$R107*(VLOOKUP($P107,class,9)/VLOOKUP($P107,class,4)) -> 68218.32627 | X107: =$R107*(VLOOKUP($P107,class,10)/VLOOKUP($P107,class,4)) -> 8674.287172 | Y107: =$R107*(VLOOKUP($P107,class,11)/VLOOKUP($P107,class,4)) -> 0 | Z107: =$R107*(VLOOKUP($P107,class,12)/VLOOKUP($P107,class,4)) -> 0 | AA107: =$R107*(VLOOKUP($P107,class,13)/VLOOKUP($P107,class,4)) -> 0 | AB107: =$R107*(VLOOKUP($P107,class,14)/VLOOKUP($P107,class,4)) -> 0 | AC107: =$R107*(VLOOKUP($P107,class,15)/VLOOKUP($P107,class,4)) -> 0 | BB107: 107 | BC107: S07 | BD107: Rate Base | BF107: =SUM(BG107:BQ107) -> 1684913000 | BG107: =S1474 -> 827475713.7 | BH107: 198646502.5 | BI107: 389769013.9 | BJ107: 189585050 | BK107: 44847570.27 | BL107: 34589149.68 | BM107: 0 | BN107: 0 | BO107: 0 | BP107: 0 | BQ107: =AC1474 -> 0 | BR107: line 1473
A108: =PROFORMA!A108 -> 108 | B108: =PROFORMA!B108 -> 598-MT | C108: =PROFORMA!C108 -> Miscellaneous Plant | F108: =PROFORMA!BO108 -> 99000 | G108: =PROFORMA!BP108 -> 77517 | J108: 108 | L108: P | M108: =HLOOKUP("Factor Name",pfactor,5) -> Open | N108: =IF(MATCH(P108,ref,0)>0,"","matching error") ->  | O108: =HLOOKUP(O105,pfactor,5) -> 0 | P108: =HLOOKUP("Class",pfactor,5) -> xxx | R108: =Q105*O108/SUM(O106:O109) -> 0 | S108: =$R108*(VLOOKUP($P108,class,5)/VLOOKUP($P108,class,4)) -> 0 | T108: =$R108*(VLOOKUP($P108,class,6)/VLOOKUP($P108,class,4)) -> 0 | U108: =$R108*(VLOOKUP($P108,class,7)/VLOOKUP($P108,class,4)) -> 0 | V108: =$R108*(VLOOKUP($P108,class,8)/VLOOKUP($P108,class,4)) -> 0 | W108: =$R108*(VLOOKUP($P108,class,9)/VLOOKUP($P108,class,4)) -> 0 | X108: =$R108*(VLOOKUP($P108,class,10)/VLOOKUP($P108,class,4)) -> 0 | Y108: =$R108*(VLOOKUP($P108,class,11)/VLOOKUP($P108,class,4)) -> 0 | Z108: =$R108*(VLOOKUP($P108,class,12)/VLOOKUP($P108,class,4)) -> 0 | AA108: =$R108*(VLOOKUP($P108,class,13)/VLOOKUP($P108,class,4)) -> 0 | AB108: =$R108*(VLOOKUP($P108,class,14)/VLOOKUP($P108,class,4)) -> 0 | AC108: =$R108*(VLOOKUP($P108,class,15)/VLOOKUP($P108,class,4)) -> 0 | BB108: 108 | BE108: =IF(SUM(BG108:BQ108)=BF108,"","error") ->  | BF108: =BF107/$BF107 -> 1 | BG108: 0.4911088666 | BH108: 0.1178971867 | BI108: 0.2313288662 | BJ108: 0.1125191924 | BK108: 0.026617143 | BL108: 0.02052874521 | BM108: 0 | BN108: 0 | BO108: 0 | BP108: 0 | BQ108: 0
A109: =PROFORMA!A109 -> 109 | B109: =PROFORMA!B109 -> 0 | C109: =PROFORMA!C109 -> Total Distribution Maintenance | F109: =PROFORMA!BO109 -> 0 | G109: =PROFORMA!BP109 -> 0 | J109: 109 | L109: P | M109: =HLOOKUP("Factor Name",pfactor,6) -> Open | N109: =IF(MATCH(P109,ref,0)>0,"","matching error") ->  | O109: =HLOOKUP(O105,pfactor,6) -> 0 | P109: =HLOOKUP("Class",pfactor,6) -> xxx | R109: =Q105*O109/SUM(O106:O109) -> 0 | S109: =$R109*(VLOOKUP($P109,class,5)/VLOOKUP($P109,class,4)) -> 0 | T109: =$R109*(VLOOKUP($P109,class,6)/VLOOKUP($P109,class,4)) -> 0 | U109: =$R109*(VLOOKUP($P109,class,7)/VLOOKUP($P109,class,4)) -> 0 | V109: =$R109*(VLOOKUP($P109,class,8)/VLOOKUP($P109,class,4)) -> 0 | W109: =$R109*(VLOOKUP($P109,class,9)/VLOOKUP($P109,class,4)) -> 0 | X109: =$R109*(VLOOKUP($P109,class,10)/VLOOKUP($P109,class,4)) -> 0 | Y109: =$R109*(VLOOKUP($P109,class,11)/VLOOKUP($P109,class,4)) -> 0 | Z109: =$R109*(VLOOKUP($P109,class,12)/VLOOKUP($P109,class,4)) -> 0 | AA109: =$R109*(VLOOKUP($P109,class,13)/VLOOKUP($P109,class,4)) -> 0 | AB109: =$R109*(VLOOKUP($P109,class,14)/VLOOKUP($P109,class,4)) -> 0 | AC109: =$R109*(VLOOKUP($P109,class,15)/VLOOKUP($P109,class,4)) -> 0 | BB109: 109 | BC109: S08 | BD109: Account 361 | BF109: =SUM(BG109:BQ109) -> 28173000 | BG109: =SUM(S946:S956) -> 14207063.3 | BH109: 3551864.64 | BI109: 7435622.984 | BJ109: 1917125.005 | BK109: 921768.1777 | BL109: 139555.8906 | BM109: 0 | BN109: 0 | BO109: 0 | BP109: 0 | BQ109: 0 | BR109: Sum lines 946 ~ 956
A110: =PROFORMA!A110 -> 110 | B110: =PROFORMA!B110 -> 0 | C110: =PROFORMA!C110 -> Total Distribution Expenses | F110: =PROFORMA!BO110 -> 0 | G110: =PROFORMA!BP110 -> 0 | J110: 110 | L110: =C34 -> Total Hydraulic Operation | N110: =IF(AND(ROUND($Q110,0)=ROUND($R110,0),ROUND(SUM($S110:$AC110),0)=ROUND($R110,0)),"","crossfoot error") ->  | Q110: =SUM(Q80:Q109) -> 19024000 | R110: 19024000 | S110: 8517917.862 | T110: 2079898.549 | U110: 4495573.036 | V110: 3433454.186 | W110: 451036.2948 | X110: 46120.07157 | Y110: 0 | Z110: 0 | AA110: 0 | AB110: 0 | AC110: 0 | BB110: 110 | BE110: =IF(SUM(BG110:BQ110)=BF110,"","error") ->  | BF110: =BF109/$BF109 -> 1 | BG110: 0.5042793917 | BH110: 0.1260733553 | BI110: 0.2639272702 | BJ110: 0.06804830883 | BK110: 0.03271814069 | BL110: 0.004953533192 | BM110: 0 | BN110: 0 | BO110: 0 | BP110: 0 | BQ110: 0
A111: =PROFORMA!A111 -> 111 | B111: =PROFORMA!B111 -> 0 | C111: =PROFORMA!C111 -> 0 | F111: =PROFORMA!BO111 -> 0 | G111: =PROFORMA!BP111 -> 0 | J111: 111 | K111: =B35 -> 541-MT | L111: =C35 -> Hydro | M111: =D35 -> Supervision & Engineering | O111: P01 | P111: =IF(MATCH(O111,P_ref,0)>0,"","error matching functional allocator") ->  | Q111: =F35 -> 902000 | BB111: 111 | BC111: S09 | BD111: Account 362 | BF111: =SUM(BG111:BQ111) -> 95242000 | BG111: =SUM(S957:S967) -> 48633787.96 | BH111: 12158785.25 | BI111: 25453712.97 | BJ111: 5362576.655 | BK111: 3155407.781 | BL111: 477729.3834 | BM111: 0 | BN111: 0 | BO111: 0 | BP111: 0 | BQ111: 0 | BR111: Sum lines 957 ~ 967
A112: =PROFORMA!A112 -> 112 | B112: =PROFORMA!B112 -> 0 | C112: =PROFORMA!C112 -> Customer Accounting Expenses | F112: =PROFORMA!BO112 -> 0 | G112: =PROFORMA!BP112 -> 0 | J112: 112 | L112: P | M112: =HLOOKUP("Factor Name",pfactor,3) -> Coincident Peak | N112: =IF(MATCH(P112,ref,0)>0,"","matching error") ->  | O112: =HLOOKUP(O111,pfactor,3) -> 39.52 | P112: =HLOOKUP("Class",pfactor,3) -> D01 | R112: =Q111*O112/SUM(O112:O115) -> 356470.4 | S112: =$R112*(VLOOKUP($P112,class,5)/VLOOKUP($P112,class,4)) -> 173084.4326 | T112: =$R112*(VLOOKUP($P112,class,6)/VLOOKUP($P112,class,4)) -> 38429.46913 | U112: =$R112*(VLOOKUP($P112,class,7)/VLOOKUP($P112,class,4)) -> 80592.76953 | V112: =$R112*(VLOOKUP($P112,class,8)/VLOOKUP($P112,class,4)) -> 56765.20574 | W112: =$R112*(VLOOKUP($P112,class,9)/VLOOKUP($P112,class,4)) -> 7213.777699 | X112: =$R112*(VLOOKUP($P112,class,10)/VLOOKUP($P112,class,4)) -> 384.7452585 | Y112: =$R112*(VLOOKUP($P112,class,11)/VLOOKUP($P112,class,4)) -> 0 | Z112: =$R112*(VLOOKUP($P112,class,12)/VLOOKUP($P112,class,4)) -> 0 | AA112: =$R112*(VLOOKUP($P112,class,13)/VLOOKUP($P112,class,4)) -> 0 | AB112: =$R112*(VLOOKUP($P112,class,14)/VLOOKUP($P112,class,4)) -> 0 | AC112: =$R112*(VLOOKUP($P112,class,15)/VLOOKUP($P112,class,4)) -> 0 | BB112: 112 | BE112: =IF(SUM(BG112:BQ112)=BF112,"","error") ->  | BF112: =BF111/$BF111 -> 1 | BG112: 0.5106338375 | BH112: 0.127662011 | BI112: 0.2672530288 | BJ112: 0.05630474638 | BK112: 0.03313042336 | BL112: 0.005015952872 | BM112: 0 | BN112: 0 | BO112: 0 | BP112: 0 | BQ112: 0
A113: =PROFORMA!A113 -> 113 | B113: =PROFORMA!B113 -> 901-OP | C113: =PROFORMA!C113 -> Supervision | F113: =PROFORMA!BO113 -> 126000 | G113: =PROFORMA!BP113 -> 75471 | J113: 113 | L113: P | M113: =HLOOKUP("Factor Name",pfactor,4) -> Generation Level Consumption | N113: =IF(MATCH(P113,ref,0)>0,"","matching error") ->  | O113: =HLOOKUP(O111,pfactor,4) -> 60.48 | P113: =HLOOKUP("Class",pfactor,4) -> E02 | R113: =Q111*O113/SUM(O112:O115) -> 545529.6 | S113: =$R113*(VLOOKUP($P113,class,5)/VLOOKUP($P113,class,4)) -> 230782.3625 | T113: =$R113*(VLOOKUP($P113,class,6)/VLOOKUP($P113,class,4)) -> 60186.41037 | U113: =$R113*(VLOOKUP($P113,class,7)/VLOOKUP($P113,class,4)) -> 132559.4003 | V113: =$R113*(VLOOKUP($P113,class,8)/VLOOKUP($P113,class,4)) -> 106027.8807 | W113: =$R113*(VLOOKUP($P113,class,9)/VLOOKUP($P113,class,4)) -> 14171.56386 | X113: =$R113*(VLOOKUP($P113,class,10)/VLOOKUP($P113,class,4)) -> 1801.982273 | Y113: =$R113*(VLOOKUP($P113,class,11)/VLOOKUP($P113,class,4)) -> 0 | Z113: =$R113*(VLOOKUP($P113,class,12)/VLOOKUP($P113,class,4)) -> 0 | AA113: =$R113*(VLOOKUP($P113,class,13)/VLOOKUP($P113,class,4)) -> 0 | AB113: =$R113*(VLOOKUP($P113,class,14)/VLOOKUP($P113,class,4)) -> 0 | AC113: =$R113*(VLOOKUP($P113,class,15)/VLOOKUP($P113,class,4)) -> 0 | BB113: 113 | BC113: S10 | BD113: Account 364/365 | BF113: =SUM(BG113:BQ113) -> 443131000 | BG113: =SUM(S979:S1000) -> 228603342.8 | BH113: 57152425.69 | BI113: 119564222.6 | BJ113: 19361745.3 | BK113: 14832008.71 | BL113: 3617254.952 | BM113: 0 | BN113: 0 | BO113: 0 | BP113: 0 | BQ113: 0 | BR113: Sum lines 979 ~ 1000
A114: =PROFORMA!A114 -> 114 | B114: =PROFORMA!B114 -> 902-OP | C114: =PROFORMA!C114 -> Meter Reading | F114: =PROFORMA!BO114 -> 2952000 | G114: =PROFORMA!BP114 -> 1608778 | J114: 114 | L114: P | M114: =HLOOKUP("Factor Name",pfactor,5) -> Open | N114: =IF(MATCH(P114,ref,0)>0,"","matching error") ->  | O114: =HLOOKUP(O111,pfactor,5) -> 0 | P114: =HLOOKUP("Class",pfactor,5) -> xxx | R114: =Q111*O114/SUM(O112:O115) -> 0 | S114: =$R114*(VLOOKUP($P114,class,5)/VLOOKUP($P114,class,4)) -> 0 | T114: =$R114*(VLOOKUP($P114,class,6)/VLOOKUP($P114,class,4)) -> 0 | U114: =$R114*(VLOOKUP($P114,class,7)/VLOOKUP($P114,class,4)) -> 0 | V114: =$R114*(VLOOKUP($P114,class,8)/VLOOKUP($P114,class,4)) -> 0 | W114: =$R114*(VLOOKUP($P114,class,9)/VLOOKUP($P114,class,4)) -> 0 | X114: =$R114*(VLOOKUP($P114,class,10)/VLOOKUP($P114,class,4)) -> 0 | Y114: =$R114*(VLOOKUP($P114,class,11)/VLOOKUP($P114,class,4)) -> 0 | Z114: =$R114*(VLOOKUP($P114,class,12)/VLOOKUP($P114,class,4)) -> 0 | AA114: =$R114*(VLOOKUP($P114,class,13)/VLOOKUP($P114,class,4)) -> 0 | AB114: =$R114*(VLOOKUP($P114,class,14)/VLOOKUP($P114,class,4)) -> 0 | AC114: =$R114*(VLOOKUP($P114,class,15)/VLOOKUP($P114,class,4)) -> 0 | BB114: 114 | BE114: =IF(SUM(BG114:BQ114)=BF114,"","error") ->  | BF114: =BF113/$BF113 -> 1 | BG114: 0.5158820817 | BH114: 0.1289741085 | BI114: 0.2698168771 | BJ114: 0.04369305081 | BK114: 0.03347093458 | BL114: 0.008162947192 | BM114: 0 | BN114: 0 | BO114: 0 | BP114: 0 | BQ114: 0
A115: =PROFORMA!A115 -> 115 | B115: =PROFORMA!B115 -> 903-OP | C115: =PROFORMA!C115 -> Customer Records & Collections | F115: =PROFORMA!BO115 -> 7128000 | G115: =PROFORMA!BP115 -> 3274150 | J115: 115 | L115: P | M115: =HLOOKUP("Factor Name",pfactor,6) -> Open | N115: =IF(MATCH(P115,ref,0)>0,"","matching error") ->  | O115: =HLOOKUP(O111,pfactor,6) -> 0 | P115: =HLOOKUP("Class",pfactor,6) -> xxx | R115: =Q111*O115/SUM(O112:O115) -> 0 | S115: =$R115*(VLOOKUP($P115,class,5)/VLOOKUP($P115,class,4)) -> 0 | T115: =$R115*(VLOOKUP($P115,class,6)/VLOOKUP($P115,class,4)) -> 0 | U115: =$R115*(VLOOKUP($P115,class,7)/VLOOKUP($P115,class,4)) -> 0 | V115: =$R115*(VLOOKUP($P115,class,8)/VLOOKUP($P115,class,4)) -> 0 | W115: =$R115*(VLOOKUP($P115,class,9)/VLOOKUP($P115,class,4)) -> 0 | X115: =$R115*(VLOOKUP($P115,class,10)/VLOOKUP($P115,class,4)) -> 0 | Y115: =$R115*(VLOOKUP($P115,class,11)/VLOOKUP($P115,class,4)) -> 0 | Z115: =$R115*(VLOOKUP($P115,class,12)/VLOOKUP($P115,class,4)) -> 0 | AA115: =$R115*(VLOOKUP($P115,class,13)/VLOOKUP($P115,class,4)) -> 0 | AB115: =$R115*(VLOOKUP($P115,class,14)/VLOOKUP($P115,class,4)) -> 0 | AC115: =$R115*(VLOOKUP($P115,class,15)/VLOOKUP($P115,class,4)) -> 0 | BB115: 115 | BC115: S11 | BD115: Account 366/367 | BF115: =SUM(BG115:BQ115) -> 220007000 | BG115: =SUM(S1001:S1022) -> 114060975.7 | BH115: 28516037.26 | BI115: 58613767.3 | BJ115: 10295411.7 | BK115: 7400387.786 | BL115: 1120420.224 | BM115: 0 | BN115: 0 | BO115: 0 | BP115: 0 | BQ115: 0 | BR115: Sum lines 1001 ~ 1022
A116: =PROFORMA!A116 -> 116 | B116: =PROFORMA!B116 -> 904-OP | C116: =PROFORMA!C116 -> Uncollectible Accounts | F116: =PROFORMA!BO116 -> 2082000 | G116: =PROFORMA!BP116 -> 0 | J116: 116 | K116: =B36 -> 542-MT | L116: =C36 -> Hydro | M116: =D36 -> Structures | O116: P01 | P116: =IF(MATCH(O116,P_ref,0)>0,"","error matching functional allocator") ->  | Q116: =F36 -> 329000 | BB116: 116 | BE116: =IF(SUM(BG116:BQ116)=BF116,"","error") ->  | BF116: =BF115/$BF115 -> 1 | BG116: 0.5184424847 | BH116: 0.1296142271 | BI116: 0.2664177381 | BJ116: 0.04679583695 | BK116: 0.03363705603 | BL116: 0.005092657162 | BM116: 0 | BN116: 0 | BO116: 0 | BP116: 0 | BQ116: 0
A117: =PROFORMA!A117 -> 117 | B117: =PROFORMA!B117 -> 905-OP | C117: =PROFORMA!C117 -> Misc Customer Accounts Expenses | F117: =PROFORMA!BO117 -> 239000 | G117: =PROFORMA!BP117 -> 94076 | J117: 117 | L117: P | M117: =HLOOKUP("Factor Name",pfactor,3) -> Coincident Peak | N117: =IF(MATCH(P117,ref,0)>0,"","matching error") ->  | O117: =HLOOKUP(O116,pfactor,3) -> 39.52 | P117: =HLOOKUP("Class",pfactor,3) -> D01 | R117: =Q116*O117/SUM(O117:O120) -> 130020.8 | S117: =$R117*(VLOOKUP($P117,class,5)/VLOOKUP($P117,class,4)) -> 63131.6833 | T117: =$R117*(VLOOKUP($P117,class,6)/VLOOKUP($P117,class,4)) -> 14016.95714 | U117: =$R117*(VLOOKUP($P117,class,7)/VLOOKUP($P117,class,4)) -> 29395.81062 | V117: =$R117*(VLOOKUP($P117,class,8)/VLOOKUP($P117,class,4)) -> 20704.8256 | W117: =$R117*(VLOOKUP($P117,class,9)/VLOOKUP($P117,class,4)) -> 2631.189427 | X117: =$R117*(VLOOKUP($P117,class,10)/VLOOKUP($P117,class,4)) -> 140.3339136 | Y117: =$R117*(VLOOKUP($P117,class,11)/VLOOKUP($P117,class,4)) -> 0 | Z117: =$R117*(VLOOKUP($P117,class,12)/VLOOKUP($P117,class,4)) -> 0 | AA117: =$R117*(VLOOKUP($P117,class,13)/VLOOKUP($P117,class,4)) -> 0 | AB117: =$R117*(VLOOKUP($P117,class,14)/VLOOKUP($P117,class,4)) -> 0 | AC117: =$R117*(VLOOKUP($P117,class,15)/VLOOKUP($P117,class,4)) -> 0 | BB117: 117 | BC117: S12 | BD117: Account 368 | BF117: =SUM(BG117:BQ117) -> 185646000 | BG117: =SUM(S1023:S1033) -> 102854646.9 | BH117: 25714377.11 | BI117: 49393325.27 | BJ117: 0 | BK117: 6673310.199 | BL117: 1010340.529 | BM117: 0 | BN117: 0 | BO117: 0 | BP117: 0 | BQ117: 0 | BR117: Sum lines 1023 ~ 1033
A118: =PROFORMA!A118 -> 118 | B118: =PROFORMA!B118 -> 0 | C118: =PROFORMA!C118 -> Total Customer Accounting Expenses | F118: =PROFORMA!BO118 -> 0 | G118: =PROFORMA!BP118 -> 0 | J118: 118 | L118: P | M118: =HLOOKUP("Factor Name",pfactor,4) -> Generation Level Consumption | N118: =IF(MATCH(P118,ref,0)>0,"","matching error") ->  | O118: =HLOOKUP(O116,pfactor,4) -> 60.48 | P118: =HLOOKUP("Class",pfactor,4) -> E02 | R118: =Q116*O118/SUM(O117:O120) -> 198979.2 | S118: =$R118*(VLOOKUP($P118,class,5)/VLOOKUP($P118,class,4)) -> 84176.71538 | T118: =$R118*(VLOOKUP($P118,class,6)/VLOOKUP($P118,class,4)) -> 21952.69292 | U118: =$R118*(VLOOKUP($P118,class,7)/VLOOKUP($P118,class,4)) -> 48350.37992 | V118: =$R118*(VLOOKUP($P118,class,8)/VLOOKUP($P118,class,4)) -> 38673.14052 | W118: =$R118*(VLOOKUP($P118,class,9)/VLOOKUP($P118,class,4)) -> 5169.007218 | X118: =$R118*(VLOOKUP($P118,class,10)/VLOOKUP($P118,class,4)) -> 657.2640441 | Y118: =$R118*(VLOOKUP($P118,class,11)/VLOOKUP($P118,class,4)) -> 0 | Z118: =$R118*(VLOOKUP($P118,class,12)/VLOOKUP($P118,class,4)) -> 0 | AA118: =$R118*(VLOOKUP($P118,class,13)/VLOOKUP($P118,class,4)) -> 0 | AB118: =$R118*(VLOOKUP($P118,class,14)/VLOOKUP($P118,class,4)) -> 0 | AC118: =$R118*(VLOOKUP($P118,class,15)/VLOOKUP($P118,class,4)) -> 0 | BB118: 118 | BE118: =IF(SUM(BG118:BQ118)=BF118,"","error") ->  | BF118: =BF117/$BF117 -> 1 | BG118: 0.554036429 | BH118: 0.1385129607 | BI118: 0.266061888 | BJ118: 0 | BK118: 0.03594642599 | BL118: 0.005442296246 | BM118: 0 | BN118: 0 | BO118: 0 | BP118: 0 | BQ118: 0
A119: =PROFORMA!A119 -> 119 | B119: =PROFORMA!B119 -> 0 | C119: =PROFORMA!C119 -> 0 | F119: =PROFORMA!BO119 -> 0 | G119: =PROFORMA!BP119 -> 0 | J119: 119 | L119: P | M119: =HLOOKUP("Factor Name",pfactor,5) -> Open | N119: =IF(MATCH(P119,ref,0)>0,"","matching error") ->  | O119: =HLOOKUP(O116,pfactor,5) -> 0 | P119: =HLOOKUP("Class",pfactor,5) -> xxx | R119: =Q116*O119/SUM(O117:O120) -> 0 | S119: =$R119*(VLOOKUP($P119,class,5)/VLOOKUP($P119,class,4)) -> 0 | T119: =$R119*(VLOOKUP($P119,class,6)/VLOOKUP($P119,class,4)) -> 0 | U119: =$R119*(VLOOKUP($P119,class,7)/VLOOKUP($P119,class,4)) -> 0 | V119: =$R119*(VLOOKUP($P119,class,8)/VLOOKUP($P119,class,4)) -> 0 | W119: =$R119*(VLOOKUP($P119,class,9)/VLOOKUP($P119,class,4)) -> 0 | X119: =$R119*(VLOOKUP($P119,class,10)/VLOOKUP($P119,class,4)) -> 0 | Y119: =$R119*(VLOOKUP($P119,class,11)/VLOOKUP($P119,class,4)) -> 0 | Z119: =$R119*(VLOOKUP($P119,class,12)/VLOOKUP($P119,class,4)) -> 0 | AA119: =$R119*(VLOOKUP($P119,class,13)/VLOOKUP($P119,class,4)) -> 0 | AB119: =$R119*(VLOOKUP($P119,class,14)/VLOOKUP($P119,class,4)) -> 0 | AC119: =$R119*(VLOOKUP($P119,class,15)/VLOOKUP($P119,class,4)) -> 0 | BB119: 119 | BC119: S13 | BD119: Account 369 | BF119: =SUM(BG119:BQ119) -> 111541000 | BG119: =SUM(S1034:S1044) -> 95375348.73 | BH119: 14254845.93 | BI119: 825623.871 | BJ119: 0 | BK119: 1085181.472 | BL119: 0 | BM119: 0 | BN119: 0 | BO119: 0 | BP119: 0 | BQ119: 0 | BR119: Sum lines 1034 ~ 1044
A120: =PROFORMA!A120 -> 120 | B120: =PROFORMA!B120 -> 0 | C120: =PROFORMA!C120 -> 0 | F120: =PROFORMA!BO120 -> 0 | G120: =PROFORMA!BP120 -> 0 | J120: 120 | L120: P | M120: =HLOOKUP("Factor Name",pfactor,6) -> Open | N120: =IF(MATCH(P120,ref,0)>0,"","matching error") ->  | O120: =HLOOKUP(O116,pfactor,6) -> 0 | P120: =HLOOKUP("Class",pfactor,6) -> xxx | R120: =Q116*O120/SUM(O117:O120) -> 0 | S120: =$R120*(VLOOKUP($P120,class,5)/VLOOKUP($P120,class,4)) -> 0 | T120: =$R120*(VLOOKUP($P120,class,6)/VLOOKUP($P120,class,4)) -> 0 | U120: =$R120*(VLOOKUP($P120,class,7)/VLOOKUP($P120,class,4)) -> 0 | V120: =$R120*(VLOOKUP($P120,class,8)/VLOOKUP($P120,class,4)) -> 0 | W120: =$R120*(VLOOKUP($P120,class,9)/VLOOKUP($P120,class,4)) -> 0 | X120: =$R120*(VLOOKUP($P120,class,10)/VLOOKUP($P120,class,4)) -> 0 | Y120: =$R120*(VLOOKUP($P120,class,11)/VLOOKUP($P120,class,4)) -> 0 | Z120: =$R120*(VLOOKUP($P120,class,12)/VLOOKUP($P120,class,4)) -> 0 | AA120: =$R120*(VLOOKUP($P120,class,13)/VLOOKUP($P120,class,4)) -> 0 | AB120: =$R120*(VLOOKUP($P120,class,14)/VLOOKUP($P120,class,4)) -> 0 | AC120: =$R120*(VLOOKUP($P120,class,15)/VLOOKUP($P120,class,4)) -> 0 | BB120: 120 | BE120: =IF(SUM(BG120:BQ120)=BF120,"","error") ->  | BF120: =BF119/$BF119 -> 1 | BG120: 0.8550698732 | BH120: 0.1277991584 | BI120: 0.007401976592 | BJ120: 0 | BK120: 0.009728991774 | BL120: 0 | BM120: 0 | BN120: 0 | BO120: 0 | BP120: 0 | BQ120: 0
A121: =PROFORMA!A121 -> 121 | B121: =PROFORMA!B121 -> Proforma | C121: =PROFORMA!C121 -> 0 | F121: =PROFORMA!BO121 -> 0 | G121: =PROFORMA!BP121 -> 0 | J121: 121 | K121: =B37 -> 543-MT | L121: =C37 -> Hydro | M121: =D37 -> Reservoirs, Dams & Waterways | O121: P01 | P121: =IF(MATCH(O121,P_ref,0)>0,"","error matching functional allocator") ->  | Q121: =F37 -> 1578000 | BB121: 121 | BC121: S14 | BD121: Account 370 | BF121: =SUM(BG121:BQ121) -> 26985000 | BG121: =SUM(S1045:S1055) -> 18576624.71 | BH121: 6080472.251 | BI121: 1473732.544 | BJ121: 40415.31612 | BK121: 813755.1834 | BL121: 0 | BM121: 0 | BN121: 0 | BO121: 0 | BP121: 0 | BQ121: 0 | BR121: Sum lines 1045 ~ 1055
A122: =PROFORMA!A122 -> 122 | B122: =PROFORMA!B122 -> Pro Forma Results of Operations | C122: =PROFORMA!C122 -> 0 | F122: =PROFORMA!BO122 -> 0 | G122: =PROFORMA!BP122 -> 0 | J122: 122 | L122: P | M122: =HLOOKUP("Factor Name",pfactor,3) -> Coincident Peak | N122: =IF(MATCH(P122,ref,0)>0,"","matching error") ->  | O122: =HLOOKUP(O121,pfactor,3) -> 39.52 | P122: =HLOOKUP("Class",pfactor,3) -> D01 | R122: =Q121*O122/SUM(O122:O125) -> 623625.6 | S122: =$R122*(VLOOKUP($P122,class,5)/VLOOKUP($P122,class,4)) -> 302801.8123 | T122: =$R122*(VLOOKUP($P122,class,6)/VLOOKUP($P122,class,4)) -> 67230.26861 | U122: =$R122*(VLOOKUP($P122,class,7)/VLOOKUP($P122,class,4)) -> 140992.6722 | V122: =$R122*(VLOOKUP($P122,class,8)/VLOOKUP($P122,class,4)) -> 99307.64374 | W122: =$R122*(VLOOKUP($P122,class,9)/VLOOKUP($P122,class,4)) -> 12620.1122 | X122: =$R122*(VLOOKUP($P122,class,10)/VLOOKUP($P122,class,4)) -> 673.090929 | Y122: =$R122*(VLOOKUP($P122,class,11)/VLOOKUP($P122,class,4)) -> 0 | Z122: =$R122*(VLOOKUP($P122,class,12)/VLOOKUP($P122,class,4)) -> 0 | AA122: =$R122*(VLOOKUP($P122,class,13)/VLOOKUP($P122,class,4)) -> 0 | AB122: =$R122*(VLOOKUP($P122,class,14)/VLOOKUP($P122,class,4)) -> 0 | AC122: =$R122*(VLOOKUP($P122,class,15)/VLOOKUP($P122,class,4)) -> 0 | BB122: 122 | BE122: =IF(SUM(BG122:BQ122)=BF122,"","error") ->  | BF122: =BF121/$BF121 -> 1 | BG122: 0.6884055848 | BH122: 0.2253278581 | BI122: 0.05461302738 | BJ122: 0.001497695613 | BK122: 0.03015583411 | BL122: 0 | BM122: 0 | BN122: 0 | BO122: 0 | BP122: 0 | BQ122: 0
A123: =PROFORMA!A123 -> 123 | B123: =PROFORMA!B123 -> Company Settlement Case UE-190334 | C123: =PROFORMA!C123 -> 0 | F123: =PROFORMA!BO123 -> 0 | G123: =PROFORMA!BP123 -> 0 | J123: 123 | L123: P | M123: =HLOOKUP("Factor Name",pfactor,4) -> Generation Level Consumption | N123: =IF(MATCH(P123,ref,0)>0,"","matching error") ->  | O123: =HLOOKUP(O121,pfactor,4) -> 60.48 | P123: =HLOOKUP("Class",pfactor,4) -> E02 | R123: =Q121*O123/SUM(O122:O125) -> 954374.4 | S123: =$R123*(VLOOKUP($P123,class,5)/VLOOKUP($P123,class,4)) -> 403741.2063 | T123: =$R123*(VLOOKUP($P123,class,6)/VLOOKUP($P123,class,4)) -> 105292.8554 | U123: =$R123*(VLOOKUP($P123,class,7)/VLOOKUP($P123,class,4)) -> 231905.4696 | V123: =$R123*(VLOOKUP($P123,class,8)/VLOOKUP($P123,class,4)) -> 185490.0174 | W123: =$R123*(VLOOKUP($P123,class,9)/VLOOKUP($P123,class,4)) -> 24792.38113 | X123: =$R123*(VLOOKUP($P123,class,10)/VLOOKUP($P123,class,4)) -> 3152.470096 | Y123: =$R123*(VLOOKUP($P123,class,11)/VLOOKUP($P123,class,4)) -> 0 | Z123: =$R123*(VLOOKUP($P123,class,12)/VLOOKUP($P123,class,4)) -> 0 | AA123: =$R123*(VLOOKUP($P123,class,13)/VLOOKUP($P123,class,4)) -> 0 | AB123: =$R123*(VLOOKUP($P123,class,14)/VLOOKUP($P123,class,4)) -> 0 | AC123: =$R123*(VLOOKUP($P123,class,15)/VLOOKUP($P123,class,4)) -> 0 | BB123: 123 | BC123: S15 | BD123: Account 373 | BF123: =SUM(BG123:BQ123) -> 42459000 | BG123: =SUM(S1078:S1088) -> 0 | BH123: 0 | BI123: 0 | BJ123: 0 | BK123: 0 | BL123: 42459000 | BM123: 0 | BN123: 0 | BO123: 0 | BP123: 0 | BQ123: 0 | BR123: Sum lines 1078 ~ 1088
A124: =PROFORMA!A124 -> 124 | B124: =PROFORMA!B124 -> 0 | C124: =PROFORMA!C124 -> 0 | F124: =PROFORMA!BO124 -> 0 | G124: =PROFORMA!BP124 -> 0 | J124: 124 | L124: P | M124: =HLOOKUP("Factor Name",pfactor,5) -> Open | N124: =IF(MATCH(P124,ref,0)>0,"","matching error") ->  | O124: =HLOOKUP(O121,pfactor,5) -> 0 | P124: =HLOOKUP("Class",pfactor,5) -> xxx | R124: =Q121*O124/SUM(O122:O125) -> 0 | S124: =$R124*(VLOOKUP($P124,class,5)/VLOOKUP($P124,class,4)) -> 0 | T124: =$R124*(VLOOKUP($P124,class,6)/VLOOKUP($P124,class,4)) -> 0 | U124: =$R124*(VLOOKUP($P124,class,7)/VLOOKUP($P124,class,4)) -> 0 | V124: =$R124*(VLOOKUP($P124,class,8)/VLOOKUP($P124,class,4)) -> 0 | W124: =$R124*(VLOOKUP($P124,class,9)/VLOOKUP($P124,class,4)) -> 0 | X124: =$R124*(VLOOKUP($P124,class,10)/VLOOKUP($P124,class,4)) -> 0 | Y124: =$R124*(VLOOKUP($P124,class,11)/VLOOKUP($P124,class,4)) -> 0 | Z124: =$R124*(VLOOKUP($P124,class,12)/VLOOKUP($P124,class,4)) -> 0 | AA124: =$R124*(VLOOKUP($P124,class,13)/VLOOKUP($P124,class,4)) -> 0 | AB124: =$R124*(VLOOKUP($P124,class,14)/VLOOKUP($P124,class,4)) -> 0 | AC124: =$R124*(VLOOKUP($P124,class,15)/VLOOKUP($P124,class,4)) -> 0 | BB124: 124 | BE124: =IF(SUM(BG124:BQ124)=BF124,"","error") ->  | BF124: =BF123/$BF123 -> 1 | BG124: 0 | BH124: 0 | BI124: 0 | BJ124: 0 | BK124: 0 | BL124: 1 | BM124: 0 | BN124: 0 | BO124: 0 | BP124: 0 | BQ124: 0
A125: =PROFORMA!A125 -> 125 | B125: =PROFORMA!B125 -> (a) | C125: =PROFORMA!C125 -> (b) | F125: =PROFORMA!BO125 -> 0 | G125: =PROFORMA!BP125 -> 0 | J125: 125 | L125: P | M125: =HLOOKUP("Factor Name",pfactor,6) -> Open | N125: =IF(MATCH(P125,ref,0)>0,"","matching error") ->  | O125: =HLOOKUP(O121,pfactor,6) -> 0 | P125: =HLOOKUP("Class",pfactor,6) -> xxx | R125: =Q121*O125/SUM(O122:O125) -> 0 | S125: =$R125*(VLOOKUP($P125,class,5)/VLOOKUP($P125,class,4)) -> 0 | T125: =$R125*(VLOOKUP($P125,class,6)/VLOOKUP($P125,class,4)) -> 0 | U125: =$R125*(VLOOKUP($P125,class,7)/VLOOKUP($P125,class,4)) -> 0 | V125: =$R125*(VLOOKUP($P125,class,8)/VLOOKUP($P125,class,4)) -> 0 | W125: =$R125*(VLOOKUP($P125,class,9)/VLOOKUP($P125,class,4)) -> 0 | X125: =$R125*(VLOOKUP($P125,class,10)/VLOOKUP($P125,class,4)) -> 0 | Y125: =$R125*(VLOOKUP($P125,class,11)/VLOOKUP($P125,class,4)) -> 0 | Z125: =$R125*(VLOOKUP($P125,class,12)/VLOOKUP($P125,class,4)) -> 0 | AA125: =$R125*(VLOOKUP($P125,class,13)/VLOOKUP($P125,class,4)) -> 0 | AB125: =$R125*(VLOOKUP($P125,class,14)/VLOOKUP($P125,class,4)) -> 0 | AC125: =$R125*(VLOOKUP($P125,class,15)/VLOOKUP($P125,class,4)) -> 0 | BB125: 125 | BC125: S16 | BD125: Dist Op Exp Subtotal | BF125: =SUM(BG125:BQ125) -> 5785000 | BG125: =SUM(S269:S282)+S286 -> 3456968.771 | BH125: 899584.4802 | BI125: 1031598.112 | BJ125: 195161.3034 | BK125: 172460.0916 | BL125: 29227.24169 | BM125: 0 | BN125: 0 | BO125: 0 | BP125: 0 | BQ125: 0 | BR125: Sum lines 269 ~ 282 + line 286
A126: =PROFORMA!A126 -> 126 | B126: =PROFORMA!B126 -> 0 | C126: =PROFORMA!C126 -> 0 | F126: =PROFORMA!BO126 -> 0 | G126: =PROFORMA!BP126 -> 0 | J126: 126 | K126: =B38 -> 544-MT | L126: =C38 -> Hydro | M126: =D38 -> Electric Plant | O126: P01 | P126: =IF(MATCH(O126,P_ref,0)>0,"","error matching functional allocator") ->  | Q126: =F38 -> 2598000 | BB126: 126 | BE126: =IF(SUM(BG126:BQ126)=BF126,"","error") ->  | BF126: =BF125/$BF125 -> 1 | BG126: 0.5975745498 | BH126: 0.1555029352 | BI126: 0.1783229235 | BJ126: 0.0337357482 | BK126: 0.02981159752 | BL126: 0.005052245755 | BM126: 0 | BN126: 0 | BO126: 0 | BP126: 0 | BQ126: 0
A127: =PROFORMA!A127 -> 127 | B127: =PROFORMA!B127 -> Account | C127: =PROFORMA!C127 -> Description | F127: =PROFORMA!BO127 -> Proforma | G127: =PROFORMA!BP127 -> Labor | J127: 127 | L127: P | M127: =HLOOKUP("Factor Name",pfactor,3) -> Coincident Peak | N127: =IF(MATCH(P127,ref,0)>0,"","matching error") ->  | O127: =HLOOKUP(O126,pfactor,3) -> 39.52 | P127: =HLOOKUP("Class",pfactor,3) -> D01 | R127: =Q126*O127/SUM(O127:O130) -> 1026729.6 | S127: =$R127*(VLOOKUP($P127,class,5)/VLOOKUP($P127,class,4)) -> 498529.2195 | T127: =$R127*(VLOOKUP($P127,class,6)/VLOOKUP($P127,class,4)) -> 110687.0962 | U127: =$R127*(VLOOKUP($P127,class,7)/VLOOKUP($P127,class,4)) -> 232128.62 | V127: =$R127*(VLOOKUP($P127,class,8)/VLOOKUP($P127,class,4)) -> 163498.8964 | W127: =$R127*(VLOOKUP($P127,class,9)/VLOOKUP($P127,class,4)) -> 20777.59918 | X127: =$R127*(VLOOKUP($P127,class,10)/VLOOKUP($P127,class,4)) -> 1108.168716 | Y127: =$R127*(VLOOKUP($P127,class,11)/VLOOKUP($P127,class,4)) -> 0 | Z127: =$R127*(VLOOKUP($P127,class,12)/VLOOKUP($P127,class,4)) -> 0 | AA127: =$R127*(VLOOKUP($P127,class,13)/VLOOKUP($P127,class,4)) -> 0 | AB127: =$R127*(VLOOKUP($P127,class,14)/VLOOKUP($P127,class,4)) -> 0 | AC127: =$R127*(VLOOKUP($P127,class,15)/VLOOKUP($P127,class,4)) -> 0 | BB127: 127 | BC127: S17 | BD127: Dist Mt Exp Subtotal | BF127: =SUM(BG127:BQ127) -> 9347000 | BG127: =SUM(S290:S303) -> 4726955.467 | BH127: 1183102.286 | BI127: 2454430.797 | BJ127: 401342.7224 | BK127: 306326.7842 | BL127: 274841.9434 | BM127: 0 | BN127: 0 | BO127: 0 | BP127: 0 | BQ127: 0 | BR127: Sum lines 290 ~ 303
A128: =PROFORMA!A128 -> 128 | B128: =PROFORMA!B128 -> 0 | C128: =PROFORMA!C128 -> 0 | F128: =PROFORMA!BO128 -> Totals | G128: =PROFORMA!BP128 -> Totals | J128: 128 | L128: P | M128: =HLOOKUP("Factor Name",pfactor,4) -> Generation Level Consumption | N128: =IF(MATCH(P128,ref,0)>0,"","matching error") ->  | O128: =HLOOKUP(O126,pfactor,4) -> 60.48 | P128: =HLOOKUP("Class",pfactor,4) -> E02 | R128: =Q126*O128/SUM(O127:O130) -> 1571270.4 | S128: =$R128*(VLOOKUP($P128,class,5)/VLOOKUP($P128,class,4)) -> 664714.6096 | T128: =$R128*(VLOOKUP($P128,class,6)/VLOOKUP($P128,class,4)) -> 173352.876 | U128: =$R128*(VLOOKUP($P128,class,7)/VLOOKUP($P128,class,4)) -> 381806.3436 | V128: =$R128*(VLOOKUP($P128,class,8)/VLOOKUP($P128,class,4)) -> 305388.5078 | W128: =$R128*(VLOOKUP($P128,class,9)/VLOOKUP($P128,class,4)) -> 40817.87463 | X128: =$R128*(VLOOKUP($P128,class,10)/VLOOKUP($P128,class,4)) -> 5190.188409 | Y128: =$R128*(VLOOKUP($P128,class,11)/VLOOKUP($P128,class,4)) -> 0 | Z128: =$R128*(VLOOKUP($P128,class,12)/VLOOKUP($P128,class,4)) -> 0 | AA128: =$R128*(VLOOKUP($P128,class,13)/VLOOKUP($P128,class,4)) -> 0 | AB128: =$R128*(VLOOKUP($P128,class,14)/VLOOKUP($P128,class,4)) -> 0 | AC128: =$R128*(VLOOKUP($P128,class,15)/VLOOKUP($P128,class,4)) -> 0 | BB128: 128 | BE128: =IF(SUM(BG128:BQ128)=BF128,"","error") ->  | BF128: =BF127/$BF127 -> 1 | BG128: 0.5057189972 | BH128: 0.1265756163 | BI128: 0.2625902211 | BJ128: 0.04293813228 | BK128: 0.03277273822 | BL128: 0.02940429478 | BM128: 0 | BN128: 0 | BO128: 0 | BP128: 0 | BQ128: 0
